Workbook

Sheet M&A
A1: Avoided Cost Data Set | C1: Options
A2: AESC 2021 | C2: AESC 2021 | D2: AESC 2018
A4: Net or Gross
A5: Gross | C5: Net | D5: Gross
A7: Include Incentives to Freeriders as Cost
A8: No | C8: Yes | D8: No
A10: Year 1
A11: 2022 | C11: >=2018
A13: Default Discount Rate | C13: PUC | D13: AESC | E13: 10 yr + 2% - inflation
A14: 2.8 | C14: 6.5 | D14: 2.43 | E14: 2.8
A15: Avoided Costs are in Real Dollars. Discount Rates must be enter as real discount rate.
A16: RGGI Discount Rate
A17: 2.8
A18: Avoided Costs are in Real Dollars. Discount Rates must be enter as real discount rate.
A20: Include Non-Embeded Cost of Carbon
A21: 1 | C21: 1 to include, 0 to exclude
A25: Emissions Factors
A26: Fuel | B26: LB CO2/MMBtu or LB CO2/kWh
A27: NG | B27: 116.977
A28: Kerosene | B28: 159.416
A29: Propane | B29: 139.046
A30: Oil | B30: 161.268
A31: Electric | B31: 0.648

Sheet Measures
BC1: =$AF1 -> 0 | BE1: =$AG1 -> 0 | BR1: AF<row> | BS1: AG<row> | DU1: 1 | DV1: 2 | DW1: 3 | DX1: 4 | DY1: 5 | DZ1: 6 | EA1: 7 | EB1: 8 | EC1: 9 | ED1: 10 | EG1: 1 | EH1: 2 | EI1: 3 | EJ1: 4 | EK1: 5 | EL1: 6 | EM1: 7 | EN1: 8 | EO1: 9 | EP1: 10 | EQ1: 1 | ER1: 2 | ES1: 3 | ET1: 4 | EU1: 5 | EV1: 6 | EW1: 7 | EX1: 8 | EY1: 9 | EZ1: 10 | FA1: 1 | FB1: 2 | FC1: 3 | FD1: 4 | FE1: 5 | FF1: 6 | FG1: 7 | FH1: 8 | FI1: 9 | FJ1: 10 | FK1: 1 | FL1: 2 | FM1: 3 | FN1: 4 | FO1: 5 | FP1: 6 | FQ1: 7 | FR1: 8 | FS1: 9 | FT1: 10 | FU1: 1 | FV1: 2 | FW1: 3 | FX1: 4 | FY1: 5 | FZ1: 6 | GA1: 7 | GB1: 8 | GC1: 9 | GD1: 10 | GE1: 1 | GF1: 2 | GG1: 3 | GH1: 4 | GI1: 5 | GJ1: 6 | GK1: 7 | GL1: 8 | GM1: 9 | GN1: 10 | GO1: 1 | GP1: 2 | GQ1: 3 | GR1: 4 | GS1: 5 | GT1: 6 | GU1: 7 | GV1: 8 | GW1: 9 | GX1: 10 | GY1: 1 | GZ1: 2 | HA1: 3 | HB1: 4 | HC1: 5 | HD1: 6 | HE1: 7 | HF1: 8 | HG1: 9 | HH1: 10 | HI1: 1 | HJ1: 2 | HK1: 3 | HL1: 4 | HM1: 5 | HN1: 6 | HO1: 7 | HP1: 8 | HQ1: 9 | HR1: 10 | HS1: 1 | HT1: 2 | HU1: 3 | HV1: 4 | HW1: 5 | HX1: 6 | HY1: 7 | HZ1: 8 | IA1: 9 | IB1: 10 | IC1: 1 | ID1: 2 | IE1: 3 | IF1: 4 | IG1: 5 | IH1: 6 | II1: 7 | IJ1: 8 | IK1: 9 | IL1: 10 | IM1: 1 | IN1: 2 | IO1: 3 | IP1: 4 | IQ1: 5 | IR1: 6 | IS1: 7 | IT1: 8 | IU1: 9 | IV1: 10
F2: Formula | AC2: Factors | AR2: Representative Parameters | BL2: Representative Savings | CA2: Avoided Cost | CC2: Respresentative Benefits and Costs (adjusted gross) | CS2: NTG | CT2: Measure Screening | CV2: Incentive Budgets | DS2: AF | DT2: AG | DU2: AS | DV2: AU | DW2: AW | DX2: AY | DY2: BA | DZ2: BC | EA2: BE | EB2: BG | EC2: BI | ED2: BK
A3: Program Name | B3: Measure Name | C3: Measure Code | D3: Pricing Effective Date | E3: Pricing Effective End Date | F3: Measure Cost Method | G3: Measure Cost | H3: Measure Cost Cap | I3: Incentive Method | J3: Incentive | K3: Incentive Cap | L3: Savings Effective Date | M3: Savings Effective End Date | N3: Savings Method | O3: kWh | P3: kWh Min | Q3: kWh Max | R3: kW | S3: kW Min | T3: kW Max | U3: Winter kW | V3: Summer kW | W3: Therms | X3: Propane | Y3: Heating Oil | Z3: Kerosene | AA3: Wood | AB3: Water | AC3: Factor Effective Date | AD3: Factor Effective End Date | AE3: Useful Life | AF3: Winter CF | AG3: Summer CF | AH3: EPF Winter Peak | AI3: EPF Winter Off Peak | AJ3: EPF Summer Peak | AK3: EPF Summer Off Peak | AL3: ISR | AM3: RRe | AN3: RRd | AO3: FR | AP3: SO | AR3: Name | AS3: Value | AT3: Name | AU3: Value | AV3: Name | AW3: Value | AX3: Name | AY3: Value | AZ3: Name | BA3: Value | BB3: Name | BC3: Value | BD3: Name | BE3: Value | BF3: Name | BG3: Value | BH3: Name | BI3: Value | BJ3: Name | BK3: Value | BL3: kWh | BO3: kW | BR3: Winter kW | BS3: Summer kW | BT3: Therms | BU3: Propane | BV3: Heating Oil | BW3: Kerosene | BX3: Wood | BY3: Water | BZ3: Gasoline | CA3: Customer Type (Res/Com) | CB3: Discount Rate | CC3: Electric Energy Benefit | CD3: Electric Demand Benefit | CE3: NG Benefit | CF3: Oil Benefit | CG3: Kerosene Benefit | CH3: Propane Benefit | CI3: Wood Benefit | CJ3: Water Benefit | CK3: Gasoline | CL3: Energy & Water Benefits | CM3: Fuel Costs | CN3: Non-energy Benefits | CO3: Measure Cost | CP3: Discounted Future O&M (decreased future O&M entered as a negative value) | CQ3: Discounted future replacement costs (decreased future replacement cost entered as a negative value) | CR3: Fuel + Measure Cost | CS3: NTG = 1 if Gross, NTG = 1-FR+SO if Net | CT3: =IF(NetOrGross="Gross","BCR_Gross","BCR_Net") -> BCR_Gross | CU3: Include (1 - yes, 0 - no) | CV3: Incentive Per Unit | CW3: % (if applicable) | CX3: Funding | CY3: effRT measure? | DA3: Measure Cost | DB3: Incentive | DC3: kWh | DF3: kW | DI3: Winter kW | DJ3: Summer kW | DK3: Therms | DL3: Propane | DM3: Heating Oil | DN3: Kerosene | DO3: Wood | DP3: Water | IX3: =MAX(IX5:IX236) -> 0
A4: AAA | B4: Reference Calcs | AE4: 10 | AF4: 1 | AG4: 1 | AH4: 0.25 | AI4: 0.25 | AJ4: 0.25 | AK4: 0.25 | AL4: 1 | AM4: 1 | AN4: 1 | AO4: 0 | AP4: 0 | AR4: =DU4 ->  | AT4: =DV4 ->  | AV4: =DW4 ->  | AX4: =DX4 ->  | AZ4: =DY4 ->  | BB4: =DZ4 ->  | BD4: =EA4 ->  | BF4: =EB4 ->  | BH4: =EC4 ->  | BJ4: =ED4 ->  | BL4: 100 | BM4: 0 | BN4: 0 | BO4: 0 | BP4: 0 | BQ4: 0 | BR4: 0 | BS4: 0 | BT4: 0 | BU4: 0 | BV4: 0 | BW4: 0 | BX4: 0 | BY4: 0 | CA4: Res | CB4: Default DR | CC4: =Benefits(BL4,BR4,BS4,BT4,BU4,BV4,BW4,BX4,BY4,BZ4,AE4,AH4,AI4,AJ4,AK4,AL4,AM4,AN4,AO4,AP4,CA4,CB4) -> 96.32505063 | CD4: 0 | CE4: 0 | CF4: 0 | CG4: 0 | CH4: 0 | CI4: 0 | CJ4: 0 | CK4: 0 | CL4: =(--(CC4>0))*CC4+(--(CD4>0))*CD4+(--(CE4>0))*CE4+(--(CF4>0))*CF4+(--(CG4>0))*CG4+(--(CH4>0))*CH4+(--(CI4>0))*CI4+(--(CJ4>0))*CJ4 -> 96.32505063 | CM4: =(--(CC4<0))*-CC4+(--(CD4<0))*-CD4+(--(CE4<0))*-CE4+(--(CF4<0))*-CF4+(--(CG4<0))*-CG4+(--(CH4<0))*-CH4+(--(CI4<0))*-CI4+(--(CJ4<0))*-CJ4 -> 0 | CO4: 10 | CR4: =CM4+CO4 -> 10 | CS4: =IF(NetOrGross="Net",(1-AO4+AP4),1) -> 1 | CT4: =(SUMPRODUCT(CC4:CJ4,--(CC4:CJ4>0))+CN4)*CS4/((-SUMPRODUCT(CC4:CJ4,--(CC4:CJ4<0))+MAX(CO4,CV4)+CP4+CQ4)*CS4+IF(FRIncentives="Yes",CV4*(1-CS4),0)) -> 9.632505063 | CV4: =CO4*CW4 -> 0 | CY4: y | DA4: =IF(F4="Manual Entry","Manual",IF(G4="",0,"X="&SUBSTITUTE(SUBSTITUTE(SUBSTITUTE(SUBSTITUTE(SUBSTITUTE(SUBSTITUTE(SUBSTITUTE(SUBSTITUTE(SUBSTITUTE(SUBSTITUTE(SUBSTITUTE(SUBSTITUTE(G4,$ED4,$ED$2&ROW($ED4)),$EC4,$EC$2&ROW($EC4)),$EB4,$EB$2&ROW($EB4)),$EA4,$EA$2&ROW($EA4)),$DZ4,$DZ$2&ROW($DZ4)),$DY4,$DY$2&ROW($DY4)),$DX4,$DX$2&ROW($DX4)),$DW4,$DW$2&ROW($DW4)),$DV4,$DV$2&ROW($DV4)),$DU4,$DU$2&ROW($DU4)),$DT4,$DT$2&ROW($DT4)),$DS4,$DS$2&ROW($DS4)))) -> 0 | DB4: 0 | DC4: =IF(O4="",0,"X="&SUBSTITUTE(SUBSTITUTE(SUBSTITUTE(SUBSTITUTE(SUBSTITUTE(SUBSTITUTE(SUBSTITUTE(SUBSTITUTE(SUBSTITUTE(SUBSTITUTE(SUBSTITUTE(SUBSTITUTE(O4,$ED4,$ED$2&ROW($ED4)),$EC4,$EC$2&ROW($EC4)),$EB4,$EB$2&ROW($EB4)),$EA4,$EA$2&ROW($EA4)),$DZ4,$DZ$2&ROW($DZ4)),$DY4,$DY$2&ROW($DY4)),$DX4,$DX$2&ROW($DX4)),$DW4,$DW$2&ROW($DW4)),$DV4,$DV$2&ROW($DV4)),$DU4,$DU$2&ROW($DU4)),$DT4,$DT$2&ROW($DT4)),$DS4,$DS$2&ROW($DS4))) -> 0 | DD4: =IF(P4="",0,"X="&SUBSTITUTE(SUBSTITUTE(SUBSTITUTE(SUBSTITUTE(SUBSTITUTE(SUBSTITUTE(SUBSTITUTE(SUBSTITUTE(SUBSTITUTE(SUBSTITUTE(SUBSTITUTE(SUBSTITUTE(P4,$ED4,$ED$2&ROW($ED4)),$EC4,$EC$2&ROW($EC4)),$EB4,$EB$2&ROW($EB4)),$EA4,$EA$2&ROW($EA4)),$DZ4,$DZ$2&ROW($DZ4)),$DY4,$DY$2&ROW($DY4)),$DX4,$DX$2&ROW($DX4)),$DW4,$DW$2&ROW($DW4)),$DV4,$DV$2&ROW($DV4)),$DU4,$DU$2&ROW($DU4)),$DT4,$DT$2&ROW($DT4)),$DS4,$DS$2&ROW($DS4))) -> 0 | DE4: =IF(Q4="",0,"X="&SUBSTITUTE(SUBSTITUTE(SUBSTITUTE(SUBSTITUTE(SUBSTITUTE(SUBSTITUTE(SUBSTITUTE(SUBSTITUTE(SUBSTITUTE(SUBSTITUTE(SUBSTITUTE(SUBSTITUTE(Q4,$ED4,$ED$2&ROW($ED4)),$EC4,$EC$2&ROW($EC4)),$EB4,$EB$2&ROW($EB4)),$EA4,$EA$2&ROW($EA4)),$DZ4,$DZ$2&ROW($DZ4)),$DY4,$DY$2&ROW($DY4)),$DX4,$DX$2&ROW($DX4)),$DW4,$DW$2&ROW($DW4)),$DV4,$DV$2&ROW($DV4)),$DU4,$DU$2&ROW($DU4)),$DT4,$DT$2&ROW($DT4)),$DS4,$DS$2&ROW($DS4))) -> 0 | DF4: =IF(R4="",0,"X="&SUBSTITUTE(SUBSTITUTE(SUBSTITUTE(SUBSTITUTE(SUBSTITUTE(SUBSTITUTE(SUBSTITUTE(SUBSTITUTE(SUBSTITUTE(SUBSTITUTE(SUBSTITUTE(SUBSTITUTE(R4,$ED4,$ED$2&ROW($ED4)),$EC4,$EC$2&ROW($EC4)),$EB4,$EB$2&ROW($EB4)),$EA4,$EA$2&ROW($EA4)),$DZ4,$DZ$2&ROW($DZ4)),$DY4,$DY$2&ROW($DY4)),$DX4,$DX$2&ROW($DX4)),$DW4,$DW$2&ROW($DW4)),$DV4,$DV$2&ROW($DV4)),$DU4,$DU$2&ROW($DU4)),$DT4,$DT$2&ROW($DT4)),$DS4,$DS$2&ROW($DS4))) -> 0 | DG4: =IF(S4="",0,"X="&SUBSTITUTE(SUBSTITUTE(SUBSTITUTE(SUBSTITUTE(SUBSTITUTE(SUBSTITUTE(SUBSTITUTE(SUBSTITUTE(SUBSTITUTE(SUBSTITUTE(SUBSTITUTE(SUBSTITUTE(S4,$ED4,$ED$2&ROW($ED4)),$EC4,$EC$2&ROW($EC4)),$EB4,$EB$2&ROW($EB4)),$EA4,$EA$2&ROW($EA4)),$DZ4,$DZ$2&ROW($DZ4)),$DY4,$DY$2&ROW($DY4)),$DX4,$DX$2&ROW($DX4)),$DW4,$DW$2&ROW($DW4)),$DV4,$DV$2&ROW($DV4)),$DU4,$DU$2&ROW($DU4)),$DT4,$DT$2&ROW($DT4)),$DS4,$DS$2&ROW($DS4))) -> 0 | DH4: =IF(T4="",0,"X="&SUBSTITUTE(SUBSTITUTE(SUBSTITUTE(SUBSTITUTE(SUBSTITUTE(SUBSTITUTE(SUBSTITUTE(SUBSTITUTE(SUBSTITUTE(SUBSTITUTE(SUBSTITUTE(SUBSTITUTE(T4,$ED4,$ED$2&ROW($ED4)),$EC4,$EC$2&ROW($EC4)),$EB4,$EB$2&ROW($EB4)),$EA4,$EA$2&ROW($EA4)),$DZ4,$DZ$2&ROW($DZ4)),$DY4,$DY$2&ROW($DY4)),$DX4,$DX$2&ROW($DX4)),$DW4,$DW$2&ROW($DW4)),$DV4,$DV$2&ROW($DV4)),$DU4,$DU$2&ROW($DU4)),$DT4,$DT$2&ROW($DT4)),$DS4,$DS$2&ROW($DS4))) -> 0 | DI4: =IF(U4="",0,"X="&SUBSTITUTE(SUBSTITUTE(SUBSTITUTE(SUBSTITUTE(SUBSTITUTE(SUBSTITUTE(SUBSTITUTE(SUBSTITUTE(SUBSTITUTE(SUBSTITUTE(SUBSTITUTE(SUBSTITUTE(U4,$ED4,$ED$2&ROW($ED4)),$EC4,$EC$2&ROW($EC4)),$EB4,$EB$2&ROW($EB4)),$EA4,$EA$2&ROW($EA4)),$DZ4,$DZ$2&ROW($DZ4)),$DY4,$DY$2&ROW($DY4)),$DX4,$DX$2&ROW($DX4)),$DW4,$DW$2&ROW($DW4)),$DV4,$DV$2&ROW($DV4)),$DU4,$DU$2&ROW($DU4)),$DT4,$DT$2&ROW($DT4)),$DS4,$DS$2&ROW($DS4))) -> 0 | DJ4: =IF(V4="",0,"X="&SUBSTITUTE(SUBSTITUTE(SUBSTITUTE(SUBSTITUTE(SUBSTITUTE(SUBSTITUTE(SUBSTITUTE(SUBSTITUTE(SUBSTITUTE(SUBSTITUTE(SUBSTITUTE(SUBSTITUTE(V4,$ED4,$ED$2&ROW($ED4)),$EC4,$EC$2&ROW($EC4)),$EB4,$EB$2&ROW($EB4)),$EA4,$EA$2&ROW($EA4)),$DZ4,$DZ$2&ROW($DZ4)),$DY4,$DY$2&ROW($DY4)),$DX4,$DX$2&ROW($DX4)),$DW4,$DW$2&ROW($DW4)),$DV4,$DV$2&ROW($DV4)),$DU4,$DU$2&ROW($DU4)),$DT4,$DT$2&ROW($DT4)),$DS4,$DS$2&ROW($DS4))) -> 0 | DK4: =IF(W4="",0,"X="&SUBSTITUTE(SUBSTITUTE(SUBSTITUTE(SUBSTITUTE(SUBSTITUTE(SUBSTITUTE(SUBSTITUTE(SUBSTITUTE(SUBSTITUTE(SUBSTITUTE(SUBSTITUTE(SUBSTITUTE(W4,$ED4,$ED$2&ROW($ED4)),$EC4,$EC$2&ROW($EC4)),$EB4,$EB$2&ROW($EB4)),$EA4,$EA$2&ROW($EA4)),$DZ4,$DZ$2&ROW($DZ4)),$DY4,$DY$2&ROW($DY4)),$DX4,$DX$2&ROW($DX4)),$DW4,$DW$2&ROW($DW4)),$DV4,$DV$2&ROW($DV4)),$DU4,$DU$2&ROW($DU4)),$DT4,$DT$2&ROW($DT4)),$DS4,$DS$2&ROW($DS4))) -> 0 | DL4: =IF(X4="",0,"X="&SUBSTITUTE(SUBSTITUTE(SUBSTITUTE(SUBSTITUTE(SUBSTITUTE(SUBSTITUTE(SUBSTITUTE(SUBSTITUTE(SUBSTITUTE(SUBSTITUTE(SUBSTITUTE(SUBSTITUTE(X4,$ED4,$ED$2&ROW($ED4)),$EC4,$EC$2&ROW($EC4)),$EB4,$EB$2&ROW($EB4)),$EA4,$EA$2&ROW($EA4)),$DZ4,$DZ$2&ROW($DZ4)),$DY4,$DY$2&ROW($DY4)),$DX4,$DX$2&ROW($DX4)),$DW4,$DW$2&ROW($DW4)),$DV4,$DV$2&ROW($DV4)),$DU4,$DU$2&ROW($DU4)),$DT4,$DT$2&ROW($DT4)),$DS4,$DS$2&ROW($DS4))) -> 0 | DM4: =IF(Y4="",0,"X="&SUBSTITUTE(SUBSTITUTE(SUBSTITUTE(SUBSTITUTE(SUBSTITUTE(SUBSTITUTE(SUBSTITUTE(SUBSTITUTE(SUBSTITUTE(SUBSTITUTE(SUBSTITUTE(SUBSTITUTE(Y4,$ED4,$ED$2&ROW($ED4)),$EC4,$EC$2&ROW($EC4)),$EB4,$EB$2&ROW($EB4)),$EA4,$EA$2&ROW($EA4)),$DZ4,$DZ$2&ROW($DZ4)),$DY4,$DY$2&ROW($DY4)),$DX4,$DX$2&ROW($DX4)),$DW4,$DW$2&ROW($DW4)),$DV4,$DV$2&ROW($DV4)),$DU4,$DU$2&ROW($DU4)),$DT4,$DT$2&ROW($DT4)),$DS4,$DS$2&ROW($DS4))) -> 0 | DN4: =IF(Z4="",0,"X="&SUBSTITUTE(SUBSTITUTE(SUBSTITUTE(SUBSTITUTE(SUBSTITUTE(SUBSTITUTE(SUBSTITUTE(SUBSTITUTE(SUBSTITUTE(SUBSTITUTE(SUBSTITUTE(SUBSTITUTE(Z4,$ED4,$ED$2&ROW($ED4)),$EC4,$EC$2&ROW($EC4)),$EB4,$EB$2&ROW($EB4)),$EA4,$EA$2&ROW($EA4)),$DZ4,$DZ$2&ROW($DZ4)),$DY4,$DY$2&ROW($DY4)),$DX4,$DX$2&ROW($DX4)),$DW4,$DW$2&ROW($DW4)),$DV4,$DV$2&ROW($DV4)),$DU4,$DU$2&ROW($DU4)),$DT4,$DT$2&ROW($DT4)),$DS4,$DS$2&ROW($DS4))) -> 0 | DO4: =IF(AA4="",0,"X="&SUBSTITUTE(SUBSTITUTE(SUBSTITUTE(SUBSTITUTE(SUBSTITUTE(SUBSTITUTE(SUBSTITUTE(SUBSTITUTE(SUBSTITUTE(SUBSTITUTE(SUBSTITUTE(SUBSTITUTE(AA4,$ED4,$ED$2&ROW($ED4)),$EC4,$EC$2&ROW($EC4)),$EB4,$EB$2&ROW($EB4)),$EA4,$EA$2&ROW($EA4)),$DZ4,$DZ$2&ROW($DZ4)),$DY4,$DY$2&ROW($DY4)),$DX4,$DX$2&ROW($DX4)),$DW4,$DW$2&ROW($DW4)),$DV4,$DV$2&ROW($DV4)),$DU4,$DU$2&ROW($DU4)),$DT4,$DT$2&ROW($DT4)),$DS4,$DS$2&ROW($DS4))) -> 0 | DP4: =IF(AB4="",0,"X="&SUBSTITUTE(SUBSTITUTE(SUBSTITUTE(SUBSTITUTE(SUBSTITUTE(SUBSTITUTE(SUBSTITUTE(SUBSTITUTE(SUBSTITUTE(SUBSTITUTE(SUBSTITUTE(SUBSTITUTE(AB4,$ED4,$ED$2&ROW($ED4)),$EC4,$EC$2&ROW($EC4)),$EB4,$EB$2&ROW($EB4)),$EA4,$EA$2&ROW($EA4)),$DZ4,$DZ$2&ROW($DZ4)),$DY4,$DY$2&ROW($DY4)),$DX4,$DX$2&ROW($DX4)),$DW4,$DW$2&ROW($DW4)),$DV4,$DV$2&ROW($DV4)),$DU4,$DU$2&ROW($DU4)),$DT4,$DT$2&ROW($DT4)),$DS4,$DS$2&ROW($DS4))) -> 0 | DQ4: =SUBSTITUTE(AB4,$EA4,$EA$2&ROW($EA4)) ->  | DU4: =IFERROR(INDEX($EG4:$IT4,MATCH(0,COUNTIF($DR4:DT4,$EG4:$IT4),0)),"") ->  | DV4: =IFERROR(INDEX($EG4:$IT4,MATCH(0,COUNTIF($DR4:DU4,$EG4:$IT4),0)),"") ->  | DW4: =IFERROR(INDEX($EG4:$IT4,MATCH(0,COUNTIF($DR4:DV4,$EG4:$IT4),0)),"") ->  | DX4: =IFERROR(INDEX($EG4:$IT4,MATCH(0,COUNTIF($DR4:DW4,$EG4:$IT4),0)),"") ->  | DY4: =IFERROR(INDEX($EG4:$IT4,MATCH(0,COUNTIF($DR4:DX4,$EG4:$IT4),0)),"") ->  | DZ4: =IFERROR(INDEX($EG4:$IT4,MATCH(0,COUNTIF($DR4:DY4,$EG4:$IT4),0)),"") ->  | EA4: =IFERROR(INDEX($EG4:$IT4,MATCH(0,COUNTIF($DR4:DZ4,$EG4:$IT4),0)),"") ->  | EB4: =IFERROR(INDEX($EG4:$IT4,MATCH(0,COUNTIF($DR4:EA4,$EG4:$IT4),0)),"") ->  | EC4: =IFERROR(INDEX($EG4:$IT4,MATCH(0,COUNTIF($DR4:EB4,$EG4:$IT4),0)),"") ->  | ED4: =IFERROR(INDEX($EG4:$IT4,MATCH(0,COUNTIF($DR4:EC4,$EG4:$IT4),0)),"") ->  | EG4: =IFERROR(MID($G4,FIND(CHAR(160),SUBSTITUTE($G4,"{",CHAR(160),EG$1)),FIND(CHAR(160),SUBSTITUTE($G4,"}",CHAR(160),EG$1))-FIND(CHAR(160),SUBSTITUTE($G4,"{",CHAR(160),EG$1))+1),"") ->  | EH4: =IFERROR(MID($G4,FIND(CHAR(160),SUBSTITUTE($G4,"{",CHAR(160),EH$1)),FIND(CHAR(160),SUBSTITUTE($G4,"}",CHAR(160),EH$1))-FIND(CHAR(160),SUBSTITUTE($G4,"{",CHAR(160),EH$1))+1),"") ->  | EI4: =IFERROR(MID($G4,FIND(CHAR(160),SUBSTITUTE($G4,"{",CHAR(160),EI$1)),FIND(CHAR(160),SUBSTITUTE($G4,"}",CHAR(160),EI$1))-FIND(CHAR(160),SUBSTITUTE($G4,"{",CHAR(160),EI$1))+1),"") ->  | EJ4: =IFERROR(MID($G4,FIND(CHAR(160),SUBSTITUTE($G4,"{",CHAR(160),EJ$1)),FIND(CHAR(160),SUBSTITUTE($G4,"}",CHAR(160),EJ$1))-FIND(CHAR(160),SUBSTITUTE($G4,"{",CHAR(160),EJ$1))+1),"") ->  | EK4: =IFERROR(MID($G4,FIND(CHAR(160),SUBSTITUTE($G4,"{",CHAR(160),EK$1)),FIND(CHAR(160),SUBSTITUTE($G4,"}",CHAR(160),EK$1))-FIND(CHAR(160),SUBSTITUTE($G4,"{",CHAR(160),EK$1))+1),"") ->  | EL4: =IFERROR(MID($G4,FIND(CHAR(160),SUBSTITUTE($G4,"{",CHAR(160),EL$1)),FIND(CHAR(160),SUBSTITUTE($G4,"}",CHAR(160),EL$1))-FIND(CHAR(160),SUBSTITUTE($G4,"{",CHAR(160),EL$1))+1),"") ->  | EM4: =IFERROR(MID($G4,FIND(CHAR(160),SUBSTITUTE($G4,"{",CHAR(160),EM$1)),FIND(CHAR(160),SUBSTITUTE($G4,"}",CHAR(160),EM$1))-FIND(CHAR(160),SUBSTITUTE($G4,"{",CHAR(160),EM$1))+1),"") ->  | EN4: =IFERROR(MID($G4,FIND(CHAR(160),SUBSTITUTE($G4,"{",CHAR(160),EN$1)),FIND(CHAR(160),SUBSTITUTE($G4,"}",CHAR(160),EN$1))-FIND(CHAR(160),SUBSTITUTE($G4,"{",CHAR(160),EN$1))+1),"") ->  | EO4: =IFERROR(MID($G4,FIND(CHAR(160),SUBSTITUTE($G4,"{",CHAR(160),EO$1)),FIND(CHAR(160),SUBSTITUTE($G4,"}",CHAR(160),EO$1))-FIND(CHAR(160),SUBSTITUTE($G4,"{",CHAR(160),EO$1))+1),"") ->  | EP4: =IFERROR(MID($G4,FIND(CHAR(160),SUBSTITUTE($G4,"{",CHAR(160),EP$1)),FIND(CHAR(160),SUBSTITUTE($G4,"}",CHAR(160),EP$1))-FIND(CHAR(160),SUBSTITUTE($G4,"{",CHAR(160),EP$1))+1),"") ->  | EQ4: =IFERROR(MID($J4,FIND(CHAR(160),SUBSTITUTE($J4,"{",CHAR(160),EQ$1)),FIND(CHAR(160),SUBSTITUTE($J4,"}",CHAR(160),EQ$1))-FIND(CHAR(160),SUBSTITUTE($J4,"{",CHAR(160),EQ$1))+1),"") ->  | ER4: =IFERROR(MID($J4,FIND(CHAR(160),SUBSTITUTE($J4,"{",CHAR(160),ER$1)),FIND(CHAR(160),SUBSTITUTE($J4,"}",CHAR(160),ER$1))-FIND(CHAR(160),SUBSTITUTE($J4,"{",CHAR(160),ER$1))+1),"") ->  | ES4: =IFERROR(MID($J4,FIND(CHAR(160),SUBSTITUTE($J4,"{",CHAR(160),ES$1)),FIND(CHAR(160),SUBSTITUTE($J4,"}",CHAR(160),ES$1))-FIND(CHAR(160),SUBSTITUTE($J4,"{",CHAR(160),ES$1))+1),"") ->  | ET4: =IFERROR(MID($J4,FIND(CHAR(160),SUBSTITUTE($J4,"{",CHAR(160),ET$1)),FIND(CHAR(160),SUBSTITUTE($J4,"}",CHAR(160),ET$1))-FIND(CHAR(160),SUBSTITUTE($J4,"{",CHAR(160),ET$1))+1),"") ->  | EU4: =IFERROR(MID($J4,FIND(CHAR(160),SUBSTITUTE($J4,"{",CHAR(160),EU$1)),FIND(CHAR(160),SUBSTITUTE($J4,"}",CHAR(160),EU$1))-FIND(CHAR(160),SUBSTITUTE($J4,"{",CHAR(160),EU$1))+1),"") ->  | EV4: =IFERROR(MID($J4,FIND(CHAR(160),SUBSTITUTE($J4,"{",CHAR(160),EV$1)),FIND(CHAR(160),SUBSTITUTE($J4,"}",CHAR(160),EV$1))-FIND(CHAR(160),SUBSTITUTE($J4,"{",CHAR(160),EV$1))+1),"") ->  | EW4: =IFERROR(MID($J4,FIND(CHAR(160),SUBSTITUTE($J4,"{",CHAR(160),EW$1)),FIND(CHAR(160),SUBSTITUTE($J4,"}",CHAR(160),EW$1))-FIND(CHAR(160),SUBSTITUTE($J4,"{",CHAR(160),EW$1))+1),"") ->  | EX4: =IFERROR(MID($J4,FIND(CHAR(160),SUBSTITUTE($J4,"{",CHAR(160),EX$1)),FIND(CHAR(160),SUBSTITUTE($J4,"}",CHAR(160),EX$1))-FIND(CHAR(160),SUBSTITUTE($J4,"{",CHAR(160),EX$1))+1),"") ->  | EY4: =IFERROR(MID($J4,FIND(CHAR(160),SUBSTITUTE($J4,"{",CHAR(160),EY$1)),FIND(CHAR(160),SUBSTITUTE($J4,"}",CHAR(160),EY$1))-FIND(CHAR(160),SUBSTITUTE($J4,"{",CHAR(160),EY$1))+1),"") ->  | EZ4: =IFERROR(MID($J4,FIND(CHAR(160),SUBSTITUTE($J4,"{",CHAR(160),EZ$1)),FIND(CHAR(160),SUBSTITUTE($J4,"}",CHAR(160),EZ$1))-FIND(CHAR(160),SUBSTITUTE($J4,"{",CHAR(160),EZ$1))+1),"") ->  | FA4: =IFERROR(MID($O4,FIND(CHAR(160),SUBSTITUTE($O4,"{",CHAR(160),FA$1)),FIND(CHAR(160),SUBSTITUTE($O4,"}",CHAR(160),FA$1))-FIND(CHAR(160),SUBSTITUTE($O4,"{",CHAR(160),FA$1))+1),"") ->  | FB4: =IFERROR(MID($O4,FIND(CHAR(160),SUBSTITUTE($O4,"{",CHAR(160),FB$1)),FIND(CHAR(160),SUBSTITUTE($O4,"}",CHAR(160),FB$1))-FIND(CHAR(160),SUBSTITUTE($O4,"{",CHAR(160),FB$1))+1),"") ->  | FC4: =IFERROR(MID($O4,FIND(CHAR(160),SUBSTITUTE($O4,"{",CHAR(160),FC$1)),FIND(CHAR(160),SUBSTITUTE($O4,"}",CHAR(160),FC$1))-FIND(CHAR(160),SUBSTITUTE($O4,"{",CHAR(160),FC$1))+1),"") ->  | FD4: =IFERROR(MID($O4,FIND(CHAR(160),SUBSTITUTE($O4,"{",CHAR(160),FD$1)),FIND(CHAR(160),SUBSTITUTE($O4,"}",CHAR(160),FD$1))-FIND(CHAR(160),SUBSTITUTE($O4,"{",CHAR(160),FD$1))+1),"") ->  | FE4: =IFERROR(MID($O4,FIND(CHAR(160),SUBSTITUTE($O4,"{",CHAR(160),FE$1)),FIND(CHAR(160),SUBSTITUTE($O4,"}",CHAR(160),FE$1))-FIND(CHAR(160),SUBSTITUTE($O4,"{",CHAR(160),FE$1))+1),"") ->  | FF4: =IFERROR(MID($O4,FIND(CHAR(160),SUBSTITUTE($O4,"{",CHAR(160),FF$1)),FIND(CHAR(160),SUBSTITUTE($O4,"}",CHAR(160),FF$1))-FIND(CHAR(160),SUBSTITUTE($O4,"{",CHAR(160),FF$1))+1),"") ->  | FG4: =IFERROR(MID($O4,FIND(CHAR(160),SUBSTITUTE($O4,"{",CHAR(160),FG$1)),FIND(CHAR(160),SUBSTITUTE($O4,"}",CHAR(160),FG$1))-FIND(CHAR(160),SUBSTITUTE($O4,"{",CHAR(160),FG$1))+1),"") ->  | FH4: =IFERROR(MID($O4,FIND(CHAR(160),SUBSTITUTE($O4,"{",CHAR(160),FH$1)),FIND(CHAR(160),SUBSTITUTE($O4,"}",CHAR(160),FH$1))-FIND(CHAR(160),SUBSTITUTE($O4,"{",CHAR(160),FH$1))+1),"") ->  | FI4: =IFERROR(MID($O4,FIND(CHAR(160),SUBSTITUTE($O4,"{",CHAR(160),FI$1)),FIND(CHAR(160),SUBSTITUTE($O4,"}",CHAR(160),FI$1))-FIND(CHAR(160),SUBSTITUTE($O4,"{",CHAR(160),FI$1))+1),"") ->  | FJ4: =IFERROR(MID($O4,FIND(CHAR(160),SUBSTITUTE($O4,"{",CHAR(160),FJ$1)),FIND(CHAR(160),SUBSTITUTE($O4,"}",CHAR(160),FJ$1))-FIND(CHAR(160),SUBSTITUTE($O4,"{",CHAR(160),FJ$1))+1),"") ->  | FK4: =IFERROR(MID($R4,FIND(CHAR(160),SUBSTITUTE($R4,"{",CHAR(160),FK$1)),FIND(CHAR(160),SUBSTITUTE($R4,"}",CHAR(160),FK$1))-FIND(CHAR(160),SUBSTITUTE($R4,"{",CHAR(160),FK$1))+1),"") ->  | FL4: =IFERROR(MID($R4,FIND(CHAR(160),SUBSTITUTE($R4,"{",CHAR(160),FL$1)),FIND(CHAR(160),SUBSTITUTE($R4,"}",CHAR(160),FL$1))-FIND(CHAR(160),SUBSTITUTE($R4,"{",CHAR(160),FL$1))+1),"") ->  | FM4: =IFERROR(MID($R4,FIND(CHAR(160),SUBSTITUTE($R4,"{",CHAR(160),FM$1)),FIND(CHAR(160),SUBSTITUTE($R4,"}",CHAR(160),FM$1))-FIND(CHAR(160),SUBSTITUTE($R4,"{",CHAR(160),FM$1))+1),"") ->  | FN4: =IFERROR(MID($R4,FIND(CHAR(160),SUBSTITUTE($R4,"{",CHAR(160),FN$1)),FIND(CHAR(160),SUBSTITUTE($R4,"}",CHAR(160),FN$1))-FIND(CHAR(160),SUBSTITUTE($R4,"{",CHAR(160),FN$1))+1),"") ->  | FO4: =IFERROR(MID($R4,FIND(CHAR(160),SUBSTITUTE($R4,"{",CHAR(160),FO$1)),FIND(CHAR(160),SUBSTITUTE($R4,"}",CHAR(160),FO$1))-FIND(CHAR(160),SUBSTITUTE($R4,"{",CHAR(160),FO$1))+1),"") ->  | FP4: =IFERROR(MID($R4,FIND(CHAR(160),SUBSTITUTE($R4,"{",CHAR(160),FP$1)),FIND(CHAR(160),SUBSTITUTE($R4,"}",CHAR(160),FP$1))-FIND(CHAR(160),SUBSTITUTE($R4,"{",CHAR(160),FP$1))+1),"") ->  | FQ4: =IFERROR(MID($R4,FIND(CHAR(160),SUBSTITUTE($R4,"{",CHAR(160),FQ$1)),FIND(CHAR(160),SUBSTITUTE($R4,"}",CHAR(160),FQ$1))-FIND(CHAR(160),SUBSTITUTE($R4,"{",CHAR(160),FQ$1))+1),"") ->  | FR4: =IFERROR(MID($R4,FIND(CHAR(160),SUBSTITUTE($R4,"{",CHAR(160),FR$1)),FIND(CHAR(160),SUBSTITUTE($R4,"}",CHAR(160),FR$1))-FIND(CHAR(160),SUBSTITUTE($R4,"{",CHAR(160),FR$1))+1),"") ->  | FS4: =IFERROR(MID($R4,FIND(CHAR(160),SUBSTITUTE($R4,"{",CHAR(160),FS$1)),FIND(CHAR(160),SUBSTITUTE($R4,"}",CHAR(160),FS$1))-FIND(CHAR(160),SUBSTITUTE($R4,"{",CHAR(160),FS$1))+1),"") ->  | FT4: =IFERROR(MID($R4,FIND(CHAR(160),SUBSTITUTE($R4,"{",CHAR(160),FT$1)),FIND(CHAR(160),SUBSTITUTE($R4,"}",CHAR(160),FT$1))-FIND(CHAR(160),SUBSTITUTE($R4,"{",CHAR(160),FT$1))+1),"") ->  | FU4: =IFERROR(MID($U4,FIND(CHAR(160),SUBSTITUTE($U4,"{",CHAR(160),FU$1)),FIND(CHAR(160),SUBSTITUTE($U4,"}",CHAR(160),FU$1))-FIND(CHAR(160),SUBSTITUTE($U4,"{",CHAR(160),FU$1))+1),"") ->  | FV4: =IFERROR(MID($U4,FIND(CHAR(160),SUBSTITUTE($U4,"{",CHAR(160),FV$1)),FIND(CHAR(160),SUBSTITUTE($U4,"}",CHAR(160),FV$1))-FIND(CHAR(160),SUBSTITUTE($U4,"{",CHAR(160),FV$1))+1),"") ->  | FW4: =IFERROR(MID($U4,FIND(CHAR(160),SUBSTITUTE($U4,"{",CHAR(160),FW$1)),FIND(CHAR(160),SUBSTITUTE($U4,"}",CHAR(160),FW$1))-FIND(CHAR(160),SUBSTITUTE($U4,"{",CHAR(160),FW$1))+1),"") ->  | FX4: =IFERROR(MID($U4,FIND(CHAR(160),SUBSTITUTE($U4,"{",CHAR(160),FX$1)),FIND(CHAR(160),SUBSTITUTE($U4,"}",CHAR(160),FX$1))-FIND(CHAR(160),SUBSTITUTE($U4,"{",CHAR(160),FX$1))+1),"") ->  | FY4: =IFERROR(MID($U4,FIND(CHAR(160),SUBSTITUTE($U4,"{",CHAR(160),FY$1)),FIND(CHAR(160),SUBSTITUTE($U4,"}",CHAR(160),FY$1))-FIND(CHAR(160),SUBSTITUTE($U4,"{",CHAR(160),FY$1))+1),"") ->  | FZ4: =IFERROR(MID($U4,FIND(CHAR(160),SUBSTITUTE($U4,"{",CHAR(160),FZ$1)),FIND(CHAR(160),SUBSTITUTE($U4,"}",CHAR(160),FZ$1))-FIND(CHAR(160),SUBSTITUTE($U4,"{",CHAR(160),FZ$1))+1),"") ->  | GA4: =IFERROR(MID($U4,FIND(CHAR(160),SUBSTITUTE($U4,"{",CHAR(160),GA$1)),FIND(CHAR(160),SUBSTITUTE($U4,"}",CHAR(160),GA$1))-FIND(CHAR(160),SUBSTITUTE($U4,"{",CHAR(160),GA$1))+1),"") ->  | GB4: =IFERROR(MID($U4,FIND(CHAR(160),SUBSTITUTE($U4,"{",CHAR(160),GB$1)),FIND(CHAR(160),SUBSTITUTE($U4,"}",CHAR(160),GB$1))-FIND(CHAR(160),SUBSTITUTE($U4,"{",CHAR(160),GB$1))+1),"") ->  | GC4: =IFERROR(MID($U4,FIND(CHAR(160),SUBSTITUTE($U4,"{",CHAR(160),GC$1)),FIND(CHAR(160),SUBSTITUTE($U4,"}",CHAR(160),GC$1))-FIND(CHAR(160),SUBSTITUTE($U4,"{",CHAR(160),GC$1))+1),"") ->  | GD4: =IFERROR(MID($U4,FIND(CHAR(160),SUBSTITUTE($U4,"{",CHAR(160),GD$1)),FIND(CHAR(160),SUBSTITUTE($U4,"}",CHAR(160),GD$1))-FIND(CHAR(160),SUBSTITUTE($U4,"{",CHAR(160),GD$1))+1),"") ->  | GE4: =IFERROR(MID($V4,FIND(CHAR(160),SUBSTITUTE($V4,"{",CHAR(160),GE$1)),FIND(CHAR(160),SUBSTITUTE($V4,"}",CHAR(160),GE$1))-FIND(CHAR(160),SUBSTITUTE($V4,"{",CHAR(160),GE$1))+1),"") ->  | GF4: =IFERROR(MID($V4,FIND(CHAR(160),SUBSTITUTE($V4,"{",CHAR(160),GF$1)),FIND(CHAR(160),SUBSTITUTE($V4,"}",CHAR(160),GF$1))-FIND(CHAR(160),SUBSTITUTE($V4,"{",CHAR(160),GF$1))+1),"") ->  | GG4: =IFERROR(MID($V4,FIND(CHAR(160),SUBSTITUTE($V4,"{",CHAR(160),GG$1)),FIND(CHAR(160),SUBSTITUTE($V4,"}",CHAR(160),GG$1))-FIND(CHAR(160),SUBSTITUTE($V4,"{",CHAR(160),GG$1))+1),"") ->  | GH4: =IFERROR(MID($V4,FIND(CHAR(160),SUBSTITUTE($V4,"{",CHAR(160),GH$1)),FIND(CHAR(160),SUBSTITUTE($V4,"}",CHAR(160),GH$1))-FIND(CHAR(160),SUBSTITUTE($V4,"{",CHAR(160),GH$1))+1),"") ->  | GI4: =IFERROR(MID($V4,FIND(CHAR(160),SUBSTITUTE($V4,"{",CHAR(160),GI$1)),FIND(CHAR(160),SUBSTITUTE($V4,"}",CHAR(160),GI$1))-FIND(CHAR(160),SUBSTITUTE($V4,"{",CHAR(160),GI$1))+1),"") ->  | GJ4: =IFERROR(MID($V4,FIND(CHAR(160),SUBSTITUTE($V4,"{",CHAR(160),GJ$1)),FIND(CHAR(160),SUBSTITUTE($V4,"}",CHAR(160),GJ$1))-FIND(CHAR(160),SUBSTITUTE($V4,"{",CHAR(160),GJ$1))+1),"") ->  | GK4: =IFERROR(MID($V4,FIND(CHAR(160),SUBSTITUTE($V4,"{",CHAR(160),GK$1)),FIND(CHAR(160),SUBSTITUTE($V4,"}",CHAR(160),GK$1))-FIND(CHAR(160),SUBSTITUTE($V4,"{",CHAR(160),GK$1))+1),"") ->  | GL4: =IFERROR(MID($V4,FIND(CHAR(160),SUBSTITUTE($V4,"{",CHAR(160),GL$1)),FIND(CHAR(160),SUBSTITUTE($V4,"}",CHAR(160),GL$1))-FIND(CHAR(160),SUBSTITUTE($V4,"{",CHAR(160),GL$1))+1),"") ->  | GM4: =IFERROR(MID($V4,FIND(CHAR(160),SUBSTITUTE($V4,"{",CHAR(160),GM$1)),FIND(CHAR(160),SUBSTITUTE($V4,"}",CHAR(160),GM$1))-FIND(CHAR(160),SUBSTITUTE($V4,"{",CHAR(160),GM$1))+1),"") ->  | GN4: =IFERROR(MID($V4,FIND(CHAR(160),SUBSTITUTE($V4,"{",CHAR(160),GN$1)),FIND(CHAR(160),SUBSTITUTE($V4,"}",CHAR(160),GN$1))-FIND(CHAR(160),SUBSTITUTE($V4,"{",CHAR(160),GN$1))+1),"") ->  | GO4: =IFERROR(MID($W4,FIND(CHAR(160),SUBSTITUTE($W4,"{",CHAR(160),GO$1)),FIND(CHAR(160),SUBSTITUTE($W4,"}",CHAR(160),GO$1))-FIND(CHAR(160),SUBSTITUTE($W4,"{",CHAR(160),GO$1))+1),"") ->  | GP4: =IFERROR(MID($W4,FIND(CHAR(160),SUBSTITUTE($W4,"{",CHAR(160),GP$1)),FIND(CHAR(160),SUBSTITUTE($W4,"}",CHAR(160),GP$1))-FIND(CHAR(160),SUBSTITUTE($W4,"{",CHAR(160),GP$1))+1),"") ->  | GQ4: =IFERROR(MID($W4,FIND(CHAR(160),SUBSTITUTE($W4,"{",CHAR(160),GQ$1)),FIND(CHAR(160),SUBSTITUTE($W4,"}",CHAR(160),GQ$1))-FIND(CHAR(160),SUBSTITUTE($W4,"{",CHAR(160),GQ$1))+1),"") ->  | GR4: =IFERROR(MID($W4,FIND(CHAR(160),SUBSTITUTE($W4,"{",CHAR(160),GR$1)),FIND(CHAR(160),SUBSTITUTE($W4,"}",CHAR(160),GR$1))-FIND(CHAR(160),SUBSTITUTE($W4,"{",CHAR(160),GR$1))+1),"") ->  | GS4: =IFERROR(MID($W4,FIND(CHAR(160),SUBSTITUTE($W4,"{",CHAR(160),GS$1)),FIND(CHAR(160),SUBSTITUTE($W4,"}",CHAR(160),GS$1))-FIND(CHAR(160),SUBSTITUTE($W4,"{",CHAR(160),GS$1))+1),"") ->  | GT4: =IFERROR(MID($W4,FIND(CHAR(160),SUBSTITUTE($W4,"{",CHAR(160),GT$1)),FIND(CHAR(160),SUBSTITUTE($W4,"}",CHAR(160),GT$1))-FIND(CHAR(160),SUBSTITUTE($W4,"{",CHAR(160),GT$1))+1),"") ->  | GU4: =IFERROR(MID($W4,FIND(CHAR(160),SUBSTITUTE($W4,"{",CHAR(160),GU$1)),FIND(CHAR(160),SUBSTITUTE($W4,"}",CHAR(160),GU$1))-FIND(CHAR(160),SUBSTITUTE($W4,"{",CHAR(160),GU$1))+1),"") ->  | GV4: =IFERROR(MID($W4,FIND(CHAR(160),SUBSTITUTE($W4,"{",CHAR(160),GV$1)),FIND(CHAR(160),SUBSTITUTE($W4,"}",CHAR(160),GV$1))-FIND(CHAR(160),SUBSTITUTE($W4,"{",CHAR(160),GV$1))+1),"") ->  | GW4: =IFERROR(MID($W4,FIND(CHAR(160),SUBSTITUTE($W4,"{",CHAR(160),GW$1)),FIND(CHAR(160),SUBSTITUTE($W4,"}",CHAR(160),GW$1))-FIND(CHAR(160),SUBSTITUTE($W4,"{",CHAR(160),GW$1))+1),"") ->  | GX4: =IFERROR(MID($W4,FIND(CHAR(160),SUBSTITUTE($W4,"{",CHAR(160),GX$1)),FIND(CHAR(160),SUBSTITUTE($W4,"}",CHAR(160),GX$1))-FIND(CHAR(160),SUBSTITUTE($W4,"{",CHAR(160),GX$1))+1),"") ->  | GY4: =IFERROR(MID($X4,FIND(CHAR(160),SUBSTITUTE($X4,"{",CHAR(160),GY$1)),FIND(CHAR(160),SUBSTITUTE($X4,"}",CHAR(160),GY$1))-FIND(CHAR(160),SUBSTITUTE($X4,"{",CHAR(160),GY$1))+1),"") ->  | GZ4: =IFERROR(MID($X4,FIND(CHAR(160),SUBSTITUTE($X4,"{",CHAR(160),GZ$1)),FIND(CHAR(160),SUBSTITUTE($X4,"}",CHAR(160),GZ$1))-FIND(CHAR(160),SUBSTITUTE($X4,"{",CHAR(160),GZ$1))+1),"") ->  | HA4: =IFERROR(MID($X4,FIND(CHAR(160),SUBSTITUTE($X4,"{",CHAR(160),HA$1)),FIND(CHAR(160),SUBSTITUTE($X4,"}",CHAR(160),HA$1))-FIND(CHAR(160),SUBSTITUTE($X4,"{",CHAR(160),HA$1))+1),"") ->  | HB4: =IFERROR(MID($X4,FIND(CHAR(160),SUBSTITUTE($X4,"{",CHAR(160),HB$1)),FIND(CHAR(160),SUBSTITUTE($X4,"}",CHAR(160),HB$1))-FIND(CHAR(160),SUBSTITUTE($X4,"{",CHAR(160),HB$1))+1),"") ->  | HC4: =IFERROR(MID($X4,FIND(CHAR(160),SUBSTITUTE($X4,"{",CHAR(160),HC$1)),FIND(CHAR(160),SUBSTITUTE($X4,"}",CHAR(160),HC$1))-FIND(CHAR(160),SUBSTITUTE($X4,"{",CHAR(160),HC$1))+1),"") ->  | HD4: =IFERROR(MID($X4,FIND(CHAR(160),SUBSTITUTE($X4,"{",CHAR(160),HD$1)),FIND(CHAR(160),SUBSTITUTE($X4,"}",CHAR(160),HD$1))-FIND(CHAR(160),SUBSTITUTE($X4,"{",CHAR(160),HD$1))+1),"") ->  | HE4: =IFERROR(MID($X4,FIND(CHAR(160),SUBSTITUTE($X4,"{",CHAR(160),HE$1)),FIND(CHAR(160),SUBSTITUTE($X4,"}",CHAR(160),HE$1))-FIND(CHAR(160),SUBSTITUTE($X4,"{",CHAR(160),HE$1))+1),"") ->  | HF4: =IFERROR(MID($X4,FIND(CHAR(160),SUBSTITUTE($X4,"{",CHAR(160),HF$1)),FIND(CHAR(160),SUBSTITUTE($X4,"}",CHAR(160),HF$1))-FIND(CHAR(160),SUBSTITUTE($X4,"{",CHAR(160),HF$1))+1),"") ->  | HG4: =IFERROR(MID($X4,FIND(CHAR(160),SUBSTITUTE($X4,"{",CHAR(160),HG$1)),FIND(CHAR(160),SUBSTITUTE($X4,"}",CHAR(160),HG$1))-FIND(CHAR(160),SUBSTITUTE($X4,"{",CHAR(160),HG$1))+1),"") ->  | HH4: =IFERROR(MID($X4,FIND(CHAR(160),SUBSTITUTE($X4,"{",CHAR(160),HH$1)),FIND(CHAR(160),SUBSTITUTE($X4,"}",CHAR(160),HH$1))-FIND(CHAR(160),SUBSTITUTE($X4,"{",CHAR(160),HH$1))+1),"") ->  | HI4: =IFERROR(MID($Y4,FIND(CHAR(160),SUBSTITUTE($Y4,"{",CHAR(160),HI$1)),FIND(CHAR(160),SUBSTITUTE($Y4,"}",CHAR(160),HI$1))-FIND(CHAR(160),SUBSTITUTE($Y4,"{",CHAR(160),HI$1))+1),"") ->  | HJ4: =IFERROR(MID($Y4,FIND(CHAR(160),SUBSTITUTE($Y4,"{",CHAR(160),HJ$1)),FIND(CHAR(160),SUBSTITUTE($Y4,"}",CHAR(160),HJ$1))-FIND(CHAR(160),SUBSTITUTE($Y4,"{",CHAR(160),HJ$1))+1),"") ->  | HK4: =IFERROR(MID($Y4,FIND(CHAR(160),SUBSTITUTE($Y4,"{",CHAR(160),HK$1)),FIND(CHAR(160),SUBSTITUTE($Y4,"}",CHAR(160),HK$1))-FIND(CHAR(160),SUBSTITUTE($Y4,"{",CHAR(160),HK$1))+1),"") ->  | HL4: =IFERROR(MID($Y4,FIND(CHAR(160),SUBSTITUTE($Y4,"{",CHAR(160),HL$1)),FIND(CHAR(160),SUBSTITUTE($Y4,"}",CHAR(160),HL$1))-FIND(CHAR(160),SUBSTITUTE($Y4,"{",CHAR(160),HL$1))+1),"") ->  | HM4: =IFERROR(MID($Y4,FIND(CHAR(160),SUBSTITUTE($Y4,"{",CHAR(160),HM$1)),FIND(CHAR(160),SUBSTITUTE($Y4,"}",CHAR(160),HM$1))-FIND(CHAR(160),SUBSTITUTE($Y4,"{",CHAR(160),HM$1))+1),"") ->  | HN4: =IFERROR(MID($Y4,FIND(CHAR(160),SUBSTITUTE($Y4,"{",CHAR(160),HN$1)),FIND(CHAR(160),SUBSTITUTE($Y4,"}",CHAR(160),HN$1))-FIND(CHAR(160),SUBSTITUTE($Y4,"{",CHAR(160),HN$1))+1),"") ->  | HO4: =IFERROR(MID($Y4,FIND(CHAR(160),SUBSTITUTE($Y4,"{",CHAR(160),HO$1)),FIND(CHAR(160),SUBSTITUTE($Y4,"}",CHAR(160),HO$1))-FIND(CHAR(160),SUBSTITUTE($Y4,"{",CHAR(160),HO$1))+1),"") ->  | HP4: =IFERROR(MID($Y4,FIND(CHAR(160),SUBSTITUTE($Y4,"{",CHAR(160),HP$1)),FIND(CHAR(160),SUBSTITUTE($Y4,"}",CHAR(160),HP$1))-FIND(CHAR(160),SUBSTITUTE($Y4,"{",CHAR(160),HP$1))+1),"") ->  | HQ4: =IFERROR(MID($Y4,FIND(CHAR(160),SUBSTITUTE($Y4,"{",CHAR(160),HQ$1)),FIND(CHAR(160),SUBSTITUTE($Y4,"}",CHAR(160),HQ$1))-FIND(CHAR(160),SUBSTITUTE($Y4,"{",CHAR(160),HQ$1))+1),"") ->  | HR4: =IFERROR(MID($Y4,FIND(CHAR(160),SUBSTITUTE($Y4,"{",CHAR(160),HR$1)),FIND(CHAR(160),SUBSTITUTE($Y4,"}",CHAR(160),HR$1))-FIND(CHAR(160),SUBSTITUTE($Y4,"{",CHAR(160),HR$1))+1),"") ->  | HS4: =IFERROR(MID($Z4,FIND(CHAR(160),SUBSTITUTE($Z4,"{",CHAR(160),HS$1)),FIND(CHAR(160),SUBSTITUTE($Z4,"}",CHAR(160),HS$1))-FIND(CHAR(160),SUBSTITUTE($Z4,"{",CHAR(160),HS$1))+1),"") ->  | HT4: =IFERROR(MID($Z4,FIND(CHAR(160),SUBSTITUTE($Z4,"{",CHAR(160),HT$1)),FIND(CHAR(160),SUBSTITUTE($Z4,"}",CHAR(160),HT$1))-FIND(CHAR(160),SUBSTITUTE($Z4,"{",CHAR(160),HT$1))+1),"") ->  | HU4: =IFERROR(MID($Z4,FIND(CHAR(160),SUBSTITUTE($Z4,"{",CHAR(160),HU$1)),FIND(CHAR(160),SUBSTITUTE($Z4,"}",CHAR(160),HU$1))-FIND(CHAR(160),SUBSTITUTE($Z4,"{",CHAR(160),HU$1))+1),"") ->  | HV4: =IFERROR(MID($Z4,FIND(CHAR(160),SUBSTITUTE($Z4,"{",CHAR(160),HV$1)),FIND(CHAR(160),SUBSTITUTE($Z4,"}",CHAR(160),HV$1))-FIND(CHAR(160),SUBSTITUTE($Z4,"{",CHAR(160),HV$1))+1),"") ->  | HW4: =IFERROR(MID($Z4,FIND(CHAR(160),SUBSTITUTE($Z4,"{",CHAR(160),HW$1)),FIND(CHAR(160),SUBSTITUTE($Z4,"}",CHAR(160),HW$1))-FIND(CHAR(160),SUBSTITUTE($Z4,"{",CHAR(160),HW$1))+1),"") ->  | HX4: =IFERROR(MID($Z4,FIND(CHAR(160),SUBSTITUTE($Z4,"{",CHAR(160),HX$1)),FIND(CHAR(160),SUBSTITUTE($Z4,"}",CHAR(160),HX$1))-FIND(CHAR(160),SUBSTITUTE($Z4,"{",CHAR(160),HX$1))+1),"") ->  | HY4: =IFERROR(MID($Z4,FIND(CHAR(160),SUBSTITUTE($Z4,"{",CHAR(160),HY$1)),FIND(CHAR(160),SUBSTITUTE($Z4,"}",CHAR(160),HY$1))-FIND(CHAR(160),SUBSTITUTE($Z4,"{",CHAR(160),HY$1))+1),"") ->  | HZ4: =IFERROR(MID($Z4,FIND(CHAR(160),SUBSTITUTE($Z4,"{",CHAR(160),HZ$1)),FIND(CHAR(160),SUBSTITUTE($Z4,"}",CHAR(160),HZ$1))-FIND(CHAR(160),SUBSTITUTE($Z4,"{",CHAR(160),HZ$1))+1),"") ->  | IA4: =IFERROR(MID($Z4,FIND(CHAR(160),SUBSTITUTE($Z4,"{",CHAR(160),IA$1)),FIND(CHAR(160),SUBSTITUTE($Z4,"}",CHAR(160),IA$1))-FIND(CHAR(160),SUBSTITUTE($Z4,"{",CHAR(160),IA$1))+1),"") ->  | IB4: =IFERROR(MID($Z4,FIND(CHAR(160),SUBSTITUTE($Z4,"{",CHAR(160),IB$1)),FIND(CHAR(160),SUBSTITUTE($Z4,"}",CHAR(160),IB$1))-FIND(CHAR(160),SUBSTITUTE($Z4,"{",CHAR(160),IB$1))+1),"") ->  | IC4: =IFERROR(MID($AA4,FIND(CHAR(160),SUBSTITUTE($AA4,"{",CHAR(160),IC$1)),FIND(CHAR(160),SUBSTITUTE($AA4,"}",CHAR(160),IC$1))-FIND(CHAR(160),SUBSTITUTE($AA4,"{",CHAR(160),IC$1))+1),"") ->  | ID4: =IFERROR(MID($AA4,FIND(CHAR(160),SUBSTITUTE($AA4,"{",CHAR(160),ID$1)),FIND(CHAR(160),SUBSTITUTE($AA4,"}",CHAR(160),ID$1))-FIND(CHAR(160),SUBSTITUTE($AA4,"{",CHAR(160),ID$1))+1),"") ->  | IE4: =IFERROR(MID($AA4,FIND(CHAR(160),SUBSTITUTE($AA4,"{",CHAR(160),IE$1)),FIND(CHAR(160),SUBSTITUTE($AA4,"}",CHAR(160),IE$1))-FIND(CHAR(160),SUBSTITUTE($AA4,"{",CHAR(160),IE$1))+1),"") ->  | IF4: =IFERROR(MID($AA4,FIND(CHAR(160),SUBSTITUTE($AA4,"{",CHAR(160),IF$1)),FIND(CHAR(160),SUBSTITUTE($AA4,"}",CHAR(160),IF$1))-FIND(CHAR(160),SUBSTITUTE($AA4,"{",CHAR(160),IF$1))+1),"") ->  | IG4: =IFERROR(MID($AA4,FIND(CHAR(160),SUBSTITUTE($AA4,"{",CHAR(160),IG$1)),FIND(CHAR(160),SUBSTITUTE($AA4,"}",CHAR(160),IG$1))-FIND(CHAR(160),SUBSTITUTE($AA4,"{",CHAR(160),IG$1))+1),"") ->  | IH4: =IFERROR(MID($AA4,FIND(CHAR(160),SUBSTITUTE($AA4,"{",CHAR(160),IH$1)),FIND(CHAR(160),SUBSTITUTE($AA4,"}",CHAR(160),IH$1))-FIND(CHAR(160),SUBSTITUTE($AA4,"{",CHAR(160),IH$1))+1),"") ->  | II4: =IFERROR(MID($AA4,FIND(CHAR(160),SUBSTITUTE($AA4,"{",CHAR(160),II$1)),FIND(CHAR(160),SUBSTITUTE($AA4,"}",CHAR(160),II$1))-FIND(CHAR(160),SUBSTITUTE($AA4,"{",CHAR(160),II$1))+1),"") ->  | IJ4: =IFERROR(MID($AA4,FIND(CHAR(160),SUBSTITUTE($AA4,"{",CHAR(160),IJ$1)),FIND(CHAR(160),SUBSTITUTE($AA4,"}",CHAR(160),IJ$1))-FIND(CHAR(160),SUBSTITUTE($AA4,"{",CHAR(160),IJ$1))+1),"") ->  | IK4: =IFERROR(MID($AA4,FIND(CHAR(160),SUBSTITUTE($AA4,"{",CHAR(160),IK$1)),FIND(CHAR(160),SUBSTITUTE($AA4,"}",CHAR(160),IK$1))-FIND(CHAR(160),SUBSTITUTE($AA4,"{",CHAR(160),IK$1))+1),"") ->  | IL4: =IFERROR(MID($AA4,FIND(CHAR(160),SUBSTITUTE($AA4,"{",CHAR(160),IL$1)),FIND(CHAR(160),SUBSTITUTE($AA4,"}",CHAR(160),IL$1))-FIND(CHAR(160),SUBSTITUTE($AA4,"{",CHAR(160),IL$1))+1),"") ->  | IM4: =IFERROR(MID($AB4,FIND(CHAR(160),SUBSTITUTE($AB4,"{",CHAR(160),IM$1)),FIND(CHAR(160),SUBSTITUTE($AB4,"}",CHAR(160),IM$1))-FIND(CHAR(160),SUBSTITUTE($AB4,"{",CHAR(160),IM$1))+1),"") ->  | IN4: =IFERROR(MID($AB4,FIND(CHAR(160),SUBSTITUTE($AB4,"{",CHAR(160),IN$1)),FIND(CHAR(160),SUBSTITUTE($AB4,"}",CHAR(160),IN$1))-FIND(CHAR(160),SUBSTITUTE($AB4,"{",CHAR(160),IN$1))+1),"") ->  | IO4: =IFERROR(MID($AB4,FIND(CHAR(160),SUBSTITUTE($AB4,"{",CHAR(160),IO$1)),FIND(CHAR(160),SUBSTITUTE($AB4,"}",CHAR(160),IO$1))-FIND(CHAR(160),SUBSTITUTE($AB4,"{",CHAR(160),IO$1))+1),"") ->  | IP4: =IFERROR(MID($AB4,FIND(CHAR(160),SUBSTITUTE($AB4,"{",CHAR(160),IP$1)),FIND(CHAR(160),SUBSTITUTE($AB4,"}",CHAR(160),IP$1))-FIND(CHAR(160),SUBSTITUTE($AB4,"{",CHAR(160),IP$1))+1),"") ->  | IQ4: =IFERROR(MID($AB4,FIND(CHAR(160),SUBSTITUTE($AB4,"{",CHAR(160),IQ$1)),FIND(CHAR(160),SUBSTITUTE($AB4,"}",CHAR(160),IQ$1))-FIND(CHAR(160),SUBSTITUTE($AB4,"{",CHAR(160),IQ$1))+1),"") ->  | IR4: =IFERROR(MID($AB4,FIND(CHAR(160),SUBSTITUTE($AB4,"{",CHAR(160),IR$1)),FIND(CHAR(160),SUBSTITUTE($AB4,"}",CHAR(160),IR$1))-FIND(CHAR(160),SUBSTITUTE($AB4,"{",CHAR(160),IR$1))+1),"") ->  | IS4: =IFERROR(MID($AB4,FIND(CHAR(160),SUBSTITUTE($AB4,"{",CHAR(160),IS$1)),FIND(CHAR(160),SUBSTITUTE($AB4,"}",CHAR(160),IS$1))-FIND(CHAR(160),SUBSTITUTE($AB4,"{",CHAR(160),IS$1))+1),"") ->  | IT4: =IFERROR(MID($AB4,FIND(CHAR(160),SUBSTITUTE($AB4,"{",CHAR(160),IT$1)),FIND(CHAR(160),SUBSTITUTE($AB4,"}",CHAR(160),IT$1))-FIND(CHAR(160),SUBSTITUTE($AB4,"{",CHAR(160),IT$1))+1),"") ->  | IU4: =IFERROR(MID($AB4,FIND(CHAR(160),SUBSTITUTE($AB4,"{",CHAR(160),IU$1)),FIND(CHAR(160),SUBSTITUTE($AB4,"}",CHAR(160),IU$1))-FIND(CHAR(160),SUBSTITUTE($AB4,"{",CHAR(160),IU$1))+1),"") ->  | IV4: =IFERROR(MID($AB4,FIND(CHAR(160),SUBSTITUTE($AB4,"{",CHAR(160),IV$1)),FIND(CHAR(160),SUBSTITUTE($AB4,"}",CHAR(160),IV$1))-FIND(CHAR(160),SUBSTITUTE($AB4,"{",CHAR(160),IV$1))+1),"") ->  | IX4: =10-COUNTIF(DU4:ED4,"") -> 0
A5: Affordable Heat Initiative - Heat Pumps | B5: MiniSplit HP Property Assessed | C5: LCHA | D5: 2021-07-01 | E5: 2022-06-30 | F5: Calculated | G5: {Cost}*{Measure:Quantity} | H5: 0 | I5: Calculated | J5: 2000.00*{Measure:Quantity} | K5: 2000 | L5: 2021-07-01 | M5: 2022-06-30 | N5: Calculated | O5: if({Primary heating type}=6,5379,if({Primary heating type}=0,-2581.54,-2744)) | U5: if({Primary heating type}=6,1.046,if({Primary heating type}=0,-0.562,-0.595)) | V5: 0.031 | W5: 10*if({Primary heating type}=1,1,if({Primary heating type}=0,0,0))*31.72 | X5: if({Primary heating type}=2,1,if({Primary heating type}=0,0.06,0))*31.72 | Y5: if({Primary heating type}=3,1,if({Primary heating type}=0,0.79,0))*31.72 | Z5: if({Primary heating type}=4,1,if({Primary heating type}=0,0.06,0))*31.72 | AA5: if({Primary heating type}=5,1,if({Primary heating type}=0,0.07,0))*31.72 | AB5: 0 | AC5: 2019-07-01 | AD5: 2022-06-30 | AE5: 18 | AF5: 1 | AG5: 1 | AH5: 0.373 | AI5: 0.528 | AJ5: 0.053 | AK5: 0.046 | AL5: 1 | AM5: 1 | AN5: 1 | AO5: 0 | AP5: 0 | AR5: =DU5 -> {Cost} | AS5: 2500 | AT5: =DV5 -> {Measure:Quantity} | AU5: 1 | AV5: =DW5 -> {Primary heating type} | AW5: 0 | AX5: =DX5 ->  | AZ5: =DY5 ->  | BB5: =DZ5 ->  | BD5: =EA5 ->  | BF5: =EB5 ->  | BH5: =EC5 ->  | BJ5: =ED5 ->  | BL5: =IF(AW5=6,5379,IF(AW5=0,-2581.54,-2744)) -> -2581.54 | BM5: 0 | BN5: 0 | BO5: 0 | BP5: 0 | BQ5: 0 | BR5: =IF(AW5=6,1.046,IF(AW5=0,-0.562,-0.595)) -> -0.562 | BS5: =0.031 -> 0.031 | BT5: =10*IF(AW5=1,1,IF(AW5=0,0,0))*31.72 -> 0 | BU5: =IF(AW5=2,1,IF(AW5=0,0.06,0))*31.72 -> 1.9032 | BV5: =IF(AW5=3,1,IF(AW5=0,0.79,0))*31.72 -> 25.0588 | BW5: =IF(AW5=4,1,IF(AW5=0,0.06,0))*31.72 -> 1.9032 | BX5: =IF(AW5=5,1,IF(AW5=0,0.07,0))*31.72 -> 2.2204 | BY5: =0 -> 0 | CA5: Res | CB5: Default DR | CC5: =Benefits(BL5,BR5,BS5,BT5,BU5,BV5,BW5,BX5,BY5,BZ5,AE5,AH5,AI5,AJ5,AK5,AL5,AM5,AN5,AO5,AP5,CA5,CB5) -> -4060.115677 | CD5: -2378.416226 | CE5: 0 | CF5: 12106.48006 | CG5: 1072.507394 | CH5: 1289.656388 | CI5: 684.8035401 | CJ5: 0 | CK5: 0 | CL5: =SUMPRODUCT(CC5:CK5,--(CC5:CK5>0)) -> 15153.44739 | CM5: =-SUMPRODUCT(CC5:CK5,--(CC5:CK5<0)) -> 6438.531904 | CO5: =AS5*AU5 -> 2500 | CR5: =CM5+CO5 -> 8938.531904 | CS5: =IF(NetOrGross="Net",(1-AO5+AP5),1) -> 1 | CT5: =(SUMPRODUCT(CC5:CJ5,--(CC5:CJ5>0))+CN5)*CS5/((-SUMPRODUCT(CC5:CJ5,--(CC5:CJ5<0))+MAX(CO5,CV5)+CP5+CQ5)*CS5+IF(FRIncentives="Yes",CV5*(1-CS5),0)) -> 1.695294882 | CU5: 1 | CV5: =2000*AU5 -> 2000 | CX5: Electric | CY5: y | CZ5: 1 | DA5: =IF(F5="Manual Entry","Manual",IF(G5="",0,"X="&SUBSTITUTE(SUBSTITUTE(SUBSTITUTE(SUBSTITUTE(SUBSTITUTE(SUBSTITUTE(SUBSTITUTE(SUBSTITUTE(SUBSTITUTE(SUBSTITUTE(SUBSTITUTE(SUBSTITUTE(G5,$ED5,$ED$2&ROW($ED5)),$EC5,$EC$2&ROW($EC5)),$EB5,$EB$2&ROW($EB5)),$EA5,$EA$2&ROW($EA5)),$DZ5,$DZ$2&ROW($DZ5)),$DY5,$DY$2&ROW($DY5)),$DX5,$DX$2&ROW($DX5)),$DW5,$DW$2&ROW($DW5)),$DV5,$DV$2&ROW($DV5)),$DU5,$DU$2&ROW($DU5)),$DT5,$DT$2&ROW($DT5)),$DS5,$DS$2&ROW($DS5)))) -> X=AS5*AU5 | DB5: =IF(I5="Manual Entry","Manual",IF(J5="",0,"X="&SUBSTITUTE(SUBSTITUTE(SUBSTITUTE(SUBSTITUTE(SUBSTITUTE(SUBSTITUTE(SUBSTITUTE(SUBSTITUTE(SUBSTITUTE(SUBSTITUTE(SUBSTITUTE(SUBSTITUTE(J5,$ED5,$ED$2&ROW($ED5)),$EC5,$EC$2&ROW($EC5)),$EB5,$EB$2&ROW($EB5)),$EA5,$EA$2&ROW($EA5)),$DZ5,$DZ$2&ROW($DZ5)),$DY5,$DY$2&ROW($DY5)),$DX5,$DX$2&ROW($DX5)),$DW5,$DW$2&ROW($DW5)),$DV5,$DV$2&ROW($DV5)),$DU5,$DU$2&ROW($DU5)),$DT5,$DT$2&ROW($DT5)),$DS5,$DS$2&ROW($DS5)))) -> X=2000.00*AU5 | DC5: =IF(O5="",0,"X="&SUBSTITUTE(SUBSTITUTE(SUBSTITUTE(SUBSTITUTE(SUBSTITUTE(SUBSTITUTE(SUBSTITUTE(SUBSTITUTE(SUBSTITUTE(SUBSTITUTE(SUBSTITUTE(SUBSTITUTE(O5,$ED5,$ED$2&ROW($ED5)),$EC5,$EC$2&ROW($EC5)),$EB5,$EB$2&ROW($EB5)),$EA5,$EA$2&ROW($EA5)),$DZ5,$DZ$2&ROW($DZ5)),$DY5,$DY$2&ROW($DY5)),$DX5,$DX$2&ROW($DX5)),$DW5,$DW$2&ROW($DW5)),$DV5,$DV$2&ROW($DV5)),$DU5,$DU$2&ROW($DU5)),$DT5,$DT$2&ROW($DT5)),$DS5,$DS$2&ROW($DS5))) -> X=if(AW5=6,5379,if(AW5=0,-2581.54,-2744)) | DD5: =IF(P5="",0,"X="&SUBSTITUTE(SUBSTITUTE(SUBSTITUTE(SUBSTITUTE(SUBSTITUTE(SUBSTITUTE(SUBSTITUTE(SUBSTITUTE(SUBSTITUTE(SUBSTITUTE(SUBSTITUTE(SUBSTITUTE(P5,$ED5,$ED$2&ROW($ED5)),$EC5,$EC$2&ROW($EC5)),$EB5,$EB$2&ROW($EB5)),$EA5,$EA$2&ROW($EA5)),$DZ5,$DZ$2&ROW($DZ5)),$DY5,$DY$2&ROW($DY5)),$DX5,$DX$2&ROW($DX5)),$DW5,$DW$2&ROW($DW5)),$DV5,$DV$2&ROW($DV5)),$DU5,$DU$2&ROW($DU5)),$DT5,$DT$2&ROW($DT5)),$DS5,$DS$2&ROW($DS5))) -> 0 | DE5: =IF(Q5="",0,"X="&SUBSTITUTE(SUBSTITUTE(SUBSTITUTE(SUBSTITUTE(SUBSTITUTE(SUBSTITUTE(SUBSTITUTE(SUBSTITUTE(SUBSTITUTE(SUBSTITUTE(SUBSTITUTE(SUBSTITUTE(Q5,$ED5,$ED$2&ROW($ED5)),$EC5,$EC$2&ROW($EC5)),$EB5,$EB$2&ROW($EB5)),$EA5,$EA$2&ROW($EA5)),$DZ5,$DZ$2&ROW($DZ5)),$DY5,$DY$2&ROW($DY5)),$DX5,$DX$2&ROW($DX5)),$DW5,$DW$2&ROW($DW5)),$DV5,$DV$2&ROW($DV5)),$DU5,$DU$2&ROW($DU5)),$DT5,$DT$2&ROW($DT5)),$DS5,$DS$2&ROW($DS5))) -> 0 | DF5: =IF(R5="",0,"X="&SUBSTITUTE(SUBSTITUTE(SUBSTITUTE(SUBSTITUTE(SUBSTITUTE(SUBSTITUTE(SUBSTITUTE(SUBSTITUTE(SUBSTITUTE(SUBSTITUTE(SUBSTITUTE(SUBSTITUTE(R5,$ED5,$ED$2&ROW($ED5)),$EC5,$EC$2&ROW($EC5)),$EB5,$EB$2&ROW($EB5)),$EA5,$EA$2&ROW($EA5)),$DZ5,$DZ$2&ROW($DZ5)),$DY5,$DY$2&ROW($DY5)),$DX5,$DX$2&ROW($DX5)),$DW5,$DW$2&ROW($DW5)),$DV5,$DV$2&ROW($DV5)),$DU5,$DU$2&ROW($DU5)),$DT5,$DT$2&ROW($DT5)),$DS5,$DS$2&ROW($DS5))) -> 0 | DG5: =IF(S5="",0,"X="&SUBSTITUTE(SUBSTITUTE(SUBSTITUTE(SUBSTITUTE(SUBSTITUTE(SUBSTITUTE(SUBSTITUTE(SUBSTITUTE(SUBSTITUTE(SUBSTITUTE(SUBSTITUTE(SUBSTITUTE(S5,$ED5,$ED$2&ROW($ED5)),$EC5,$EC$2&ROW($EC5)),$EB5,$EB$2&ROW($EB5)),$EA5,$EA$2&ROW($EA5)),$DZ5,$DZ$2&ROW($DZ5)),$DY5,$DY$2&ROW($DY5)),$DX5,$DX$2&ROW($DX5)),$DW5,$DW$2&ROW($DW5)),$DV5,$DV$2&ROW($DV5)),$DU5,$DU$2&ROW($DU5)),$DT5,$DT$2&ROW($DT5)),$DS5,$DS$2&ROW($DS5))) -> 0 | DH5: =IF(T5="",0,"X="&SUBSTITUTE(SUBSTITUTE(SUBSTITUTE(SUBSTITUTE(SUBSTITUTE(SUBSTITUTE(SUBSTITUTE(SUBSTITUTE(SUBSTITUTE(SUBSTITUTE(SUBSTITUTE(SUBSTITUTE(T5,$ED5,$ED$2&ROW($ED5)),$EC5,$EC$2&ROW($EC5)),$EB5,$EB$2&ROW($EB5)),$EA5,$EA$2&ROW($EA5)),$DZ5,$DZ$2&ROW($DZ5)),$DY5,$DY$2&ROW($DY5)),$DX5,$DX$2&ROW($DX5)),$DW5,$DW$2&ROW($DW5)),$DV5,$DV$2&ROW($DV5)),$DU5,$DU$2&ROW($DU5)),$DT5,$DT$2&ROW($DT5)),$DS5,$DS$2&ROW($DS5))) -> 0 | DI5: =IF(U5="",0,"X="&SUBSTITUTE(SUBSTITUTE(SUBSTITUTE(SUBSTITUTE(SUBSTITUTE(SUBSTITUTE(SUBSTITUTE(SUBSTITUTE(SUBSTITUTE(SUBSTITUTE(SUBSTITUTE(SUBSTITUTE(U5,$ED5,$ED$2&ROW($ED5)),$EC5,$EC$2&ROW($EC5)),$EB5,$EB$2&ROW($EB5)),$EA5,$EA$2&ROW($EA5)),$DZ5,$DZ$2&ROW($DZ5)),$DY5,$DY$2&ROW($DY5)),$DX5,$DX$2&ROW($DX5)),$DW5,$DW$2&ROW($DW5)),$DV5,$DV$2&ROW($DV5)),$DU5,$DU$2&ROW($DU5)),$DT5,$DT$2&ROW($DT5)),$DS5,$DS$2&ROW($DS5))) -> X=if(AW5=6,1.046,if(AW5=0,-0.562,-0.595)) | DJ5: =IF(V5="",0,"X="&SUBSTITUTE(SUBSTITUTE(SUBSTITUTE(SUBSTITUTE(SUBSTITUTE(SUBSTITUTE(SUBSTITUTE(SUBSTITUTE(SUBSTITUTE(SUBSTITUTE(SUBSTITUTE(SUBSTITUTE(V5,$ED5,$ED$2&ROW($ED5)),$EC5,$EC$2&ROW($EC5)),$EB5,$EB$2&ROW($EB5)),$EA5,$EA$2&ROW($EA5)),$DZ5,$DZ$2&ROW($DZ5)),$DY5,$DY$2&ROW($DY5)),$DX5,$DX$2&ROW($DX5)),$DW5,$DW$2&ROW($DW5)),$DV5,$DV$2&ROW($DV5)),$DU5,$DU$2&ROW($DU5)),$DT5,$DT$2&ROW($DT5)),$DS5,$DS$2&ROW($DS5))) -> X=0.031 | DK5: =IF(W5="",0,"X="&SUBSTITUTE(SUBSTITUTE(SUBSTITUTE(SUBSTITUTE(SUBSTITUTE(SUBSTITUTE(SUBSTITUTE(SUBSTITUTE(SUBSTITUTE(SUBSTITUTE(SUBSTITUTE(SUBSTITUTE(W5,$ED5,$ED$2&ROW($ED5)),$EC5,$EC$2&ROW($EC5)),$EB5,$EB$2&ROW($EB5)),$EA5,$EA$2&ROW($EA5)),$DZ5,$DZ$2&ROW($DZ5)),$DY5,$DY$2&ROW($DY5)),$DX5,$DX$2&ROW($DX5)),$DW5,$DW$2&ROW($DW5)),$DV5,$DV$2&ROW($DV5)),$DU5,$DU$2&ROW($DU5)),$DT5,$DT$2&ROW($DT5)),$DS5,$DS$2&ROW($DS5))) -> X=10*if(AW5=1,1,if(AW5=0,0,0))*31.72 | DL5: =IF(X5="",0,"X="&SUBSTITUTE(SUBSTITUTE(SUBSTITUTE(SUBSTITUTE(SUBSTITUTE(SUBSTITUTE(SUBSTITUTE(SUBSTITUTE(SUBSTITUTE(SUBSTITUTE(SUBSTITUTE(SUBSTITUTE(X5,$ED5,$ED$2&ROW($ED5)),$EC5,$EC$2&ROW($EC5)),$EB5,$EB$2&ROW($EB5)),$EA5,$EA$2&ROW($EA5)),$DZ5,$DZ$2&ROW($DZ5)),$DY5,$DY$2&ROW($DY5)),$DX5,$DX$2&ROW($DX5)),$DW5,$DW$2&ROW($DW5)),$DV5,$DV$2&ROW($DV5)),$DU5,$DU$2&ROW($DU5)),$DT5,$DT$2&ROW($DT5)),$DS5,$DS$2&ROW($DS5))) -> X=if(AW5=2,1,if(AW5=0,0.06,0))*31.72 | DM5: =IF(Y5="",0,"X="&SUBSTITUTE(SUBSTITUTE(SUBSTITUTE(SUBSTITUTE(SUBSTITUTE(SUBSTITUTE(SUBSTITUTE(SUBSTITUTE(SUBSTITUTE(SUBSTITUTE(SUBSTITUTE(SUBSTITUTE(Y5,$ED5,$ED$2&ROW($ED5)),$EC5,$EC$2&ROW($EC5)),$EB5,$EB$2&ROW($EB5)),$EA5,$EA$2&ROW($EA5)),$DZ5,$DZ$2&ROW($DZ5)),$DY5,$DY$2&ROW($DY5)),$DX5,$DX$2&ROW($DX5)),$DW5,$DW$2&ROW($DW5)),$DV5,$DV$2&ROW($DV5)),$DU5,$DU$2&ROW($DU5)),$DT5,$DT$2&ROW($DT5)),$DS5,$DS$2&ROW($DS5))) -> X=if(AW5=3,1,if(AW5=0,0.79,0))*31.72 | DN5: =IF(Z5="",0,"X="&SUBSTITUTE(SUBSTITUTE(SUBSTITUTE(SUBSTITUTE(SUBSTITUTE(SUBSTITUTE(SUBSTITUTE(SUBSTITUTE(SUBSTITUTE(SUBSTITUTE(SUBSTITUTE(SUBSTITUTE(Z5,$ED5,$ED$2&ROW($ED5)),$EC5,$EC$2&ROW($EC5)),$EB5,$EB$2&ROW($EB5)),$EA5,$EA$2&ROW($EA5)),$DZ5,$DZ$2&ROW($DZ5)),$DY5,$DY$2&ROW($DY5)),$DX5,$DX$2&ROW($DX5)),$DW5,$DW$2&ROW($DW5)),$DV5,$DV$2&ROW($DV5)),$DU5,$DU$2&ROW($DU5)),$DT5,$DT$2&ROW($DT5)),$DS5,$DS$2&ROW($DS5))) -> X=if(AW5=4,1,if(AW5=0,0.06,0))*31.72 | DO5: =IF(AA5="",0,"X="&SUBSTITUTE(SUBSTITUTE(SUBSTITUTE(SUBSTITUTE(SUBSTITUTE(SUBSTITUTE(SUBSTITUTE(SUBSTITUTE(SUBSTITUTE(SUBSTITUTE(SUBSTITUTE(SUBSTITUTE(AA5,$ED5,$ED$2&ROW($ED5)),$EC5,$EC$2&ROW($EC5)),$EB5,$EB$2&ROW($EB5)),$EA5,$EA$2&ROW($EA5)),$DZ5,$DZ$2&ROW($DZ5)),$DY5,$DY$2&ROW($DY5)),$DX5,$DX$2&ROW($DX5)),$DW5,$DW$2&ROW($DW5)),$DV5,$DV$2&ROW($DV5)),$DU5,$DU$2&ROW($DU5)),$DT5,$DT$2&ROW($DT5)),$DS5,$DS$2&ROW($DS5))) -> X=if(AW5=5,1,if(AW5=0,0.07,0))*31.72 | DP5: =IF(AB5="",0,"X="&SUBSTITUTE(SUBSTITUTE(SUBSTITUTE(SUBSTITUTE(SUBSTITUTE(SUBSTITUTE(SUBSTITUTE(SUBSTITUTE(SUBSTITUTE(SUBSTITUTE(SUBSTITUTE(SUBSTITUTE(AB5,$ED5,$ED$2&ROW($ED5)),$EC5,$EC$2&ROW($EC5)),$EB5,$EB$2&ROW($EB5)),$EA5,$EA$2&ROW($EA5)),$DZ5,$DZ$2&ROW($DZ5)),$DY5,$DY$2&ROW($DY5)),$DX5,$DX$2&ROW($DX5)),$DW5,$DW$2&ROW($DW5)),$DV5,$DV$2&ROW($DV5)),$DU5,$DU$2&ROW($DU5)),$DT5,$DT$2&ROW($DT5)),$DS5,$DS$2&ROW($DS5))) -> X=0 | DS5: {Factor:WinterCF} | DT5: {Factor:SummerCF} | DU5: =IFERROR(INDEX($EG5:$IV5,MATCH(0,COUNTIF($DR5:DT5,$EG5:$IV5),0)),"") -> {Cost} | DV5: =IFERROR(INDEX($EG5:$IV5,MATCH(0,COUNTIF($DR5:DU5,$EG5:$IV5),0)),"") -> {Measure:Quantity} | DW5: =IFERROR(INDEX($EG5:$IV5,MATCH(0,COUNTIF($DR5:DV5,$EG5:$IV5),0)),"") -> {Primary heating type} | DX5: =IFERROR(INDEX($EG5:$IV5,MATCH(0,COUNTIF($DR5:DW5,$EG5:$IV5),0)),"") ->  | DY5: =IFERROR(INDEX($EG5:$IV5,MATCH(0,COUNTIF($DR5:DX5,$EG5:$IV5),0)),"") ->  | DZ5: =IFERROR(INDEX($EG5:$IV5,MATCH(0,COUNTIF($DR5:DY5,$EG5:$IV5),0)),"") ->  | EA5: =IFERROR(INDEX($EG5:$IV5,MATCH(0,COUNTIF($DR5:DZ5,$EG5:$IV5),0)),"") ->  | EB5: =IFERROR(INDEX($EG5:$IV5,MATCH(0,COUNTIF($DR5:EA5,$EG5:$IV5),0)),"") ->  | EC5: =IFERROR(INDEX($EG5:$IV5,MATCH(0,COUNTIF($DR5:EB5,$EG5:$IV5),0)),"") ->  | ED5: =IFERROR(INDEX($EG5:$IV5,MATCH(0,COUNTIF($DR5:EC5,$EG5:$IV5),0)),"") ->  | EG5: =IFERROR(MID($G5,FIND(CHAR(160),SUBSTITUTE($G5,"{",CHAR(160),EG$1)),FIND(CHAR(160),SUBSTITUTE($G5,"}",CHAR(160),EG$1))-FIND(CHAR(160),SUBSTITUTE($G5,"{",CHAR(160),EG$1))+1),"") -> {Cost} | EH5: =IFERROR(MID($G5,FIND(CHAR(160),SUBSTITUTE($G5,"{",CHAR(160),EH$1)),FIND(CHAR(160),SUBSTITUTE($G5,"}",CHAR(160),EH$1))-FIND(CHAR(160),SUBSTITUTE($G5,"{",CHAR(160),EH$1))+1),"") -> {Measure:Quantity} | EI5: =IFERROR(MID($G5,FIND(CHAR(160),SUBSTITUTE($G5,"{",CHAR(160),EI$1)),FIND(CHAR(160),SUBSTITUTE($G5,"}",CHAR(160),EI$1))-FIND(CHAR(160),SUBSTITUTE($G5,"{",CHAR(160),EI$1))+1),"") ->  | EJ5: =IFERROR(MID($G5,FIND(CHAR(160),SUBSTITUTE($G5,"{",CHAR(160),EJ$1)),FIND(CHAR(160),SUBSTITUTE($G5,"}",CHAR(160),EJ$1))-FIND(CHAR(160),SUBSTITUTE($G5,"{",CHAR(160),EJ$1))+1),"") ->  | EK5: =IFERROR(MID($G5,FIND(CHAR(160),SUBSTITUTE($G5,"{",CHAR(160),EK$1)),FIND(CHAR(160),SUBSTITUTE($G5,"}",CHAR(160),EK$1))-FIND(CHAR(160),SUBSTITUTE($G5,"{",CHAR(160),EK$1))+1),"") ->  | EL5: =IFERROR(MID($G5,FIND(CHAR(160),SUBSTITUTE($G5,"{",CHAR(160),EL$1)),FIND(CHAR(160),SUBSTITUTE($G5,"}",CHAR(160),EL$1))-FIND(CHAR(160),SUBSTITUTE($G5,"{",CHAR(160),EL$1))+1),"") ->  | EM5: =IFERROR(MID($G5,FIND(CHAR(160),SUBSTITUTE($G5,"{",CHAR(160),EM$1)),FIND(CHAR(160),SUBSTITUTE($G5,"}",CHAR(160),EM$1))-FIND(CHAR(160),SUBSTITUTE($G5,"{",CHAR(160),EM$1))+1),"") ->  | EN5: =IFERROR(MID($G5,FIND(CHAR(160),SUBSTITUTE($G5,"{",CHAR(160),EN$1)),FIND(CHAR(160),SUBSTITUTE($G5,"}",CHAR(160),EN$1))-FIND(CHAR(160),SUBSTITUTE($G5,"{",CHAR(160),EN$1))+1),"") ->  | EO5: =IFERROR(MID($G5,FIND(CHAR(160),SUBSTITUTE($G5,"{",CHAR(160),EO$1)),FIND(CHAR(160),SUBSTITUTE($G5,"}",CHAR(160),EO$1))-FIND(CHAR(160),SUBSTITUTE($G5,"{",CHAR(160),EO$1))+1),"") ->  | EP5: =IFERROR(MID($G5,FIND(CHAR(160),SUBSTITUTE($G5,"{",CHAR(160),EP$1)),FIND(CHAR(160),SUBSTITUTE($G5,"}",CHAR(160),EP$1))-FIND(CHAR(160),SUBSTITUTE($G5,"{",CHAR(160),EP$1))+1),"") ->  | EQ5: =IFERROR(MID($J5,FIND(CHAR(160),SUBSTITUTE($J5,"{",CHAR(160),EQ$1)),FIND(CHAR(160),SUBSTITUTE($J5,"}",CHAR(160),EQ$1))-FIND(CHAR(160),SUBSTITUTE($J5,"{",CHAR(160),EQ$1))+1),"") -> {Measure:Quantity} | ER5: =IFERROR(MID($J5,FIND(CHAR(160),SUBSTITUTE($J5,"{",CHAR(160),ER$1)),FIND(CHAR(160),SUBSTITUTE($J5,"}",CHAR(160),ER$1))-FIND(CHAR(160),SUBSTITUTE($J5,"{",CHAR(160),ER$1))+1),"") ->  | ES5: =IFERROR(MID($J5,FIND(CHAR(160),SUBSTITUTE($J5,"{",CHAR(160),ES$1)),FIND(CHAR(160),SUBSTITUTE($J5,"}",CHAR(160),ES$1))-FIND(CHAR(160),SUBSTITUTE($J5,"{",CHAR(160),ES$1))+1),"") ->  | ET5: =IFERROR(MID($J5,FIND(CHAR(160),SUBSTITUTE($J5,"{",CHAR(160),ET$1)),FIND(CHAR(160),SUBSTITUTE($J5,"}",CHAR(160),ET$1))-FIND(CHAR(160),SUBSTITUTE($J5,"{",CHAR(160),ET$1))+1),"") ->  | EU5: =IFERROR(MID($J5,FIND(CHAR(160),SUBSTITUTE($J5,"{",CHAR(160),EU$1)),FIND(CHAR(160),SUBSTITUTE($J5,"}",CHAR(160),EU$1))-FIND(CHAR(160),SUBSTITUTE($J5,"{",CHAR(160),EU$1))+1),"") ->  | EV5: =IFERROR(MID($J5,FIND(CHAR(160),SUBSTITUTE($J5,"{",CHAR(160),EV$1)),FIND(CHAR(160),SUBSTITUTE($J5,"}",CHAR(160),EV$1))-FIND(CHAR(160),SUBSTITUTE($J5,"{",CHAR(160),EV$1))+1),"") ->  | EW5: =IFERROR(MID($J5,FIND(CHAR(160),SUBSTITUTE($J5,"{",CHAR(160),EW$1)),FIND(CHAR(160),SUBSTITUTE($J5,"}",CHAR(160),EW$1))-FIND(CHAR(160),SUBSTITUTE($J5,"{",CHAR(160),EW$1))+1),"") ->  | EX5: =IFERROR(MID($J5,FIND(CHAR(160),SUBSTITUTE($J5,"{",CHAR(160),EX$1)),FIND(CHAR(160),SUBSTITUTE($J5,"}",CHAR(160),EX$1))-FIND(CHAR(160),SUBSTITUTE($J5,"{",CHAR(160),EX$1))+1),"") ->  | EY5: =IFERROR(MID($J5,FIND(CHAR(160),SUBSTITUTE($J5,"{",CHAR(160),EY$1)),FIND(CHAR(160),SUBSTITUTE($J5,"}",CHAR(160),EY$1))-FIND(CHAR(160),SUBSTITUTE($J5,"{",CHAR(160),EY$1))+1),"") ->  | EZ5: =IFERROR(MID($J5,FIND(CHAR(160),SUBSTITUTE($J5,"{",CHAR(160),EZ$1)),FIND(CHAR(160),SUBSTITUTE($J5,"}",CHAR(160),EZ$1))-FIND(CHAR(160),SUBSTITUTE($J5,"{",CHAR(160),EZ$1))+1),"") ->  | FA5: =IFERROR(MID($J5,FIND(CHAR(160),SUBSTITUTE($J5,"{",CHAR(160),FA$1)),FIND(CHAR(160),SUBSTITUTE($J5,"}",CHAR(160),FA$1))-FIND(CHAR(160),SUBSTITUTE($J5,"{",CHAR(160),FA$1))+1),"") -> {Measure:Quantity} | FB5: =IFERROR(MID($J5,FIND(CHAR(160),SUBSTITUTE($J5,"{",CHAR(160),FB$1)),FIND(CHAR(160),SUBSTITUTE($J5,"}",CHAR(160),FB$1))-FIND(CHAR(160),SUBSTITUTE($J5,"{",CHAR(160),FB$1))+1),"") ->  | FC5: =IFERROR(MID($O5,FIND(CHAR(160),SUBSTITUTE($O5,"{",CHAR(160),FC$1)),FIND(CHAR(160),SUBSTITUTE($O5,"}",CHAR(160),FC$1))-FIND(CHAR(160),SUBSTITUTE($O5,"{",CHAR(160),FC$1))+1),"") ->  | FD5: =IFERROR(MID($O5,FIND(CHAR(160),SUBSTITUTE($O5,"{",CHAR(160),FD$1)),FIND(CHAR(160),SUBSTITUTE($O5,"}",CHAR(160),FD$1))-FIND(CHAR(160),SUBSTITUTE($O5,"{",CHAR(160),FD$1))+1),"") ->  | FE5: =IFERROR(MID($O5,FIND(CHAR(160),SUBSTITUTE($O5,"{",CHAR(160),FE$1)),FIND(CHAR(160),SUBSTITUTE($O5,"}",CHAR(160),FE$1))-FIND(CHAR(160),SUBSTITUTE($O5,"{",CHAR(160),FE$1))+1),"") ->  | FF5: =IFERROR(MID($O5,FIND(CHAR(160),SUBSTITUTE($O5,"{",CHAR(160),FF$1)),FIND(CHAR(160),SUBSTITUTE($O5,"}",CHAR(160),FF$1))-FIND(CHAR(160),SUBSTITUTE($O5,"{",CHAR(160),FF$1))+1),"") ->  | FG5: =IFERROR(MID($O5,FIND(CHAR(160),SUBSTITUTE($O5,"{",CHAR(160),FG$1)),FIND(CHAR(160),SUBSTITUTE($O5,"}",CHAR(160),FG$1))-FIND(CHAR(160),SUBSTITUTE($O5,"{",CHAR(160),FG$1))+1),"") ->  | FH5: =IFERROR(MID($O5,FIND(CHAR(160),SUBSTITUTE($O5,"{",CHAR(160),FH$1)),FIND(CHAR(160),SUBSTITUTE($O5,"}",CHAR(160),FH$1))-FIND(CHAR(160),SUBSTITUTE($O5,"{",CHAR(160),FH$1))+1),"") ->  | FI5: =IFERROR(MID($O5,FIND(CHAR(160),SUBSTITUTE($O5,"{",CHAR(160),FI$1)),FIND(CHAR(160),SUBSTITUTE($O5,"}",CHAR(160),FI$1))-FIND(CHAR(160),SUBSTITUTE($O5,"{",CHAR(160),FI$1))+1),"") ->  | FJ5: =IFERROR(MID($O5,FIND(CHAR(160),SUBSTITUTE($O5,"{",CHAR(160),FJ$1)),FIND(CHAR(160),SUBSTITUTE($O5,"}",CHAR(160),FJ$1))-FIND(CHAR(160),SUBSTITUTE($O5,"{",CHAR(160),FJ$1))+1),"") ->  | FK5: =IFERROR(MID($O5,FIND(CHAR(160),SUBSTITUTE($O5,"{",CHAR(160),FK$1)),FIND(CHAR(160),SUBSTITUTE($O5,"}",CHAR(160),FK$1))-FIND(CHAR(160),SUBSTITUTE($O5,"{",CHAR(160),FK$1))+1),"") -> {Primary heating type} | FL5: =IFERROR(MID($O5,FIND(CHAR(160),SUBSTITUTE($O5,"{",CHAR(160),FL$1)),FIND(CHAR(160),SUBSTITUTE($O5,"}",CHAR(160),FL$1))-FIND(CHAR(160),SUBSTITUTE($O5,"{",CHAR(160),FL$1))+1),"") -> {Primary heating type} | FM5: =IFERROR(MID($R5,FIND(CHAR(160),SUBSTITUTE($R5,"{",CHAR(160),FM$1)),FIND(CHAR(160),SUBSTITUTE($R5,"}",CHAR(160),FM$1))-FIND(CHAR(160),SUBSTITUTE($R5,"{",CHAR(160),FM$1))+1),"") ->  | FN5: =IFERROR(MID($R5,FIND(CHAR(160),SUBSTITUTE($R5,"{",CHAR(160),FN$1)),FIND(CHAR(160),SUBSTITUTE($R5,"}",CHAR(160),FN$1))-FIND(CHAR(160),SUBSTITUTE($R5,"{",CHAR(160),FN$1))+1),"") ->  | FO5: =IFERROR(MID($R5,FIND(CHAR(160),SUBSTITUTE($R5,"{",CHAR(160),FO$1)),FIND(CHAR(160),SUBSTITUTE($R5,"}",CHAR(160),FO$1))-FIND(CHAR(160),SUBSTITUTE($R5,"{",CHAR(160),FO$1))+1),"") ->  | FP5: =IFERROR(MID($R5,FIND(CHAR(160),SUBSTITUTE($R5,"{",CHAR(160),FP$1)),FIND(CHAR(160),SUBSTITUTE($R5,"}",CHAR(160),FP$1))-FIND(CHAR(160),SUBSTITUTE($R5,"{",CHAR(160),FP$1))+1),"") ->  | FQ5: =IFERROR(MID($R5,FIND(CHAR(160),SUBSTITUTE($R5,"{",CHAR(160),FQ$1)),FIND(CHAR(160),SUBSTITUTE($R5,"}",CHAR(160),FQ$1))-FIND(CHAR(160),SUBSTITUTE($R5,"{",CHAR(160),FQ$1))+1),"") ->  | FR5: =IFERROR(MID($R5,FIND(CHAR(160),SUBSTITUTE($R5,"{",CHAR(160),FR$1)),FIND(CHAR(160),SUBSTITUTE($R5,"}",CHAR(160),FR$1))-FIND(CHAR(160),SUBSTITUTE($R5,"{",CHAR(160),FR$1))+1),"") ->  | FS5: =IFERROR(MID($R5,FIND(CHAR(160),SUBSTITUTE($R5,"{",CHAR(160),FS$1)),FIND(CHAR(160),SUBSTITUTE($R5,"}",CHAR(160),FS$1))-FIND(CHAR(160),SUBSTITUTE($R5,"{",CHAR(160),FS$1))+1),"") ->  | FT5: =IFERROR(MID($R5,FIND(CHAR(160),SUBSTITUTE($R5,"{",CHAR(160),FT$1)),FIND(CHAR(160),SUBSTITUTE($R5,"}",CHAR(160),FT$1))-FIND(CHAR(160),SUBSTITUTE($R5,"{",CHAR(160),FT$1))+1),"") ->  | FU5: =IFERROR(MID($R5,FIND(CHAR(160),SUBSTITUTE($R5,"{",CHAR(160),FU$1)),FIND(CHAR(160),SUBSTITUTE($R5,"}",CHAR(160),FU$1))-FIND(CHAR(160),SUBSTITUTE($R5,"{",CHAR(160),FU$1))+1),"") ->  | FV5: =IFERROR(MID($R5,FIND(CHAR(160),SUBSTITUTE($R5,"{",CHAR(160),FV$1)),FIND(CHAR(160),SUBSTITUTE($R5,"}",CHAR(160),FV$1))-FIND(CHAR(160),SUBSTITUTE($R5,"{",CHAR(160),FV$1))+1),"") ->  | FW5: =IFERROR(MID($U5,FIND(CHAR(160),SUBSTITUTE($U5,"{",CHAR(160),FW$1)),FIND(CHAR(160),SUBSTITUTE($U5,"}",CHAR(160),FW$1))-FIND(CHAR(160),SUBSTITUTE($U5,"{",CHAR(160),FW$1))+1),"") ->  | FX5: =IFERROR(MID($U5,FIND(CHAR(160),SUBSTITUTE($U5,"{",CHAR(160),FX$1)),FIND(CHAR(160),SUBSTITUTE($U5,"}",CHAR(160),FX$1))-FIND(CHAR(160),SUBSTITUTE($U5,"{",CHAR(160),FX$1))+1),"") ->  | FY5: =IFERROR(MID($U5,FIND(CHAR(160),SUBSTITUTE($U5,"{",CHAR(160),FY$1)),FIND(CHAR(160),SUBSTITUTE($U5,"}",CHAR(160),FY$1))-FIND(CHAR(160),SUBSTITUTE($U5,"{",CHAR(160),FY$1))+1),"") ->  | FZ5: =IFERROR(MID($U5,FIND(CHAR(160),SUBSTITUTE($U5,"{",CHAR(160),FZ$1)),FIND(CHAR(160),SUBSTITUTE($U5,"}",CHAR(160),FZ$1))-FIND(CHAR(160),SUBSTITUTE($U5,"{",CHAR(160),FZ$1))+1),"") ->  | GA5: =IFERROR(MID($U5,FIND(CHAR(160),SUBSTITUTE($U5,"{",CHAR(160),GA$1)),FIND(CHAR(160),SUBSTITUTE($U5,"}",CHAR(160),GA$1))-FIND(CHAR(160),SUBSTITUTE($U5,"{",CHAR(160),GA$1))+1),"") ->  | GB5: =IFERROR(MID($U5,FIND(CHAR(160),SUBSTITUTE($U5,"{",CHAR(160),GB$1)),FIND(CHAR(160),SUBSTITUTE($U5,"}",CHAR(160),GB$1))-FIND(CHAR(160),SUBSTITUTE($U5,"{",CHAR(160),GB$1))+1),"") ->  | GC5: =IFERROR(MID($U5,FIND(CHAR(160),SUBSTITUTE($U5,"{",CHAR(160),GC$1)),FIND(CHAR(160),SUBSTITUTE($U5,"}",CHAR(160),GC$1))-FIND(CHAR(160),SUBSTITUTE($U5,"{",CHAR(160),GC$1))+1),"") ->  | GD5: =IFERROR(MID($U5,FIND(CHAR(160),SUBSTITUTE($U5,"{",CHAR(160),GD$1)),FIND(CHAR(160),SUBSTITUTE($U5,"}",CHAR(160),GD$1))-FIND(CHAR(160),SUBSTITUTE($U5,"{",CHAR(160),GD$1))+1),"") ->  | GE5: =IFERROR(MID($U5,FIND(CHAR(160),SUBSTITUTE($U5,"{",CHAR(160),GE$1)),FIND(CHAR(160),SUBSTITUTE($U5,"}",CHAR(160),GE$1))-FIND(CHAR(160),SUBSTITUTE($U5,"{",CHAR(160),GE$1))+1),"") -> {Primary heating type} | GF5: =IFERROR(MID($U5,FIND(CHAR(160),SUBSTITUTE($U5,"{",CHAR(160),GF$1)),FIND(CHAR(160),SUBSTITUTE($U5,"}",CHAR(160),GF$1))-FIND(CHAR(160),SUBSTITUTE($U5,"{",CHAR(160),GF$1))+1),"") -> {Primary heating type} | GG5: =IFERROR(MID($V5,FIND(CHAR(160),SUBSTITUTE($V5,"{",CHAR(160),GG$1)),FIND(CHAR(160),SUBSTITUTE($V5,"}",CHAR(160),GG$1))-FIND(CHAR(160),SUBSTITUTE($V5,"{",CHAR(160),GG$1))+1),"") ->  | GH5: =IFERROR(MID($V5,FIND(CHAR(160),SUBSTITUTE($V5,"{",CHAR(160),GH$1)),FIND(CHAR(160),SUBSTITUTE($V5,"}",CHAR(160),GH$1))-FIND(CHAR(160),SUBSTITUTE($V5,"{",CHAR(160),GH$1))+1),"") ->  | GI5: =IFERROR(MID($V5,FIND(CHAR(160),SUBSTITUTE($V5,"{",CHAR(160),GI$1)),FIND(CHAR(160),SUBSTITUTE($V5,"}",CHAR(160),GI$1))-FIND(CHAR(160),SUBSTITUTE($V5,"{",CHAR(160),GI$1))+1),"") ->  | GJ5: =IFERROR(MID($V5,FIND(CHAR(160),SUBSTITUTE($V5,"{",CHAR(160),GJ$1)),FIND(CHAR(160),SUBSTITUTE($V5,"}",CHAR(160),GJ$1))-FIND(CHAR(160),SUBSTITUTE($V5,"{",CHAR(160),GJ$1))+1),"") ->  | GK5: =IFERROR(MID($V5,FIND(CHAR(160),SUBSTITUTE($V5,"{",CHAR(160),GK$1)),FIND(CHAR(160),SUBSTITUTE($V5,"}",CHAR(160),GK$1))-FIND(CHAR(160),SUBSTITUTE($V5,"{",CHAR(160),GK$1))+1),"") ->  | GL5: =IFERROR(MID($V5,FIND(CHAR(160),SUBSTITUTE($V5,"{",CHAR(160),GL$1)),FIND(CHAR(160),SUBSTITUTE($V5,"}",CHAR(160),GL$1))-FIND(CHAR(160),SUBSTITUTE($V5,"{",CHAR(160),GL$1))+1),"") ->  | GM5: =IFERROR(MID($V5,FIND(CHAR(160),SUBSTITUTE($V5,"{",CHAR(160),GM$1)),FIND(CHAR(160),SUBSTITUTE($V5,"}",CHAR(160),GM$1))-FIND(CHAR(160),SUBSTITUTE($V5,"{",CHAR(160),GM$1))+1),"") ->  | GN5: =IFERROR(MID($V5,FIND(CHAR(160),SUBSTITUTE($V5,"{",CHAR(160),GN$1)),FIND(CHAR(160),SUBSTITUTE($V5,"}",CHAR(160),GN$1))-FIND(CHAR(160),SUBSTITUTE($V5,"{",CHAR(160),GN$1))+1),"") ->  | GO5: =IFERROR(MID($V5,FIND(CHAR(160),SUBSTITUTE($V5,"{",CHAR(160),GO$1)),FIND(CHAR(160),SUBSTITUTE($V5,"}",CHAR(160),GO$1))-FIND(CHAR(160),SUBSTITUTE($V5,"{",CHAR(160),GO$1))+1),"") ->  | GP5: =IFERROR(MID($V5,FIND(CHAR(160),SUBSTITUTE($V5,"{",CHAR(160),GP$1)),FIND(CHAR(160),SUBSTITUTE($V5,"}",CHAR(160),GP$1))-FIND(CHAR(160),SUBSTITUTE($V5,"{",CHAR(160),GP$1))+1),"") ->  | GQ5: =IFERROR(MID($W5,FIND(CHAR(160),SUBSTITUTE($W5,"{",CHAR(160),GQ$1)),FIND(CHAR(160),SUBSTITUTE($W5,"}",CHAR(160),GQ$1))-FIND(CHAR(160),SUBSTITUTE($W5,"{",CHAR(160),GQ$1))+1),"") ->  | GR5: =IFERROR(MID($W5,FIND(CHAR(160),SUBSTITUTE($W5,"{",CHAR(160),GR$1)),FIND(CHAR(160),SUBSTITUTE($W5,"}",CHAR(160),GR$1))-FIND(CHAR(160),SUBSTITUTE($W5,"{",CHAR(160),GR$1))+1),"") ->  | GS5: =IFERROR(MID($W5,FIND(CHAR(160),SUBSTITUTE($W5,"{",CHAR(160),GS$1)),FIND(CHAR(160),SUBSTITUTE($W5,"}",CHAR(160),GS$1))-FIND(CHAR(160),SUBSTITUTE($W5,"{",CHAR(160),GS$1))+1),"") ->  | GT5: =IFERROR(MID($W5,FIND(CHAR(160),SUBSTITUTE($W5,"{",CHAR(160),GT$1)),FIND(CHAR(160),SUBSTITUTE($W5,"}",CHAR(160),GT$1))-FIND(CHAR(160),SUBSTITUTE($W5,"{",CHAR(160),GT$1))+1),"") ->  | GU5: =IFERROR(MID($W5,FIND(CHAR(160),SUBSTITUTE($W5,"{",CHAR(160),GU$1)),FIND(CHAR(160),SUBSTITUTE($W5,"}",CHAR(160),GU$1))-FIND(CHAR(160),SUBSTITUTE($W5,"{",CHAR(160),GU$1))+1),"") ->  | GV5: =IFERROR(MID($W5,FIND(CHAR(160),SUBSTITUTE($W5,"{",CHAR(160),GV$1)),FIND(CHAR(160),SUBSTITUTE($W5,"}",CHAR(160),GV$1))-FIND(CHAR(160),SUBSTITUTE($W5,"{",CHAR(160),GV$1))+1),"") ->  | GW5: =IFERROR(MID($W5,FIND(CHAR(160),SUBSTITUTE($W5,"{",CHAR(160),GW$1)),FIND(CHAR(160),SUBSTITUTE($W5,"}",CHAR(160),GW$1))-FIND(CHAR(160),SUBSTITUTE($W5,"{",CHAR(160),GW$1))+1),"") ->  | GX5: =IFERROR(MID($W5,FIND(CHAR(160),SUBSTITUTE($W5,"{",CHAR(160),GX$1)),FIND(CHAR(160),SUBSTITUTE($W5,"}",CHAR(160),GX$1))-FIND(CHAR(160),SUBSTITUTE($W5,"{",CHAR(160),GX$1))+1),"") ->  | GY5: =IFERROR(MID($W5,FIND(CHAR(160),SUBSTITUTE($W5,"{",CHAR(160),GY$1)),FIND(CHAR(160),SUBSTITUTE($W5,"}",CHAR(160),GY$1))-FIND(CHAR(160),SUBSTITUTE($W5,"{",CHAR(160),GY$1))+1),"") -> {Primary heating type} | GZ5: =IFERROR(MID($W5,FIND(CHAR(160),SUBSTITUTE($W5,"{",CHAR(160),GZ$1)),FIND(CHAR(160),SUBSTITUTE($W5,"}",CHAR(160),GZ$1))-FIND(CHAR(160),SUBSTITUTE($W5,"{",CHAR(160),GZ$1))+1),"") -> {Primary heating type} | HA5: =IFERROR(MID($X5,FIND(CHAR(160),SUBSTITUTE($X5,"{",CHAR(160),HA$1)),FIND(CHAR(160),SUBSTITUTE($X5,"}",CHAR(160),HA$1))-FIND(CHAR(160),SUBSTITUTE($X5,"{",CHAR(160),HA$1))+1),"") ->  | HB5: =IFERROR(MID($X5,FIND(CHAR(160),SUBSTITUTE($X5,"{",CHAR(160),HB$1)),FIND(CHAR(160),SUBSTITUTE($X5,"}",CHAR(160),HB$1))-FIND(CHAR(160),SUBSTITUTE($X5,"{",CHAR(160),HB$1))+1),"") ->  | HC5: =IFERROR(MID($X5,FIND(CHAR(160),SUBSTITUTE($X5,"{",CHAR(160),HC$1)),FIND(CHAR(160),SUBSTITUTE($X5,"}",CHAR(160),HC$1))-FIND(CHAR(160),SUBSTITUTE($X5,"{",CHAR(160),HC$1))+1),"") ->  | HD5: =IFERROR(MID($X5,FIND(CHAR(160),SUBSTITUTE($X5,"{",CHAR(160),HD$1)),FIND(CHAR(160),SUBSTITUTE($X5,"}",CHAR(160),HD$1))-FIND(CHAR(160),SUBSTITUTE($X5,"{",CHAR(160),HD$1))+1),"") ->  | HE5: =IFERROR(MID($X5,FIND(CHAR(160),SUBSTITUTE($X5,"{",CHAR(160),HE$1)),FIND(CHAR(160),SUBSTITUTE($X5,"}",CHAR(160),HE$1))-FIND(CHAR(160),SUBSTITUTE($X5,"{",CHAR(160),HE$1))+1),"") ->  | HF5: =IFERROR(MID($X5,FIND(CHAR(160),SUBSTITUTE($X5,"{",CHAR(160),HF$1)),FIND(CHAR(160),SUBSTITUTE($X5,"}",CHAR(160),HF$1))-FIND(CHAR(160),SUBSTITUTE($X5,"{",CHAR(160),HF$1))+1),"") ->  | HG5: =IFERROR(MID($X5,FIND(CHAR(160),SUBSTITUTE($X5,"{",CHAR(160),HG$1)),FIND(CHAR(160),SUBSTITUTE($X5,"}",CHAR(160),HG$1))-FIND(CHAR(160),SUBSTITUTE($X5,"{",CHAR(160),HG$1))+1),"") ->  | HH5: =IFERROR(MID($X5,FIND(CHAR(160),SUBSTITUTE($X5,"{",CHAR(160),HH$1)),FIND(CHAR(160),SUBSTITUTE($X5,"}",CHAR(160),HH$1))-FIND(CHAR(160),SUBSTITUTE($X5,"{",CHAR(160),HH$1))+1),"") ->  | HI5: =IFERROR(MID($X5,FIND(CHAR(160),SUBSTITUTE($X5,"{",CHAR(160),HI$1)),FIND(CHAR(160),SUBSTITUTE($X5,"}",CHAR(160),HI$1))-FIND(CHAR(160),SUBSTITUTE($X5,"{",CHAR(160),HI$1))+1),"") -> {Primary heating type} | HJ5: =IFERROR(MID($X5,FIND(CHAR(160),SUBSTITUTE($X5,"{",CHAR(160),HJ$1)),FIND(CHAR(160),SUBSTITUTE($X5,"}",CHAR(160),HJ$1))-FIND(CHAR(160),SUBSTITUTE($X5,"{",CHAR(160),HJ$1))+1),"") -> {Primary heating type} | HK5: =IFERROR(MID($Y5,FIND(CHAR(160),SUBSTITUTE($Y5,"{",CHAR(160),HK$1)),FIND(CHAR(160),SUBSTITUTE($Y5,"}",CHAR(160),HK$1))-FIND(CHAR(160),SUBSTITUTE($Y5,"{",CHAR(160),HK$1))+1),"") ->  | HL5: =IFERROR(MID($Y5,FIND(CHAR(160),SUBSTITUTE($Y5,"{",CHAR(160),HL$1)),FIND(CHAR(160),SUBSTITUTE($Y5,"}",CHAR(160),HL$1))-FIND(CHAR(160),SUBSTITUTE($Y5,"{",CHAR(160),HL$1))+1),"") ->  | HM5: =IFERROR(MID($Y5,FIND(CHAR(160),SUBSTITUTE($Y5,"{",CHAR(160),HM$1)),FIND(CHAR(160),SUBSTITUTE($Y5,"}",CHAR(160),HM$1))-FIND(CHAR(160),SUBSTITUTE($Y5,"{",CHAR(160),HM$1))+1),"") ->  | HN5: =IFERROR(MID($Y5,FIND(CHAR(160),SUBSTITUTE($Y5,"{",CHAR(160),HN$1)),FIND(CHAR(160),SUBSTITUTE($Y5,"}",CHAR(160),HN$1))-FIND(CHAR(160),SUBSTITUTE($Y5,"{",CHAR(160),HN$1))+1),"") ->  | HO5: =IFERROR(MID($Y5,FIND(CHAR(160),SUBSTITUTE($Y5,"{",CHAR(160),HO$1)),FIND(CHAR(160),SUBSTITUTE($Y5,"}",CHAR(160),HO$1))-FIND(CHAR(160),SUBSTITUTE($Y5,"{",CHAR(160),HO$1))+1),"") ->  | HP5: =IFERROR(MID($Y5,FIND(CHAR(160),SUBSTITUTE($Y5,"{",CHAR(160),HP$1)),FIND(CHAR(160),SUBSTITUTE($Y5,"}",CHAR(160),HP$1))-FIND(CHAR(160),SUBSTITUTE($Y5,"{",CHAR(160),HP$1))+1),"") ->  | HQ5: =IFERROR(MID($Y5,FIND(CHAR(160),SUBSTITUTE($Y5,"{",CHAR(160),HQ$1)),FIND(CHAR(160),SUBSTITUTE($Y5,"}",CHAR(160),HQ$1))-FIND(CHAR(160),SUBSTITUTE($Y5,"{",CHAR(160),HQ$1))+1),"") ->  | HR5: =IFERROR(MID($Y5,FIND(CHAR(160),SUBSTITUTE($Y5,"{",CHAR(160),HR$1)),FIND(CHAR(160),SUBSTITUTE($Y5,"}",CHAR(160),HR$1))-FIND(CHAR(160),SUBSTITUTE($Y5,"{",CHAR(160),HR$1))+1),"") ->  | HS5: =IFERROR(MID($Y5,FIND(CHAR(160),SUBSTITUTE($Y5,"{",CHAR(160),HS$1)),FIND(CHAR(160),SUBSTITUTE($Y5,"}",CHAR(160),HS$1))-FIND(CHAR(160),SUBSTITUTE($Y5,"{",CHAR(160),HS$1))+1),"") -> {Primary heating type} | HT5: =IFERROR(MID($Y5,FIND(CHAR(160),SUBSTITUTE($Y5,"{",CHAR(160),HT$1)),FIND(CHAR(160),SUBSTITUTE($Y5,"}",CHAR(160),HT$1))-FIND(CHAR(160),SUBSTITUTE($Y5,"{",CHAR(160),HT$1))+1),"") -> {Primary heating type} | HU5: =IFERROR(MID($Z5,FIND(CHAR(160),SUBSTITUTE($Z5,"{",CHAR(160),HU$1)),FIND(CHAR(160),SUBSTITUTE($Z5,"}",CHAR(160),HU$1))-FIND(CHAR(160),SUBSTITUTE($Z5,"{",CHAR(160),HU$1))+1),"") ->  | HV5: =IFERROR(MID($Z5,FIND(CHAR(160),SUBSTITUTE($Z5,"{",CHAR(160),HV$1)),FIND(CHAR(160),SUBSTITUTE($Z5,"}",CHAR(160),HV$1))-FIND(CHAR(160),SUBSTITUTE($Z5,"{",CHAR(160),HV$1))+1),"") ->  | HW5: =IFERROR(MID($Z5,FIND(CHAR(160),SUBSTITUTE($Z5,"{",CHAR(160),HW$1)),FIND(CHAR(160),SUBSTITUTE($Z5,"}",CHAR(160),HW$1))-FIND(CHAR(160),SUBSTITUTE($Z5,"{",CHAR(160),HW$1))+1),"") ->  | HX5: =IFERROR(MID($Z5,FIND(CHAR(160),SUBSTITUTE($Z5,"{",CHAR(160),HX$1)),FIND(CHAR(160),SUBSTITUTE($Z5,"}",CHAR(160),HX$1))-FIND(CHAR(160),SUBSTITUTE($Z5,"{",CHAR(160),HX$1))+1),"") ->  | HY5: =IFERROR(MID($Z5,FIND(CHAR(160),SUBSTITUTE($Z5,"{",CHAR(160),HY$1)),FIND(CHAR(160),SUBSTITUTE($Z5,"}",CHAR(160),HY$1))-FIND(CHAR(160),SUBSTITUTE($Z5,"{",CHAR(160),HY$1))+1),"") ->  | HZ5: =IFERROR(MID($Z5,FIND(CHAR(160),SUBSTITUTE($Z5,"{",CHAR(160),HZ$1)),FIND(CHAR(160),SUBSTITUTE($Z5,"}",CHAR(160),HZ$1))-FIND(CHAR(160),SUBSTITUTE($Z5,"{",CHAR(160),HZ$1))+1),"") ->  | IA5: =IFERROR(MID($Z5,FIND(CHAR(160),SUBSTITUTE($Z5,"{",CHAR(160),IA$1)),FIND(CHAR(160),SUBSTITUTE($Z5,"}",CHAR(160),IA$1))-FIND(CHAR(160),SUBSTITUTE($Z5,"{",CHAR(160),IA$1))+1),"") ->  | IB5: =IFERROR(MID($Z5,FIND(CHAR(160),SUBSTITUTE($Z5,"{",CHAR(160),IB$1)),FIND(CHAR(160),SUBSTITUTE($Z5,"}",CHAR(160),IB$1))-FIND(CHAR(160),SUBSTITUTE($Z5,"{",CHAR(160),IB$1))+1),"") ->  | IC5: =IFERROR(MID($Z5,FIND(CHAR(160),SUBSTITUTE($Z5,"{",CHAR(160),IC$1)),FIND(CHAR(160),SUBSTITUTE($Z5,"}",CHAR(160),IC$1))-FIND(CHAR(160),SUBSTITUTE($Z5,"{",CHAR(160),IC$1))+1),"") -> {Primary heating type} | ID5: =IFERROR(MID($Z5,FIND(CHAR(160),SUBSTITUTE($Z5,"{",CHAR(160),ID$1)),FIND(CHAR(160),SUBSTITUTE($Z5,"}",CHAR(160),ID$1))-FIND(CHAR(160),SUBSTITUTE($Z5,"{",CHAR(160),ID$1))+1),"") -> {Primary heating type} | IE5: =IFERROR(MID($AA5,FIND(CHAR(160),SUBSTITUTE($AA5,"{",CHAR(160),IE$1)),FIND(CHAR(160),SUBSTITUTE($AA5,"}",CHAR(160),IE$1))-FIND(CHAR(160),SUBSTITUTE($AA5,"{",CHAR(160),IE$1))+1),"") ->  | IF5: =IFERROR(MID($AA5,FIND(CHAR(160),SUBSTITUTE($AA5,"{",CHAR(160),IF$1)),FIND(CHAR(160),SUBSTITUTE($AA5,"}",CHAR(160),IF$1))-FIND(CHAR(160),SUBSTITUTE($AA5,"{",CHAR(160),IF$1))+1),"") ->  | IG5: =IFERROR(MID($AA5,FIND(CHAR(160),SUBSTITUTE($AA5,"{",CHAR(160),IG$1)),FIND(CHAR(160),SUBSTITUTE($AA5,"}",CHAR(160),IG$1))-FIND(CHAR(160),SUBSTITUTE($AA5,"{",CHAR(160),IG$1))+1),"") ->  | IH5: =IFERROR(MID($AA5,FIND(CHAR(160),SUBSTITUTE($AA5,"{",CHAR(160),IH$1)),FIND(CHAR(160),SUBSTITUTE($AA5,"}",CHAR(160),IH$1))-FIND(CHAR(160),SUBSTITUTE($AA5,"{",CHAR(160),IH$1))+1),"") ->  | II5: =IFERROR(MID($AA5,FIND(CHAR(160),SUBSTITUTE($AA5,"{",CHAR(160),II$1)),FIND(CHAR(160),SUBSTITUTE($AA5,"}",CHAR(160),II$1))-FIND(CHAR(160),SUBSTITUTE($AA5,"{",CHAR(160),II$1))+1),"") ->  | IJ5: =IFERROR(MID($AA5,FIND(CHAR(160),SUBSTITUTE($AA5,"{",CHAR(160),IJ$1)),FIND(CHAR(160),SUBSTITUTE($AA5,"}",CHAR(160),IJ$1))-FIND(CHAR(160),SUBSTITUTE($AA5,"{",CHAR(160),IJ$1))+1),"") ->  | IK5: =IFERROR(MID($AA5,FIND(CHAR(160),SUBSTITUTE($AA5,"{",CHAR(160),IK$1)),FIND(CHAR(160),SUBSTITUTE($AA5,"}",CHAR(160),IK$1))-FIND(CHAR(160),SUBSTITUTE($AA5,"{",CHAR(160),IK$1))+1),"") ->  | IL5: =IFERROR(MID($AA5,FIND(CHAR(160),SUBSTITUTE($AA5,"{",CHAR(160),IL$1)),FIND(CHAR(160),SUBSTITUTE($AA5,"}",CHAR(160),IL$1))-FIND(CHAR(160),SUBSTITUTE($AA5,"{",CHAR(160),IL$1))+1),"") ->  | IM5: =IFERROR(MID($AA5,FIND(CHAR(160),SUBSTITUTE($AA5,"{",CHAR(160),IM$1)),FIND(CHAR(160),SUBSTITUTE($AA5,"}",CHAR(160),IM$1))-FIND(CHAR(160),SUBSTITUTE($AA5,"{",CHAR(160),IM$1))+1),"") -> {Primary heating type} | IN5: =IFERROR(MID($AA5,FIND(CHAR(160),SUBSTITUTE($AA5,"{",CHAR(160),IN$1)),FIND(CHAR(160),SUBSTITUTE($AA5,"}",CHAR(160),IN$1))-FIND(CHAR(160),SUBSTITUTE($AA5,"{",CHAR(160),IN$1))+1),"") -> {Primary heating type} | IO5: =IFERROR(MID($AB5,FIND(CHAR(160),SUBSTITUTE($AB5,"{",CHAR(160),IO$1)),FIND(CHAR(160),SUBSTITUTE($AB5,"}",CHAR(160),IO$1))-FIND(CHAR(160),SUBSTITUTE($AB5,"{",CHAR(160),IO$1))+1),"") ->  | IP5: =IFERROR(MID($AB5,FIND(CHAR(160),SUBSTITUTE($AB5,"{",CHAR(160),IP$1)),FIND(CHAR(160),SUBSTITUTE($AB5,"}",CHAR(160),IP$1))-FIND(CHAR(160),SUBSTITUTE($AB5,"{",CHAR(160),IP$1))+1),"") ->  | IQ5: =IFERROR(MID($AB5,FIND(CHAR(160),SUBSTITUTE($AB5,"{",CHAR(160),IQ$1)),FIND(CHAR(160),SUBSTITUTE($AB5,"}",CHAR(160),IQ$1))-FIND(CHAR(160),SUBSTITUTE($AB5,"{",CHAR(160),IQ$1))+1),"") ->  | IR5: =IFERROR(MID($AB5,FIND(CHAR(160),SUBSTITUTE($AB5,"{",CHAR(160),IR$1)),FIND(CHAR(160),SUBSTITUTE($AB5,"}",CHAR(160),IR$1))-FIND(CHAR(160),SUBSTITUTE($AB5,"{",CHAR(160),IR$1))+1),"") ->  | IS5: =IFERROR(MID($AB5,FIND(CHAR(160),SUBSTITUTE($AB5,"{",CHAR(160),IS$1)),FIND(CHAR(160),SUBSTITUTE($AB5,"}",CHAR(160),IS$1))-FIND(CHAR(160),SUBSTITUTE($AB5,"{",CHAR(160),IS$1))+1),"") ->  | IT5: =IFERROR(MID($AB5,FIND(CHAR(160),SUBSTITUTE($AB5,"{",CHAR(160),IT$1)),FIND(CHAR(160),SUBSTITUTE($AB5,"}",CHAR(160),IT$1))-FIND(CHAR(160),SUBSTITUTE($AB5,"{",CHAR(160),IT$1))+1),"") ->  | IU5: =IFERROR(MID($AB5,FIND(CHAR(160),SUBSTITUTE($AB5,"{",CHAR(160),IU$1)),FIND(CHAR(160),SUBSTITUTE($AB5,"}",CHAR(160),IU$1))-FIND(CHAR(160),SUBSTITUTE($AB5,"{",CHAR(160),IU$1))+1),"") ->  | IV5: =IFERROR(MID($AB5,FIND(CHAR(160),SUBSTITUTE($AB5,"{",CHAR(160),IV$1)),FIND(CHAR(160),SUBSTITUTE($AB5,"}",CHAR(160),IV$1))-FIND(CHAR(160),SUBSTITUTE($AB5,"{",CHAR(160),IV$1))+1),"") ->  | IW5: =IFERROR(MID($AB5,FIND(CHAR(160),SUBSTITUTE($AB5,"{",CHAR(160),IW$1)),FIND(CHAR(160),SUBSTITUTE($AB5,"}",CHAR(160),IW$1))-FIND(CHAR(160),SUBSTITUTE($AB5,"{",CHAR(160),IW$1))+1),"") ->  | IX5: =IFERROR(MID($AB5,FIND(CHAR(160),SUBSTITUTE($AB5,"{",CHAR(160),IX$1)),FIND(CHAR(160),SUBSTITUTE($AB5,"}",CHAR(160),IX$1))-FIND(CHAR(160),SUBSTITUTE($AB5,"{",CHAR(160),IX$1))+1),"") ->  | IZ5: =10-COUNTIF(DU5:ED5,"") -> 3
A6: Affordable Heat Initiative - Heat Pumps | B6: MiniSplit HP LIHEAP | C6: LCHL | D6: 2021-07-01 | E6: 2022-06-30 | F6: Calculated | G6: {Cost}*{Measure:Quantity} | H6: 0 | I6: Calculated | J6: 2000.00*{Measure:Quantity} | K6: 2000 | L6: 2021-07-01 | M6: 2022-06-30 | N6: Calculated | O6: if({Primary heating type}=6,5379,if({Primary heating type}=0,-2581.54,-2744)) | U6: if({Primary heating type}=6,1.046,if({Primary heating type}=0,-0.562,-0.595)) | V6: 0.031 | W6: 10*if({Primary heating type}=1,1,if({Primary heating type}=0,0,0))*31.72 | X6: if({Primary heating type}=2,1,if({Primary heating type}=0,0.06,0))*31.72 | Y6: if({Primary heating type}=3,1,if({Primary heating type}=0,0.79,0))*31.72 | Z6: if({Primary heating type}=4,1,if({Primary heating type}=0,0.06,0))*31.72 | AA6: if({Primary heating type}=5,1,if({Primary heating type}=0,0.07,0))*31.72 | AB6: 0 | AC6: 2019-07-01 | AD6: 2022-06-30 | AE6: 18 | AF6: 1 | AG6: 1 | AH6: 0.373 | AI6: 0.528 | AJ6: 0.053 | AK6: 0.046 | AL6: 1 | AM6: 1 | AN6: 1 | AO6: 0 | AP6: 0 | AR6: =DU6 -> {Cost} | AS6: 2500 | AT6: =DV6 -> {Measure:Quantity} | AU6: 1 | AV6: =DW6 -> {Primary heating type} | AW6: 0 | AX6: =DX6 ->  | AZ6: =DY6 ->  | BB6: =DZ6 ->  | BD6: =EA6 ->  | BF6: =EB6 ->  | BH6: =EC6 ->  | BJ6: =ED6 ->  | BL6: =IF(AW6=6,5379,IF(AW6=0,-2581.54,-2744)) -> -2581.54 | BM6: 0 | BN6: 0 | BO6: 0 | BP6: 0 | BQ6: 0 | BR6: =IF(AW6=6,1.046,IF(AW6=0,-0.562,-0.595)) -> -0.562 | BS6: =0.031 -> 0.031 | BT6: =10*IF(AW6=1,1,IF(AW6=0,0,0))*31.72 -> 0 | BU6: =IF(AW6=2,1,IF(AW6=0,0.06,0))*31.72 -> 1.9032 | BV6: =IF(AW6=3,1,IF(AW6=0,0.79,0))*31.72 -> 25.0588 | BW6: =IF(AW6=4,1,IF(AW6=0,0.06,0))*31.72 -> 1.9032 | BX6: =IF(AW6=5,1,IF(AW6=0,0.07,0))*31.72 -> 2.2204 | BY6: =0 -> 0 | CA6: Res | CB6: Default DR | CC6: =Benefits(BL6,BR6,BS6,BT6,BU6,BV6,BW6,BX6,BY6,BZ6,AE6,AH6,AI6,AJ6,AK6,AL6,AM6,AN6,AO6,AP6,CA6,CB6) -> -4060.115677 | CD6: -2378.416226 | CE6: 0 | CF6: 12106.48006 | CG6: 1072.507394 | CH6: 1289.656388 | CI6: 684.8035401 | CJ6: 0 | CK6: 0 | CL6: =SUMPRODUCT(CC6:CK6,--(CC6:CK6>0)) -> 15153.44739 | CM6: =-SUMPRODUCT(CC6:CK6,--(CC6:CK6<0)) -> 6438.531904 | CO6: =AS6*AU6 -> 2500 | CR6: =CM6+CO6 -> 8938.531904 | CS6: =IF(NetOrGross="Net",(1-AO6+AP6),1) -> 1 | CT6: =(SUMPRODUCT(CC6:CJ6,--(CC6:CJ6>0))+CN6)*CS6/((-SUMPRODUCT(CC6:CJ6,--(CC6:CJ6<0))+MAX(CO6,CV6)+CP6+CQ6)*CS6+IF(FRIncentives="Yes",CV6*(1-CS6),0)) -> 1.695294882 | CU6: 1 | CV6: =2000*AU6 -> 2000 | CX6: Electric | CY6: y | CZ6: 1 | DA6: =IF(F6="Manual Entry","Manual",IF(G6="",0,"X="&SUBSTITUTE(SUBSTITUTE(SUBSTITUTE(SUBSTITUTE(SUBSTITUTE(SUBSTITUTE(SUBSTITUTE(SUBSTITUTE(SUBSTITUTE(SUBSTITUTE(SUBSTITUTE(SUBSTITUTE(G6,$ED6,$ED$2&ROW($ED6)),$EC6,$EC$2&ROW($EC6)),$EB6,$EB$2&ROW($EB6)),$EA6,$EA$2&ROW($EA6)),$DZ6,$DZ$2&ROW($DZ6)),$DY6,$DY$2&ROW($DY6)),$DX6,$DX$2&ROW($DX6)),$DW6,$DW$2&ROW($DW6)),$DV6,$DV$2&ROW($DV6)),$DU6,$DU$2&ROW($DU6)),$DT6,$DT$2&ROW($DT6)),$DS6,$DS$2&ROW($DS6)))) -> X=AS6*AU6 | DB6: =IF(I6="Manual Entry","Manual",IF(J6="",0,"X="&SUBSTITUTE(SUBSTITUTE(SUBSTITUTE(SUBSTITUTE(SUBSTITUTE(SUBSTITUTE(SUBSTITUTE(SUBSTITUTE(SUBSTITUTE(SUBSTITUTE(SUBSTITUTE(SUBSTITUTE(J6,$ED6,$ED$2&ROW($ED6)),$EC6,$EC$2&ROW($EC6)),$EB6,$EB$2&ROW($EB6)),$EA6,$EA$2&ROW($EA6)),$DZ6,$DZ$2&ROW($DZ6)),$DY6,$DY$2&ROW($DY6)),$DX6,$DX$2&ROW($DX6)),$DW6,$DW$2&ROW($DW6)),$DV6,$DV$2&ROW($DV6)),$DU6,$DU$2&ROW($DU6)),$DT6,$DT$2&ROW($DT6)),$DS6,$DS$2&ROW($DS6)))) -> X=2000.00*AU6 | DC6: =IF(O6="",0,"X="&SUBSTITUTE(SUBSTITUTE(SUBSTITUTE(SUBSTITUTE(SUBSTITUTE(SUBSTITUTE(SUBSTITUTE(SUBSTITUTE(SUBSTITUTE(SUBSTITUTE(SUBSTITUTE(SUBSTITUTE(O6,$ED6,$ED$2&ROW($ED6)),$EC6,$EC$2&ROW($EC6)),$EB6,$EB$2&ROW($EB6)),$EA6,$EA$2&ROW($EA6)),$DZ6,$DZ$2&ROW($DZ6)),$DY6,$DY$2&ROW($DY6)),$DX6,$DX$2&ROW($DX6)),$DW6,$DW$2&ROW($DW6)),$DV6,$DV$2&ROW($DV6)),$DU6,$DU$2&ROW($DU6)),$DT6,$DT$2&ROW($DT6)),$DS6,$DS$2&ROW($DS6))) -> X=if(AW6=6,5379,if(AW6=0,-2581.54,-2744)) | DD6: =IF(P6="",0,"X="&SUBSTITUTE(SUBSTITUTE(SUBSTITUTE(SUBSTITUTE(SUBSTITUTE(SUBSTITUTE(SUBSTITUTE(SUBSTITUTE(SUBSTITUTE(SUBSTITUTE(SUBSTITUTE(SUBSTITUTE(P6,$ED6,$ED$2&ROW($ED6)),$EC6,$EC$2&ROW($EC6)),$EB6,$EB$2&ROW($EB6)),$EA6,$EA$2&ROW($EA6)),$DZ6,$DZ$2&ROW($DZ6)),$DY6,$DY$2&ROW($DY6)),$DX6,$DX$2&ROW($DX6)),$DW6,$DW$2&ROW($DW6)),$DV6,$DV$2&ROW($DV6)),$DU6,$DU$2&ROW($DU6)),$DT6,$DT$2&ROW($DT6)),$DS6,$DS$2&ROW($DS6))) -> 0 | DE6: =IF(Q6="",0,"X="&SUBSTITUTE(SUBSTITUTE(SUBSTITUTE(SUBSTITUTE(SUBSTITUTE(SUBSTITUTE(SUBSTITUTE(SUBSTITUTE(SUBSTITUTE(SUBSTITUTE(SUBSTITUTE(SUBSTITUTE(Q6,$ED6,$ED$2&ROW($ED6)),$EC6,$EC$2&ROW($EC6)),$EB6,$EB$2&ROW($EB6)),$EA6,$EA$2&ROW($EA6)),$DZ6,$DZ$2&ROW($DZ6)),$DY6,$DY$2&ROW($DY6)),$DX6,$DX$2&ROW($DX6)),$DW6,$DW$2&ROW($DW6)),$DV6,$DV$2&ROW($DV6)),$DU6,$DU$2&ROW($DU6)),$DT6,$DT$2&ROW($DT6)),$DS6,$DS$2&ROW($DS6))) -> 0 | DF6: =IF(R6="",0,"X="&SUBSTITUTE(SUBSTITUTE(SUBSTITUTE(SUBSTITUTE(SUBSTITUTE(SUBSTITUTE(SUBSTITUTE(SUBSTITUTE(SUBSTITUTE(SUBSTITUTE(SUBSTITUTE(SUBSTITUTE(R6,$ED6,$ED$2&ROW($ED6)),$EC6,$EC$2&ROW($EC6)),$EB6,$EB$2&ROW($EB6)),$EA6,$EA$2&ROW($EA6)),$DZ6,$DZ$2&ROW($DZ6)),$DY6,$DY$2&ROW($DY6)),$DX6,$DX$2&ROW($DX6)),$DW6,$DW$2&ROW($DW6)),$DV6,$DV$2&ROW($DV6)),$DU6,$DU$2&ROW($DU6)),$DT6,$DT$2&ROW($DT6)),$DS6,$DS$2&ROW($DS6))) -> 0 | DG6: =IF(S6="",0,"X="&SUBSTITUTE(SUBSTITUTE(SUBSTITUTE(SUBSTITUTE(SUBSTITUTE(SUBSTITUTE(SUBSTITUTE(SUBSTITUTE(SUBSTITUTE(SUBSTITUTE(SUBSTITUTE(SUBSTITUTE(S6,$ED6,$ED$2&ROW($ED6)),$EC6,$EC$2&ROW($EC6)),$EB6,$EB$2&ROW($EB6)),$EA6,$EA$2&ROW($EA6)),$DZ6,$DZ$2&ROW($DZ6)),$DY6,$DY$2&ROW($DY6)),$DX6,$DX$2&ROW($DX6)),$DW6,$DW$2&ROW($DW6)),$DV6,$DV$2&ROW($DV6)),$DU6,$DU$2&ROW($DU6)),$DT6,$DT$2&ROW($DT6)),$DS6,$DS$2&ROW($DS6))) -> 0 | DH6: =IF(T6="",0,"X="&SUBSTITUTE(SUBSTITUTE(SUBSTITUTE(SUBSTITUTE(SUBSTITUTE(SUBSTITUTE(SUBSTITUTE(SUBSTITUTE(SUBSTITUTE(SUBSTITUTE(SUBSTITUTE(SUBSTITUTE(T6,$ED6,$ED$2&ROW($ED6)),$EC6,$EC$2&ROW($EC6)),$EB6,$EB$2&ROW($EB6)),$EA6,$EA$2&ROW($EA6)),$DZ6,$DZ$2&ROW($DZ6)),$DY6,$DY$2&ROW($DY6)),$DX6,$DX$2&ROW($DX6)),$DW6,$DW$2&ROW($DW6)),$DV6,$DV$2&ROW($DV6)),$DU6,$DU$2&ROW($DU6)),$DT6,$DT$2&ROW($DT6)),$DS6,$DS$2&ROW($DS6))) -> 0 | DI6: =IF(U6="",0,"X="&SUBSTITUTE(SUBSTITUTE(SUBSTITUTE(SUBSTITUTE(SUBSTITUTE(SUBSTITUTE(SUBSTITUTE(SUBSTITUTE(SUBSTITUTE(SUBSTITUTE(SUBSTITUTE(SUBSTITUTE(U6,$ED6,$ED$2&ROW($ED6)),$EC6,$EC$2&ROW($EC6)),$EB6,$EB$2&ROW($EB6)),$EA6,$EA$2&ROW($EA6)),$DZ6,$DZ$2&ROW($DZ6)),$DY6,$DY$2&ROW($DY6)),$DX6,$DX$2&ROW($DX6)),$DW6,$DW$2&ROW($DW6)),$DV6,$DV$2&ROW($DV6)),$DU6,$DU$2&ROW($DU6)),$DT6,$DT$2&ROW($DT6)),$DS6,$DS$2&ROW($DS6))) -> X=if(AW6=6,1.046,if(AW6=0,-0.562,-0.595)) | DJ6: =IF(V6="",0,"X="&SUBSTITUTE(SUBSTITUTE(SUBSTITUTE(SUBSTITUTE(SUBSTITUTE(SUBSTITUTE(SUBSTITUTE(SUBSTITUTE(SUBSTITUTE(SUBSTITUTE(SUBSTITUTE(SUBSTITUTE(V6,$ED6,$ED$2&ROW($ED6)),$EC6,$EC$2&ROW($EC6)),$EB6,$EB$2&ROW($EB6)),$EA6,$EA$2&ROW($EA6)),$DZ6,$DZ$2&ROW($DZ6)),$DY6,$DY$2&ROW($DY6)),$DX6,$DX$2&ROW($DX6)),$DW6,$DW$2&ROW($DW6)),$DV6,$DV$2&ROW($DV6)),$DU6,$DU$2&ROW($DU6)),$DT6,$DT$2&ROW($DT6)),$DS6,$DS$2&ROW($DS6))) -> X=0.031 | DK6: =IF(W6="",0,"X="&SUBSTITUTE(SUBSTITUTE(SUBSTITUTE(SUBSTITUTE(SUBSTITUTE(SUBSTITUTE(SUBSTITUTE(SUBSTITUTE(SUBSTITUTE(SUBSTITUTE(SUBSTITUTE(SUBSTITUTE(W6,$ED6,$ED$2&ROW($ED6)),$EC6,$EC$2&ROW($EC6)),$EB6,$EB$2&ROW($EB6)),$EA6,$EA$2&ROW($EA6)),$DZ6,$DZ$2&ROW($DZ6)),$DY6,$DY$2&ROW($DY6)),$DX6,$DX$2&ROW($DX6)),$DW6,$DW$2&ROW($DW6)),$DV6,$DV$2&ROW($DV6)),$DU6,$DU$2&ROW($DU6)),$DT6,$DT$2&ROW($DT6)),$DS6,$DS$2&ROW($DS6))) -> X=10*if(AW6=1,1,if(AW6=0,0,0))*31.72 | DL6: =IF(X6="",0,"X="&SUBSTITUTE(SUBSTITUTE(SUBSTITUTE(SUBSTITUTE(SUBSTITUTE(SUBSTITUTE(SUBSTITUTE(SUBSTITUTE(SUBSTITUTE(SUBSTITUTE(SUBSTITUTE(SUBSTITUTE(X6,$ED6,$ED$2&ROW($ED6)),$EC6,$EC$2&ROW($EC6)),$EB6,$EB$2&ROW($EB6)),$EA6,$EA$2&ROW($EA6)),$DZ6,$DZ$2&ROW($DZ6)),$DY6,$DY$2&ROW($DY6)),$DX6,$DX$2&ROW($DX6)),$DW6,$DW$2&ROW($DW6)),$DV6,$DV$2&ROW($DV6)),$DU6,$DU$2&ROW($DU6)),$DT6,$DT$2&ROW($DT6)),$DS6,$DS$2&ROW($DS6))) -> X=if(AW6=2,1,if(AW6=0,0.06,0))*31.72 | DM6: =IF(Y6="",0,"X="&SUBSTITUTE(SUBSTITUTE(SUBSTITUTE(SUBSTITUTE(SUBSTITUTE(SUBSTITUTE(SUBSTITUTE(SUBSTITUTE(SUBSTITUTE(SUBSTITUTE(SUBSTITUTE(SUBSTITUTE(Y6,$ED6,$ED$2&ROW($ED6)),$EC6,$EC$2&ROW($EC6)),$EB6,$EB$2&ROW($EB6)),$EA6,$EA$2&ROW($EA6)),$DZ6,$DZ$2&ROW($DZ6)),$DY6,$DY$2&ROW($DY6)),$DX6,$DX$2&ROW($DX6)),$DW6,$DW$2&ROW($DW6)),$DV6,$DV$2&ROW($DV6)),$DU6,$DU$2&ROW($DU6)),$DT6,$DT$2&ROW($DT6)),$DS6,$DS$2&ROW($DS6))) -> X=if(AW6=3,1,if(AW6=0,0.79,0))*31.72 | DN6: =IF(Z6="",0,"X="&SUBSTITUTE(SUBSTITUTE(SUBSTITUTE(SUBSTITUTE(SUBSTITUTE(SUBSTITUTE(SUBSTITUTE(SUBSTITUTE(SUBSTITUTE(SUBSTITUTE(SUBSTITUTE(SUBSTITUTE(Z6,$ED6,$ED$2&ROW($ED6)),$EC6,$EC$2&ROW($EC6)),$EB6,$EB$2&ROW($EB6)),$EA6,$EA$2&ROW($EA6)),$DZ6,$DZ$2&ROW($DZ6)),$DY6,$DY$2&ROW($DY6)),$DX6,$DX$2&ROW($DX6)),$DW6,$DW$2&ROW($DW6)),$DV6,$DV$2&ROW($DV6)),$DU6,$DU$2&ROW($DU6)),$DT6,$DT$2&ROW($DT6)),$DS6,$DS$2&ROW($DS6))) -> X=if(AW6=4,1,if(AW6=0,0.06,0))*31.72 | DO6: =IF(AA6="",0,"X="&SUBSTITUTE(SUBSTITUTE(SUBSTITUTE(SUBSTITUTE(SUBSTITUTE(SUBSTITUTE(SUBSTITUTE(SUBSTITUTE(SUBSTITUTE(SUBSTITUTE(SUBSTITUTE(SUBSTITUTE(AA6,$ED6,$ED$2&ROW($ED6)),$EC6,$EC$2&ROW($EC6)),$EB6,$EB$2&ROW($EB6)),$EA6,$EA$2&ROW($EA6)),$DZ6,$DZ$2&ROW($DZ6)),$DY6,$DY$2&ROW($DY6)),$DX6,$DX$2&ROW($DX6)),$DW6,$DW$2&ROW($DW6)),$DV6,$DV$2&ROW($DV6)),$DU6,$DU$2&ROW($DU6)),$DT6,$DT$2&ROW($DT6)),$DS6,$DS$2&ROW($DS6))) -> X=if(AW6=5,1,if(AW6=0,0.07,0))*31.72 | DP6: =IF(AB6="",0,"X="&SUBSTITUTE(SUBSTITUTE(SUBSTITUTE(SUBSTITUTE(SUBSTITUTE(SUBSTITUTE(SUBSTITUTE(SUBSTITUTE(SUBSTITUTE(SUBSTITUTE(SUBSTITUTE(SUBSTITUTE(AB6,$ED6,$ED$2&ROW($ED6)),$EC6,$EC$2&ROW($EC6)),$EB6,$EB$2&ROW($EB6)),$EA6,$EA$2&ROW($EA6)),$DZ6,$DZ$2&ROW($DZ6)),$DY6,$DY$2&ROW($DY6)),$DX6,$DX$2&ROW($DX6)),$DW6,$DW$2&ROW($DW6)),$DV6,$DV$2&ROW($DV6)),$DU6,$DU$2&ROW($DU6)),$DT6,$DT$2&ROW($DT6)),$DS6,$DS$2&ROW($DS6))) -> X=0 | DS6: {Factor:WinterCF} | DT6: {Factor:SummerCF} | DU6: =IFERROR(INDEX($EG6:$IV6,MATCH(0,COUNTIF($DR6:DT6,$EG6:$IV6),0)),"") -> {Cost} | DV6: =IFERROR(INDEX($EG6:$IV6,MATCH(0,COUNTIF($DR6:DU6,$EG6:$IV6),0)),"") -> {Measure:Quantity} | DW6: =IFERROR(INDEX($EG6:$IV6,MATCH(0,COUNTIF($DR6:DV6,$EG6:$IV6),0)),"") -> {Primary heating type} | DX6: =IFERROR(INDEX($EG6:$IV6,MATCH(0,COUNTIF($DR6:DW6,$EG6:$IV6),0)),"") ->  | DY6: =IFERROR(INDEX($EG6:$IV6,MATCH(0,COUNTIF($DR6:DX6,$EG6:$IV6),0)),"") ->  | DZ6: =IFERROR(INDEX($EG6:$IV6,MATCH(0,COUNTIF($DR6:DY6,$EG6:$IV6),0)),"") ->  | EA6: =IFERROR(INDEX($EG6:$IV6,MATCH(0,COUNTIF($DR6:DZ6,$EG6:$IV6),0)),"") ->  | EB6: =IFERROR(INDEX($EG6:$IV6,MATCH(0,COUNTIF($DR6:EA6,$EG6:$IV6),0)),"") ->  | EC6: =IFERROR(INDEX($EG6:$IV6,MATCH(0,COUNTIF($DR6:EB6,$EG6:$IV6),0)),"") ->  | ED6: =IFERROR(INDEX($EG6:$IV6,MATCH(0,COUNTIF($DR6:EC6,$EG6:$IV6),0)),"") ->  | EG6: =IFERROR(MID($G6,FIND(CHAR(160),SUBSTITUTE($G6,"{",CHAR(160),EG$1)),FIND(CHAR(160),SUBSTITUTE($G6,"}",CHAR(160),EG$1))-FIND(CHAR(160),SUBSTITUTE($G6,"{",CHAR(160),EG$1))+1),"") -> {Cost} | EH6: =IFERROR(MID($G6,FIND(CHAR(160),SUBSTITUTE($G6,"{",CHAR(160),EH$1)),FIND(CHAR(160),SUBSTITUTE($G6,"}",CHAR(160),EH$1))-FIND(CHAR(160),SUBSTITUTE($G6,"{",CHAR(160),EH$1))+1),"") -> {Measure:Quantity} | EI6: =IFERROR(MID($G6,FIND(CHAR(160),SUBSTITUTE($G6,"{",CHAR(160),EI$1)),FIND(CHAR(160),SUBSTITUTE($G6,"}",CHAR(160),EI$1))-FIND(CHAR(160),SUBSTITUTE($G6,"{",CHAR(160),EI$1))+1),"") ->  | EJ6: =IFERROR(MID($G6,FIND(CHAR(160),SUBSTITUTE($G6,"{",CHAR(160),EJ$1)),FIND(CHAR(160),SUBSTITUTE($G6,"}",CHAR(160),EJ$1))-FIND(CHAR(160),SUBSTITUTE($G6,"{",CHAR(160),EJ$1))+1),"") ->  | EK6: =IFERROR(MID($G6,FIND(CHAR(160),SUBSTITUTE($G6,"{",CHAR(160),EK$1)),FIND(CHAR(160),SUBSTITUTE($G6,"}",CHAR(160),EK$1))-FIND(CHAR(160),SUBSTITUTE($G6,"{",CHAR(160),EK$1))+1),"") ->  | EL6: =IFERROR(MID($G6,FIND(CHAR(160),SUBSTITUTE($G6,"{",CHAR(160),EL$1)),FIND(CHAR(160),SUBSTITUTE($G6,"}",CHAR(160),EL$1))-FIND(CHAR(160),SUBSTITUTE($G6,"{",CHAR(160),EL$1))+1),"") ->  | EM6: =IFERROR(MID($G6,FIND(CHAR(160),SUBSTITUTE($G6,"{",CHAR(160),EM$1)),FIND(CHAR(160),SUBSTITUTE($G6,"}",CHAR(160),EM$1))-FIND(CHAR(160),SUBSTITUTE($G6,"{",CHAR(160),EM$1))+1),"") ->  | EN6: =IFERROR(MID($G6,FIND(CHAR(160),SUBSTITUTE($G6,"{",CHAR(160),EN$1)),FIND(CHAR(160),SUBSTITUTE($G6,"}",CHAR(160),EN$1))-FIND(CHAR(160),SUBSTITUTE($G6,"{",CHAR(160),EN$1))+1),"") ->  | EO6: =IFERROR(MID($G6,FIND(CHAR(160),SUBSTITUTE($G6,"{",CHAR(160),EO$1)),FIND(CHAR(160),SUBSTITUTE($G6,"}",CHAR(160),EO$1))-FIND(CHAR(160),SUBSTITUTE($G6,"{",CHAR(160),EO$1))+1),"") ->  | EP6: =IFERROR(MID($G6,FIND(CHAR(160),SUBSTITUTE($G6,"{",CHAR(160),EP$1)),FIND(CHAR(160),SUBSTITUTE($G6,"}",CHAR(160),EP$1))-FIND(CHAR(160),SUBSTITUTE($G6,"{",CHAR(160),EP$1))+1),"") ->  | EQ6: =IFERROR(MID($J6,FIND(CHAR(160),SUBSTITUTE($J6,"{",CHAR(160),EQ$1)),FIND(CHAR(160),SUBSTITUTE($J6,"}",CHAR(160),EQ$1))-FIND(CHAR(160),SUBSTITUTE($J6,"{",CHAR(160),EQ$1))+1),"") -> {Measure:Quantity} | ER6: =IFERROR(MID($J6,FIND(CHAR(160),SUBSTITUTE($J6,"{",CHAR(160),ER$1)),FIND(CHAR(160),SUBSTITUTE($J6,"}",CHAR(160),ER$1))-FIND(CHAR(160),SUBSTITUTE($J6,"{",CHAR(160),ER$1))+1),"") ->  | ES6: =IFERROR(MID($J6,FIND(CHAR(160),SUBSTITUTE($J6,"{",CHAR(160),ES$1)),FIND(CHAR(160),SUBSTITUTE($J6,"}",CHAR(160),ES$1))-FIND(CHAR(160),SUBSTITUTE($J6,"{",CHAR(160),ES$1))+1),"") ->  | ET6: =IFERROR(MID($J6,FIND(CHAR(160),SUBSTITUTE($J6,"{",CHAR(160),ET$1)),FIND(CHAR(160),SUBSTITUTE($J6,"}",CHAR(160),ET$1))-FIND(CHAR(160),SUBSTITUTE($J6,"{",CHAR(160),ET$1))+1),"") ->  | EU6: =IFERROR(MID($J6,FIND(CHAR(160),SUBSTITUTE($J6,"{",CHAR(160),EU$1)),FIND(CHAR(160),SUBSTITUTE($J6,"}",CHAR(160),EU$1))-FIND(CHAR(160),SUBSTITUTE($J6,"{",CHAR(160),EU$1))+1),"") ->  | EV6: =IFERROR(MID($J6,FIND(CHAR(160),SUBSTITUTE($J6,"{",CHAR(160),EV$1)),FIND(CHAR(160),SUBSTITUTE($J6,"}",CHAR(160),EV$1))-FIND(CHAR(160),SUBSTITUTE($J6,"{",CHAR(160),EV$1))+1),"") ->  | EW6: =IFERROR(MID($J6,FIND(CHAR(160),SUBSTITUTE($J6,"{",CHAR(160),EW$1)),FIND(CHAR(160),SUBSTITUTE($J6,"}",CHAR(160),EW$1))-FIND(CHAR(160),SUBSTITUTE($J6,"{",CHAR(160),EW$1))+1),"") ->  | EX6: =IFERROR(MID($J6,FIND(CHAR(160),SUBSTITUTE($J6,"{",CHAR(160),EX$1)),FIND(CHAR(160),SUBSTITUTE($J6,"}",CHAR(160),EX$1))-FIND(CHAR(160),SUBSTITUTE($J6,"{",CHAR(160),EX$1))+1),"") ->  | EY6: =IFERROR(MID($J6,FIND(CHAR(160),SUBSTITUTE($J6,"{",CHAR(160),EY$1)),FIND(CHAR(160),SUBSTITUTE($J6,"}",CHAR(160),EY$1))-FIND(CHAR(160),SUBSTITUTE($J6,"{",CHAR(160),EY$1))+1),"") ->  | EZ6: =IFERROR(MID($J6,FIND(CHAR(160),SUBSTITUTE($J6,"{",CHAR(160),EZ$1)),FIND(CHAR(160),SUBSTITUTE($J6,"}",CHAR(160),EZ$1))-FIND(CHAR(160),SUBSTITUTE($J6,"{",CHAR(160),EZ$1))+1),"") ->  | FA6: =IFERROR(MID($J6,FIND(CHAR(160),SUBSTITUTE($J6,"{",CHAR(160),FA$1)),FIND(CHAR(160),SUBSTITUTE($J6,"}",CHAR(160),FA$1))-FIND(CHAR(160),SUBSTITUTE($J6,"{",CHAR(160),FA$1))+1),"") -> {Measure:Quantity} | FB6: =IFERROR(MID($J6,FIND(CHAR(160),SUBSTITUTE($J6,"{",CHAR(160),FB$1)),FIND(CHAR(160),SUBSTITUTE($J6,"}",CHAR(160),FB$1))-FIND(CHAR(160),SUBSTITUTE($J6,"{",CHAR(160),FB$1))+1),"") ->  | FC6: =IFERROR(MID($O6,FIND(CHAR(160),SUBSTITUTE($O6,"{",CHAR(160),FC$1)),FIND(CHAR(160),SUBSTITUTE($O6,"}",CHAR(160),FC$1))-FIND(CHAR(160),SUBSTITUTE($O6,"{",CHAR(160),FC$1))+1),"") ->  | FD6: =IFERROR(MID($O6,FIND(CHAR(160),SUBSTITUTE($O6,"{",CHAR(160),FD$1)),FIND(CHAR(160),SUBSTITUTE($O6,"}",CHAR(160),FD$1))-FIND(CHAR(160),SUBSTITUTE($O6,"{",CHAR(160),FD$1))+1),"") ->  | FE6: =IFERROR(MID($O6,FIND(CHAR(160),SUBSTITUTE($O6,"{",CHAR(160),FE$1)),FIND(CHAR(160),SUBSTITUTE($O6,"}",CHAR(160),FE$1))-FIND(CHAR(160),SUBSTITUTE($O6,"{",CHAR(160),FE$1))+1),"") ->  | FF6: =IFERROR(MID($O6,FIND(CHAR(160),SUBSTITUTE($O6,"{",CHAR(160),FF$1)),FIND(CHAR(160),SUBSTITUTE($O6,"}",CHAR(160),FF$1))-FIND(CHAR(160),SUBSTITUTE($O6,"{",CHAR(160),FF$1))+1),"") ->  | FG6: =IFERROR(MID($O6,FIND(CHAR(160),SUBSTITUTE($O6,"{",CHAR(160),FG$1)),FIND(CHAR(160),SUBSTITUTE($O6,"}",CHAR(160),FG$1))-FIND(CHAR(160),SUBSTITUTE($O6,"{",CHAR(160),FG$1))+1),"") ->  | FH6: =IFERROR(MID($O6,FIND(CHAR(160),SUBSTITUTE($O6,"{",CHAR(160),FH$1)),FIND(CHAR(160),SUBSTITUTE($O6,"}",CHAR(160),FH$1))-FIND(CHAR(160),SUBSTITUTE($O6,"{",CHAR(160),FH$1))+1),"") ->  | FI6: =IFERROR(MID($O6,FIND(CHAR(160),SUBSTITUTE($O6,"{",CHAR(160),FI$1)),FIND(CHAR(160),SUBSTITUTE($O6,"}",CHAR(160),FI$1))-FIND(CHAR(160),SUBSTITUTE($O6,"{",CHAR(160),FI$1))+1),"") ->  | FJ6: =IFERROR(MID($O6,FIND(CHAR(160),SUBSTITUTE($O6,"{",CHAR(160),FJ$1)),FIND(CHAR(160),SUBSTITUTE($O6,"}",CHAR(160),FJ$1))-FIND(CHAR(160),SUBSTITUTE($O6,"{",CHAR(160),FJ$1))+1),"") ->  | FK6: =IFERROR(MID($O6,FIND(CHAR(160),SUBSTITUTE($O6,"{",CHAR(160),FK$1)),FIND(CHAR(160),SUBSTITUTE($O6,"}",CHAR(160),FK$1))-FIND(CHAR(160),SUBSTITUTE($O6,"{",CHAR(160),FK$1))+1),"") -> {Primary heating type} | FL6: =IFERROR(MID($O6,FIND(CHAR(160),SUBSTITUTE($O6,"{",CHAR(160),FL$1)),FIND(CHAR(160),SUBSTITUTE($O6,"}",CHAR(160),FL$1))-FIND(CHAR(160),SUBSTITUTE($O6,"{",CHAR(160),FL$1))+1),"") -> {Primary heating type} | FM6: =IFERROR(MID($R6,FIND(CHAR(160),SUBSTITUTE($R6,"{",CHAR(160),FM$1)),FIND(CHAR(160),SUBSTITUTE($R6,"}",CHAR(160),FM$1))-FIND(CHAR(160),SUBSTITUTE($R6,"{",CHAR(160),FM$1))+1),"") ->  | FN6: =IFERROR(MID($R6,FIND(CHAR(160),SUBSTITUTE($R6,"{",CHAR(160),FN$1)),FIND(CHAR(160),SUBSTITUTE($R6,"}",CHAR(160),FN$1))-FIND(CHAR(160),SUBSTITUTE($R6,"{",CHAR(160),FN$1))+1),"") ->  | FO6: =IFERROR(MID($R6,FIND(CHAR(160),SUBSTITUTE($R6,"{",CHAR(160),FO$1)),FIND(CHAR(160),SUBSTITUTE($R6,"}",CHAR(160),FO$1))-FIND(CHAR(160),SUBSTITUTE($R6,"{",CHAR(160),FO$1))+1),"") ->  | FP6: =IFERROR(MID($R6,FIND(CHAR(160),SUBSTITUTE($R6,"{",CHAR(160),FP$1)),FIND(CHAR(160),SUBSTITUTE($R6,"}",CHAR(160),FP$1))-FIND(CHAR(160),SUBSTITUTE($R6,"{",CHAR(160),FP$1))+1),"") ->  | FQ6: =IFERROR(MID($R6,FIND(CHAR(160),SUBSTITUTE($R6,"{",CHAR(160),FQ$1)),FIND(CHAR(160),SUBSTITUTE($R6,"}",CHAR(160),FQ$1))-FIND(CHAR(160),SUBSTITUTE($R6,"{",CHAR(160),FQ$1))+1),"") ->  | FR6: =IFERROR(MID($R6,FIND(CHAR(160),SUBSTITUTE($R6,"{",CHAR(160),FR$1)),FIND(CHAR(160),SUBSTITUTE($R6,"}",CHAR(160),FR$1))-FIND(CHAR(160),SUBSTITUTE($R6,"{",CHAR(160),FR$1))+1),"") ->  | FS6: =IFERROR(MID($R6,FIND(CHAR(160),SUBSTITUTE($R6,"{",CHAR(160),FS$1)),FIND(CHAR(160),SUBSTITUTE($R6,"}",CHAR(160),FS$1))-FIND(CHAR(160),SUBSTITUTE($R6,"{",CHAR(160),FS$1))+1),"") ->  | FT6: =IFERROR(MID($R6,FIND(CHAR(160),SUBSTITUTE($R6,"{",CHAR(160),FT$1)),FIND(CHAR(160),SUBSTITUTE($R6,"}",CHAR(160),FT$1))-FIND(CHAR(160),SUBSTITUTE($R6,"{",CHAR(160),FT$1))+1),"") ->  | FU6: =IFERROR(MID($R6,FIND(CHAR(160),SUBSTITUTE($R6,"{",CHAR(160),FU$1)),FIND(CHAR(160),SUBSTITUTE($R6,"}",CHAR(160),FU$1))-FIND(CHAR(160),SUBSTITUTE($R6,"{",CHAR(160),FU$1))+1),"") ->  | FV6: =IFERROR(MID($R6,FIND(CHAR(160),SUBSTITUTE($R6,"{",CHAR(160),FV$1)),FIND(CHAR(160),SUBSTITUTE($R6,"}",CHAR(160),FV$1))-FIND(CHAR(160),SUBSTITUTE($R6,"{",CHAR(160),FV$1))+1),"") ->  | FW6: =IFERROR(MID($U6,FIND(CHAR(160),SUBSTITUTE($U6,"{",CHAR(160),FW$1)),FIND(CHAR(160),SUBSTITUTE($U6,"}",CHAR(160),FW$1))-FIND(CHAR(160),SUBSTITUTE($U6,"{",CHAR(160),FW$1))+1),"") ->  | FX6: =IFERROR(MID($U6,FIND(CHAR(160),SUBSTITUTE($U6,"{",CHAR(160),FX$1)),FIND(CHAR(160),SUBSTITUTE($U6,"}",CHAR(160),FX$1))-FIND(CHAR(160),SUBSTITUTE($U6,"{",CHAR(160),FX$1))+1),"") ->  | FY6: =IFERROR(MID($U6,FIND(CHAR(160),SUBSTITUTE($U6,"{",CHAR(160),FY$1)),FIND(CHAR(160),SUBSTITUTE($U6,"}",CHAR(160),FY$1))-FIND(CHAR(160),SUBSTITUTE($U6,"{",CHAR(160),FY$1))+1),"") ->  | FZ6: =IFERROR(MID($U6,FIND(CHAR(160),SUBSTITUTE($U6,"{",CHAR(160),FZ$1)),FIND(CHAR(160),SUBSTITUTE($U6,"}",CHAR(160),FZ$1))-FIND(CHAR(160),SUBSTITUTE($U6,"{",CHAR(160),FZ$1))+1),"") ->  | GA6: =IFERROR(MID($U6,FIND(CHAR(160),SUBSTITUTE($U6,"{",CHAR(160),GA$1)),FIND(CHAR(160),SUBSTITUTE($U6,"}",CHAR(160),GA$1))-FIND(CHAR(160),SUBSTITUTE($U6,"{",CHAR(160),GA$1))+1),"") ->  | GB6: =IFERROR(MID($U6,FIND(CHAR(160),SUBSTITUTE($U6,"{",CHAR(160),GB$1)),FIND(CHAR(160),SUBSTITUTE($U6,"}",CHAR(160),GB$1))-FIND(CHAR(160),SUBSTITUTE($U6,"{",CHAR(160),GB$1))+1),"") ->  | GC6: =IFERROR(MID($U6,FIND(CHAR(160),SUBSTITUTE($U6,"{",CHAR(160),GC$1)),FIND(CHAR(160),SUBSTITUTE($U6,"}",CHAR(160),GC$1))-FIND(CHAR(160),SUBSTITUTE($U6,"{",CHAR(160),GC$1))+1),"") ->  | GD6: =IFERROR(MID($U6,FIND(CHAR(160),SUBSTITUTE($U6,"{",CHAR(160),GD$1)),FIND(CHAR(160),SUBSTITUTE($U6,"}",CHAR(160),GD$1))-FIND(CHAR(160),SUBSTITUTE($U6,"{",CHAR(160),GD$1))+1),"") ->  | GE6: =IFERROR(MID($U6,FIND(CHAR(160),SUBSTITUTE($U6,"{",CHAR(160),GE$1)),FIND(CHAR(160),SUBSTITUTE($U6,"}",CHAR(160),GE$1))-FIND(CHAR(160),SUBSTITUTE($U6,"{",CHAR(160),GE$1))+1),"") -> {Primary heating type} | GF6: =IFERROR(MID($U6,FIND(CHAR(160),SUBSTITUTE($U6,"{",CHAR(160),GF$1)),FIND(CHAR(160),SUBSTITUTE($U6,"}",CHAR(160),GF$1))-FIND(CHAR(160),SUBSTITUTE($U6,"{",CHAR(160),GF$1))+1),"") -> {Primary heating type} | GG6: =IFERROR(MID($V6,FIND(CHAR(160),SUBSTITUTE($V6,"{",CHAR(160),GG$1)),FIND(CHAR(160),SUBSTITUTE($V6,"}",CHAR(160),GG$1))-FIND(CHAR(160),SUBSTITUTE($V6,"{",CHAR(160),GG$1))+1),"") ->  | GH6: =IFERROR(MID($V6,FIND(CHAR(160),SUBSTITUTE($V6,"{",CHAR(160),GH$1)),FIND(CHAR(160),SUBSTITUTE($V6,"}",CHAR(160),GH$1))-FIND(CHAR(160),SUBSTITUTE($V6,"{",CHAR(160),GH$1))+1),"") ->  | GI6: =IFERROR(MID($V6,FIND(CHAR(160),SUBSTITUTE($V6,"{",CHAR(160),GI$1)),FIND(CHAR(160),SUBSTITUTE($V6,"}",CHAR(160),GI$1))-FIND(CHAR(160),SUBSTITUTE($V6,"{",CHAR(160),GI$1))+1),"") ->  | GJ6: =IFERROR(MID($V6,FIND(CHAR(160),SUBSTITUTE($V6,"{",CHAR(160),GJ$1)),FIND(CHAR(160),SUBSTITUTE($V6,"}",CHAR(160),GJ$1))-FIND(CHAR(160),SUBSTITUTE($V6,"{",CHAR(160),GJ$1))+1),"") ->  | GK6: =IFERROR(MID($V6,FIND(CHAR(160),SUBSTITUTE($V6,"{",CHAR(160),GK$1)),FIND(CHAR(160),SUBSTITUTE($V6,"}",CHAR(160),GK$1))-FIND(CHAR(160),SUBSTITUTE($V6,"{",CHAR(160),GK$1))+1),"") ->  | GL6: =IFERROR(MID($V6,FIND(CHAR(160),SUBSTITUTE($V6,"{",CHAR(160),GL$1)),FIND(CHAR(160),SUBSTITUTE($V6,"}",CHAR(160),GL$1))-FIND(CHAR(160),SUBSTITUTE($V6,"{",CHAR(160),GL$1))+1),"") ->  | GM6: =IFERROR(MID($V6,FIND(CHAR(160),SUBSTITUTE($V6,"{",CHAR(160),GM$1)),FIND(CHAR(160),SUBSTITUTE($V6,"}",CHAR(160),GM$1))-FIND(CHAR(160),SUBSTITUTE($V6,"{",CHAR(160),GM$1))+1),"") ->  | GN6: =IFERROR(MID($V6,FIND(CHAR(160),SUBSTITUTE($V6,"{",CHAR(160),GN$1)),FIND(CHAR(160),SUBSTITUTE($V6,"}",CHAR(160),GN$1))-FIND(CHAR(160),SUBSTITUTE($V6,"{",CHAR(160),GN$1))+1),"") ->  | GO6: =IFERROR(MID($V6,FIND(CHAR(160),SUBSTITUTE($V6,"{",CHAR(160),GO$1)),FIND(CHAR(160),SUBSTITUTE($V6,"}",CHAR(160),GO$1))-FIND(CHAR(160),SUBSTITUTE($V6,"{",CHAR(160),GO$1))+1),"") ->  | GP6: =IFERROR(MID($V6,FIND(CHAR(160),SUBSTITUTE($V6,"{",CHAR(160),GP$1)),FIND(CHAR(160),SUBSTITUTE($V6,"}",CHAR(160),GP$1))-FIND(CHAR(160),SUBSTITUTE($V6,"{",CHAR(160),GP$1))+1),"") ->  | GQ6: =IFERROR(MID($W6,FIND(CHAR(160),SUBSTITUTE($W6,"{",CHAR(160),GQ$1)),FIND(CHAR(160),SUBSTITUTE($W6,"}",CHAR(160),GQ$1))-FIND(CHAR(160),SUBSTITUTE($W6,"{",CHAR(160),GQ$1))+1),"") ->  | GR6: =IFERROR(MID($W6,FIND(CHAR(160),SUBSTITUTE($W6,"{",CHAR(160),GR$1)),FIND(CHAR(160),SUBSTITUTE($W6,"}",CHAR(160),GR$1))-FIND(CHAR(160),SUBSTITUTE($W6,"{",CHAR(160),GR$1))+1),"") ->  | GS6: =IFERROR(MID($W6,FIND(CHAR(160),SUBSTITUTE($W6,"{",CHAR(160),GS$1)),FIND(CHAR(160),SUBSTITUTE($W6,"}",CHAR(160),GS$1))-FIND(CHAR(160),SUBSTITUTE($W6,"{",CHAR(160),GS$1))+1),"") ->  | GT6: =IFERROR(MID($W6,FIND(CHAR(160),SUBSTITUTE($W6,"{",CHAR(160),GT$1)),FIND(CHAR(160),SUBSTITUTE($W6,"}",CHAR(160),GT$1))-FIND(CHAR(160),SUBSTITUTE($W6,"{",CHAR(160),GT$1))+1),"") ->  | GU6: =IFERROR(MID($W6,FIND(CHAR(160),SUBSTITUTE($W6,"{",CHAR(160),GU$1)),FIND(CHAR(160),SUBSTITUTE($W6,"}",CHAR(160),GU$1))-FIND(CHAR(160),SUBSTITUTE($W6,"{",CHAR(160),GU$1))+1),"") ->  | GV6: =IFERROR(MID($W6,FIND(CHAR(160),SUBSTITUTE($W6,"{",CHAR(160),GV$1)),FIND(CHAR(160),SUBSTITUTE($W6,"}",CHAR(160),GV$1))-FIND(CHAR(160),SUBSTITUTE($W6,"{",CHAR(160),GV$1))+1),"") ->  | GW6: =IFERROR(MID($W6,FIND(CHAR(160),SUBSTITUTE($W6,"{",CHAR(160),GW$1)),FIND(CHAR(160),SUBSTITUTE($W6,"}",CHAR(160),GW$1))-FIND(CHAR(160),SUBSTITUTE($W6,"{",CHAR(160),GW$1))+1),"") ->  | GX6: =IFERROR(MID($W6,FIND(CHAR(160),SUBSTITUTE($W6,"{",CHAR(160),GX$1)),FIND(CHAR(160),SUBSTITUTE($W6,"}",CHAR(160),GX$1))-FIND(CHAR(160),SUBSTITUTE($W6,"{",CHAR(160),GX$1))+1),"") ->  | GY6: =IFERROR(MID($W6,FIND(CHAR(160),SUBSTITUTE($W6,"{",CHAR(160),GY$1)),FIND(CHAR(160),SUBSTITUTE($W6,"}",CHAR(160),GY$1))-FIND(CHAR(160),SUBSTITUTE($W6,"{",CHAR(160),GY$1))+1),"") -> {Primary heating type} | GZ6: =IFERROR(MID($W6,FIND(CHAR(160),SUBSTITUTE($W6,"{",CHAR(160),GZ$1)),FIND(CHAR(160),SUBSTITUTE($W6,"}",CHAR(160),GZ$1))-FIND(CHAR(160),SUBSTITUTE($W6,"{",CHAR(160),GZ$1))+1),"") -> {Primary heating type} | HA6: =IFERROR(MID($X6,FIND(CHAR(160),SUBSTITUTE($X6,"{",CHAR(160),HA$1)),FIND(CHAR(160),SUBSTITUTE($X6,"}",CHAR(160),HA$1))-FIND(CHAR(160),SUBSTITUTE($X6,"{",CHAR(160),HA$1))+1),"") ->  | HB6: =IFERROR(MID($X6,FIND(CHAR(160),SUBSTITUTE($X6,"{",CHAR(160),HB$1)),FIND(CHAR(160),SUBSTITUTE($X6,"}",CHAR(160),HB$1))-FIND(CHAR(160),SUBSTITUTE($X6,"{",CHAR(160),HB$1))+1),"") ->  | HC6: =IFERROR(MID($X6,FIND(CHAR(160),SUBSTITUTE($X6,"{",CHAR(160),HC$1)),FIND(CHAR(160),SUBSTITUTE($X6,"}",CHAR(160),HC$1))-FIND(CHAR(160),SUBSTITUTE($X6,"{",CHAR(160),HC$1))+1),"") ->  | HD6: =IFERROR(MID($X6,FIND(CHAR(160),SUBSTITUTE($X6,"{",CHAR(160),HD$1)),FIND(CHAR(160),SUBSTITUTE($X6,"}",CHAR(160),HD$1))-FIND(CHAR(160),SUBSTITUTE($X6,"{",CHAR(160),HD$1))+1),"") ->  | HE6: =IFERROR(MID($X6,FIND(CHAR(160),SUBSTITUTE($X6,"{",CHAR(160),HE$1)),FIND(CHAR(160),SUBSTITUTE($X6,"}",CHAR(160),HE$1))-FIND(CHAR(160),SUBSTITUTE($X6,"{",CHAR(160),HE$1))+1),"") ->  | HF6: =IFERROR(MID($X6,FIND(CHAR(160),SUBSTITUTE($X6,"{",CHAR(160),HF$1)),FIND(CHAR(160),SUBSTITUTE($X6,"}",CHAR(160),HF$1))-FIND(CHAR(160),SUBSTITUTE($X6,"{",CHAR(160),HF$1))+1),"") ->  | HG6: =IFERROR(MID($X6,FIND(CHAR(160),SUBSTITUTE($X6,"{",CHAR(160),HG$1)),FIND(CHAR(160),SUBSTITUTE($X6,"}",CHAR(160),HG$1))-FIND(CHAR(160),SUBSTITUTE($X6,"{",CHAR(160),HG$1))+1),"") ->  | HH6: =IFERROR(MID($X6,FIND(CHAR(160),SUBSTITUTE($X6,"{",CHAR(160),HH$1)),FIND(CHAR(160),SUBSTITUTE($X6,"}",CHAR(160),HH$1))-FIND(CHAR(160),SUBSTITUTE($X6,"{",CHAR(160),HH$1))+1),"") ->  | HI6: =IFERROR(MID($X6,FIND(CHAR(160),SUBSTITUTE($X6,"{",CHAR(160),HI$1)),FIND(CHAR(160),SUBSTITUTE($X6,"}",CHAR(160),HI$1))-FIND(CHAR(160),SUBSTITUTE($X6,"{",CHAR(160),HI$1))+1),"") -> {Primary heating type} | HJ6: =IFERROR(MID($X6,FIND(CHAR(160),SUBSTITUTE($X6,"{",CHAR(160),HJ$1)),FIND(CHAR(160),SUBSTITUTE($X6,"}",CHAR(160),HJ$1))-FIND(CHAR(160),SUBSTITUTE($X6,"{",CHAR(160),HJ$1))+1),"") -> {Primary heating type} | HK6: =IFERROR(MID($Y6,FIND(CHAR(160),SUBSTITUTE($Y6,"{",CHAR(160),HK$1)),FIND(CHAR(160),SUBSTITUTE($Y6,"}",CHAR(160),HK$1))-FIND(CHAR(160),SUBSTITUTE($Y6,"{",CHAR(160),HK$1))+1),"") ->  | HL6: =IFERROR(MID($Y6,FIND(CHAR(160),SUBSTITUTE($Y6,"{",CHAR(160),HL$1)),FIND(CHAR(160),SUBSTITUTE($Y6,"}",CHAR(160),HL$1))-FIND(CHAR(160),SUBSTITUTE($Y6,"{",CHAR(160),HL$1))+1),"") ->  | HM6: =IFERROR(MID($Y6,FIND(CHAR(160),SUBSTITUTE($Y6,"{",CHAR(160),HM$1)),FIND(CHAR(160),SUBSTITUTE($Y6,"}",CHAR(160),HM$1))-FIND(CHAR(160),SUBSTITUTE($Y6,"{",CHAR(160),HM$1))+1),"") ->  | HN6: =IFERROR(MID($Y6,FIND(CHAR(160),SUBSTITUTE($Y6,"{",CHAR(160),HN$1)),FIND(CHAR(160),SUBSTITUTE($Y6,"}",CHAR(160),HN$1))-FIND(CHAR(160),SUBSTITUTE($Y6,"{",CHAR(160),HN$1))+1),"") ->  | HO6: =IFERROR(MID($Y6,FIND(CHAR(160),SUBSTITUTE($Y6,"{",CHAR(160),HO$1)),FIND(CHAR(160),SUBSTITUTE($Y6,"}",CHAR(160),HO$1))-FIND(CHAR(160),SUBSTITUTE($Y6,"{",CHAR(160),HO$1))+1),"") ->  | HP6: =IFERROR(MID($Y6,FIND(CHAR(160),SUBSTITUTE($Y6,"{",CHAR(160),HP$1)),FIND(CHAR(160),SUBSTITUTE($Y6,"}",CHAR(160),HP$1))-FIND(CHAR(160),SUBSTITUTE($Y6,"{",CHAR(160),HP$1))+1),"") ->  | HQ6: =IFERROR(MID($Y6,FIND(CHAR(160),SUBSTITUTE($Y6,"{",CHAR(160),HQ$1)),FIND(CHAR(160),SUBSTITUTE($Y6,"}",CHAR(160),HQ$1))-FIND(CHAR(160),SUBSTITUTE($Y6,"{",CHAR(160),HQ$1))+1),"") ->  | HR6: =IFERROR(MID($Y6,FIND(CHAR(160),SUBSTITUTE($Y6,"{",CHAR(160),HR$1)),FIND(CHAR(160),SUBSTITUTE($Y6,"}",CHAR(160),HR$1))-FIND(CHAR(160),SUBSTITUTE($Y6,"{",CHAR(160),HR$1))+1),"") ->  | HS6: =IFERROR(MID($Y6,FIND(CHAR(160),SUBSTITUTE($Y6,"{",CHAR(160),HS$1)),FIND(CHAR(160),SUBSTITUTE($Y6,"}",CHAR(160),HS$1))-FIND(CHAR(160),SUBSTITUTE($Y6,"{",CHAR(160),HS$1))+1),"") -> {Primary heating type} | HT6: =IFERROR(MID($Y6,FIND(CHAR(160),SUBSTITUTE($Y6,"{",CHAR(160),HT$1)),FIND(CHAR(160),SUBSTITUTE($Y6,"}",CHAR(160),HT$1))-FIND(CHAR(160),SUBSTITUTE($Y6,"{",CHAR(160),HT$1))+1),"") -> {Primary heating type} | HU6: =IFERROR(MID($Z6,FIND(CHAR(160),SUBSTITUTE($Z6,"{",CHAR(160),HU$1)),FIND(CHAR(160),SUBSTITUTE($Z6,"}",CHAR(160),HU$1))-FIND(CHAR(160),SUBSTITUTE($Z6,"{",CHAR(160),HU$1))+1),"") ->  | HV6: =IFERROR(MID($Z6,FIND(CHAR(160),SUBSTITUTE($Z6,"{",CHAR(160),HV$1)),FIND(CHAR(160),SUBSTITUTE($Z6,"}",CHAR(160),HV$1))-FIND(CHAR(160),SUBSTITUTE($Z6,"{",CHAR(160),HV$1))+1),"") ->  | HW6: =IFERROR(MID($Z6,FIND(CHAR(160),SUBSTITUTE($Z6,"{",CHAR(160),HW$1)),FIND(CHAR(160),SUBSTITUTE($Z6,"}",CHAR(160),HW$1))-FIND(CHAR(160),SUBSTITUTE($Z6,"{",CHAR(160),HW$1))+1),"") ->  | HX6: =IFERROR(MID($Z6,FIND(CHAR(160),SUBSTITUTE($Z6,"{",CHAR(160),HX$1)),FIND(CHAR(160),SUBSTITUTE($Z6,"}",CHAR(160),HX$1))-FIND(CHAR(160),SUBSTITUTE($Z6,"{",CHAR(160),HX$1))+1),"") ->  | HY6: =IFERROR(MID($Z6,FIND(CHAR(160),SUBSTITUTE($Z6,"{",CHAR(160),HY$1)),FIND(CHAR(160),SUBSTITUTE($Z6,"}",CHAR(160),HY$1))-FIND(CHAR(160),SUBSTITUTE($Z6,"{",CHAR(160),HY$1))+1),"") ->  | HZ6: =IFERROR(MID($Z6,FIND(CHAR(160),SUBSTITUTE($Z6,"{",CHAR(160),HZ$1)),FIND(CHAR(160),SUBSTITUTE($Z6,"}",CHAR(160),HZ$1))-FIND(CHAR(160),SUBSTITUTE($Z6,"{",CHAR(160),HZ$1))+1),"") ->  | IA6: =IFERROR(MID($Z6,FIND(CHAR(160),SUBSTITUTE($Z6,"{",CHAR(160),IA$1)),FIND(CHAR(160),SUBSTITUTE($Z6,"}",CHAR(160),IA$1))-FIND(CHAR(160),SUBSTITUTE($Z6,"{",CHAR(160),IA$1))+1),"") ->  | IB6: =IFERROR(MID($Z6,FIND(CHAR(160),SUBSTITUTE($Z6,"{",CHAR(160),IB$1)),FIND(CHAR(160),SUBSTITUTE($Z6,"}",CHAR(160),IB$1))-FIND(CHAR(160),SUBSTITUTE($Z6,"{",CHAR(160),IB$1))+1),"") ->  | IC6: =IFERROR(MID($Z6,FIND(CHAR(160),SUBSTITUTE($Z6,"{",CHAR(160),IC$1)),FIND(CHAR(160),SUBSTITUTE($Z6,"}",CHAR(160),IC$1))-FIND(CHAR(160),SUBSTITUTE($Z6,"{",CHAR(160),IC$1))+1),"") -> {Primary heating type} | ID6: =IFERROR(MID($Z6,FIND(CHAR(160),SUBSTITUTE($Z6,"{",CHAR(160),ID$1)),FIND(CHAR(160),SUBSTITUTE($Z6,"}",CHAR(160),ID$1))-FIND(CHAR(160),SUBSTITUTE($Z6,"{",CHAR(160),ID$1))+1),"") -> {Primary heating type} | IE6: =IFERROR(MID($AA6,FIND(CHAR(160),SUBSTITUTE($AA6,"{",CHAR(160),IE$1)),FIND(CHAR(160),SUBSTITUTE($AA6,"}",CHAR(160),IE$1))-FIND(CHAR(160),SUBSTITUTE($AA6,"{",CHAR(160),IE$1))+1),"") ->  | IF6: =IFERROR(MID($AA6,FIND(CHAR(160),SUBSTITUTE($AA6,"{",CHAR(160),IF$1)),FIND(CHAR(160),SUBSTITUTE($AA6,"}",CHAR(160),IF$1))-FIND(CHAR(160),SUBSTITUTE($AA6,"{",CHAR(160),IF$1))+1),"") ->  | IG6: =IFERROR(MID($AA6,FIND(CHAR(160),SUBSTITUTE($AA6,"{",CHAR(160),IG$1)),FIND(CHAR(160),SUBSTITUTE($AA6,"}",CHAR(160),IG$1))-FIND(CHAR(160),SUBSTITUTE($AA6,"{",CHAR(160),IG$1))+1),"") ->  | IH6: =IFERROR(MID($AA6,FIND(CHAR(160),SUBSTITUTE($AA6,"{",CHAR(160),IH$1)),FIND(CHAR(160),SUBSTITUTE($AA6,"}",CHAR(160),IH$1))-FIND(CHAR(160),SUBSTITUTE($AA6,"{",CHAR(160),IH$1))+1),"") ->  | II6: =IFERROR(MID($AA6,FIND(CHAR(160),SUBSTITUTE($AA6,"{",CHAR(160),II$1)),FIND(CHAR(160),SUBSTITUTE($AA6,"}",CHAR(160),II$1))-FIND(CHAR(160),SUBSTITUTE($AA6,"{",CHAR(160),II$1))+1),"") ->  | IJ6: =IFERROR(MID($AA6,FIND(CHAR(160),SUBSTITUTE($AA6,"{",CHAR(160),IJ$1)),FIND(CHAR(160),SUBSTITUTE($AA6,"}",CHAR(160),IJ$1))-FIND(CHAR(160),SUBSTITUTE($AA6,"{",CHAR(160),IJ$1))+1),"") ->  | IK6: =IFERROR(MID($AA6,FIND(CHAR(160),SUBSTITUTE($AA6,"{",CHAR(160),IK$1)),FIND(CHAR(160),SUBSTITUTE($AA6,"}",CHAR(160),IK$1))-FIND(CHAR(160),SUBSTITUTE($AA6,"{",CHAR(160),IK$1))+1),"") ->  | IL6: =IFERROR(MID($AA6,FIND(CHAR(160),SUBSTITUTE($AA6,"{",CHAR(160),IL$1)),FIND(CHAR(160),SUBSTITUTE($AA6,"}",CHAR(160),IL$1))-FIND(CHAR(160),SUBSTITUTE($AA6,"{",CHAR(160),IL$1))+1),"") ->  | IM6: =IFERROR(MID($AA6,FIND(CHAR(160),SUBSTITUTE($AA6,"{",CHAR(160),IM$1)),FIND(CHAR(160),SUBSTITUTE($AA6,"}",CHAR(160),IM$1))-FIND(CHAR(160),SUBSTITUTE($AA6,"{",CHAR(160),IM$1))+1),"") -> {Primary heating type} | IN6: =IFERROR(MID($AA6,FIND(CHAR(160),SUBSTITUTE($AA6,"{",CHAR(160),IN$1)),FIND(CHAR(160),SUBSTITUTE($AA6,"}",CHAR(160),IN$1))-FIND(CHAR(160),SUBSTITUTE($AA6,"{",CHAR(160),IN$1))+1),"") -> {Primary heating type} | IO6: =IFERROR(MID($AB6,FIND(CHAR(160),SUBSTITUTE($AB6,"{",CHAR(160),IO$1)),FIND(CHAR(160),SUBSTITUTE($AB6,"}",CHAR(160),IO$1))-FIND(CHAR(160),SUBSTITUTE($AB6,"{",CHAR(160),IO$1))+1),"") ->  | IP6: =IFERROR(MID($AB6,FIND(CHAR(160),SUBSTITUTE($AB6,"{",CHAR(160),IP$1)),FIND(CHAR(160),SUBSTITUTE($AB6,"}",CHAR(160),IP$1))-FIND(CHAR(160),SUBSTITUTE($AB6,"{",CHAR(160),IP$1))+1),"") ->  | IQ6: =IFERROR(MID($AB6,FIND(CHAR(160),SUBSTITUTE($AB6,"{",CHAR(160),IQ$1)),FIND(CHAR(160),SUBSTITUTE($AB6,"}",CHAR(160),IQ$1))-FIND(CHAR(160),SUBSTITUTE($AB6,"{",CHAR(160),IQ$1))+1),"") ->  | IR6: =IFERROR(MID($AB6,FIND(CHAR(160),SUBSTITUTE($AB6,"{",CHAR(160),IR$1)),FIND(CHAR(160),SUBSTITUTE($AB6,"}",CHAR(160),IR$1))-FIND(CHAR(160),SUBSTITUTE($AB6,"{",CHAR(160),IR$1))+1),"") ->  | IS6: =IFERROR(MID($AB6,FIND(CHAR(160),SUBSTITUTE($AB6,"{",CHAR(160),IS$1)),FIND(CHAR(160),SUBSTITUTE($AB6,"}",CHAR(160),IS$1))-FIND(CHAR(160),SUBSTITUTE($AB6,"{",CHAR(160),IS$1))+1),"") ->  | IT6: =IFERROR(MID($AB6,FIND(CHAR(160),SUBSTITUTE($AB6,"{",CHAR(160),IT$1)),FIND(CHAR(160),SUBSTITUTE($AB6,"}",CHAR(160),IT$1))-FIND(CHAR(160),SUBSTITUTE($AB6,"{",CHAR(160),IT$1))+1),"") ->  | IU6: =IFERROR(MID($AB6,FIND(CHAR(160),SUBSTITUTE($AB6,"{",CHAR(160),IU$1)),FIND(CHAR(160),SUBSTITUTE($AB6,"}",CHAR(160),IU$1))-FIND(CHAR(160),SUBSTITUTE($AB6,"{",CHAR(160),IU$1))+1),"") ->  | IV6: =IFERROR(MID($AB6,FIND(CHAR(160),SUBSTITUTE($AB6,"{",CHAR(160),IV$1)),FIND(CHAR(160),SUBSTITUTE($AB6,"}",CHAR(160),IV$1))-FIND(CHAR(160),SUBSTITUTE($AB6,"{",CHAR(160),IV$1))+1),"") ->  | IW6: =IFERROR(MID($AB6,FIND(CHAR(160),SUBSTITUTE($AB6,"{",CHAR(160),IW$1)),FIND(CHAR(160),SUBSTITUTE($AB6,"}",CHAR(160),IW$1))-FIND(CHAR(160),SUBSTITUTE($AB6,"{",CHAR(160),IW$1))+1),"") ->  | IX6: =IFERROR(MID($AB6,FIND(CHAR(160),SUBSTITUTE($AB6,"{",CHAR(160),IX$1)),FIND(CHAR(160),SUBSTITUTE($AB6,"}",CHAR(160),IX$1))-FIND(CHAR(160),SUBSTITUTE($AB6,"{",CHAR(160),IX$1))+1),"") ->  | IZ6: =10-COUNTIF(DU6:ED6,"") -> 3
A7: Affordable Heat Initiative - Natural Gas | B7: Basement Insulation LIHESP | C7: LBB | D7: 2021-07-01 | E7: 2022-06-30 | F7: Calculated | G7: {Cost}*{Measure:Quantity} | H7: 0 | I7: Calculated | J7: if({Cost}*0.80>2000,2000,Round({Cost}*0.80,2))*{Measure:Quantity} | K7: 0 | L7: 2020-07-01 | M7: 2022-06-30 | N7: Calculated | O7: if({Primary heating type}=6,2672,if({Primary heating type}=0,102,0)) | R7: 0 | U7: if({Primary heating type}=6,0.663,if({Primary heating type}=0,0.025,0)) | V7: 0 | W7: if({Primary heating type}=1,10.986,if({Primary heating type}=0,0.989,0))*10 | X7: if({Primary heating type}=2,10.986,if({Primary heating type} = 0,1.439,0)) | Y7: if({Primary heating type}=3,10.986,if({Primary heating type} = 0,7.514,0)) | Z7: if({Primary heating type}=4,10.986,if({Primary heating type} = 0,0.154,0)) | AA7: if({Primary heating type}=5,10.986,if({Primary heating type} = 0,0.472,0)) | AB7: 0 | AC7: 2019-07-01 | AD7: 2022-06-30 | AE7: 25 | AF7: 1 | AG7: 1 | AH7: 0 | AI7: 0 | AJ7: 0 | AK7: 0 | AL7: 1 | AM7: 1 | AN7: 1 | AO7: 0 | AP7: 0 | AR7: {Cost} | AS7: 2326 | AT7: {Measure:Quantity} | AU7: 1 | AV7: {Primary heating type} | AW7: 1 | BL7: =IF(AW7=6,2672,IF(AW7=0,102,0)) -> 0 | BM7: 0 | BN7: 0 | BO7: =0 -> 0 | BP7: 0 | BQ7: 0 | BR7: =IF(AW7=6,0.663,IF(AW7=0,0.025,0)) -> 0 | BS7: =0 -> 0 | BT7: =IF(AW7=1,10.986,IF(AW7=0,0.989,0))*10 -> 109.86 | BU7: =IF(AW7=2,10.986,IF(AW7 = 0,1.439,0)) -> 0 | BV7: =IF(AW7=3,10.986,IF(AW7 = 0,7.514,0)) -> 0 | BW7: =IF(AW7=4,10.986,IF(AW7 = 0,0.154,0)) -> 0 | BX7: =IF(AW7=5,10.986,IF(AW7 = 0,0.472,0)) -> 0 | BY7: =0 -> 0 | CA7: Res | CB7: RGGI DR | CC7: =Benefits(BL7,BR7,BS7,BT7,BU7,BV7,BW7,BX7,BY7,BZ7,AE7,AH7,AI7,AJ7,AK7,AL7,AM7,AN7,AO7,AP7,CA7,CB7) -> 0 | CD7: 0 | CE7: 2939.768086 | CF7: 0 | CG7: 0 | CH7: 0 | CI7: 0 | CJ7: 0 | CK7: 0 | CL7: =SUMPRODUCT(CC7:CK7,--(CC7:CK7>0)) -> 2939.768086 | CM7: =-SUMPRODUCT(CC7:CK7,--(CC7:CK7<0)) -> 0 | CO7: =AS7*AU7 -> 2326 | CR7: =CM7+CO7 -> 2326 | CS7: =IF(NetOrGross="Net",(1-AO7+AP7),1) -> 1 | CT7: =(SUMPRODUCT(CC7:CJ7,--(CC7:CJ7>0))+CN7)*CS7/((-SUMPRODUCT(CC7:CJ7,--(CC7:CJ7<0))+MAX(CO7,CV7)+CP7+CQ7)*CS7+IF(FRIncentives="Yes",CV7*(1-CS7),0)) -> 1.26387278 | CU7: 1 | CV7: =IF(AS7*0.8>2000,2000,ROUND(AS7*0.8,2))*AU7 -> 1860.8 | CX7: RGGI | CY7: y | DA7: =IF(F7="Manual Entry","Manual",IF(G7="",0,"X="&SUBSTITUTE(SUBSTITUTE(SUBSTITUTE(SUBSTITUTE(SUBSTITUTE(SUBSTITUTE(SUBSTITUTE(SUBSTITUTE(SUBSTITUTE(SUBSTITUTE(SUBSTITUTE(SUBSTITUTE(G7,$ED7,$ED$2&ROW($ED7)),$EC7,$EC$2&ROW($EC7)),$EB7,$EB$2&ROW($EB7)),$EA7,$EA$2&ROW($EA7)),$DZ7,$DZ$2&ROW($DZ7)),$DY7,$DY$2&ROW($DY7)),$DX7,$DX$2&ROW($DX7)),$DW7,$DW$2&ROW($DW7)),$DV7,$DV$2&ROW($DV7)),$DU7,$DU$2&ROW($DU7)),$DT7,$DT$2&ROW($DT7)),$DS7,$DS$2&ROW($DS7)))) -> X=AS7*AU7 | DB7: =IF(I7="Manual Entry","Manual",IF(J7="",0,"X="&SUBSTITUTE(SUBSTITUTE(SUBSTITUTE(SUBSTITUTE(SUBSTITUTE(SUBSTITUTE(SUBSTITUTE(SUBSTITUTE(SUBSTITUTE(SUBSTITUTE(SUBSTITUTE(SUBSTITUTE(J7,$ED7,$ED$2&ROW($ED7)),$EC7,$EC$2&ROW($EC7)),$EB7,$EB$2&ROW($EB7)),$EA7,$EA$2&ROW($EA7)),$DZ7,$DZ$2&ROW($DZ7)),$DY7,$DY$2&ROW($DY7)),$DX7,$DX$2&ROW($DX7)),$DW7,$DW$2&ROW($DW7)),$DV7,$DV$2&ROW($DV7)),$DU7,$DU$2&ROW($DU7)),$DT7,$DT$2&ROW($DT7)),$DS7,$DS$2&ROW($DS7)))) -> X=if(AS7*0.80>2000,2000,Round(AS7*0.80,2))*AU7 | DC7: =IF(O7="",0,"X="&SUBSTITUTE(SUBSTITUTE(SUBSTITUTE(SUBSTITUTE(SUBSTITUTE(SUBSTITUTE(SUBSTITUTE(SUBSTITUTE(SUBSTITUTE(SUBSTITUTE(SUBSTITUTE(SUBSTITUTE(O7,$ED7,$ED$2&ROW($ED7)),$EC7,$EC$2&ROW($EC7)),$EB7,$EB$2&ROW($EB7)),$EA7,$EA$2&ROW($EA7)),$DZ7,$DZ$2&ROW($DZ7)),$DY7,$DY$2&ROW($DY7)),$DX7,$DX$2&ROW($DX7)),$DW7,$DW$2&ROW($DW7)),$DV7,$DV$2&ROW($DV7)),$DU7,$DU$2&ROW($DU7)),$DT7,$DT$2&ROW($DT7)),$DS7,$DS$2&ROW($DS7))) -> X=if(AW7=6,2672,if(AW7=0,102,0)) | DD7: =IF(P7="",0,"X="&SUBSTITUTE(SUBSTITUTE(SUBSTITUTE(SUBSTITUTE(SUBSTITUTE(SUBSTITUTE(SUBSTITUTE(SUBSTITUTE(SUBSTITUTE(SUBSTITUTE(SUBSTITUTE(SUBSTITUTE(P7,$ED7,$ED$2&ROW($ED7)),$EC7,$EC$2&ROW($EC7)),$EB7,$EB$2&ROW($EB7)),$EA7,$EA$2&ROW($EA7)),$DZ7,$DZ$2&ROW($DZ7)),$DY7,$DY$2&ROW($DY7)),$DX7,$DX$2&ROW($DX7)),$DW7,$DW$2&ROW($DW7)),$DV7,$DV$2&ROW($DV7)),$DU7,$DU$2&ROW($DU7)),$DT7,$DT$2&ROW($DT7)),$DS7,$DS$2&ROW($DS7))) -> 0 | DE7: =IF(Q7="",0,"X="&SUBSTITUTE(SUBSTITUTE(SUBSTITUTE(SUBSTITUTE(SUBSTITUTE(SUBSTITUTE(SUBSTITUTE(SUBSTITUTE(SUBSTITUTE(SUBSTITUTE(SUBSTITUTE(SUBSTITUTE(Q7,$ED7,$ED$2&ROW($ED7)),$EC7,$EC$2&ROW($EC7)),$EB7,$EB$2&ROW($EB7)),$EA7,$EA$2&ROW($EA7)),$DZ7,$DZ$2&ROW($DZ7)),$DY7,$DY$2&ROW($DY7)),$DX7,$DX$2&ROW($DX7)),$DW7,$DW$2&ROW($DW7)),$DV7,$DV$2&ROW($DV7)),$DU7,$DU$2&ROW($DU7)),$DT7,$DT$2&ROW($DT7)),$DS7,$DS$2&ROW($DS7))) -> 0 | DF7: =IF(R7="",0,"X="&SUBSTITUTE(SUBSTITUTE(SUBSTITUTE(SUBSTITUTE(SUBSTITUTE(SUBSTITUTE(SUBSTITUTE(SUBSTITUTE(SUBSTITUTE(SUBSTITUTE(SUBSTITUTE(SUBSTITUTE(R7,$ED7,$ED$2&ROW($ED7)),$EC7,$EC$2&ROW($EC7)),$EB7,$EB$2&ROW($EB7)),$EA7,$EA$2&ROW($EA7)),$DZ7,$DZ$2&ROW($DZ7)),$DY7,$DY$2&ROW($DY7)),$DX7,$DX$2&ROW($DX7)),$DW7,$DW$2&ROW($DW7)),$DV7,$DV$2&ROW($DV7)),$DU7,$DU$2&ROW($DU7)),$DT7,$DT$2&ROW($DT7)),$DS7,$DS$2&ROW($DS7))) -> X=0 | DG7: =IF(S7="",0,"X="&SUBSTITUTE(SUBSTITUTE(SUBSTITUTE(SUBSTITUTE(SUBSTITUTE(SUBSTITUTE(SUBSTITUTE(SUBSTITUTE(SUBSTITUTE(SUBSTITUTE(SUBSTITUTE(SUBSTITUTE(S7,$ED7,$ED$2&ROW($ED7)),$EC7,$EC$2&ROW($EC7)),$EB7,$EB$2&ROW($EB7)),$EA7,$EA$2&ROW($EA7)),$DZ7,$DZ$2&ROW($DZ7)),$DY7,$DY$2&ROW($DY7)),$DX7,$DX$2&ROW($DX7)),$DW7,$DW$2&ROW($DW7)),$DV7,$DV$2&ROW($DV7)),$DU7,$DU$2&ROW($DU7)),$DT7,$DT$2&ROW($DT7)),$DS7,$DS$2&ROW($DS7))) -> 0 | DH7: =IF(T7="",0,"X="&SUBSTITUTE(SUBSTITUTE(SUBSTITUTE(SUBSTITUTE(SUBSTITUTE(SUBSTITUTE(SUBSTITUTE(SUBSTITUTE(SUBSTITUTE(SUBSTITUTE(SUBSTITUTE(SUBSTITUTE(T7,$ED7,$ED$2&ROW($ED7)),$EC7,$EC$2&ROW($EC7)),$EB7,$EB$2&ROW($EB7)),$EA7,$EA$2&ROW($EA7)),$DZ7,$DZ$2&ROW($DZ7)),$DY7,$DY$2&ROW($DY7)),$DX7,$DX$2&ROW($DX7)),$DW7,$DW$2&ROW($DW7)),$DV7,$DV$2&ROW($DV7)),$DU7,$DU$2&ROW($DU7)),$DT7,$DT$2&ROW($DT7)),$DS7,$DS$2&ROW($DS7))) -> 0 | DI7: =IF(U7="",0,"X="&SUBSTITUTE(SUBSTITUTE(SUBSTITUTE(SUBSTITUTE(SUBSTITUTE(SUBSTITUTE(SUBSTITUTE(SUBSTITUTE(SUBSTITUTE(SUBSTITUTE(SUBSTITUTE(SUBSTITUTE(U7,$ED7,$ED$2&ROW($ED7)),$EC7,$EC$2&ROW($EC7)),$EB7,$EB$2&ROW($EB7)),$EA7,$EA$2&ROW($EA7)),$DZ7,$DZ$2&ROW($DZ7)),$DY7,$DY$2&ROW($DY7)),$DX7,$DX$2&ROW($DX7)),$DW7,$DW$2&ROW($DW7)),$DV7,$DV$2&ROW($DV7)),$DU7,$DU$2&ROW($DU7)),$DT7,$DT$2&ROW($DT7)),$DS7,$DS$2&ROW($DS7))) -> X=if(AW7=6,0.663,if(AW7=0,0.025,0)) | DJ7: =IF(V7="",0,"X="&SUBSTITUTE(SUBSTITUTE(SUBSTITUTE(SUBSTITUTE(SUBSTITUTE(SUBSTITUTE(SUBSTITUTE(SUBSTITUTE(SUBSTITUTE(SUBSTITUTE(SUBSTITUTE(SUBSTITUTE(V7,$ED7,$ED$2&ROW($ED7)),$EC7,$EC$2&ROW($EC7)),$EB7,$EB$2&ROW($EB7)),$EA7,$EA$2&ROW($EA7)),$DZ7,$DZ$2&ROW($DZ7)),$DY7,$DY$2&ROW($DY7)),$DX7,$DX$2&ROW($DX7)),$DW7,$DW$2&ROW($DW7)),$DV7,$DV$2&ROW($DV7)),$DU7,$DU$2&ROW($DU7)),$DT7,$DT$2&ROW($DT7)),$DS7,$DS$2&ROW($DS7))) -> X=0 | DK7: =IF(W7="",0,"X="&SUBSTITUTE(SUBSTITUTE(SUBSTITUTE(SUBSTITUTE(SUBSTITUTE(SUBSTITUTE(SUBSTITUTE(SUBSTITUTE(SUBSTITUTE(SUBSTITUTE(SUBSTITUTE(SUBSTITUTE(W7,$ED7,$ED$2&ROW($ED7)),$EC7,$EC$2&ROW($EC7)),$EB7,$EB$2&ROW($EB7)),$EA7,$EA$2&ROW($EA7)),$DZ7,$DZ$2&ROW($DZ7)),$DY7,$DY$2&ROW($DY7)),$DX7,$DX$2&ROW($DX7)),$DW7,$DW$2&ROW($DW7)),$DV7,$DV$2&ROW($DV7)),$DU7,$DU$2&ROW($DU7)),$DT7,$DT$2&ROW($DT7)),$DS7,$DS$2&ROW($DS7))) -> X=if(AW7=1,10.986,if(AW7=0,0.989,0))*10 | DL7: =IF(X7="",0,"X="&SUBSTITUTE(SUBSTITUTE(SUBSTITUTE(SUBSTITUTE(SUBSTITUTE(SUBSTITUTE(SUBSTITUTE(SUBSTITUTE(SUBSTITUTE(SUBSTITUTE(SUBSTITUTE(SUBSTITUTE(X7,$ED7,$ED$2&ROW($ED7)),$EC7,$EC$2&ROW($EC7)),$EB7,$EB$2&ROW($EB7)),$EA7,$EA$2&ROW($EA7)),$DZ7,$DZ$2&ROW($DZ7)),$DY7,$DY$2&ROW($DY7)),$DX7,$DX$2&ROW($DX7)),$DW7,$DW$2&ROW($DW7)),$DV7,$DV$2&ROW($DV7)),$DU7,$DU$2&ROW($DU7)),$DT7,$DT$2&ROW($DT7)),$DS7,$DS$2&ROW($DS7))) -> X=if(AW7=2,10.986,if(AW7 = 0,1.439,0)) | DM7: =IF(Y7="",0,"X="&SUBSTITUTE(SUBSTITUTE(SUBSTITUTE(SUBSTITUTE(SUBSTITUTE(SUBSTITUTE(SUBSTITUTE(SUBSTITUTE(SUBSTITUTE(SUBSTITUTE(SUBSTITUTE(SUBSTITUTE(Y7,$ED7,$ED$2&ROW($ED7)),$EC7,$EC$2&ROW($EC7)),$EB7,$EB$2&ROW($EB7)),$EA7,$EA$2&ROW($EA7)),$DZ7,$DZ$2&ROW($DZ7)),$DY7,$DY$2&ROW($DY7)),$DX7,$DX$2&ROW($DX7)),$DW7,$DW$2&ROW($DW7)),$DV7,$DV$2&ROW($DV7)),$DU7,$DU$2&ROW($DU7)),$DT7,$DT$2&ROW($DT7)),$DS7,$DS$2&ROW($DS7))) -> X=if(AW7=3,10.986,if(AW7 = 0,7.514,0)) | DN7: =IF(Z7="",0,"X="&SUBSTITUTE(SUBSTITUTE(SUBSTITUTE(SUBSTITUTE(SUBSTITUTE(SUBSTITUTE(SUBSTITUTE(SUBSTITUTE(SUBSTITUTE(SUBSTITUTE(SUBSTITUTE(SUBSTITUTE(Z7,$ED7,$ED$2&ROW($ED7)),$EC7,$EC$2&ROW($EC7)),$EB7,$EB$2&ROW($EB7)),$EA7,$EA$2&ROW($EA7)),$DZ7,$DZ$2&ROW($DZ7)),$DY7,$DY$2&ROW($DY7)),$DX7,$DX$2&ROW($DX7)),$DW7,$DW$2&ROW($DW7)),$DV7,$DV$2&ROW($DV7)),$DU7,$DU$2&ROW($DU7)),$DT7,$DT$2&ROW($DT7)),$DS7,$DS$2&ROW($DS7))) -> X=if(AW7=4,10.986,if(AW7 = 0,0.154,0)) | DO7: =IF(AA7="",0,"X="&SUBSTITUTE(SUBSTITUTE(SUBSTITUTE(SUBSTITUTE(SUBSTITUTE(SUBSTITUTE(SUBSTITUTE(SUBSTITUTE(SUBSTITUTE(SUBSTITUTE(SUBSTITUTE(SUBSTITUTE(AA7,$ED7,$ED$2&ROW($ED7)),$EC7,$EC$2&ROW($EC7)),$EB7,$EB$2&ROW($EB7)),$EA7,$EA$2&ROW($EA7)),$DZ7,$DZ$2&ROW($DZ7)),$DY7,$DY$2&ROW($DY7)),$DX7,$DX$2&ROW($DX7)),$DW7,$DW$2&ROW($DW7)),$DV7,$DV$2&ROW($DV7)),$DU7,$DU$2&ROW($DU7)),$DT7,$DT$2&ROW($DT7)),$DS7,$DS$2&ROW($DS7))) -> X=if(AW7=5,10.986,if(AW7 = 0,0.472,0)) | DP7: =IF(AB7="",0,"X="&SUBSTITUTE(SUBSTITUTE(SUBSTITUTE(SUBSTITUTE(SUBSTITUTE(SUBSTITUTE(SUBSTITUTE(SUBSTITUTE(SUBSTITUTE(SUBSTITUTE(SUBSTITUTE(SUBSTITUTE(AB7,$ED7,$ED$2&ROW($ED7)),$EC7,$EC$2&ROW($EC7)),$EB7,$EB$2&ROW($EB7)),$EA7,$EA$2&ROW($EA7)),$DZ7,$DZ$2&ROW($DZ7)),$DY7,$DY$2&ROW($DY7)),$DX7,$DX$2&ROW($DX7)),$DW7,$DW$2&ROW($DW7)),$DV7,$DV$2&ROW($DV7)),$DU7,$DU$2&ROW($DU7)),$DT7,$DT$2&ROW($DT7)),$DS7,$DS$2&ROW($DS7))) -> X=0 | DS7: {Factor:WinterCF} | DT7: {Factor:SummerCF} | DU7: =IFERROR(INDEX($EG7:$IV7,MATCH(0,COUNTIF($DR7:DT7,$EG7:$IV7),0)),"") -> {Cost} | DV7: =IFERROR(INDEX($EG7:$IV7,MATCH(0,COUNTIF($DR7:DU7,$EG7:$IV7),0)),"") -> {Measure:Quantity} | DW7: =IFERROR(INDEX($EG7:$IV7,MATCH(0,COUNTIF($DR7:DV7,$EG7:$IV7),0)),"") -> {Primary heating type} | DX7: =IFERROR(INDEX($EG7:$IV7,MATCH(0,COUNTIF($DR7:DW7,$EG7:$IV7),0)),"") ->  | DY7: =IFERROR(INDEX($EG7:$IV7,MATCH(0,COUNTIF($DR7:DX7,$EG7:$IV7),0)),"") ->  | DZ7: =IFERROR(INDEX($EG7:$IV7,MATCH(0,COUNTIF($DR7:DY7,$EG7:$IV7),0)),"") ->  | EA7: =IFERROR(INDEX($EG7:$IV7,MATCH(0,COUNTIF($DR7:DZ7,$EG7:$IV7),0)),"") ->  | EB7: =IFERROR(INDEX($EG7:$IV7,MATCH(0,COUNTIF($DR7:EA7,$EG7:$IV7),0)),"") ->  | EC7: =IFERROR(INDEX($EG7:$IV7,MATCH(0,COUNTIF($DR7:EB7,$EG7:$IV7),0)),"") ->  | ED7: =IFERROR(INDEX($EG7:$IV7,MATCH(0,COUNTIF($DR7:EC7,$EG7:$IV7),0)),"") ->  | EG7: {Cost} | EH7: {Measure:Quantity} | EQ7: {Cost} | ER7: {Cost} | ES7: {Measure:Quantity} | FA7: {Cost} | FB7: {Cost} | FK7: {Primary heating type} | FL7: {Primary heating type} | GE7: {Primary heating type} | GF7: {Primary heating type} | GY7: {Primary heating type} | GZ7: {Primary heating type} | HI7: {Primary heating type} | HJ7: {Primary heating type} | HS7: {Primary heating type} | HT7: {Primary heating type} | IC7: {Primary heating type} | ID7: {Primary heating type} | IM7: {Primary heating type} | IN7: {Primary heating type} | IZ7: 3
A8: Affordable Heat Initiative - Natural Gas | B8: Air Sealing LIHESP | C8: LAA | D8: 2021-07-01 | E8: 2022-06-30 | F8: Calculated | G8: {Cost}*{Measure:Quantity} | H8: 0 | I8: Calculated | J8: $600.00*{Measure:Quantity} | K8: 600 | L8: 2020-07-01 | M8: 2022-06-30 | N8: Calculated | O8: if({Primary heating type}=6,1514,if({Primary heating type}=0,67,10)) | R8: if({Primary heating type}=6,0.026,if({Primary heating type}=0,0.026,0.026)) | U8: if({Primary heating type}=6,0.331,if({Primary heating type}=0,0.013,0)) | V8: if({Primary heating type}=6,0.026,if({Primary heating type}=0,0.026,0.026)) | W8: if({Primary heating type}=1,6.184,if({Primary heating type}=0,0.557,0))*10 | X8: if({Primary heating type}=2,6.184,if({Primary heating type} = 0,0.810,0)) | Y8: if({Primary heating type}=3,6.184,if({Primary heating type} = 0,4.230,0)) | Z8: if({Primary heating type}=4,6.184,if({Primary heating type} = 0,0.087,0)) | AA8: if({Primary heating type}=5,6.184,if({Primary heating type} = 0,0.266,0)) | AB8: 0 | AC8: 2019-07-01 | AD8: 2022-06-30 | AE8: 15 | AF8: 1 | AG8: 1 | AH8: 0 | AI8: 0 | AJ8: 0.666 | AK8: 0.301 | AL8: 1 | AM8: 1 | AN8: 1 | AO8: 0 | AP8: 0 | AR8: {Cost} | AS8: 622 | AT8: {Measure:Quantity} | AU8: 1 | AV8: {Primary heating type} | AW8: 1 | BL8: =IF(AW8=6,1514,IF(AW8=0,67,10)) -> 10 | BM8: 0 | BN8: 0 | BO8: =IF(AW8=6,0.026,IF(AW8=0,0.026,0.026)) -> 0.026 | BP8: 0 | BQ8: 0 | BR8: =IF(AW8=6,0.331,IF(AW8=0,0.013,0)) -> 0 | BS8: =IF(AW8=6,0.026,IF(AW8=0,0.026,0.026)) -> 0.026 | BT8: =IF(AW8=1,6.184,IF(AW8=0,0.557,0))*10 -> 61.84 | BU8: =IF(AW8=2,6.184,IF(AW8 = 0,0.81,0)) -> 0 | BV8: =IF(AW8=3,6.184,IF(AW8 = 0,4.23,0)) -> 0 | BW8: =IF(AW8=4,6.184,IF(AW8 = 0,0.087,0)) -> 0 | BX8: =IF(AW8=5,6.184,IF(AW8 = 0,0.266,0)) -> 0 | BY8: =0 -> 0 | CA8: Res | CB8: RGGI DR | CC8: =Benefits(BL8,BR8,BS8,BT8,BU8,BV8,BW8,BX8,BY8,BZ8,AE8,AH8,AI8,AJ8,AK8,AL8,AM8,AN8,AO8,AP8,CA8,CB8) -> 11.51728087 | CD8: 48.95326346 | CE8: 1222.900245 | CF8: 0 | CG8: 0 | CH8: 0 | CI8: 0 | CJ8: 0 | CK8: 0 | CL8: =SUMPRODUCT(CC8:CK8,--(CC8:CK8>0)) -> 1283.370789 | CM8: =-SUMPRODUCT(CC8:CK8,--(CC8:CK8<0)) -> 0 | CO8: =AS8*AU8 -> 622 | CR8: =CM8+CO8 -> 622 | CS8: =IF(NetOrGross="Net",(1-AO8+AP8),1) -> 1 | CT8: =(SUMPRODUCT(CC8:CJ8,--(CC8:CJ8>0))+CN8)*CS8/((-SUMPRODUCT(CC8:CJ8,--(CC8:CJ8<0))+MAX(CO8,CV8)+CP8+CQ8)*CS8+IF(FRIncentives="Yes",CV8*(1-CS8),0)) -> 2.063297089 | CU8: 1 | CV8: =600*AU8 -> 600 | CX8: RGGI | CY8: y | DA8: =IF(F8="Manual Entry","Manual",IF(G8="",0,"X="&SUBSTITUTE(SUBSTITUTE(SUBSTITUTE(SUBSTITUTE(SUBSTITUTE(SUBSTITUTE(SUBSTITUTE(SUBSTITUTE(SUBSTITUTE(SUBSTITUTE(SUBSTITUTE(SUBSTITUTE(G8,$ED8,$ED$2&ROW($ED8)),$EC8,$EC$2&ROW($EC8)),$EB8,$EB$2&ROW($EB8)),$EA8,$EA$2&ROW($EA8)),$DZ8,$DZ$2&ROW($DZ8)),$DY8,$DY$2&ROW($DY8)),$DX8,$DX$2&ROW($DX8)),$DW8,$DW$2&ROW($DW8)),$DV8,$DV$2&ROW($DV8)),$DU8,$DU$2&ROW($DU8)),$DT8,$DT$2&ROW($DT8)),$DS8,$DS$2&ROW($DS8)))) -> X=AS8*AU8 | DB8: =IF(I8="Manual Entry","Manual",IF(J8="",0,"X="&SUBSTITUTE(SUBSTITUTE(SUBSTITUTE(SUBSTITUTE(SUBSTITUTE(SUBSTITUTE(SUBSTITUTE(SUBSTITUTE(SUBSTITUTE(SUBSTITUTE(SUBSTITUTE(SUBSTITUTE(J8,$ED8,$ED$2&ROW($ED8)),$EC8,$EC$2&ROW($EC8)),$EB8,$EB$2&ROW($EB8)),$EA8,$EA$2&ROW($EA8)),$DZ8,$DZ$2&ROW($DZ8)),$DY8,$DY$2&ROW($DY8)),$DX8,$DX$2&ROW($DX8)),$DW8,$DW$2&ROW($DW8)),$DV8,$DV$2&ROW($DV8)),$DU8,$DU$2&ROW($DU8)),$DT8,$DT$2&ROW($DT8)),$DS8,$DS$2&ROW($DS8)))) -> X=$600.00*AU8 | DC8: =IF(O8="",0,"X="&SUBSTITUTE(SUBSTITUTE(SUBSTITUTE(SUBSTITUTE(SUBSTITUTE(SUBSTITUTE(SUBSTITUTE(SUBSTITUTE(SUBSTITUTE(SUBSTITUTE(SUBSTITUTE(SUBSTITUTE(O8,$ED8,$ED$2&ROW($ED8)),$EC8,$EC$2&ROW($EC8)),$EB8,$EB$2&ROW($EB8)),$EA8,$EA$2&ROW($EA8)),$DZ8,$DZ$2&ROW($DZ8)),$DY8,$DY$2&ROW($DY8)),$DX8,$DX$2&ROW($DX8)),$DW8,$DW$2&ROW($DW8)),$DV8,$DV$2&ROW($DV8)),$DU8,$DU$2&ROW($DU8)),$DT8,$DT$2&ROW($DT8)),$DS8,$DS$2&ROW($DS8))) -> X=if(AW8=6,1514,if(AW8=0,67,10)) | DD8: =IF(P8="",0,"X="&SUBSTITUTE(SUBSTITUTE(SUBSTITUTE(SUBSTITUTE(SUBSTITUTE(SUBSTITUTE(SUBSTITUTE(SUBSTITUTE(SUBSTITUTE(SUBSTITUTE(SUBSTITUTE(SUBSTITUTE(P8,$ED8,$ED$2&ROW($ED8)),$EC8,$EC$2&ROW($EC8)),$EB8,$EB$2&ROW($EB8)),$EA8,$EA$2&ROW($EA8)),$DZ8,$DZ$2&ROW($DZ8)),$DY8,$DY$2&ROW($DY8)),$DX8,$DX$2&ROW($DX8)),$DW8,$DW$2&ROW($DW8)),$DV8,$DV$2&ROW($DV8)),$DU8,$DU$2&ROW($DU8)),$DT8,$DT$2&ROW($DT8)),$DS8,$DS$2&ROW($DS8))) -> 0 | DE8: =IF(Q8="",0,"X="&SUBSTITUTE(SUBSTITUTE(SUBSTITUTE(SUBSTITUTE(SUBSTITUTE(SUBSTITUTE(SUBSTITUTE(SUBSTITUTE(SUBSTITUTE(SUBSTITUTE(SUBSTITUTE(SUBSTITUTE(Q8,$ED8,$ED$2&ROW($ED8)),$EC8,$EC$2&ROW($EC8)),$EB8,$EB$2&ROW($EB8)),$EA8,$EA$2&ROW($EA8)),$DZ8,$DZ$2&ROW($DZ8)),$DY8,$DY$2&ROW($DY8)),$DX8,$DX$2&ROW($DX8)),$DW8,$DW$2&ROW($DW8)),$DV8,$DV$2&ROW($DV8)),$DU8,$DU$2&ROW($DU8)),$DT8,$DT$2&ROW($DT8)),$DS8,$DS$2&ROW($DS8))) -> 0 | DF8: =IF(R8="",0,"X="&SUBSTITUTE(SUBSTITUTE(SUBSTITUTE(SUBSTITUTE(SUBSTITUTE(SUBSTITUTE(SUBSTITUTE(SUBSTITUTE(SUBSTITUTE(SUBSTITUTE(SUBSTITUTE(SUBSTITUTE(R8,$ED8,$ED$2&ROW($ED8)),$EC8,$EC$2&ROW($EC8)),$EB8,$EB$2&ROW($EB8)),$EA8,$EA$2&ROW($EA8)),$DZ8,$DZ$2&ROW($DZ8)),$DY8,$DY$2&ROW($DY8)),$DX8,$DX$2&ROW($DX8)),$DW8,$DW$2&ROW($DW8)),$DV8,$DV$2&ROW($DV8)),$DU8,$DU$2&ROW($DU8)),$DT8,$DT$2&ROW($DT8)),$DS8,$DS$2&ROW($DS8))) -> X=if(AW8=6,0.026,if(AW8=0,0.026,0.026)) | DG8: =IF(S8="",0,"X="&SUBSTITUTE(SUBSTITUTE(SUBSTITUTE(SUBSTITUTE(SUBSTITUTE(SUBSTITUTE(SUBSTITUTE(SUBSTITUTE(SUBSTITUTE(SUBSTITUTE(SUBSTITUTE(SUBSTITUTE(S8,$ED8,$ED$2&ROW($ED8)),$EC8,$EC$2&ROW($EC8)),$EB8,$EB$2&ROW($EB8)),$EA8,$EA$2&ROW($EA8)),$DZ8,$DZ$2&ROW($DZ8)),$DY8,$DY$2&ROW($DY8)),$DX8,$DX$2&ROW($DX8)),$DW8,$DW$2&ROW($DW8)),$DV8,$DV$2&ROW($DV8)),$DU8,$DU$2&ROW($DU8)),$DT8,$DT$2&ROW($DT8)),$DS8,$DS$2&ROW($DS8))) -> 0 | DH8: =IF(T8="",0,"X="&SUBSTITUTE(SUBSTITUTE(SUBSTITUTE(SUBSTITUTE(SUBSTITUTE(SUBSTITUTE(SUBSTITUTE(SUBSTITUTE(SUBSTITUTE(SUBSTITUTE(SUBSTITUTE(SUBSTITUTE(T8,$ED8,$ED$2&ROW($ED8)),$EC8,$EC$2&ROW($EC8)),$EB8,$EB$2&ROW($EB8)),$EA8,$EA$2&ROW($EA8)),$DZ8,$DZ$2&ROW($DZ8)),$DY8,$DY$2&ROW($DY8)),$DX8,$DX$2&ROW($DX8)),$DW8,$DW$2&ROW($DW8)),$DV8,$DV$2&ROW($DV8)),$DU8,$DU$2&ROW($DU8)),$DT8,$DT$2&ROW($DT8)),$DS8,$DS$2&ROW($DS8))) -> 0 | DI8: =IF(U8="",0,"X="&SUBSTITUTE(SUBSTITUTE(SUBSTITUTE(SUBSTITUTE(SUBSTITUTE(SUBSTITUTE(SUBSTITUTE(SUBSTITUTE(SUBSTITUTE(SUBSTITUTE(SUBSTITUTE(SUBSTITUTE(U8,$ED8,$ED$2&ROW($ED8)),$EC8,$EC$2&ROW($EC8)),$EB8,$EB$2&ROW($EB8)),$EA8,$EA$2&ROW($EA8)),$DZ8,$DZ$2&ROW($DZ8)),$DY8,$DY$2&ROW($DY8)),$DX8,$DX$2&ROW($DX8)),$DW8,$DW$2&ROW($DW8)),$DV8,$DV$2&ROW($DV8)),$DU8,$DU$2&ROW($DU8)),$DT8,$DT$2&ROW($DT8)),$DS8,$DS$2&ROW($DS8))) -> X=if(AW8=6,0.331,if(AW8=0,0.013,0)) | DJ8: =IF(V8="",0,"X="&SUBSTITUTE(SUBSTITUTE(SUBSTITUTE(SUBSTITUTE(SUBSTITUTE(SUBSTITUTE(SUBSTITUTE(SUBSTITUTE(SUBSTITUTE(SUBSTITUTE(SUBSTITUTE(SUBSTITUTE(V8,$ED8,$ED$2&ROW($ED8)),$EC8,$EC$2&ROW($EC8)),$EB8,$EB$2&ROW($EB8)),$EA8,$EA$2&ROW($EA8)),$DZ8,$DZ$2&ROW($DZ8)),$DY8,$DY$2&ROW($DY8)),$DX8,$DX$2&ROW($DX8)),$DW8,$DW$2&ROW($DW8)),$DV8,$DV$2&ROW($DV8)),$DU8,$DU$2&ROW($DU8)),$DT8,$DT$2&ROW($DT8)),$DS8,$DS$2&ROW($DS8))) -> X=if(AW8=6,0.026,if(AW8=0,0.026,0.026)) | DK8: =IF(W8="",0,"X="&SUBSTITUTE(SUBSTITUTE(SUBSTITUTE(SUBSTITUTE(SUBSTITUTE(SUBSTITUTE(SUBSTITUTE(SUBSTITUTE(SUBSTITUTE(SUBSTITUTE(SUBSTITUTE(SUBSTITUTE(W8,$ED8,$ED$2&ROW($ED8)),$EC8,$EC$2&ROW($EC8)),$EB8,$EB$2&ROW($EB8)),$EA8,$EA$2&ROW($EA8)),$DZ8,$DZ$2&ROW($DZ8)),$DY8,$DY$2&ROW($DY8)),$DX8,$DX$2&ROW($DX8)),$DW8,$DW$2&ROW($DW8)),$DV8,$DV$2&ROW($DV8)),$DU8,$DU$2&ROW($DU8)),$DT8,$DT$2&ROW($DT8)),$DS8,$DS$2&ROW($DS8))) -> X=if(AW8=1,6.184,if(AW8=0,0.557,0))*10 | DL8: =IF(X8="",0,"X="&SUBSTITUTE(SUBSTITUTE(SUBSTITUTE(SUBSTITUTE(SUBSTITUTE(SUBSTITUTE(SUBSTITUTE(SUBSTITUTE(SUBSTITUTE(SUBSTITUTE(SUBSTITUTE(SUBSTITUTE(X8,$ED8,$ED$2&ROW($ED8)),$EC8,$EC$2&ROW($EC8)),$EB8,$EB$2&ROW($EB8)),$EA8,$EA$2&ROW($EA8)),$DZ8,$DZ$2&ROW($DZ8)),$DY8,$DY$2&ROW($DY8)),$DX8,$DX$2&ROW($DX8)),$DW8,$DW$2&ROW($DW8)),$DV8,$DV$2&ROW($DV8)),$DU8,$DU$2&ROW($DU8)),$DT8,$DT$2&ROW($DT8)),$DS8,$DS$2&ROW($DS8))) -> X=if(AW8=2,6.184,if(AW8 = 0,0.810,0)) | DM8: =IF(Y8="",0,"X="&SUBSTITUTE(SUBSTITUTE(SUBSTITUTE(SUBSTITUTE(SUBSTITUTE(SUBSTITUTE(SUBSTITUTE(SUBSTITUTE(SUBSTITUTE(SUBSTITUTE(SUBSTITUTE(SUBSTITUTE(Y8,$ED8,$ED$2&ROW($ED8)),$EC8,$EC$2&ROW($EC8)),$EB8,$EB$2&ROW($EB8)),$EA8,$EA$2&ROW($EA8)),$DZ8,$DZ$2&ROW($DZ8)),$DY8,$DY$2&ROW($DY8)),$DX8,$DX$2&ROW($DX8)),$DW8,$DW$2&ROW($DW8)),$DV8,$DV$2&ROW($DV8)),$DU8,$DU$2&ROW($DU8)),$DT8,$DT$2&ROW($DT8)),$DS8,$DS$2&ROW($DS8))) -> X=if(AW8=3,6.184,if(AW8 = 0,4.230,0)) | DN8: =IF(Z8="",0,"X="&SUBSTITUTE(SUBSTITUTE(SUBSTITUTE(SUBSTITUTE(SUBSTITUTE(SUBSTITUTE(SUBSTITUTE(SUBSTITUTE(SUBSTITUTE(SUBSTITUTE(SUBSTITUTE(SUBSTITUTE(Z8,$ED8,$ED$2&ROW($ED8)),$EC8,$EC$2&ROW($EC8)),$EB8,$EB$2&ROW($EB8)),$EA8,$EA$2&ROW($EA8)),$DZ8,$DZ$2&ROW($DZ8)),$DY8,$DY$2&ROW($DY8)),$DX8,$DX$2&ROW($DX8)),$DW8,$DW$2&ROW($DW8)),$DV8,$DV$2&ROW($DV8)),$DU8,$DU$2&ROW($DU8)),$DT8,$DT$2&ROW($DT8)),$DS8,$DS$2&ROW($DS8))) -> X=if(AW8=4,6.184,if(AW8 = 0,0.087,0)) | DO8: =IF(AA8="",0,"X="&SUBSTITUTE(SUBSTITUTE(SUBSTITUTE(SUBSTITUTE(SUBSTITUTE(SUBSTITUTE(SUBSTITUTE(SUBSTITUTE(SUBSTITUTE(SUBSTITUTE(SUBSTITUTE(SUBSTITUTE(AA8,$ED8,$ED$2&ROW($ED8)),$EC8,$EC$2&ROW($EC8)),$EB8,$EB$2&ROW($EB8)),$EA8,$EA$2&ROW($EA8)),$DZ8,$DZ$2&ROW($DZ8)),$DY8,$DY$2&ROW($DY8)),$DX8,$DX$2&ROW($DX8)),$DW8,$DW$2&ROW($DW8)),$DV8,$DV$2&ROW($DV8)),$DU8,$DU$2&ROW($DU8)),$DT8,$DT$2&ROW($DT8)),$DS8,$DS$2&ROW($DS8))) -> X=if(AW8=5,6.184,if(AW8 = 0,0.266,0)) | DP8: =IF(AB8="",0,"X="&SUBSTITUTE(SUBSTITUTE(SUBSTITUTE(SUBSTITUTE(SUBSTITUTE(SUBSTITUTE(SUBSTITUTE(SUBSTITUTE(SUBSTITUTE(SUBSTITUTE(SUBSTITUTE(SUBSTITUTE(AB8,$ED8,$ED$2&ROW($ED8)),$EC8,$EC$2&ROW($EC8)),$EB8,$EB$2&ROW($EB8)),$EA8,$EA$2&ROW($EA8)),$DZ8,$DZ$2&ROW($DZ8)),$DY8,$DY$2&ROW($DY8)),$DX8,$DX$2&ROW($DX8)),$DW8,$DW$2&ROW($DW8)),$DV8,$DV$2&ROW($DV8)),$DU8,$DU$2&ROW($DU8)),$DT8,$DT$2&ROW($DT8)),$DS8,$DS$2&ROW($DS8))) -> X=0 | DS8: {Factor:WinterCF} | DT8: {Factor:SummerCF} | DU8: =IFERROR(INDEX($EG8:$IV8,MATCH(0,COUNTIF($DR8:DT8,$EG8:$IV8),0)),"") -> {Cost} | DV8: =IFERROR(INDEX($EG8:$IV8,MATCH(0,COUNTIF($DR8:DU8,$EG8:$IV8),0)),"") -> {Measure:Quantity} | DW8: =IFERROR(INDEX($EG8:$IV8,MATCH(0,COUNTIF($DR8:DV8,$EG8:$IV8),0)),"") -> {Primary heating type} | DX8: =IFERROR(INDEX($EG8:$IV8,MATCH(0,COUNTIF($DR8:DW8,$EG8:$IV8),0)),"") ->  | DY8: =IFERROR(INDEX($EG8:$IV8,MATCH(0,COUNTIF($DR8:DX8,$EG8:$IV8),0)),"") ->  | DZ8: =IFERROR(INDEX($EG8:$IV8,MATCH(0,COUNTIF($DR8:DY8,$EG8:$IV8),0)),"") ->  | EA8: =IFERROR(INDEX($EG8:$IV8,MATCH(0,COUNTIF($DR8:DZ8,$EG8:$IV8),0)),"") ->  | EB8: =IFERROR(INDEX($EG8:$IV8,MATCH(0,COUNTIF($DR8:EA8,$EG8:$IV8),0)),"") ->  | EC8: =IFERROR(INDEX($EG8:$IV8,MATCH(0,COUNTIF($DR8:EB8,$EG8:$IV8),0)),"") ->  | ED8: =IFERROR(INDEX($EG8:$IV8,MATCH(0,COUNTIF($DR8:EC8,$EG8:$IV8),0)),"") ->  | EG8: {Cost} | EH8: {Measure:Quantity} | EQ8: {Measure:Quantity} | FA8: {Measure:Quantity} | FK8: {Primary heating type} | FL8: {Primary heating type} | FU8: {Primary heating type} | FV8: {Primary heating type} | GE8: {Primary heating type} | GF8: {Primary heating type} | GO8: {Primary heating type} | GP8: {Primary heating type} | GY8: {Primary heating type} | GZ8: {Primary heating type} | HI8: {Primary heating type} | HJ8: {Primary heating type} | HS8: {Primary heating type} | HT8: {Primary heating type} | IC8: {Primary heating type} | ID8: {Primary heating type} | IM8: {Primary heating type} | IN8: {Primary heating type} | IZ8: 3
A9: Affordable Heat Initiative - Natural Gas | B9: Wall Insulation LIHESP | C9: LBW | D9: 2021-07-01 | E9: 2022-06-30 | F9: Calculated | G9: {Cost}*{Measure:Quantity} | H9: 0 | I9: Calculated | J9: if({Cost}*0.80>2000,2000,Round({Cost}*0.80,2))*{Measure:Quantity} | K9: 0 | L9: 2020-07-01 | M9: 2022-06-30 | N9: Calculated | O9: if({Primary heating type}=6,4879,if({Primary heating type}=0,216,32)) | R9: if({Primary heating type}=6,0.068,if({Primary heating type}=0,0.068,0.068)) | U9: if({Primary heating type}=6,1.202,if({Primary heating type}=0,0.046,0)) | V9: if({Primary heating type}=6,0.068,if({Primary heating type}=0,0.068,0.068)) | W9: if({Primary heating type}=1,20.034,if({Primary heating type}=0,1.793,0))*10 | X9: if({Primary heating type}=2,20.034,if({Primary heating type} = 0,2.610,0)) | Y9: if({Primary heating type}=3,20.034,if({Primary heating type} = 0,13.628,0)) | Z9: if({Primary heating type}=4,20.034,if({Primary heating type} = 0,0.279,0)) | AA9: if({Primary heating type}=5,20.034,if({Primary heating type} = 0,0.857,0)) | AB9: 0 | AC9: 2019-07-01 | AD9: 2022-06-30 | AE9: 25 | AF9: 1 | AG9: 1 | AH9: 0 | AI9: 0 | AJ9: 0.666 | AK9: 0.301 | AL9: 1 | AM9: 1 | AN9: 1 | AO9: 0 | AP9: 0 | AR9: {Cost} | AS9: 2574 | AT9: {Measure:Quantity} | AU9: 1 | AV9: {Primary heating type} | AW9: 1 | BL9: =IF(AW9=6,4879,IF(AW9=0,216,32)) -> 32 | BM9: 0 | BN9: 0 | BO9: =IF(AW9=6,0.068,IF(AW9=0,0.068,0.068)) -> 0.068 | BP9: 0 | BQ9: 0 | BR9: =IF(AW9=6,1.202,IF(AW9=0,0.046,0)) -> 0 | BS9: =IF(AW9=6,0.068,IF(AW9=0,0.068,0.068)) -> 0.068 | BT9: =IF(AW9=1,20.034,IF(AW9=0,1.793,0))*10 -> 200.34 | BU9: =IF(AW9=2,20.034,IF(AW9 = 0,2.61,0)) -> 0 | BV9: =IF(AW9=3,20.034,IF(AW9 = 0,13.628,0)) -> 0 | BW9: =IF(AW9=4,20.034,IF(AW9 = 0,0.279,0)) -> 0 | BX9: =IF(AW9=5,20.034,IF(AW9 = 0,0.857,0)) -> 0 | BY9: =0 -> 0 | CA9: Res | CB9: RGGI DR | CC9: =Benefits(BL9,BR9,BS9,BT9,BU9,BV9,BW9,BX9,BY9,BZ9,AE9,AH9,AI9,AJ9,AK9,AL9,AM9,AN9,AO9,AP9,CA9,CB9) -> 52.16373119 | CD9: 189.0092257 | CE9: 5360.942456 | CF9: 0 | CG9: 0 | CH9: 0 | CI9: 0 | CJ9: 0 | CK9: 0 | CL9: =SUMPRODUCT(CC9:CK9,--(CC9:CK9>0)) -> 5602.115413 | CM9: =-SUMPRODUCT(CC9:CK9,--(CC9:CK9<0)) -> 0 | CO9: =AS9*AU9 -> 2574 | CR9: =CM9+CO9 -> 2574 | CS9: =IF(NetOrGross="Net",(1-AO9+AP9),1) -> 1 | CT9: =(SUMPRODUCT(CC9:CJ9,--(CC9:CJ9>0))+CN9)*CS9/((-SUMPRODUCT(CC9:CJ9,--(CC9:CJ9<0))+MAX(CO9,CV9)+CP9+CQ9)*CS9+IF(FRIncentives="Yes",CV9*(1-CS9),0)) -> 2.176424015 | CU9: 1 | CV9: =IF(AS9*0.8>2000,2000,ROUND(AS9*0.8,2))*AU9 -> 2000 | CX9: RGGI | CY9: y | DA9: =IF(F9="Manual Entry","Manual",IF(G9="",0,"X="&SUBSTITUTE(SUBSTITUTE(SUBSTITUTE(SUBSTITUTE(SUBSTITUTE(SUBSTITUTE(SUBSTITUTE(SUBSTITUTE(SUBSTITUTE(SUBSTITUTE(SUBSTITUTE(SUBSTITUTE(G9,$ED9,$ED$2&ROW($ED9)),$EC9,$EC$2&ROW($EC9)),$EB9,$EB$2&ROW($EB9)),$EA9,$EA$2&ROW($EA9)),$DZ9,$DZ$2&ROW($DZ9)),$DY9,$DY$2&ROW($DY9)),$DX9,$DX$2&ROW($DX9)),$DW9,$DW$2&ROW($DW9)),$DV9,$DV$2&ROW($DV9)),$DU9,$DU$2&ROW($DU9)),$DT9,$DT$2&ROW($DT9)),$DS9,$DS$2&ROW($DS9)))) -> X=AS9*AU9 | DB9: =IF(I9="Manual Entry","Manual",IF(J9="",0,"X="&SUBSTITUTE(SUBSTITUTE(SUBSTITUTE(SUBSTITUTE(SUBSTITUTE(SUBSTITUTE(SUBSTITUTE(SUBSTITUTE(SUBSTITUTE(SUBSTITUTE(SUBSTITUTE(SUBSTITUTE(J9,$ED9,$ED$2&ROW($ED9)),$EC9,$EC$2&ROW($EC9)),$EB9,$EB$2&ROW($EB9)),$EA9,$EA$2&ROW($EA9)),$DZ9,$DZ$2&ROW($DZ9)),$DY9,$DY$2&ROW($DY9)),$DX9,$DX$2&ROW($DX9)),$DW9,$DW$2&ROW($DW9)),$DV9,$DV$2&ROW($DV9)),$DU9,$DU$2&ROW($DU9)),$DT9,$DT$2&ROW($DT9)),$DS9,$DS$2&ROW($DS9)))) -> X=if(AS9*0.80>2000,2000,Round(AS9*0.80,2))*AU9 | DC9: =IF(O9="",0,"X="&SUBSTITUTE(SUBSTITUTE(SUBSTITUTE(SUBSTITUTE(SUBSTITUTE(SUBSTITUTE(SUBSTITUTE(SUBSTITUTE(SUBSTITUTE(SUBSTITUTE(SUBSTITUTE(SUBSTITUTE(O9,$ED9,$ED$2&ROW($ED9)),$EC9,$EC$2&ROW($EC9)),$EB9,$EB$2&ROW($EB9)),$EA9,$EA$2&ROW($EA9)),$DZ9,$DZ$2&ROW($DZ9)),$DY9,$DY$2&ROW($DY9)),$DX9,$DX$2&ROW($DX9)),$DW9,$DW$2&ROW($DW9)),$DV9,$DV$2&ROW($DV9)),$DU9,$DU$2&ROW($DU9)),$DT9,$DT$2&ROW($DT9)),$DS9,$DS$2&ROW($DS9))) -> X=if(AW9=6,4879,if(AW9=0,216,32)) | DD9: =IF(P9="",0,"X="&SUBSTITUTE(SUBSTITUTE(SUBSTITUTE(SUBSTITUTE(SUBSTITUTE(SUBSTITUTE(SUBSTITUTE(SUBSTITUTE(SUBSTITUTE(SUBSTITUTE(SUBSTITUTE(SUBSTITUTE(P9,$ED9,$ED$2&ROW($ED9)),$EC9,$EC$2&ROW($EC9)),$EB9,$EB$2&ROW($EB9)),$EA9,$EA$2&ROW($EA9)),$DZ9,$DZ$2&ROW($DZ9)),$DY9,$DY$2&ROW($DY9)),$DX9,$DX$2&ROW($DX9)),$DW9,$DW$2&ROW($DW9)),$DV9,$DV$2&ROW($DV9)),$DU9,$DU$2&ROW($DU9)),$DT9,$DT$2&ROW($DT9)),$DS9,$DS$2&ROW($DS9))) -> 0 | DE9: =IF(Q9="",0,"X="&SUBSTITUTE(SUBSTITUTE(SUBSTITUTE(SUBSTITUTE(SUBSTITUTE(SUBSTITUTE(SUBSTITUTE(SUBSTITUTE(SUBSTITUTE(SUBSTITUTE(SUBSTITUTE(SUBSTITUTE(Q9,$ED9,$ED$2&ROW($ED9)),$EC9,$EC$2&ROW($EC9)),$EB9,$EB$2&ROW($EB9)),$EA9,$EA$2&ROW($EA9)),$DZ9,$DZ$2&ROW($DZ9)),$DY9,$DY$2&ROW($DY9)),$DX9,$DX$2&ROW($DX9)),$DW9,$DW$2&ROW($DW9)),$DV9,$DV$2&ROW($DV9)),$DU9,$DU$2&ROW($DU9)),$DT9,$DT$2&ROW($DT9)),$DS9,$DS$2&ROW($DS9))) -> 0 | DF9: =IF(R9="",0,"X="&SUBSTITUTE(SUBSTITUTE(SUBSTITUTE(SUBSTITUTE(SUBSTITUTE(SUBSTITUTE(SUBSTITUTE(SUBSTITUTE(SUBSTITUTE(SUBSTITUTE(SUBSTITUTE(SUBSTITUTE(R9,$ED9,$ED$2&ROW($ED9)),$EC9,$EC$2&ROW($EC9)),$EB9,$EB$2&ROW($EB9)),$EA9,$EA$2&ROW($EA9)),$DZ9,$DZ$2&ROW($DZ9)),$DY9,$DY$2&ROW($DY9)),$DX9,$DX$2&ROW($DX9)),$DW9,$DW$2&ROW($DW9)),$DV9,$DV$2&ROW($DV9)),$DU9,$DU$2&ROW($DU9)),$DT9,$DT$2&ROW($DT9)),$DS9,$DS$2&ROW($DS9))) -> X=if(AW9=6,0.068,if(AW9=0,0.068,0.068)) | DG9: =IF(S9="",0,"X="&SUBSTITUTE(SUBSTITUTE(SUBSTITUTE(SUBSTITUTE(SUBSTITUTE(SUBSTITUTE(SUBSTITUTE(SUBSTITUTE(SUBSTITUTE(SUBSTITUTE(SUBSTITUTE(SUBSTITUTE(S9,$ED9,$ED$2&ROW($ED9)),$EC9,$EC$2&ROW($EC9)),$EB9,$EB$2&ROW($EB9)),$EA9,$EA$2&ROW($EA9)),$DZ9,$DZ$2&ROW($DZ9)),$DY9,$DY$2&ROW($DY9)),$DX9,$DX$2&ROW($DX9)),$DW9,$DW$2&ROW($DW9)),$DV9,$DV$2&ROW($DV9)),$DU9,$DU$2&ROW($DU9)),$DT9,$DT$2&ROW($DT9)),$DS9,$DS$2&ROW($DS9))) -> 0 | DH9: =IF(T9="",0,"X="&SUBSTITUTE(SUBSTITUTE(SUBSTITUTE(SUBSTITUTE(SUBSTITUTE(SUBSTITUTE(SUBSTITUTE(SUBSTITUTE(SUBSTITUTE(SUBSTITUTE(SUBSTITUTE(SUBSTITUTE(T9,$ED9,$ED$2&ROW($ED9)),$EC9,$EC$2&ROW($EC9)),$EB9,$EB$2&ROW($EB9)),$EA9,$EA$2&ROW($EA9)),$DZ9,$DZ$2&ROW($DZ9)),$DY9,$DY$2&ROW($DY9)),$DX9,$DX$2&ROW($DX9)),$DW9,$DW$2&ROW($DW9)),$DV9,$DV$2&ROW($DV9)),$DU9,$DU$2&ROW($DU9)),$DT9,$DT$2&ROW($DT9)),$DS9,$DS$2&ROW($DS9))) -> 0 | DI9: =IF(U9="",0,"X="&SUBSTITUTE(SUBSTITUTE(SUBSTITUTE(SUBSTITUTE(SUBSTITUTE(SUBSTITUTE(SUBSTITUTE(SUBSTITUTE(SUBSTITUTE(SUBSTITUTE(SUBSTITUTE(SUBSTITUTE(U9,$ED9,$ED$2&ROW($ED9)),$EC9,$EC$2&ROW($EC9)),$EB9,$EB$2&ROW($EB9)),$EA9,$EA$2&ROW($EA9)),$DZ9,$DZ$2&ROW($DZ9)),$DY9,$DY$2&ROW($DY9)),$DX9,$DX$2&ROW($DX9)),$DW9,$DW$2&ROW($DW9)),$DV9,$DV$2&ROW($DV9)),$DU9,$DU$2&ROW($DU9)),$DT9,$DT$2&ROW($DT9)),$DS9,$DS$2&ROW($DS9))) -> X=if(AW9=6,1.202,if(AW9=0,0.046,0)) | DJ9: =IF(V9="",0,"X="&SUBSTITUTE(SUBSTITUTE(SUBSTITUTE(SUBSTITUTE(SUBSTITUTE(SUBSTITUTE(SUBSTITUTE(SUBSTITUTE(SUBSTITUTE(SUBSTITUTE(SUBSTITUTE(SUBSTITUTE(V9,$ED9,$ED$2&ROW($ED9)),$EC9,$EC$2&ROW($EC9)),$EB9,$EB$2&ROW($EB9)),$EA9,$EA$2&ROW($EA9)),$DZ9,$DZ$2&ROW($DZ9)),$DY9,$DY$2&ROW($DY9)),$DX9,$DX$2&ROW($DX9)),$DW9,$DW$2&ROW($DW9)),$DV9,$DV$2&ROW($DV9)),$DU9,$DU$2&ROW($DU9)),$DT9,$DT$2&ROW($DT9)),$DS9,$DS$2&ROW($DS9))) -> X=if(AW9=6,0.068,if(AW9=0,0.068,0.068)) | DK9: =IF(W9="",0,"X="&SUBSTITUTE(SUBSTITUTE(SUBSTITUTE(SUBSTITUTE(SUBSTITUTE(SUBSTITUTE(SUBSTITUTE(SUBSTITUTE(SUBSTITUTE(SUBSTITUTE(SUBSTITUTE(SUBSTITUTE(W9,$ED9,$ED$2&ROW($ED9)),$EC9,$EC$2&ROW($EC9)),$EB9,$EB$2&ROW($EB9)),$EA9,$EA$2&ROW($EA9)),$DZ9,$DZ$2&ROW($DZ9)),$DY9,$DY$2&ROW($DY9)),$DX9,$DX$2&ROW($DX9)),$DW9,$DW$2&ROW($DW9)),$DV9,$DV$2&ROW($DV9)),$DU9,$DU$2&ROW($DU9)),$DT9,$DT$2&ROW($DT9)),$DS9,$DS$2&ROW($DS9))) -> X=if(AW9=1,20.034,if(AW9=0,1.793,0))*10 | DL9: =IF(X9="",0,"X="&SUBSTITUTE(SUBSTITUTE(SUBSTITUTE(SUBSTITUTE(SUBSTITUTE(SUBSTITUTE(SUBSTITUTE(SUBSTITUTE(SUBSTITUTE(SUBSTITUTE(SUBSTITUTE(SUBSTITUTE(X9,$ED9,$ED$2&ROW($ED9)),$EC9,$EC$2&ROW($EC9)),$EB9,$EB$2&ROW($EB9)),$EA9,$EA$2&ROW($EA9)),$DZ9,$DZ$2&ROW($DZ9)),$DY9,$DY$2&ROW($DY9)),$DX9,$DX$2&ROW($DX9)),$DW9,$DW$2&ROW($DW9)),$DV9,$DV$2&ROW($DV9)),$DU9,$DU$2&ROW($DU9)),$DT9,$DT$2&ROW($DT9)),$DS9,$DS$2&ROW($DS9))) -> X=if(AW9=2,20.034,if(AW9 = 0,2.610,0)) | DM9: =IF(Y9="",0,"X="&SUBSTITUTE(SUBSTITUTE(SUBSTITUTE(SUBSTITUTE(SUBSTITUTE(SUBSTITUTE(SUBSTITUTE(SUBSTITUTE(SUBSTITUTE(SUBSTITUTE(SUBSTITUTE(SUBSTITUTE(Y9,$ED9,$ED$2&ROW($ED9)),$EC9,$EC$2&ROW($EC9)),$EB9,$EB$2&ROW($EB9)),$EA9,$EA$2&ROW($EA9)),$DZ9,$DZ$2&ROW($DZ9)),$DY9,$DY$2&ROW($DY9)),$DX9,$DX$2&ROW($DX9)),$DW9,$DW$2&ROW($DW9)),$DV9,$DV$2&ROW($DV9)),$DU9,$DU$2&ROW($DU9)),$DT9,$DT$2&ROW($DT9)),$DS9,$DS$2&ROW($DS9))) -> X=if(AW9=3,20.034,if(AW9 = 0,13.628,0)) | DN9: =IF(Z9="",0,"X="&SUBSTITUTE(SUBSTITUTE(SUBSTITUTE(SUBSTITUTE(SUBSTITUTE(SUBSTITUTE(SUBSTITUTE(SUBSTITUTE(SUBSTITUTE(SUBSTITUTE(SUBSTITUTE(SUBSTITUTE(Z9,$ED9,$ED$2&ROW($ED9)),$EC9,$EC$2&ROW($EC9)),$EB9,$EB$2&ROW($EB9)),$EA9,$EA$2&ROW($EA9)),$DZ9,$DZ$2&ROW($DZ9)),$DY9,$DY$2&ROW($DY9)),$DX9,$DX$2&ROW($DX9)),$DW9,$DW$2&ROW($DW9)),$DV9,$DV$2&ROW($DV9)),$DU9,$DU$2&ROW($DU9)),$DT9,$DT$2&ROW($DT9)),$DS9,$DS$2&ROW($DS9))) -> X=if(AW9=4,20.034,if(AW9 = 0,0.279,0)) | DO9: =IF(AA9="",0,"X="&SUBSTITUTE(SUBSTITUTE(SUBSTITUTE(SUBSTITUTE(SUBSTITUTE(SUBSTITUTE(SUBSTITUTE(SUBSTITUTE(SUBSTITUTE(SUBSTITUTE(SUBSTITUTE(SUBSTITUTE(AA9,$ED9,$ED$2&ROW($ED9)),$EC9,$EC$2&ROW($EC9)),$EB9,$EB$2&ROW($EB9)),$EA9,$EA$2&ROW($EA9)),$DZ9,$DZ$2&ROW($DZ9)),$DY9,$DY$2&ROW($DY9)),$DX9,$DX$2&ROW($DX9)),$DW9,$DW$2&ROW($DW9)),$DV9,$DV$2&ROW($DV9)),$DU9,$DU$2&ROW($DU9)),$DT9,$DT$2&ROW($DT9)),$DS9,$DS$2&ROW($DS9))) -> X=if(AW9=5,20.034,if(AW9 = 0,0.857,0)) | DP9: =IF(AB9="",0,"X="&SUBSTITUTE(SUBSTITUTE(SUBSTITUTE(SUBSTITUTE(SUBSTITUTE(SUBSTITUTE(SUBSTITUTE(SUBSTITUTE(SUBSTITUTE(SUBSTITUTE(SUBSTITUTE(SUBSTITUTE(AB9,$ED9,$ED$2&ROW($ED9)),$EC9,$EC$2&ROW($EC9)),$EB9,$EB$2&ROW($EB9)),$EA9,$EA$2&ROW($EA9)),$DZ9,$DZ$2&ROW($DZ9)),$DY9,$DY$2&ROW($DY9)),$DX9,$DX$2&ROW($DX9)),$DW9,$DW$2&ROW($DW9)),$DV9,$DV$2&ROW($DV9)),$DU9,$DU$2&ROW($DU9)),$DT9,$DT$2&ROW($DT9)),$DS9,$DS$2&ROW($DS9))) -> X=0 | DS9: {Factor:WinterCF} | DT9: {Factor:SummerCF} | DU9: =IFERROR(INDEX($EG9:$IV9,MATCH(0,COUNTIF($DR9:DT9,$EG9:$IV9),0)),"") -> {Cost} | DV9: =IFERROR(INDEX($EG9:$IV9,MATCH(0,COUNTIF($DR9:DU9,$EG9:$IV9),0)),"") -> {Measure:Quantity} | DW9: =IFERROR(INDEX($EG9:$IV9,MATCH(0,COUNTIF($DR9:DV9,$EG9:$IV9),0)),"") -> {Primary heating type} | DX9: =IFERROR(INDEX($EG9:$IV9,MATCH(0,COUNTIF($DR9:DW9,$EG9:$IV9),0)),"") ->  | DY9: =IFERROR(INDEX($EG9:$IV9,MATCH(0,COUNTIF($DR9:DX9,$EG9:$IV9),0)),"") ->  | DZ9: =IFERROR(INDEX($EG9:$IV9,MATCH(0,COUNTIF($DR9:DY9,$EG9:$IV9),0)),"") ->  | EA9: =IFERROR(INDEX($EG9:$IV9,MATCH(0,COUNTIF($DR9:DZ9,$EG9:$IV9),0)),"") ->  | EB9: =IFERROR(INDEX($EG9:$IV9,MATCH(0,COUNTIF($DR9:EA9,$EG9:$IV9),0)),"") ->  | EC9: =IFERROR(INDEX($EG9:$IV9,MATCH(0,COUNTIF($DR9:EB9,$EG9:$IV9),0)),"") ->  | ED9: =IFERROR(INDEX($EG9:$IV9,MATCH(0,COUNTIF($DR9:EC9,$EG9:$IV9),0)),"") ->  | EG9: {Cost} | EH9: {Measure:Quantity} | EQ9: {Cost} | ER9: {Cost} | ES9: {Measure:Quantity} | FA9: {Cost} | FB9: {Cost} | FK9: {Primary heating type} | FL9: {Primary heating type} | FU9: {Primary heating type} | FV9: {Primary heating type} | GE9: {Primary heating type} | GF9: {Primary heating type} | GO9: {Primary heating type} | GP9: {Primary heating type} | GY9: {Primary heating type} | GZ9: {Primary heating type} | HI9: {Primary heating type} | HJ9: {Primary heating type} | HS9: {Primary heating type} | HT9: {Primary heating type} | IC9: {Primary heating type} | ID9: {Primary heating type} | IM9: {Primary heating type} | IN9: {Primary heating type} | IZ9: 3
A10: Affordable Heat Initiative - Natural Gas | B10: Attic Insulation LIHESP | C10: LBA | D10: 2021-07-01 | E10: 2022-06-30 | F10: Calculated | G10: {Cost}*{Measure:Quantity} | H10: 0 | I10: Calculated | J10: if({Cost}*0.80>2000,2000,Round({Cost}*0.80,2))*{Measure:Quantity} | K10: 0 | L10: 2020-07-01 | M10: 2022-06-30 | N10: Calculated | O10: if({Primary heating type}=6,3101,if({Primary heating type}=0,117,20)) | R10: if({Primary heating type}=6,0.053,if({Primary heating type}=0,0.053,0.053)) | U10: if({Primary heating type}=6,0.678,if({Primary heating type}=0,0.026,0)) | V10: if({Primary heating type}=6,0.053,if({Primary heating type}=0,0.053,0.053)) | W10: if({Primary heating type}=1,12.663,if({Primary heating type}=0,1.140,0))*10 | X10: if({Primary heating type}=2,12.663,if({Primary heating type}=0,1.659,0)) | Y10: if({Primary heating type}=3,12.663,if({Primary heating type} = 0,8.661,0)) | Z10: if({Primary heating type}=4,12.663,if({Primary heating type} = 0,0.177,0)) | AA10: if({Primary heating type}=5,12.663,if({Primary heating type} = 0,0.545,0)) | AB10: 0 | AC10: 2019-07-01 | AD10: 2022-06-30 | AE10: 25 | AF10: 1 | AG10: 1 | AH10: 0 | AI10: 0 | AJ10: 0.666 | AK10: 0.301 | AL10: 1 | AM10: 1 | AN10: 1 | AO10: 0 | AP10: 0 | AR10: {Cost} | AS10: 1962 | AT10: {Measure:Quantity} | AU10: 1 | AV10: {Primary heating type} | AW10: 1 | BL10: =IF(AW10=6,3101,IF(AW10=0,117,IF(AW10=1,33,20))) -> 33 | BM10: 0 | BN10: 0 | BO10: =IF(AW10=6,0.053,IF(AW10=0,0.053,0.053)) -> 0.053 | BP10: 0 | BQ10: 0 | BR10: =IF(AW10=6,0.678,IF(AW10=0,0.026,0)) -> 0 | BS10: =IF(AW10=6,0.053,IF(AW10=1,0.086,0.053)) -> 0.086 | BT10: =IF(AW10=1,20.634,IF(AW10=0,1.14,0))*10 -> 206.34 | BU10: =IF(AW10=2,12.663,IF(AW10=0,1.659,0)) -> 0 | BV10: =IF(AW10=3,12.663,IF(AW10 = 0,8.661,0)) -> 0 | BW10: =IF(AW10=4,12.663,IF(AW10 = 0,0.177,0)) -> 0 | BX10: =IF(AW10=5,12.663,IF(AW10 = 0,0.545,0)) -> 0 | BY10: =0 -> 0 | CA10: Res | CB10: RGGI DR | CC10: =Benefits(BL10,BR10,BS10,BT10,BU10,BV10,BW10,BX10,BY10,BZ10,AE10,AH10,AI10,AJ10,AK10,AL10,AM10,AN10,AO10,AP10,CA10,CB10) -> 53.79384779 | CD10: 239.0410796 | CE10: 5521.497786 | CF10: 0 | CG10: 0 | CH10: 0 | CI10: 0 | CJ10: 0 | CK10: 0 | CL10: =SUMPRODUCT(CC10:CK10,--(CC10:CK10>0)) -> 5814.332713 | CM10: =-SUMPRODUCT(CC10:CK10,--(CC10:CK10<0)) -> 0 | CO10: =AS10*AU10 -> 1962 | CR10: =CM10+CO10 -> 1962 | CS10: =IF(NetOrGross="Net",(1-AO10+AP10),1) -> 1 | CT10: =(SUMPRODUCT(CC10:CJ10,--(CC10:CJ10>0))+CN10)*CS10/((-SUMPRODUCT(CC10:CJ10,--(CC10:CJ10<0))+MAX(CO10,CV10)+CP10+CQ10)*CS10+IF(FRIncentives="Yes",CV10*(1-CS10),0)) -> 2.963472331 | CU10: 1 | CV10: =IF(AS10*0.8>2000,2000,ROUND(AS10*0.8,2))*AU10 -> 1569.6 | CX10: RGGI | CY10: y | DA10: =IF(F10="Manual Entry","Manual",IF(G10="",0,"X="&SUBSTITUTE(SUBSTITUTE(SUBSTITUTE(SUBSTITUTE(SUBSTITUTE(SUBSTITUTE(SUBSTITUTE(SUBSTITUTE(SUBSTITUTE(SUBSTITUTE(SUBSTITUTE(SUBSTITUTE(G10,$ED10,$ED$2&ROW($ED10)),$EC10,$EC$2&ROW($EC10)),$EB10,$EB$2&ROW($EB10)),$EA10,$EA$2&ROW($EA10)),$DZ10,$DZ$2&ROW($DZ10)),$DY10,$DY$2&ROW($DY10)),$DX10,$DX$2&ROW($DX10)),$DW10,$DW$2&ROW($DW10)),$DV10,$DV$2&ROW($DV10)),$DU10,$DU$2&ROW($DU10)),$DT10,$DT$2&ROW($DT10)),$DS10,$DS$2&ROW($DS10)))) -> X=AS10*AU10 | DB10: =IF(I10="Manual Entry","Manual",IF(J10="",0,"X="&SUBSTITUTE(SUBSTITUTE(SUBSTITUTE(SUBSTITUTE(SUBSTITUTE(SUBSTITUTE(SUBSTITUTE(SUBSTITUTE(SUBSTITUTE(SUBSTITUTE(SUBSTITUTE(SUBSTITUTE(J10,$ED10,$ED$2&ROW($ED10)),$EC10,$EC$2&ROW($EC10)),$EB10,$EB$2&ROW($EB10)),$EA10,$EA$2&ROW($EA10)),$DZ10,$DZ$2&ROW($DZ10)),$DY10,$DY$2&ROW($DY10)),$DX10,$DX$2&ROW($DX10)),$DW10,$DW$2&ROW($DW10)),$DV10,$DV$2&ROW($DV10)),$DU10,$DU$2&ROW($DU10)),$DT10,$DT$2&ROW($DT10)),$DS10,$DS$2&ROW($DS10)))) -> X=if(AS10*0.80>2000,2000,Round(AS10*0.80,2))*AU10 | DC10: =IF(O10="",0,"X="&SUBSTITUTE(SUBSTITUTE(SUBSTITUTE(SUBSTITUTE(SUBSTITUTE(SUBSTITUTE(SUBSTITUTE(SUBSTITUTE(SUBSTITUTE(SUBSTITUTE(SUBSTITUTE(SUBSTITUTE(O10,$ED10,$ED$2&ROW($ED10)),$EC10,$EC$2&ROW($EC10)),$EB10,$EB$2&ROW($EB10)),$EA10,$EA$2&ROW($EA10)),$DZ10,$DZ$2&ROW($DZ10)),$DY10,$DY$2&ROW($DY10)),$DX10,$DX$2&ROW($DX10)),$DW10,$DW$2&ROW($DW10)),$DV10,$DV$2&ROW($DV10)),$DU10,$DU$2&ROW($DU10)),$DT10,$DT$2&ROW($DT10)),$DS10,$DS$2&ROW($DS10))) -> X=if(AW10=6,3101,if(AW10=0,117,20)) | DD10: =IF(P10="",0,"X="&SUBSTITUTE(SUBSTITUTE(SUBSTITUTE(SUBSTITUTE(SUBSTITUTE(SUBSTITUTE(SUBSTITUTE(SUBSTITUTE(SUBSTITUTE(SUBSTITUTE(SUBSTITUTE(SUBSTITUTE(P10,$ED10,$ED$2&ROW($ED10)),$EC10,$EC$2&ROW($EC10)),$EB10,$EB$2&ROW($EB10)),$EA10,$EA$2&ROW($EA10)),$DZ10,$DZ$2&ROW($DZ10)),$DY10,$DY$2&ROW($DY10)),$DX10,$DX$2&ROW($DX10)),$DW10,$DW$2&ROW($DW10)),$DV10,$DV$2&ROW($DV10)),$DU10,$DU$2&ROW($DU10)),$DT10,$DT$2&ROW($DT10)),$DS10,$DS$2&ROW($DS10))) -> 0 | DE10: =IF(Q10="",0,"X="&SUBSTITUTE(SUBSTITUTE(SUBSTITUTE(SUBSTITUTE(SUBSTITUTE(SUBSTITUTE(SUBSTITUTE(SUBSTITUTE(SUBSTITUTE(SUBSTITUTE(SUBSTITUTE(SUBSTITUTE(Q10,$ED10,$ED$2&ROW($ED10)),$EC10,$EC$2&ROW($EC10)),$EB10,$EB$2&ROW($EB10)),$EA10,$EA$2&ROW($EA10)),$DZ10,$DZ$2&ROW($DZ10)),$DY10,$DY$2&ROW($DY10)),$DX10,$DX$2&ROW($DX10)),$DW10,$DW$2&ROW($DW10)),$DV10,$DV$2&ROW($DV10)),$DU10,$DU$2&ROW($DU10)),$DT10,$DT$2&ROW($DT10)),$DS10,$DS$2&ROW($DS10))) -> 0 | DF10: =IF(R10="",0,"X="&SUBSTITUTE(SUBSTITUTE(SUBSTITUTE(SUBSTITUTE(SUBSTITUTE(SUBSTITUTE(SUBSTITUTE(SUBSTITUTE(SUBSTITUTE(SUBSTITUTE(SUBSTITUTE(SUBSTITUTE(R10,$ED10,$ED$2&ROW($ED10)),$EC10,$EC$2&ROW($EC10)),$EB10,$EB$2&ROW($EB10)),$EA10,$EA$2&ROW($EA10)),$DZ10,$DZ$2&ROW($DZ10)),$DY10,$DY$2&ROW($DY10)),$DX10,$DX$2&ROW($DX10)),$DW10,$DW$2&ROW($DW10)),$DV10,$DV$2&ROW($DV10)),$DU10,$DU$2&ROW($DU10)),$DT10,$DT$2&ROW($DT10)),$DS10,$DS$2&ROW($DS10))) -> X=if(AW10=6,0.053,if(AW10=0,0.053,0.053)) | DG10: =IF(S10="",0,"X="&SUBSTITUTE(SUBSTITUTE(SUBSTITUTE(SUBSTITUTE(SUBSTITUTE(SUBSTITUTE(SUBSTITUTE(SUBSTITUTE(SUBSTITUTE(SUBSTITUTE(SUBSTITUTE(SUBSTITUTE(S10,$ED10,$ED$2&ROW($ED10)),$EC10,$EC$2&ROW($EC10)),$EB10,$EB$2&ROW($EB10)),$EA10,$EA$2&ROW($EA10)),$DZ10,$DZ$2&ROW($DZ10)),$DY10,$DY$2&ROW($DY10)),$DX10,$DX$2&ROW($DX10)),$DW10,$DW$2&ROW($DW10)),$DV10,$DV$2&ROW($DV10)),$DU10,$DU$2&ROW($DU10)),$DT10,$DT$2&ROW($DT10)),$DS10,$DS$2&ROW($DS10))) -> 0 | DH10: =IF(T10="",0,"X="&SUBSTITUTE(SUBSTITUTE(SUBSTITUTE(SUBSTITUTE(SUBSTITUTE(SUBSTITUTE(SUBSTITUTE(SUBSTITUTE(SUBSTITUTE(SUBSTITUTE(SUBSTITUTE(SUBSTITUTE(T10,$ED10,$ED$2&ROW($ED10)),$EC10,$EC$2&ROW($EC10)),$EB10,$EB$2&ROW($EB10)),$EA10,$EA$2&ROW($EA10)),$DZ10,$DZ$2&ROW($DZ10)),$DY10,$DY$2&ROW($DY10)),$DX10,$DX$2&ROW($DX10)),$DW10,$DW$2&ROW($DW10)),$DV10,$DV$2&ROW($DV10)),$DU10,$DU$2&ROW($DU10)),$DT10,$DT$2&ROW($DT10)),$DS10,$DS$2&ROW($DS10))) -> 0 | DI10: =IF(U10="",0,"X="&SUBSTITUTE(SUBSTITUTE(SUBSTITUTE(SUBSTITUTE(SUBSTITUTE(SUBSTITUTE(SUBSTITUTE(SUBSTITUTE(SUBSTITUTE(SUBSTITUTE(SUBSTITUTE(SUBSTITUTE(U10,$ED10,$ED$2&ROW($ED10)),$EC10,$EC$2&ROW($EC10)),$EB10,$EB$2&ROW($EB10)),$EA10,$EA$2&ROW($EA10)),$DZ10,$DZ$2&ROW($DZ10)),$DY10,$DY$2&ROW($DY10)),$DX10,$DX$2&ROW($DX10)),$DW10,$DW$2&ROW($DW10)),$DV10,$DV$2&ROW($DV10)),$DU10,$DU$2&ROW($DU10)),$DT10,$DT$2&ROW($DT10)),$DS10,$DS$2&ROW($DS10))) -> X=if(AW10=6,0.678,if(AW10=0,0.026,0)) | DJ10: =IF(V10="",0,"X="&SUBSTITUTE(SUBSTITUTE(SUBSTITUTE(SUBSTITUTE(SUBSTITUTE(SUBSTITUTE(SUBSTITUTE(SUBSTITUTE(SUBSTITUTE(SUBSTITUTE(SUBSTITUTE(SUBSTITUTE(V10,$ED10,$ED$2&ROW($ED10)),$EC10,$EC$2&ROW($EC10)),$EB10,$EB$2&ROW($EB10)),$EA10,$EA$2&ROW($EA10)),$DZ10,$DZ$2&ROW($DZ10)),$DY10,$DY$2&ROW($DY10)),$DX10,$DX$2&ROW($DX10)),$DW10,$DW$2&ROW($DW10)),$DV10,$DV$2&ROW($DV10)),$DU10,$DU$2&ROW($DU10)),$DT10,$DT$2&ROW($DT10)),$DS10,$DS$2&ROW($DS10))) -> X=if(AW10=6,0.053,if(AW10=0,0.053,0.053)) | DK10: =IF(W10="",0,"X="&SUBSTITUTE(SUBSTITUTE(SUBSTITUTE(SUBSTITUTE(SUBSTITUTE(SUBSTITUTE(SUBSTITUTE(SUBSTITUTE(SUBSTITUTE(SUBSTITUTE(SUBSTITUTE(SUBSTITUTE(W10,$ED10,$ED$2&ROW($ED10)),$EC10,$EC$2&ROW($EC10)),$EB10,$EB$2&ROW($EB10)),$EA10,$EA$2&ROW($EA10)),$DZ10,$DZ$2&ROW($DZ10)),$DY10,$DY$2&ROW($DY10)),$DX10,$DX$2&ROW($DX10)),$DW10,$DW$2&ROW($DW10)),$DV10,$DV$2&ROW($DV10)),$DU10,$DU$2&ROW($DU10)),$DT10,$DT$2&ROW($DT10)),$DS10,$DS$2&ROW($DS10))) -> X=if(AW10=1,12.663,if(AW10=0,1.140,0))*10 | DL10: =IF(X10="",0,"X="&SUBSTITUTE(SUBSTITUTE(SUBSTITUTE(SUBSTITUTE(SUBSTITUTE(SUBSTITUTE(SUBSTITUTE(SUBSTITUTE(SUBSTITUTE(SUBSTITUTE(SUBSTITUTE(SUBSTITUTE(X10,$ED10,$ED$2&ROW($ED10)),$EC10,$EC$2&ROW($EC10)),$EB10,$EB$2&ROW($EB10)),$EA10,$EA$2&ROW($EA10)),$DZ10,$DZ$2&ROW($DZ10)),$DY10,$DY$2&ROW($DY10)),$DX10,$DX$2&ROW($DX10)),$DW10,$DW$2&ROW($DW10)),$DV10,$DV$2&ROW($DV10)),$DU10,$DU$2&ROW($DU10)),$DT10,$DT$2&ROW($DT10)),$DS10,$DS$2&ROW($DS10))) -> X=if(AW10=2,12.663,if(AW10=0,1.659,0)) | DM10: =IF(Y10="",0,"X="&SUBSTITUTE(SUBSTITUTE(SUBSTITUTE(SUBSTITUTE(SUBSTITUTE(SUBSTITUTE(SUBSTITUTE(SUBSTITUTE(SUBSTITUTE(SUBSTITUTE(SUBSTITUTE(SUBSTITUTE(Y10,$ED10,$ED$2&ROW($ED10)),$EC10,$EC$2&ROW($EC10)),$EB10,$EB$2&ROW($EB10)),$EA10,$EA$2&ROW($EA10)),$DZ10,$DZ$2&ROW($DZ10)),$DY10,$DY$2&ROW($DY10)),$DX10,$DX$2&ROW($DX10)),$DW10,$DW$2&ROW($DW10)),$DV10,$DV$2&ROW($DV10)),$DU10,$DU$2&ROW($DU10)),$DT10,$DT$2&ROW($DT10)),$DS10,$DS$2&ROW($DS10))) -> X=if(AW10=3,12.663,if(AW10 = 0,8.661,0)) | DN10: =IF(Z10="",0,"X="&SUBSTITUTE(SUBSTITUTE(SUBSTITUTE(SUBSTITUTE(SUBSTITUTE(SUBSTITUTE(SUBSTITUTE(SUBSTITUTE(SUBSTITUTE(SUBSTITUTE(SUBSTITUTE(SUBSTITUTE(Z10,$ED10,$ED$2&ROW($ED10)),$EC10,$EC$2&ROW($EC10)),$EB10,$EB$2&ROW($EB10)),$EA10,$EA$2&ROW($EA10)),$DZ10,$DZ$2&ROW($DZ10)),$DY10,$DY$2&ROW($DY10)),$DX10,$DX$2&ROW($DX10)),$DW10,$DW$2&ROW($DW10)),$DV10,$DV$2&ROW($DV10)),$DU10,$DU$2&ROW($DU10)),$DT10,$DT$2&ROW($DT10)),$DS10,$DS$2&ROW($DS10))) -> X=if(AW10=4,12.663,if(AW10 = 0,0.177,0)) | DO10: =IF(AA10="",0,"X="&SUBSTITUTE(SUBSTITUTE(SUBSTITUTE(SUBSTITUTE(SUBSTITUTE(SUBSTITUTE(SUBSTITUTE(SUBSTITUTE(SUBSTITUTE(SUBSTITUTE(SUBSTITUTE(SUBSTITUTE(AA10,$ED10,$ED$2&ROW($ED10)),$EC10,$EC$2&ROW($EC10)),$EB10,$EB$2&ROW($EB10)),$EA10,$EA$2&ROW($EA10)),$DZ10,$DZ$2&ROW($DZ10)),$DY10,$DY$2&ROW($DY10)),$DX10,$DX$2&ROW($DX10)),$DW10,$DW$2&ROW($DW10)),$DV10,$DV$2&ROW($DV10)),$DU10,$DU$2&ROW($DU10)),$DT10,$DT$2&ROW($DT10)),$DS10,$DS$2&ROW($DS10))) -> X=if(AW10=5,12.663,if(AW10 = 0,0.545,0)) | DP10: =IF(AB10="",0,"X="&SUBSTITUTE(SUBSTITUTE(SUBSTITUTE(SUBSTITUTE(SUBSTITUTE(SUBSTITUTE(SUBSTITUTE(SUBSTITUTE(SUBSTITUTE(SUBSTITUTE(SUBSTITUTE(SUBSTITUTE(AB10,$ED10,$ED$2&ROW($ED10)),$EC10,$EC$2&ROW($EC10)),$EB10,$EB$2&ROW($EB10)),$EA10,$EA$2&ROW($EA10)),$DZ10,$DZ$2&ROW($DZ10)),$DY10,$DY$2&ROW($DY10)),$DX10,$DX$2&ROW($DX10)),$DW10,$DW$2&ROW($DW10)),$DV10,$DV$2&ROW($DV10)),$DU10,$DU$2&ROW($DU10)),$DT10,$DT$2&ROW($DT10)),$DS10,$DS$2&ROW($DS10))) -> X=0 | DS10: {Factor:WinterCF} | DT10: {Factor:SummerCF} | DU10: =IFERROR(INDEX($EG10:$IV10,MATCH(0,COUNTIF($DR10:DT10,$EG10:$IV10),0)),"") -> {Cost} | DV10: =IFERROR(INDEX($EG10:$IV10,MATCH(0,COUNTIF($DR10:DU10,$EG10:$IV10),0)),"") -> {Measure:Quantity} | DW10: =IFERROR(INDEX($EG10:$IV10,MATCH(0,COUNTIF($DR10:DV10,$EG10:$IV10),0)),"") -> {Primary heating type} | DX10: =IFERROR(INDEX($EG10:$IV10,MATCH(0,COUNTIF($DR10:DW10,$EG10:$IV10),0)),"") ->  | DY10: =IFERROR(INDEX($EG10:$IV10,MATCH(0,COUNTIF($DR10:DX10,$EG10:$IV10),0)),"") ->  | DZ10: =IFERROR(INDEX($EG10:$IV10,MATCH(0,COUNTIF($DR10:DY10,$EG10:$IV10),0)),"") ->  | EA10: =IFERROR(INDEX($EG10:$IV10,MATCH(0,COUNTIF($DR10:DZ10,$EG10:$IV10),0)),"") ->  | EB10: =IFERROR(INDEX($EG10:$IV10,MATCH(0,COUNTIF($DR10:EA10,$EG10:$IV10),0)),"") ->  | EC10: =IFERROR(INDEX($EG10:$IV10,MATCH(0,COUNTIF($DR10:EB10,$EG10:$IV10),0)),"") ->  | ED10: =IFERROR(INDEX($EG10:$IV10,MATCH(0,COUNTIF($DR10:EC10,$EG10:$IV10),0)),"") ->  | EG10: {Cost} | EH10: {Measure:Quantity} | EQ10: {Cost} | ER10: {Cost} | ES10: {Measure:Quantity} | FA10: {Cost} | FB10: {Cost} | FK10: {Primary heating type} | FL10: {Primary heating type} | FU10: {Primary heating type} | FV10: {Primary heating type} | GE10: {Primary heating type} | GF10: {Primary heating type} | GO10: {Primary heating type} | GP10: {Primary heating type} | GY10: {Primary heating type} | GZ10: {Primary heating type} | HI10: {Primary heating type} | HJ10: {Primary heating type} | HS10: {Primary heating type} | HT10: {Primary heating type} | IC10: {Primary heating type} | ID10: {Primary heating type} | IM10: {Primary heating type} | IN10: {Primary heating type} | IZ10: 3
A11: Affordable Heat Initiative - NECEC Funds | B11: MiniSplit HP Property Assessed | C11: LCHA | D11: 2021-07-01 | E11: 2022-06-30 | F11: Calculated | G11: {Cost}*{Measure:Quantity} | H11: 0 | I11: Calculated | J11: if({Primary heating type}=2,2000,0)*{Measure:Quantity} | K11: 2000 | L11: 2020-07-01 | M11: 2022-06-30 | N11: Calculated | O11: if({Primary heating type}=6,5379,if({Primary heating type}=0,-2581.54,-2744)) | U11: if({Primary heating type}=6,1.046,if({Primary heating type}=0,-0.562,-0.595)) | V11: 0.031 | W11: 10*if({Primary heating type}=1,1,if({Primary heating type}=0,0,0))*31.72 | X11: if({Primary heating type}=2,1,if({Primary heating type}=0,0.06,0))*31.72 | Y11: if({Primary heating type}=3,1,if({Primary heating type}=0,0.79,0))*31.72 | Z11: if({Primary heating type}=4,1,if({Primary heating type}=0,0.06,0))*31.72 | AA11: if({Primary heating type}=5,1,if({Primary heating type}=0,0.07,0))*31.72 | AB11: 0 | AC11: 2019-07-01 | AD11: 2022-06-30 | AE11: 18 | AF11: 1 | AG11: 1 | AH11: 0.373 | AI11: 0.528 | AJ11: 0.053 | AK11: 0.046 | AL11: 1 | AM11: 1 | AN11: 1 | AO11: 0 | AP11: 0 | AR11: =DU11 -> {Cost} | AS11: 2500 | AT11: =DV11 -> {Measure:Quantity} | AU11: 1 | AV11: =DW11 -> {Primary heating type} | AW11: 2 | AX11: =DX11 ->  | AZ11: =DY11 ->  | BB11: =DZ11 ->  | BD11: =EA11 ->  | BF11: =EB11 ->  | BH11: =EC11 ->  | BJ11: =ED11 ->  | BL11: =IF(AW11=6,5379,IF(AW11=0,-2581.54,-2744)) -> -2744 | BM11: 0 | BN11: 0 | BO11: 0 | BP11: 0 | BQ11: 0 | BR11: =IF(AW11=6,1.046,IF(AW11=0,-0.562,-0.595)) -> -0.595 | BS11: =0.031 -> 0.031 | BT11: =10*IF(AW11=1,1,IF(AW11=0,0,0))*31.72 -> 0 | BU11: =IF(AW11=2,1,IF(AW11=0,0.06,0))*31.72 -> 31.72 | BV11: =IF(AW11=3,1,IF(AW11=0,0.79,0))*31.72 -> 0 | BW11: =IF(AW11=4,1,IF(AW11=0,0.06,0))*31.72 -> 0 | BX11: =IF(AW11=5,1,IF(AW11=0,0.07,0))*31.72 -> 0 | BY11: =0 -> 0 | CA11: Res | CB11: Default DR | CC11: =Benefits(BL11,BR11,BS11,BT11,BU11,BV11,BW11,BX11,BY11,BZ11,AE11,AH11,AI11,AJ11,AK11,AL11,AM11,AN11,AO11,AP11,CA11,CB11) -> -4315.624557 | CD11: -2522.035138 | CE11: 0 | CF11: 0 | CG11: 0 | CH11: 21494.27313 | CI11: 0 | CJ11: 0 | CK11: 0 | CL11: =SUMPRODUCT(CC11:CK11,--(CC11:CK11>0)) -> 21494.27313 | CM11: =-SUMPRODUCT(CC11:CK11,--(CC11:CK11<0)) -> 6837.659695 | CO11: =AS11*AU11 -> 2500 | CR11: =CM11+CO11 -> 9337.659695 | CS11: =IF(NetOrGross="Net",(1-AO11+AP11),1) -> 1 | CT11: =(SUMPRODUCT(CC11:CJ11,--(CC11:CJ11>0))+CN11)*CS11/((-SUMPRODUCT(CC11:CJ11,--(CC11:CJ11<0))+MAX(CO11,CV11)+CP11+CQ11)*CS11+IF(FRIncentives="Yes",CV11*(1-CS11),0)) -> 2.30189082 | CU11: 1 | CV11: =IF(AW11=2,2000,0)*AU11 -> 2000 | CX11: RGGI | CY11: y | CZ11: 1 | DA11: =IF(F11="Manual Entry","Manual",IF(G11="",0,"X="&SUBSTITUTE(SUBSTITUTE(SUBSTITUTE(SUBSTITUTE(SUBSTITUTE(SUBSTITUTE(SUBSTITUTE(SUBSTITUTE(SUBSTITUTE(SUBSTITUTE(SUBSTITUTE(SUBSTITUTE(G11,$ED11,$ED$2&ROW($ED11)),$EC11,$EC$2&ROW($EC11)),$EB11,$EB$2&ROW($EB11)),$EA11,$EA$2&ROW($EA11)),$DZ11,$DZ$2&ROW($DZ11)),$DY11,$DY$2&ROW($DY11)),$DX11,$DX$2&ROW($DX11)),$DW11,$DW$2&ROW($DW11)),$DV11,$DV$2&ROW($DV11)),$DU11,$DU$2&ROW($DU11)),$DT11,$DT$2&ROW($DT11)),$DS11,$DS$2&ROW($DS11)))) -> X=AS11*AU11 | DB11: =IF(I11="Manual Entry","Manual",IF(J11="",0,"X="&SUBSTITUTE(SUBSTITUTE(SUBSTITUTE(SUBSTITUTE(SUBSTITUTE(SUBSTITUTE(SUBSTITUTE(SUBSTITUTE(SUBSTITUTE(SUBSTITUTE(SUBSTITUTE(SUBSTITUTE(J11,$ED11,$ED$2&ROW($ED11)),$EC11,$EC$2&ROW($EC11)),$EB11,$EB$2&ROW($EB11)),$EA11,$EA$2&ROW($EA11)),$DZ11,$DZ$2&ROW($DZ11)),$DY11,$DY$2&ROW($DY11)),$DX11,$DX$2&ROW($DX11)),$DW11,$DW$2&ROW($DW11)),$DV11,$DV$2&ROW($DV11)),$DU11,$DU$2&ROW($DU11)),$DT11,$DT$2&ROW($DT11)),$DS11,$DS$2&ROW($DS11)))) -> X=if(AW11=2,2000,0)*AU11 | DC11: =IF(O11="",0,"X="&SUBSTITUTE(SUBSTITUTE(SUBSTITUTE(SUBSTITUTE(SUBSTITUTE(SUBSTITUTE(SUBSTITUTE(SUBSTITUTE(SUBSTITUTE(SUBSTITUTE(SUBSTITUTE(SUBSTITUTE(O11,$ED11,$ED$2&ROW($ED11)),$EC11,$EC$2&ROW($EC11)),$EB11,$EB$2&ROW($EB11)),$EA11,$EA$2&ROW($EA11)),$DZ11,$DZ$2&ROW($DZ11)),$DY11,$DY$2&ROW($DY11)),$DX11,$DX$2&ROW($DX11)),$DW11,$DW$2&ROW($DW11)),$DV11,$DV$2&ROW($DV11)),$DU11,$DU$2&ROW($DU11)),$DT11,$DT$2&ROW($DT11)),$DS11,$DS$2&ROW($DS11))) -> X=if(AW11=6,5379,if(AW11=0,-2581.54,-2744)) | DD11: =IF(P11="",0,"X="&SUBSTITUTE(SUBSTITUTE(SUBSTITUTE(SUBSTITUTE(SUBSTITUTE(SUBSTITUTE(SUBSTITUTE(SUBSTITUTE(SUBSTITUTE(SUBSTITUTE(SUBSTITUTE(SUBSTITUTE(P11,$ED11,$ED$2&ROW($ED11)),$EC11,$EC$2&ROW($EC11)),$EB11,$EB$2&ROW($EB11)),$EA11,$EA$2&ROW($EA11)),$DZ11,$DZ$2&ROW($DZ11)),$DY11,$DY$2&ROW($DY11)),$DX11,$DX$2&ROW($DX11)),$DW11,$DW$2&ROW($DW11)),$DV11,$DV$2&ROW($DV11)),$DU11,$DU$2&ROW($DU11)),$DT11,$DT$2&ROW($DT11)),$DS11,$DS$2&ROW($DS11))) -> 0 | DE11: =IF(Q11="",0,"X="&SUBSTITUTE(SUBSTITUTE(SUBSTITUTE(SUBSTITUTE(SUBSTITUTE(SUBSTITUTE(SUBSTITUTE(SUBSTITUTE(SUBSTITUTE(SUBSTITUTE(SUBSTITUTE(SUBSTITUTE(Q11,$ED11,$ED$2&ROW($ED11)),$EC11,$EC$2&ROW($EC11)),$EB11,$EB$2&ROW($EB11)),$EA11,$EA$2&ROW($EA11)),$DZ11,$DZ$2&ROW($DZ11)),$DY11,$DY$2&ROW($DY11)),$DX11,$DX$2&ROW($DX11)),$DW11,$DW$2&ROW($DW11)),$DV11,$DV$2&ROW($DV11)),$DU11,$DU$2&ROW($DU11)),$DT11,$DT$2&ROW($DT11)),$DS11,$DS$2&ROW($DS11))) -> 0 | DF11: =IF(R11="",0,"X="&SUBSTITUTE(SUBSTITUTE(SUBSTITUTE(SUBSTITUTE(SUBSTITUTE(SUBSTITUTE(SUBSTITUTE(SUBSTITUTE(SUBSTITUTE(SUBSTITUTE(SUBSTITUTE(SUBSTITUTE(R11,$ED11,$ED$2&ROW($ED11)),$EC11,$EC$2&ROW($EC11)),$EB11,$EB$2&ROW($EB11)),$EA11,$EA$2&ROW($EA11)),$DZ11,$DZ$2&ROW($DZ11)),$DY11,$DY$2&ROW($DY11)),$DX11,$DX$2&ROW($DX11)),$DW11,$DW$2&ROW($DW11)),$DV11,$DV$2&ROW($DV11)),$DU11,$DU$2&ROW($DU11)),$DT11,$DT$2&ROW($DT11)),$DS11,$DS$2&ROW($DS11))) -> 0 | DG11: =IF(S11="",0,"X="&SUBSTITUTE(SUBSTITUTE(SUBSTITUTE(SUBSTITUTE(SUBSTITUTE(SUBSTITUTE(SUBSTITUTE(SUBSTITUTE(SUBSTITUTE(SUBSTITUTE(SUBSTITUTE(SUBSTITUTE(S11,$ED11,$ED$2&ROW($ED11)),$EC11,$EC$2&ROW($EC11)),$EB11,$EB$2&ROW($EB11)),$EA11,$EA$2&ROW($EA11)),$DZ11,$DZ$2&ROW($DZ11)),$DY11,$DY$2&ROW($DY11)),$DX11,$DX$2&ROW($DX11)),$DW11,$DW$2&ROW($DW11)),$DV11,$DV$2&ROW($DV11)),$DU11,$DU$2&ROW($DU11)),$DT11,$DT$2&ROW($DT11)),$DS11,$DS$2&ROW($DS11))) -> 0 | DH11: =IF(T11="",0,"X="&SUBSTITUTE(SUBSTITUTE(SUBSTITUTE(SUBSTITUTE(SUBSTITUTE(SUBSTITUTE(SUBSTITUTE(SUBSTITUTE(SUBSTITUTE(SUBSTITUTE(SUBSTITUTE(SUBSTITUTE(T11,$ED11,$ED$2&ROW($ED11)),$EC11,$EC$2&ROW($EC11)),$EB11,$EB$2&ROW($EB11)),$EA11,$EA$2&ROW($EA11)),$DZ11,$DZ$2&ROW($DZ11)),$DY11,$DY$2&ROW($DY11)),$DX11,$DX$2&ROW($DX11)),$DW11,$DW$2&ROW($DW11)),$DV11,$DV$2&ROW($DV11)),$DU11,$DU$2&ROW($DU11)),$DT11,$DT$2&ROW($DT11)),$DS11,$DS$2&ROW($DS11))) -> 0 | DI11: =IF(U11="",0,"X="&SUBSTITUTE(SUBSTITUTE(SUBSTITUTE(SUBSTITUTE(SUBSTITUTE(SUBSTITUTE(SUBSTITUTE(SUBSTITUTE(SUBSTITUTE(SUBSTITUTE(SUBSTITUTE(SUBSTITUTE(U11,$ED11,$ED$2&ROW($ED11)),$EC11,$EC$2&ROW($EC11)),$EB11,$EB$2&ROW($EB11)),$EA11,$EA$2&ROW($EA11)),$DZ11,$DZ$2&ROW($DZ11)),$DY11,$DY$2&ROW($DY11)),$DX11,$DX$2&ROW($DX11)),$DW11,$DW$2&ROW($DW11)),$DV11,$DV$2&ROW($DV11)),$DU11,$DU$2&ROW($DU11)),$DT11,$DT$2&ROW($DT11)),$DS11,$DS$2&ROW($DS11))) -> X=if(AW11=6,1.046,if(AW11=0,-0.562,-0.595)) | DJ11: =IF(V11="",0,"X="&SUBSTITUTE(SUBSTITUTE(SUBSTITUTE(SUBSTITUTE(SUBSTITUTE(SUBSTITUTE(SUBSTITUTE(SUBSTITUTE(SUBSTITUTE(SUBSTITUTE(SUBSTITUTE(SUBSTITUTE(V11,$ED11,$ED$2&ROW($ED11)),$EC11,$EC$2&ROW($EC11)),$EB11,$EB$2&ROW($EB11)),$EA11,$EA$2&ROW($EA11)),$DZ11,$DZ$2&ROW($DZ11)),$DY11,$DY$2&ROW($DY11)),$DX11,$DX$2&ROW($DX11)),$DW11,$DW$2&ROW($DW11)),$DV11,$DV$2&ROW($DV11)),$DU11,$DU$2&ROW($DU11)),$DT11,$DT$2&ROW($DT11)),$DS11,$DS$2&ROW($DS11))) -> X=0.031 | DK11: =IF(W11="",0,"X="&SUBSTITUTE(SUBSTITUTE(SUBSTITUTE(SUBSTITUTE(SUBSTITUTE(SUBSTITUTE(SUBSTITUTE(SUBSTITUTE(SUBSTITUTE(SUBSTITUTE(SUBSTITUTE(SUBSTITUTE(W11,$ED11,$ED$2&ROW($ED11)),$EC11,$EC$2&ROW($EC11)),$EB11,$EB$2&ROW($EB11)),$EA11,$EA$2&ROW($EA11)),$DZ11,$DZ$2&ROW($DZ11)),$DY11,$DY$2&ROW($DY11)),$DX11,$DX$2&ROW($DX11)),$DW11,$DW$2&ROW($DW11)),$DV11,$DV$2&ROW($DV11)),$DU11,$DU$2&ROW($DU11)),$DT11,$DT$2&ROW($DT11)),$DS11,$DS$2&ROW($DS11))) -> X=10*if(AW11=1,1,if(AW11=0,0,0))*31.72 | DL11: =IF(X11="",0,"X="&SUBSTITUTE(SUBSTITUTE(SUBSTITUTE(SUBSTITUTE(SUBSTITUTE(SUBSTITUTE(SUBSTITUTE(SUBSTITUTE(SUBSTITUTE(SUBSTITUTE(SUBSTITUTE(SUBSTITUTE(X11,$ED11,$ED$2&ROW($ED11)),$EC11,$EC$2&ROW($EC11)),$EB11,$EB$2&ROW($EB11)),$EA11,$EA$2&ROW($EA11)),$DZ11,$DZ$2&ROW($DZ11)),$DY11,$DY$2&ROW($DY11)),$DX11,$DX$2&ROW($DX11)),$DW11,$DW$2&ROW($DW11)),$DV11,$DV$2&ROW($DV11)),$DU11,$DU$2&ROW($DU11)),$DT11,$DT$2&ROW($DT11)),$DS11,$DS$2&ROW($DS11))) -> X=if(AW11=2,1,if(AW11=0,0.06,0))*31.72 | DM11: =IF(Y11="",0,"X="&SUBSTITUTE(SUBSTITUTE(SUBSTITUTE(SUBSTITUTE(SUBSTITUTE(SUBSTITUTE(SUBSTITUTE(SUBSTITUTE(SUBSTITUTE(SUBSTITUTE(SUBSTITUTE(SUBSTITUTE(Y11,$ED11,$ED$2&ROW($ED11)),$EC11,$EC$2&ROW($EC11)),$EB11,$EB$2&ROW($EB11)),$EA11,$EA$2&ROW($EA11)),$DZ11,$DZ$2&ROW($DZ11)),$DY11,$DY$2&ROW($DY11)),$DX11,$DX$2&ROW($DX11)),$DW11,$DW$2&ROW($DW11)),$DV11,$DV$2&ROW($DV11)),$DU11,$DU$2&ROW($DU11)),$DT11,$DT$2&ROW($DT11)),$DS11,$DS$2&ROW($DS11))) -> X=if(AW11=3,1,if(AW11=0,0.79,0))*31.72 | DN11: =IF(Z11="",0,"X="&SUBSTITUTE(SUBSTITUTE(SUBSTITUTE(SUBSTITUTE(SUBSTITUTE(SUBSTITUTE(SUBSTITUTE(SUBSTITUTE(SUBSTITUTE(SUBSTITUTE(SUBSTITUTE(SUBSTITUTE(Z11,$ED11,$ED$2&ROW($ED11)),$EC11,$EC$2&ROW($EC11)),$EB11,$EB$2&ROW($EB11)),$EA11,$EA$2&ROW($EA11)),$DZ11,$DZ$2&ROW($DZ11)),$DY11,$DY$2&ROW($DY11)),$DX11,$DX$2&ROW($DX11)),$DW11,$DW$2&ROW($DW11)),$DV11,$DV$2&ROW($DV11)),$DU11,$DU$2&ROW($DU11)),$DT11,$DT$2&ROW($DT11)),$DS11,$DS$2&ROW($DS11))) -> X=if(AW11=4,1,if(AW11=0,0.06,0))*31.72 | DO11: =IF(AA11="",0,"X="&SUBSTITUTE(SUBSTITUTE(SUBSTITUTE(SUBSTITUTE(SUBSTITUTE(SUBSTITUTE(SUBSTITUTE(SUBSTITUTE(SUBSTITUTE(SUBSTITUTE(SUBSTITUTE(SUBSTITUTE(AA11,$ED11,$ED$2&ROW($ED11)),$EC11,$EC$2&ROW($EC11)),$EB11,$EB$2&ROW($EB11)),$EA11,$EA$2&ROW($EA11)),$DZ11,$DZ$2&ROW($DZ11)),$DY11,$DY$2&ROW($DY11)),$DX11,$DX$2&ROW($DX11)),$DW11,$DW$2&ROW($DW11)),$DV11,$DV$2&ROW($DV11)),$DU11,$DU$2&ROW($DU11)),$DT11,$DT$2&ROW($DT11)),$DS11,$DS$2&ROW($DS11))) -> X=if(AW11=5,1,if(AW11=0,0.07,0))*31.72 | DP11: =IF(AB11="",0,"X="&SUBSTITUTE(SUBSTITUTE(SUBSTITUTE(SUBSTITUTE(SUBSTITUTE(SUBSTITUTE(SUBSTITUTE(SUBSTITUTE(SUBSTITUTE(SUBSTITUTE(SUBSTITUTE(SUBSTITUTE(AB11,$ED11,$ED$2&ROW($ED11)),$EC11,$EC$2&ROW($EC11)),$EB11,$EB$2&ROW($EB11)),$EA11,$EA$2&ROW($EA11)),$DZ11,$DZ$2&ROW($DZ11)),$DY11,$DY$2&ROW($DY11)),$DX11,$DX$2&ROW($DX11)),$DW11,$DW$2&ROW($DW11)),$DV11,$DV$2&ROW($DV11)),$DU11,$DU$2&ROW($DU11)),$DT11,$DT$2&ROW($DT11)),$DS11,$DS$2&ROW($DS11))) -> X=0 | DS11: {Factor:WinterCF} | DT11: {Factor:SummerCF} | DU11: =IFERROR(INDEX($EG11:$IV11,MATCH(0,COUNTIF($DR11:DT11,$EG11:$IV11),0)),"") -> {Cost} | DV11: =IFERROR(INDEX($EG11:$IV11,MATCH(0,COUNTIF($DR11:DU11,$EG11:$IV11),0)),"") -> {Measure:Quantity} | DW11: =IFERROR(INDEX($EG11:$IV11,MATCH(0,COUNTIF($DR11:DV11,$EG11:$IV11),0)),"") -> {Primary heating type} | DX11: =IFERROR(INDEX($EG11:$IV11,MATCH(0,COUNTIF($DR11:DW11,$EG11:$IV11),0)),"") ->  | DY11: =IFERROR(INDEX($EG11:$IV11,MATCH(0,COUNTIF($DR11:DX11,$EG11:$IV11),0)),"") ->  | DZ11: =IFERROR(INDEX($EG11:$IV11,MATCH(0,COUNTIF($DR11:DY11,$EG11:$IV11),0)),"") ->  | EA11: =IFERROR(INDEX($EG11:$IV11,MATCH(0,COUNTIF($DR11:DZ11,$EG11:$IV11),0)),"") ->  | EB11: =IFERROR(INDEX($EG11:$IV11,MATCH(0,COUNTIF($DR11:EA11,$EG11:$IV11),0)),"") ->  | EC11: =IFERROR(INDEX($EG11:$IV11,MATCH(0,COUNTIF($DR11:EB11,$EG11:$IV11),0)),"") ->  | ED11: =IFERROR(INDEX($EG11:$IV11,MATCH(0,COUNTIF($DR11:EC11,$EG11:$IV11),0)),"") ->  | EG11: =IFERROR(MID($G11,FIND(CHAR(160),SUBSTITUTE($G11,"{",CHAR(160),EG$1)),FIND(CHAR(160),SUBSTITUTE($G11,"}",CHAR(160),EG$1))-FIND(CHAR(160),SUBSTITUTE($G11,"{",CHAR(160),EG$1))+1),"") -> {Cost} | EH11: =IFERROR(MID($G11,FIND(CHAR(160),SUBSTITUTE($G11,"{",CHAR(160),EH$1)),FIND(CHAR(160),SUBSTITUTE($G11,"}",CHAR(160),EH$1))-FIND(CHAR(160),SUBSTITUTE($G11,"{",CHAR(160),EH$1))+1),"") -> {Measure:Quantity} | EI11: =IFERROR(MID($G11,FIND(CHAR(160),SUBSTITUTE($G11,"{",CHAR(160),EI$1)),FIND(CHAR(160),SUBSTITUTE($G11,"}",CHAR(160),EI$1))-FIND(CHAR(160),SUBSTITUTE($G11,"{",CHAR(160),EI$1))+1),"") ->  | EJ11: =IFERROR(MID($G11,FIND(CHAR(160),SUBSTITUTE($G11,"{",CHAR(160),EJ$1)),FIND(CHAR(160),SUBSTITUTE($G11,"}",CHAR(160),EJ$1))-FIND(CHAR(160),SUBSTITUTE($G11,"{",CHAR(160),EJ$1))+1),"") ->  | EK11: =IFERROR(MID($G11,FIND(CHAR(160),SUBSTITUTE($G11,"{",CHAR(160),EK$1)),FIND(CHAR(160),SUBSTITUTE($G11,"}",CHAR(160),EK$1))-FIND(CHAR(160),SUBSTITUTE($G11,"{",CHAR(160),EK$1))+1),"") ->  | EL11: =IFERROR(MID($G11,FIND(CHAR(160),SUBSTITUTE($G11,"{",CHAR(160),EL$1)),FIND(CHAR(160),SUBSTITUTE($G11,"}",CHAR(160),EL$1))-FIND(CHAR(160),SUBSTITUTE($G11,"{",CHAR(160),EL$1))+1),"") ->  | EM11: =IFERROR(MID($G11,FIND(CHAR(160),SUBSTITUTE($G11,"{",CHAR(160),EM$1)),FIND(CHAR(160),SUBSTITUTE($G11,"}",CHAR(160),EM$1))-FIND(CHAR(160),SUBSTITUTE($G11,"{",CHAR(160),EM$1))+1),"") ->  | EN11: =IFERROR(MID($G11,FIND(CHAR(160),SUBSTITUTE($G11,"{",CHAR(160),EN$1)),FIND(CHAR(160),SUBSTITUTE($G11,"}",CHAR(160),EN$1))-FIND(CHAR(160),SUBSTITUTE($G11,"{",CHAR(160),EN$1))+1),"") ->  | EO11: =IFERROR(MID($G11,FIND(CHAR(160),SUBSTITUTE($G11,"{",CHAR(160),EO$1)),FIND(CHAR(160),SUBSTITUTE($G11,"}",CHAR(160),EO$1))-FIND(CHAR(160),SUBSTITUTE($G11,"{",CHAR(160),EO$1))+1),"") ->  | EP11: =IFERROR(MID($G11,FIND(CHAR(160),SUBSTITUTE($G11,"{",CHAR(160),EP$1)),FIND(CHAR(160),SUBSTITUTE($G11,"}",CHAR(160),EP$1))-FIND(CHAR(160),SUBSTITUTE($G11,"{",CHAR(160),EP$1))+1),"") ->  | EQ11: =IFERROR(MID($J11,FIND(CHAR(160),SUBSTITUTE($J11,"{",CHAR(160),EQ$1)),FIND(CHAR(160),SUBSTITUTE($J11,"}",CHAR(160),EQ$1))-FIND(CHAR(160),SUBSTITUTE($J11,"{",CHAR(160),EQ$1))+1),"") -> {Primary heating type} | ER11: =IFERROR(MID($J11,FIND(CHAR(160),SUBSTITUTE($J11,"{",CHAR(160),ER$1)),FIND(CHAR(160),SUBSTITUTE($J11,"}",CHAR(160),ER$1))-FIND(CHAR(160),SUBSTITUTE($J11,"{",CHAR(160),ER$1))+1),"") -> {Measure:Quantity} | ES11: =IFERROR(MID($J11,FIND(CHAR(160),SUBSTITUTE($J11,"{",CHAR(160),ES$1)),FIND(CHAR(160),SUBSTITUTE($J11,"}",CHAR(160),ES$1))-FIND(CHAR(160),SUBSTITUTE($J11,"{",CHAR(160),ES$1))+1),"") ->  | ET11: =IFERROR(MID($J11,FIND(CHAR(160),SUBSTITUTE($J11,"{",CHAR(160),ET$1)),FIND(CHAR(160),SUBSTITUTE($J11,"}",CHAR(160),ET$1))-FIND(CHAR(160),SUBSTITUTE($J11,"{",CHAR(160),ET$1))+1),"") ->  | EU11: =IFERROR(MID($J11,FIND(CHAR(160),SUBSTITUTE($J11,"{",CHAR(160),EU$1)),FIND(CHAR(160),SUBSTITUTE($J11,"}",CHAR(160),EU$1))-FIND(CHAR(160),SUBSTITUTE($J11,"{",CHAR(160),EU$1))+1),"") ->  | EV11: =IFERROR(MID($J11,FIND(CHAR(160),SUBSTITUTE($J11,"{",CHAR(160),EV$1)),FIND(CHAR(160),SUBSTITUTE($J11,"}",CHAR(160),EV$1))-FIND(CHAR(160),SUBSTITUTE($J11,"{",CHAR(160),EV$1))+1),"") ->  | EW11: =IFERROR(MID($J11,FIND(CHAR(160),SUBSTITUTE($J11,"{",CHAR(160),EW$1)),FIND(CHAR(160),SUBSTITUTE($J11,"}",CHAR(160),EW$1))-FIND(CHAR(160),SUBSTITUTE($J11,"{",CHAR(160),EW$1))+1),"") ->  | EX11: =IFERROR(MID($J11,FIND(CHAR(160),SUBSTITUTE($J11,"{",CHAR(160),EX$1)),FIND(CHAR(160),SUBSTITUTE($J11,"}",CHAR(160),EX$1))-FIND(CHAR(160),SUBSTITUTE($J11,"{",CHAR(160),EX$1))+1),"") ->  | EY11: =IFERROR(MID($J11,FIND(CHAR(160),SUBSTITUTE($J11,"{",CHAR(160),EY$1)),FIND(CHAR(160),SUBSTITUTE($J11,"}",CHAR(160),EY$1))-FIND(CHAR(160),SUBSTITUTE($J11,"{",CHAR(160),EY$1))+1),"") ->  | EZ11: =IFERROR(MID($J11,FIND(CHAR(160),SUBSTITUTE($J11,"{",CHAR(160),EZ$1)),FIND(CHAR(160),SUBSTITUTE($J11,"}",CHAR(160),EZ$1))-FIND(CHAR(160),SUBSTITUTE($J11,"{",CHAR(160),EZ$1))+1),"") ->  | FA11: =IFERROR(MID($J11,FIND(CHAR(160),SUBSTITUTE($J11,"{",CHAR(160),FA$1)),FIND(CHAR(160),SUBSTITUTE($J11,"}",CHAR(160),FA$1))-FIND(CHAR(160),SUBSTITUTE($J11,"{",CHAR(160),FA$1))+1),"") -> {Primary heating type} | FB11: =IFERROR(MID($J11,FIND(CHAR(160),SUBSTITUTE($J11,"{",CHAR(160),FB$1)),FIND(CHAR(160),SUBSTITUTE($J11,"}",CHAR(160),FB$1))-FIND(CHAR(160),SUBSTITUTE($J11,"{",CHAR(160),FB$1))+1),"") -> {Measure:Quantity} | FC11: =IFERROR(MID($O11,FIND(CHAR(160),SUBSTITUTE($O11,"{",CHAR(160),FC$1)),FIND(CHAR(160),SUBSTITUTE($O11,"}",CHAR(160),FC$1))-FIND(CHAR(160),SUBSTITUTE($O11,"{",CHAR(160),FC$1))+1),"") ->  | FD11: =IFERROR(MID($O11,FIND(CHAR(160),SUBSTITUTE($O11,"{",CHAR(160),FD$1)),FIND(CHAR(160),SUBSTITUTE($O11,"}",CHAR(160),FD$1))-FIND(CHAR(160),SUBSTITUTE($O11,"{",CHAR(160),FD$1))+1),"") ->  | FE11: =IFERROR(MID($O11,FIND(CHAR(160),SUBSTITUTE($O11,"{",CHAR(160),FE$1)),FIND(CHAR(160),SUBSTITUTE($O11,"}",CHAR(160),FE$1))-FIND(CHAR(160),SUBSTITUTE($O11,"{",CHAR(160),FE$1))+1),"") ->  | FF11: =IFERROR(MID($O11,FIND(CHAR(160),SUBSTITUTE($O11,"{",CHAR(160),FF$1)),FIND(CHAR(160),SUBSTITUTE($O11,"}",CHAR(160),FF$1))-FIND(CHAR(160),SUBSTITUTE($O11,"{",CHAR(160),FF$1))+1),"") ->  | FG11: =IFERROR(MID($O11,FIND(CHAR(160),SUBSTITUTE($O11,"{",CHAR(160),FG$1)),FIND(CHAR(160),SUBSTITUTE($O11,"}",CHAR(160),FG$1))-FIND(CHAR(160),SUBSTITUTE($O11,"{",CHAR(160),FG$1))+1),"") ->  | FH11: =IFERROR(MID($O11,FIND(CHAR(160),SUBSTITUTE($O11,"{",CHAR(160),FH$1)),FIND(CHAR(160),SUBSTITUTE($O11,"}",CHAR(160),FH$1))-FIND(CHAR(160),SUBSTITUTE($O11,"{",CHAR(160),FH$1))+1),"") ->  | FI11: =IFERROR(MID($O11,FIND(CHAR(160),SUBSTITUTE($O11,"{",CHAR(160),FI$1)),FIND(CHAR(160),SUBSTITUTE($O11,"}",CHAR(160),FI$1))-FIND(CHAR(160),SUBSTITUTE($O11,"{",CHAR(160),FI$1))+1),"") ->  | FJ11: =IFERROR(MID($O11,FIND(CHAR(160),SUBSTITUTE($O11,"{",CHAR(160),FJ$1)),FIND(CHAR(160),SUBSTITUTE($O11,"}",CHAR(160),FJ$1))-FIND(CHAR(160),SUBSTITUTE($O11,"{",CHAR(160),FJ$1))+1),"") ->  | FK11: =IFERROR(MID($O11,FIND(CHAR(160),SUBSTITUTE($O11,"{",CHAR(160),FK$1)),FIND(CHAR(160),SUBSTITUTE($O11,"}",CHAR(160),FK$1))-FIND(CHAR(160),SUBSTITUTE($O11,"{",CHAR(160),FK$1))+1),"") -> {Primary heating type} | FL11: =IFERROR(MID($O11,FIND(CHAR(160),SUBSTITUTE($O11,"{",CHAR(160),FL$1)),FIND(CHAR(160),SUBSTITUTE($O11,"}",CHAR(160),FL$1))-FIND(CHAR(160),SUBSTITUTE($O11,"{",CHAR(160),FL$1))+1),"") -> {Primary heating type} | FM11: =IFERROR(MID($R11,FIND(CHAR(160),SUBSTITUTE($R11,"{",CHAR(160),FM$1)),FIND(CHAR(160),SUBSTITUTE($R11,"}",CHAR(160),FM$1))-FIND(CHAR(160),SUBSTITUTE($R11,"{",CHAR(160),FM$1))+1),"") ->  | FN11: =IFERROR(MID($R11,FIND(CHAR(160),SUBSTITUTE($R11,"{",CHAR(160),FN$1)),FIND(CHAR(160),SUBSTITUTE($R11,"}",CHAR(160),FN$1))-FIND(CHAR(160),SUBSTITUTE($R11,"{",CHAR(160),FN$1))+1),"") ->  | FO11: =IFERROR(MID($R11,FIND(CHAR(160),SUBSTITUTE($R11,"{",CHAR(160),FO$1)),FIND(CHAR(160),SUBSTITUTE($R11,"}",CHAR(160),FO$1))-FIND(CHAR(160),SUBSTITUTE($R11,"{",CHAR(160),FO$1))+1),"") ->  | FP11: =IFERROR(MID($R11,FIND(CHAR(160),SUBSTITUTE($R11,"{",CHAR(160),FP$1)),FIND(CHAR(160),SUBSTITUTE($R11,"}",CHAR(160),FP$1))-FIND(CHAR(160),SUBSTITUTE($R11,"{",CHAR(160),FP$1))+1),"") ->  | FQ11: =IFERROR(MID($R11,FIND(CHAR(160),SUBSTITUTE($R11,"{",CHAR(160),FQ$1)),FIND(CHAR(160),SUBSTITUTE($R11,"}",CHAR(160),FQ$1))-FIND(CHAR(160),SUBSTITUTE($R11,"{",CHAR(160),FQ$1))+1),"") ->  | FR11: =IFERROR(MID($R11,FIND(CHAR(160),SUBSTITUTE($R11,"{",CHAR(160),FR$1)),FIND(CHAR(160),SUBSTITUTE($R11,"}",CHAR(160),FR$1))-FIND(CHAR(160),SUBSTITUTE($R11,"{",CHAR(160),FR$1))+1),"") ->  | FS11: =IFERROR(MID($R11,FIND(CHAR(160),SUBSTITUTE($R11,"{",CHAR(160),FS$1)),FIND(CHAR(160),SUBSTITUTE($R11,"}",CHAR(160),FS$1))-FIND(CHAR(160),SUBSTITUTE($R11,"{",CHAR(160),FS$1))+1),"") ->  | FT11: =IFERROR(MID($R11,FIND(CHAR(160),SUBSTITUTE($R11,"{",CHAR(160),FT$1)),FIND(CHAR(160),SUBSTITUTE($R11,"}",CHAR(160),FT$1))-FIND(CHAR(160),SUBSTITUTE($R11,"{",CHAR(160),FT$1))+1),"") ->  | FU11: =IFERROR(MID($R11,FIND(CHAR(160),SUBSTITUTE($R11,"{",CHAR(160),FU$1)),FIND(CHAR(160),SUBSTITUTE($R11,"}",CHAR(160),FU$1))-FIND(CHAR(160),SUBSTITUTE($R11,"{",CHAR(160),FU$1))+1),"") ->  | FV11: =IFERROR(MID($R11,FIND(CHAR(160),SUBSTITUTE($R11,"{",CHAR(160),FV$1)),FIND(CHAR(160),SUBSTITUTE($R11,"}",CHAR(160),FV$1))-FIND(CHAR(160),SUBSTITUTE($R11,"{",CHAR(160),FV$1))+1),"") ->  | FW11: =IFERROR(MID($U11,FIND(CHAR(160),SUBSTITUTE($U11,"{",CHAR(160),FW$1)),FIND(CHAR(160),SUBSTITUTE($U11,"}",CHAR(160),FW$1))-FIND(CHAR(160),SUBSTITUTE($U11,"{",CHAR(160),FW$1))+1),"") ->  | FX11: =IFERROR(MID($U11,FIND(CHAR(160),SUBSTITUTE($U11,"{",CHAR(160),FX$1)),FIND(CHAR(160),SUBSTITUTE($U11,"}",CHAR(160),FX$1))-FIND(CHAR(160),SUBSTITUTE($U11,"{",CHAR(160),FX$1))+1),"") ->  | FY11: =IFERROR(MID($U11,FIND(CHAR(160),SUBSTITUTE($U11,"{",CHAR(160),FY$1)),FIND(CHAR(160),SUBSTITUTE($U11,"}",CHAR(160),FY$1))-FIND(CHAR(160),SUBSTITUTE($U11,"{",CHAR(160),FY$1))+1),"") ->  | FZ11: =IFERROR(MID($U11,FIND(CHAR(160),SUBSTITUTE($U11,"{",CHAR(160),FZ$1)),FIND(CHAR(160),SUBSTITUTE($U11,"}",CHAR(160),FZ$1))-FIND(CHAR(160),SUBSTITUTE($U11,"{",CHAR(160),FZ$1))+1),"") ->  | GA11: =IFERROR(MID($U11,FIND(CHAR(160),SUBSTITUTE($U11,"{",CHAR(160),GA$1)),FIND(CHAR(160),SUBSTITUTE($U11,"}",CHAR(160),GA$1))-FIND(CHAR(160),SUBSTITUTE($U11,"{",CHAR(160),GA$1))+1),"") ->  | GB11: =IFERROR(MID($U11,FIND(CHAR(160),SUBSTITUTE($U11,"{",CHAR(160),GB$1)),FIND(CHAR(160),SUBSTITUTE($U11,"}",CHAR(160),GB$1))-FIND(CHAR(160),SUBSTITUTE($U11,"{",CHAR(160),GB$1))+1),"") ->  | GC11: =IFERROR(MID($U11,FIND(CHAR(160),SUBSTITUTE($U11,"{",CHAR(160),GC$1)),FIND(CHAR(160),SUBSTITUTE($U11,"}",CHAR(160),GC$1))-FIND(CHAR(160),SUBSTITUTE($U11,"{",CHAR(160),GC$1))+1),"") ->  | GD11: =IFERROR(MID($U11,FIND(CHAR(160),SUBSTITUTE($U11,"{",CHAR(160),GD$1)),FIND(CHAR(160),SUBSTITUTE($U11,"}",CHAR(160),GD$1))-FIND(CHAR(160),SUBSTITUTE($U11,"{",CHAR(160),GD$1))+1),"") ->  | GE11: =IFERROR(MID($U11,FIND(CHAR(160),SUBSTITUTE($U11,"{",CHAR(160),GE$1)),FIND(CHAR(160),SUBSTITUTE($U11,"}",CHAR(160),GE$1))-FIND(CHAR(160),SUBSTITUTE($U11,"{",CHAR(160),GE$1))+1),"") -> {Primary heating type} | GF11: =IFERROR(MID($U11,FIND(CHAR(160),SUBSTITUTE($U11,"{",CHAR(160),GF$1)),FIND(CHAR(160),SUBSTITUTE($U11,"}",CHAR(160),GF$1))-FIND(CHAR(160),SUBSTITUTE($U11,"{",CHAR(160),GF$1))+1),"") -> {Primary heating type} | GG11: =IFERROR(MID($V11,FIND(CHAR(160),SUBSTITUTE($V11,"{",CHAR(160),GG$1)),FIND(CHAR(160),SUBSTITUTE($V11,"}",CHAR(160),GG$1))-FIND(CHAR(160),SUBSTITUTE($V11,"{",CHAR(160),GG$1))+1),"") ->  | GH11: =IFERROR(MID($V11,FIND(CHAR(160),SUBSTITUTE($V11,"{",CHAR(160),GH$1)),FIND(CHAR(160),SUBSTITUTE($V11,"}",CHAR(160),GH$1))-FIND(CHAR(160),SUBSTITUTE($V11,"{",CHAR(160),GH$1))+1),"") ->  | GI11: =IFERROR(MID($V11,FIND(CHAR(160),SUBSTITUTE($V11,"{",CHAR(160),GI$1)),FIND(CHAR(160),SUBSTITUTE($V11,"}",CHAR(160),GI$1))-FIND(CHAR(160),SUBSTITUTE($V11,"{",CHAR(160),GI$1))+1),"") ->  | GJ11: =IFERROR(MID($V11,FIND(CHAR(160),SUBSTITUTE($V11,"{",CHAR(160),GJ$1)),FIND(CHAR(160),SUBSTITUTE($V11,"}",CHAR(160),GJ$1))-FIND(CHAR(160),SUBSTITUTE($V11,"{",CHAR(160),GJ$1))+1),"") ->  | GK11: =IFERROR(MID($V11,FIND(CHAR(160),SUBSTITUTE($V11,"{",CHAR(160),GK$1)),FIND(CHAR(160),SUBSTITUTE($V11,"}",CHAR(160),GK$1))-FIND(CHAR(160),SUBSTITUTE($V11,"{",CHAR(160),GK$1))+1),"") ->  | GL11: =IFERROR(MID($V11,FIND(CHAR(160),SUBSTITUTE($V11,"{",CHAR(160),GL$1)),FIND(CHAR(160),SUBSTITUTE($V11,"}",CHAR(160),GL$1))-FIND(CHAR(160),SUBSTITUTE($V11,"{",CHAR(160),GL$1))+1),"") ->  | GM11: =IFERROR(MID($V11,FIND(CHAR(160),SUBSTITUTE($V11,"{",CHAR(160),GM$1)),FIND(CHAR(160),SUBSTITUTE($V11,"}",CHAR(160),GM$1))-FIND(CHAR(160),SUBSTITUTE($V11,"{",CHAR(160),GM$1))+1),"") ->  | GN11: =IFERROR(MID($V11,FIND(CHAR(160),SUBSTITUTE($V11,"{",CHAR(160),GN$1)),FIND(CHAR(160),SUBSTITUTE($V11,"}",CHAR(160),GN$1))-FIND(CHAR(160),SUBSTITUTE($V11,"{",CHAR(160),GN$1))+1),"") ->  | GO11: =IFERROR(MID($V11,FIND(CHAR(160),SUBSTITUTE($V11,"{",CHAR(160),GO$1)),FIND(CHAR(160),SUBSTITUTE($V11,"}",CHAR(160),GO$1))-FIND(CHAR(160),SUBSTITUTE($V11,"{",CHAR(160),GO$1))+1),"") ->  | GP11: =IFERROR(MID($V11,FIND(CHAR(160),SUBSTITUTE($V11,"{",CHAR(160),GP$1)),FIND(CHAR(160),SUBSTITUTE($V11,"}",CHAR(160),GP$1))-FIND(CHAR(160),SUBSTITUTE($V11,"{",CHAR(160),GP$1))+1),"") ->  | GQ11: =IFERROR(MID($W11,FIND(CHAR(160),SUBSTITUTE($W11,"{",CHAR(160),GQ$1)),FIND(CHAR(160),SUBSTITUTE($W11,"}",CHAR(160),GQ$1))-FIND(CHAR(160),SUBSTITUTE($W11,"{",CHAR(160),GQ$1))+1),"") ->  | GR11: =IFERROR(MID($W11,FIND(CHAR(160),SUBSTITUTE($W11,"{",CHAR(160),GR$1)),FIND(CHAR(160),SUBSTITUTE($W11,"}",CHAR(160),GR$1))-FIND(CHAR(160),SUBSTITUTE($W11,"{",CHAR(160),GR$1))+1),"") ->  | GS11: =IFERROR(MID($W11,FIND(CHAR(160),SUBSTITUTE($W11,"{",CHAR(160),GS$1)),FIND(CHAR(160),SUBSTITUTE($W11,"}",CHAR(160),GS$1))-FIND(CHAR(160),SUBSTITUTE($W11,"{",CHAR(160),GS$1))+1),"") ->  | GT11: =IFERROR(MID($W11,FIND(CHAR(160),SUBSTITUTE($W11,"{",CHAR(160),GT$1)),FIND(CHAR(160),SUBSTITUTE($W11,"}",CHAR(160),GT$1))-FIND(CHAR(160),SUBSTITUTE($W11,"{",CHAR(160),GT$1))+1),"") ->  | GU11: =IFERROR(MID($W11,FIND(CHAR(160),SUBSTITUTE($W11,"{",CHAR(160),GU$1)),FIND(CHAR(160),SUBSTITUTE($W11,"}",CHAR(160),GU$1))-FIND(CHAR(160),SUBSTITUTE($W11,"{",CHAR(160),GU$1))+1),"") ->  | GV11: =IFERROR(MID($W11,FIND(CHAR(160),SUBSTITUTE($W11,"{",CHAR(160),GV$1)),FIND(CHAR(160),SUBSTITUTE($W11,"}",CHAR(160),GV$1))-FIND(CHAR(160),SUBSTITUTE($W11,"{",CHAR(160),GV$1))+1),"") ->  | GW11: =IFERROR(MID($W11,FIND(CHAR(160),SUBSTITUTE($W11,"{",CHAR(160),GW$1)),FIND(CHAR(160),SUBSTITUTE($W11,"}",CHAR(160),GW$1))-FIND(CHAR(160),SUBSTITUTE($W11,"{",CHAR(160),GW$1))+1),"") ->  | GX11: =IFERROR(MID($W11,FIND(CHAR(160),SUBSTITUTE($W11,"{",CHAR(160),GX$1)),FIND(CHAR(160),SUBSTITUTE($W11,"}",CHAR(160),GX$1))-FIND(CHAR(160),SUBSTITUTE($W11,"{",CHAR(160),GX$1))+1),"") ->  | GY11: =IFERROR(MID($W11,FIND(CHAR(160),SUBSTITUTE($W11,"{",CHAR(160),GY$1)),FIND(CHAR(160),SUBSTITUTE($W11,"}",CHAR(160),GY$1))-FIND(CHAR(160),SUBSTITUTE($W11,"{",CHAR(160),GY$1))+1),"") -> {Primary heating type} | GZ11: =IFERROR(MID($W11,FIND(CHAR(160),SUBSTITUTE($W11,"{",CHAR(160),GZ$1)),FIND(CHAR(160),SUBSTITUTE($W11,"}",CHAR(160),GZ$1))-FIND(CHAR(160),SUBSTITUTE($W11,"{",CHAR(160),GZ$1))+1),"") -> {Primary heating type} | HA11: =IFERROR(MID($X11,FIND(CHAR(160),SUBSTITUTE($X11,"{",CHAR(160),HA$1)),FIND(CHAR(160),SUBSTITUTE($X11,"}",CHAR(160),HA$1))-FIND(CHAR(160),SUBSTITUTE($X11,"{",CHAR(160),HA$1))+1),"") ->  | HB11: =IFERROR(MID($X11,FIND(CHAR(160),SUBSTITUTE($X11,"{",CHAR(160),HB$1)),FIND(CHAR(160),SUBSTITUTE($X11,"}",CHAR(160),HB$1))-FIND(CHAR(160),SUBSTITUTE($X11,"{",CHAR(160),HB$1))+1),"") ->  | HC11: =IFERROR(MID($X11,FIND(CHAR(160),SUBSTITUTE($X11,"{",CHAR(160),HC$1)),FIND(CHAR(160),SUBSTITUTE($X11,"}",CHAR(160),HC$1))-FIND(CHAR(160),SUBSTITUTE($X11,"{",CHAR(160),HC$1))+1),"") ->  | HD11: =IFERROR(MID($X11,FIND(CHAR(160),SUBSTITUTE($X11,"{",CHAR(160),HD$1)),FIND(CHAR(160),SUBSTITUTE($X11,"}",CHAR(160),HD$1))-FIND(CHAR(160),SUBSTITUTE($X11,"{",CHAR(160),HD$1))+1),"") ->  | HE11: =IFERROR(MID($X11,FIND(CHAR(160),SUBSTITUTE($X11,"{",CHAR(160),HE$1)),FIND(CHAR(160),SUBSTITUTE($X11,"}",CHAR(160),HE$1))-FIND(CHAR(160),SUBSTITUTE($X11,"{",CHAR(160),HE$1))+1),"") ->  | HF11: =IFERROR(MID($X11,FIND(CHAR(160),SUBSTITUTE($X11,"{",CHAR(160),HF$1)),FIND(CHAR(160),SUBSTITUTE($X11,"}",CHAR(160),HF$1))-FIND(CHAR(160),SUBSTITUTE($X11,"{",CHAR(160),HF$1))+1),"") ->  | HG11: =IFERROR(MID($X11,FIND(CHAR(160),SUBSTITUTE($X11,"{",CHAR(160),HG$1)),FIND(CHAR(160),SUBSTITUTE($X11,"}",CHAR(160),HG$1))-FIND(CHAR(160),SUBSTITUTE($X11,"{",CHAR(160),HG$1))+1),"") ->  | HH11: =IFERROR(MID($X11,FIND(CHAR(160),SUBSTITUTE($X11,"{",CHAR(160),HH$1)),FIND(CHAR(160),SUBSTITUTE($X11,"}",CHAR(160),HH$1))-FIND(CHAR(160),SUBSTITUTE($X11,"{",CHAR(160),HH$1))+1),"") ->  | HI11: =IFERROR(MID($X11,FIND(CHAR(160),SUBSTITUTE($X11,"{",CHAR(160),HI$1)),FIND(CHAR(160),SUBSTITUTE($X11,"}",CHAR(160),HI$1))-FIND(CHAR(160),SUBSTITUTE($X11,"{",CHAR(160),HI$1))+1),"") -> {Primary heating type} | HJ11: =IFERROR(MID($X11,FIND(CHAR(160),SUBSTITUTE($X11,"{",CHAR(160),HJ$1)),FIND(CHAR(160),SUBSTITUTE($X11,"}",CHAR(160),HJ$1))-FIND(CHAR(160),SUBSTITUTE($X11,"{",CHAR(160),HJ$1))+1),"") -> {Primary heating type} | HK11: =IFERROR(MID($Y11,FIND(CHAR(160),SUBSTITUTE($Y11,"{",CHAR(160),HK$1)),FIND(CHAR(160),SUBSTITUTE($Y11,"}",CHAR(160),HK$1))-FIND(CHAR(160),SUBSTITUTE($Y11,"{",CHAR(160),HK$1))+1),"") ->  | HL11: =IFERROR(MID($Y11,FIND(CHAR(160),SUBSTITUTE($Y11,"{",CHAR(160),HL$1)),FIND(CHAR(160),SUBSTITUTE($Y11,"}",CHAR(160),HL$1))-FIND(CHAR(160),SUBSTITUTE($Y11,"{",CHAR(160),HL$1))+1),"") ->  | HM11: =IFERROR(MID($Y11,FIND(CHAR(160),SUBSTITUTE($Y11,"{",CHAR(160),HM$1)),FIND(CHAR(160),SUBSTITUTE($Y11,"}",CHAR(160),HM$1))-FIND(CHAR(160),SUBSTITUTE($Y11,"{",CHAR(160),HM$1))+1),"") ->  | HN11: =IFERROR(MID($Y11,FIND(CHAR(160),SUBSTITUTE($Y11,"{",CHAR(160),HN$1)),FIND(CHAR(160),SUBSTITUTE($Y11,"}",CHAR(160),HN$1))-FIND(CHAR(160),SUBSTITUTE($Y11,"{",CHAR(160),HN$1))+1),"") ->  | HO11: =IFERROR(MID($Y11,FIND(CHAR(160),SUBSTITUTE($Y11,"{",CHAR(160),HO$1)),FIND(CHAR(160),SUBSTITUTE($Y11,"}",CHAR(160),HO$1))-FIND(CHAR(160),SUBSTITUTE($Y11,"{",CHAR(160),HO$1))+1),"") ->  | HP11: =IFERROR(MID($Y11,FIND(CHAR(160),SUBSTITUTE($Y11,"{",CHAR(160),HP$1)),FIND(CHAR(160),SUBSTITUTE($Y11,"}",CHAR(160),HP$1))-FIND(CHAR(160),SUBSTITUTE($Y11,"{",CHAR(160),HP$1))+1),"") ->  | HQ11: =IFERROR(MID($Y11,FIND(CHAR(160),SUBSTITUTE($Y11,"{",CHAR(160),HQ$1)),FIND(CHAR(160),SUBSTITUTE($Y11,"}",CHAR(160),HQ$1))-FIND(CHAR(160),SUBSTITUTE($Y11,"{",CHAR(160),HQ$1))+1),"") ->  | HR11: =IFERROR(MID($Y11,FIND(CHAR(160),SUBSTITUTE($Y11,"{",CHAR(160),HR$1)),FIND(CHAR(160),SUBSTITUTE($Y11,"}",CHAR(160),HR$1))-FIND(CHAR(160),SUBSTITUTE($Y11,"{",CHAR(160),HR$1))+1),"") ->  | HS11: =IFERROR(MID($Y11,FIND(CHAR(160),SUBSTITUTE($Y11,"{",CHAR(160),HS$1)),FIND(CHAR(160),SUBSTITUTE($Y11,"}",CHAR(160),HS$1))-FIND(CHAR(160),SUBSTITUTE($Y11,"{",CHAR(160),HS$1))+1),"") -> {Primary heating type} | HT11: =IFERROR(MID($Y11,FIND(CHAR(160),SUBSTITUTE($Y11,"{",CHAR(160),HT$1)),FIND(CHAR(160),SUBSTITUTE($Y11,"}",CHAR(160),HT$1))-FIND(CHAR(160),SUBSTITUTE($Y11,"{",CHAR(160),HT$1))+1),"") -> {Primary heating type} | HU11: =IFERROR(MID($Z11,FIND(CHAR(160),SUBSTITUTE($Z11,"{",CHAR(160),HU$1)),FIND(CHAR(160),SUBSTITUTE($Z11,"}",CHAR(160),HU$1))-FIND(CHAR(160),SUBSTITUTE($Z11,"{",CHAR(160),HU$1))+1),"") ->  | HV11: =IFERROR(MID($Z11,FIND(CHAR(160),SUBSTITUTE($Z11,"{",CHAR(160),HV$1)),FIND(CHAR(160),SUBSTITUTE($Z11,"}",CHAR(160),HV$1))-FIND(CHAR(160),SUBSTITUTE($Z11,"{",CHAR(160),HV$1))+1),"") ->  | HW11: =IFERROR(MID($Z11,FIND(CHAR(160),SUBSTITUTE($Z11,"{",CHAR(160),HW$1)),FIND(CHAR(160),SUBSTITUTE($Z11,"}",CHAR(160),HW$1))-FIND(CHAR(160),SUBSTITUTE($Z11,"{",CHAR(160),HW$1))+1),"") ->  | HX11: =IFERROR(MID($Z11,FIND(CHAR(160),SUBSTITUTE($Z11,"{",CHAR(160),HX$1)),FIND(CHAR(160),SUBSTITUTE($Z11,"}",CHAR(160),HX$1))-FIND(CHAR(160),SUBSTITUTE($Z11,"{",CHAR(160),HX$1))+1),"") ->  | HY11: =IFERROR(MID($Z11,FIND(CHAR(160),SUBSTITUTE($Z11,"{",CHAR(160),HY$1)),FIND(CHAR(160),SUBSTITUTE($Z11,"}",CHAR(160),HY$1))-FIND(CHAR(160),SUBSTITUTE($Z11,"{",CHAR(160),HY$1))+1),"") ->  | HZ11: =IFERROR(MID($Z11,FIND(CHAR(160),SUBSTITUTE($Z11,"{",CHAR(160),HZ$1)),FIND(CHAR(160),SUBSTITUTE($Z11,"}",CHAR(160),HZ$1))-FIND(CHAR(160),SUBSTITUTE($Z11,"{",CHAR(160),HZ$1))+1),"") ->  | IA11: =IFERROR(MID($Z11,FIND(CHAR(160),SUBSTITUTE($Z11,"{",CHAR(160),IA$1)),FIND(CHAR(160),SUBSTITUTE($Z11,"}",CHAR(160),IA$1))-FIND(CHAR(160),SUBSTITUTE($Z11,"{",CHAR(160),IA$1))+1),"") ->  | IB11: =IFERROR(MID($Z11,FIND(CHAR(160),SUBSTITUTE($Z11,"{",CHAR(160),IB$1)),FIND(CHAR(160),SUBSTITUTE($Z11,"}",CHAR(160),IB$1))-FIND(CHAR(160),SUBSTITUTE($Z11,"{",CHAR(160),IB$1))+1),"") ->  | IC11: =IFERROR(MID($Z11,FIND(CHAR(160),SUBSTITUTE($Z11,"{",CHAR(160),IC$1)),FIND(CHAR(160),SUBSTITUTE($Z11,"}",CHAR(160),IC$1))-FIND(CHAR(160),SUBSTITUTE($Z11,"{",CHAR(160),IC$1))+1),"") -> {Primary heating type} | ID11: =IFERROR(MID($Z11,FIND(CHAR(160),SUBSTITUTE($Z11,"{",CHAR(160),ID$1)),FIND(CHAR(160),SUBSTITUTE($Z11,"}",CHAR(160),ID$1))-FIND(CHAR(160),SUBSTITUTE($Z11,"{",CHAR(160),ID$1))+1),"") -> {Primary heating type} | IE11: =IFERROR(MID($AA11,FIND(CHAR(160),SUBSTITUTE($AA11,"{",CHAR(160),IE$1)),FIND(CHAR(160),SUBSTITUTE($AA11,"}",CHAR(160),IE$1))-FIND(CHAR(160),SUBSTITUTE($AA11,"{",CHAR(160),IE$1))+1),"") ->  | IF11: =IFERROR(MID($AA11,FIND(CHAR(160),SUBSTITUTE($AA11,"{",CHAR(160),IF$1)),FIND(CHAR(160),SUBSTITUTE($AA11,"}",CHAR(160),IF$1))-FIND(CHAR(160),SUBSTITUTE($AA11,"{",CHAR(160),IF$1))+1),"") ->  | IG11: =IFERROR(MID($AA11,FIND(CHAR(160),SUBSTITUTE($AA11,"{",CHAR(160),IG$1)),FIND(CHAR(160),SUBSTITUTE($AA11,"}",CHAR(160),IG$1))-FIND(CHAR(160),SUBSTITUTE($AA11,"{",CHAR(160),IG$1))+1),"") ->  | IH11: =IFERROR(MID($AA11,FIND(CHAR(160),SUBSTITUTE($AA11,"{",CHAR(160),IH$1)),FIND(CHAR(160),SUBSTITUTE($AA11,"}",CHAR(160),IH$1))-FIND(CHAR(160),SUBSTITUTE($AA11,"{",CHAR(160),IH$1))+1),"") ->  | II11: =IFERROR(MID($AA11,FIND(CHAR(160),SUBSTITUTE($AA11,"{",CHAR(160),II$1)),FIND(CHAR(160),SUBSTITUTE($AA11,"}",CHAR(160),II$1))-FIND(CHAR(160),SUBSTITUTE($AA11,"{",CHAR(160),II$1))+1),"") ->  | IJ11: =IFERROR(MID($AA11,FIND(CHAR(160),SUBSTITUTE($AA11,"{",CHAR(160),IJ$1)),FIND(CHAR(160),SUBSTITUTE($AA11,"}",CHAR(160),IJ$1))-FIND(CHAR(160),SUBSTITUTE($AA11,"{",CHAR(160),IJ$1))+1),"") ->  | IK11: =IFERROR(MID($AA11,FIND(CHAR(160),SUBSTITUTE($AA11,"{",CHAR(160),IK$1)),FIND(CHAR(160),SUBSTITUTE($AA11,"}",CHAR(160),IK$1))-FIND(CHAR(160),SUBSTITUTE($AA11,"{",CHAR(160),IK$1))+1),"") ->  | IL11: =IFERROR(MID($AA11,FIND(CHAR(160),SUBSTITUTE($AA11,"{",CHAR(160),IL$1)),FIND(CHAR(160),SUBSTITUTE($AA11,"}",CHAR(160),IL$1))-FIND(CHAR(160),SUBSTITUTE($AA11,"{",CHAR(160),IL$1))+1),"") ->  | IM11: =IFERROR(MID($AA11,FIND(CHAR(160),SUBSTITUTE($AA11,"{",CHAR(160),IM$1)),FIND(CHAR(160),SUBSTITUTE($AA11,"}",CHAR(160),IM$1))-FIND(CHAR(160),SUBSTITUTE($AA11,"{",CHAR(160),IM$1))+1),"") -> {Primary heating type} | IN11: =IFERROR(MID($AA11,FIND(CHAR(160),SUBSTITUTE($AA11,"{",CHAR(160),IN$1)),FIND(CHAR(160),SUBSTITUTE($AA11,"}",CHAR(160),IN$1))-FIND(CHAR(160),SUBSTITUTE($AA11,"{",CHAR(160),IN$1))+1),"") -> {Primary heating type} | IO11: =IFERROR(MID($AB11,FIND(CHAR(160),SUBSTITUTE($AB11,"{",CHAR(160),IO$1)),FIND(CHAR(160),SUBSTITUTE($AB11,"}",CHAR(160),IO$1))-FIND(CHAR(160),SUBSTITUTE($AB11,"{",CHAR(160),IO$1))+1),"") ->  | IP11: =IFERROR(MID($AB11,FIND(CHAR(160),SUBSTITUTE($AB11,"{",CHAR(160),IP$1)),FIND(CHAR(160),SUBSTITUTE($AB11,"}",CHAR(160),IP$1))-FIND(CHAR(160),SUBSTITUTE($AB11,"{",CHAR(160),IP$1))+1),"") ->  | IQ11: =IFERROR(MID($AB11,FIND(CHAR(160),SUBSTITUTE($AB11,"{",CHAR(160),IQ$1)),FIND(CHAR(160),SUBSTITUTE($AB11,"}",CHAR(160),IQ$1))-FIND(CHAR(160),SUBSTITUTE($AB11,"{",CHAR(160),IQ$1))+1),"") ->  | IR11: =IFERROR(MID($AB11,FIND(CHAR(160),SUBSTITUTE($AB11,"{",CHAR(160),IR$1)),FIND(CHAR(160),SUBSTITUTE($AB11,"}",CHAR(160),IR$1))-FIND(CHAR(160),SUBSTITUTE($AB11,"{",CHAR(160),IR$1))+1),"") ->  | IS11: =IFERROR(MID($AB11,FIND(CHAR(160),SUBSTITUTE($AB11,"{",CHAR(160),IS$1)),FIND(CHAR(160),SUBSTITUTE($AB11,"}",CHAR(160),IS$1))-FIND(CHAR(160),SUBSTITUTE($AB11,"{",CHAR(160),IS$1))+1),"") ->  | IT11: =IFERROR(MID($AB11,FIND(CHAR(160),SUBSTITUTE($AB11,"{",CHAR(160),IT$1)),FIND(CHAR(160),SUBSTITUTE($AB11,"}",CHAR(160),IT$1))-FIND(CHAR(160),SUBSTITUTE($AB11,"{",CHAR(160),IT$1))+1),"") ->  | IU11: =IFERROR(MID($AB11,FIND(CHAR(160),SUBSTITUTE($AB11,"{",CHAR(160),IU$1)),FIND(CHAR(160),SUBSTITUTE($AB11,"}",CHAR(160),IU$1))-FIND(CHAR(160),SUBSTITUTE($AB11,"{",CHAR(160),IU$1))+1),"") ->  | IV11: =IFERROR(MID($AB11,FIND(CHAR(160),SUBSTITUTE($AB11,"{",CHAR(160),IV$1)),FIND(CHAR(160),SUBSTITUTE($AB11,"}",CHAR(160),IV$1))-FIND(CHAR(160),SUBSTITUTE($AB11,"{",CHAR(160),IV$1))+1),"") ->  | IW11: =IFERROR(MID($AB11,FIND(CHAR(160),SUBSTITUTE($AB11,"{",CHAR(160),IW$1)),FIND(CHAR(160),SUBSTITUTE($AB11,"}",CHAR(160),IW$1))-FIND(CHAR(160),SUBSTITUTE($AB11,"{",CHAR(160),IW$1))+1),"") ->  | IX11: =IFERROR(MID($AB11,FIND(CHAR(160),SUBSTITUTE($AB11,"{",CHAR(160),IX$1)),FIND(CHAR(160),SUBSTITUTE($AB11,"}",CHAR(160),IX$1))-FIND(CHAR(160),SUBSTITUTE($AB11,"{",CHAR(160),IX$1))+1),"") ->  | IZ11: =10-COUNTIF(DU11:ED11,"") -> 3
A12: Affordable Heat Initiative - NECEC Funds | B12: MiniSplit HP LIHEAP | C12: LCHL | D12: 2021-07-01 | E12: 2022-06-30 | F12: Calculated | G12: {Cost}*{Measure:Quantity} | H12: 0 | I12: Calculated | J12: if({Primary heating type}=2,2000,0)*{Measure:Quantity} | K12: 2000 | L12: 2020-07-01 | M12: 2022-06-30 | N12: Calculated | O12: if({Primary heating type}=6,5379,if({Primary heating type}=0,-2581.54,-2744)) | U12: if({Primary heating type}=6,1.046,if({Primary heating type}=0,-0.562,-0.595)) | V12: 0.031 | W12: 10*if({Primary heating type}=1,1,if({Primary heating type}=0,0,0))*31.72 | X12: if({Primary heating type}=2,1,if({Primary heating type}=0,0.06,0))*31.72 | Y12: if({Primary heating type}=3,1,if({Primary heating type}=0,0.79,0))*31.72 | Z12: if({Primary heating type}=4,1,if({Primary heating type}=0,0.06,0))*31.72 | AA12: if({Primary heating type}=5,1,if({Primary heating type}=0,0.07,0))*31.72 | AB12: 0 | AC12: 2019-07-01 | AD12: 2022-06-30 | AE12: 18 | AF12: 1 | AG12: 1 | AH12: 0.373 | AI12: 0.528 | AJ12: 0.053 | AK12: 0.046 | AL12: 1 | AM12: 1 | AN12: 1 | AO12: 0 | AP12: 0 | AR12: =DU12 -> {Cost} | AS12: 2500 | AT12: =DV12 -> {Measure:Quantity} | AU12: 1 | AV12: =DW12 -> {Primary heating type} | AW12: 2 | AX12: =DX12 ->  | AZ12: =DY12 ->  | BB12: =DZ12 ->  | BD12: =EA12 ->  | BF12: =EB12 ->  | BH12: =EC12 ->  | BJ12: =ED12 ->  | BL12: =IF(AW12=6,5379,IF(AW12=0,-2581.54,-2744)) -> -2744 | BM12: 0 | BN12: 0 | BO12: 0 | BP12: 0 | BQ12: 0 | BR12: =IF(AW12=6,1.046,IF(AW12=0,-0.562,-0.595)) -> -0.595 | BS12: =0.031 -> 0.031 | BT12: =10*IF(AW12=1,1,IF(AW12=0,0,0))*31.72 -> 0 | BU12: =IF(AW12=2,1,IF(AW12=0,0.06,0))*31.72 -> 31.72 | BV12: =IF(AW12=3,1,IF(AW12=0,0.79,0))*31.72 -> 0 | BW12: =IF(AW12=4,1,IF(AW12=0,0.06,0))*31.72 -> 0 | BX12: =IF(AW12=5,1,IF(AW12=0,0.07,0))*31.72 -> 0 | BY12: =0 -> 0 | CA12: Res | CB12: Default DR | CC12: =Benefits(BL12,BR12,BS12,BT12,BU12,BV12,BW12,BX12,BY12,BZ12,AE12,AH12,AI12,AJ12,AK12,AL12,AM12,AN12,AO12,AP12,CA12,CB12) -> -4315.624557 | CD12: -2522.035138 | CE12: 0 | CF12: 0 | CG12: 0 | CH12: 21494.27313 | CI12: 0 | CJ12: 0 | CK12: 0 | CL12: =SUMPRODUCT(CC12:CK12,--(CC12:CK12>0)) -> 21494.27313 | CM12: =-SUMPRODUCT(CC12:CK12,--(CC12:CK12<0)) -> 6837.659695 | CO12: =AS12*AU12 -> 2500 | CR12: =CM12+CO12 -> 9337.659695 | CS12: =IF(NetOrGross="Net",(1-AO12+AP12),1) -> 1 | CT12: =(SUMPRODUCT(CC12:CJ12,--(CC12:CJ12>0))+CN12)*CS12/((-SUMPRODUCT(CC12:CJ12,--(CC12:CJ12<0))+MAX(CO12,CV12)+CP12+CQ12)*CS12+IF(FRIncentives="Yes",CV12*(1-CS12),0)) -> 2.30189082 | CU12: 1 | CV12: =IF(AW12=2,2000,0)*AU12 -> 2000 | CX12: RGGI | CY12: y | CZ12: 1 | DA12: =IF(F12="Manual Entry","Manual",IF(G12="",0,"X="&SUBSTITUTE(SUBSTITUTE(SUBSTITUTE(SUBSTITUTE(SUBSTITUTE(SUBSTITUTE(SUBSTITUTE(SUBSTITUTE(SUBSTITUTE(SUBSTITUTE(SUBSTITUTE(SUBSTITUTE(G12,$ED12,$ED$2&ROW($ED12)),$EC12,$EC$2&ROW($EC12)),$EB12,$EB$2&ROW($EB12)),$EA12,$EA$2&ROW($EA12)),$DZ12,$DZ$2&ROW($DZ12)),$DY12,$DY$2&ROW($DY12)),$DX12,$DX$2&ROW($DX12)),$DW12,$DW$2&ROW($DW12)),$DV12,$DV$2&ROW($DV12)),$DU12,$DU$2&ROW($DU12)),$DT12,$DT$2&ROW($DT12)),$DS12,$DS$2&ROW($DS12)))) -> X=AS12*AU12 | DB12: =IF(I12="Manual Entry","Manual",IF(J12="",0,"X="&SUBSTITUTE(SUBSTITUTE(SUBSTITUTE(SUBSTITUTE(SUBSTITUTE(SUBSTITUTE(SUBSTITUTE(SUBSTITUTE(SUBSTITUTE(SUBSTITUTE(SUBSTITUTE(SUBSTITUTE(J12,$ED12,$ED$2&ROW($ED12)),$EC12,$EC$2&ROW($EC12)),$EB12,$EB$2&ROW($EB12)),$EA12,$EA$2&ROW($EA12)),$DZ12,$DZ$2&ROW($DZ12)),$DY12,$DY$2&ROW($DY12)),$DX12,$DX$2&ROW($DX12)),$DW12,$DW$2&ROW($DW12)),$DV12,$DV$2&ROW($DV12)),$DU12,$DU$2&ROW($DU12)),$DT12,$DT$2&ROW($DT12)),$DS12,$DS$2&ROW($DS12)))) -> X=if(AW12=2,2000,0)*AU12 | DC12: =IF(O12="",0,"X="&SUBSTITUTE(SUBSTITUTE(SUBSTITUTE(SUBSTITUTE(SUBSTITUTE(SUBSTITUTE(SUBSTITUTE(SUBSTITUTE(SUBSTITUTE(SUBSTITUTE(SUBSTITUTE(SUBSTITUTE(O12,$ED12,$ED$2&ROW($ED12)),$EC12,$EC$2&ROW($EC12)),$EB12,$EB$2&ROW($EB12)),$EA12,$EA$2&ROW($EA12)),$DZ12,$DZ$2&ROW($DZ12)),$DY12,$DY$2&ROW($DY12)),$DX12,$DX$2&ROW($DX12)),$DW12,$DW$2&ROW($DW12)),$DV12,$DV$2&ROW($DV12)),$DU12,$DU$2&ROW($DU12)),$DT12,$DT$2&ROW($DT12)),$DS12,$DS$2&ROW($DS12))) -> X=if(AW12=6,5379,if(AW12=0,-2581.54,-2744)) | DD12: =IF(P12="",0,"X="&SUBSTITUTE(SUBSTITUTE(SUBSTITUTE(SUBSTITUTE(SUBSTITUTE(SUBSTITUTE(SUBSTITUTE(SUBSTITUTE(SUBSTITUTE(SUBSTITUTE(SUBSTITUTE(SUBSTITUTE(P12,$ED12,$ED$2&ROW($ED12)),$EC12,$EC$2&ROW($EC12)),$EB12,$EB$2&ROW($EB12)),$EA12,$EA$2&ROW($EA12)),$DZ12,$DZ$2&ROW($DZ12)),$DY12,$DY$2&ROW($DY12)),$DX12,$DX$2&ROW($DX12)),$DW12,$DW$2&ROW($DW12)),$DV12,$DV$2&ROW($DV12)),$DU12,$DU$2&ROW($DU12)),$DT12,$DT$2&ROW($DT12)),$DS12,$DS$2&ROW($DS12))) -> 0 | DE12: =IF(Q12="",0,"X="&SUBSTITUTE(SUBSTITUTE(SUBSTITUTE(SUBSTITUTE(SUBSTITUTE(SUBSTITUTE(SUBSTITUTE(SUBSTITUTE(SUBSTITUTE(SUBSTITUTE(SUBSTITUTE(SUBSTITUTE(Q12,$ED12,$ED$2&ROW($ED12)),$EC12,$EC$2&ROW($EC12)),$EB12,$EB$2&ROW($EB12)),$EA12,$EA$2&ROW($EA12)),$DZ12,$DZ$2&ROW($DZ12)),$DY12,$DY$2&ROW($DY12)),$DX12,$DX$2&ROW($DX12)),$DW12,$DW$2&ROW($DW12)),$DV12,$DV$2&ROW($DV12)),$DU12,$DU$2&ROW($DU12)),$DT12,$DT$2&ROW($DT12)),$DS12,$DS$2&ROW($DS12))) -> 0 | DF12: =IF(R12="",0,"X="&SUBSTITUTE(SUBSTITUTE(SUBSTITUTE(SUBSTITUTE(SUBSTITUTE(SUBSTITUTE(SUBSTITUTE(SUBSTITUTE(SUBSTITUTE(SUBSTITUTE(SUBSTITUTE(SUBSTITUTE(R12,$ED12,$ED$2&ROW($ED12)),$EC12,$EC$2&ROW($EC12)),$EB12,$EB$2&ROW($EB12)),$EA12,$EA$2&ROW($EA12)),$DZ12,$DZ$2&ROW($DZ12)),$DY12,$DY$2&ROW($DY12)),$DX12,$DX$2&ROW($DX12)),$DW12,$DW$2&ROW($DW12)),$DV12,$DV$2&ROW($DV12)),$DU12,$DU$2&ROW($DU12)),$DT12,$DT$2&ROW($DT12)),$DS12,$DS$2&ROW($DS12))) -> 0 | DG12: =IF(S12="",0,"X="&SUBSTITUTE(SUBSTITUTE(SUBSTITUTE(SUBSTITUTE(SUBSTITUTE(SUBSTITUTE(SUBSTITUTE(SUBSTITUTE(SUBSTITUTE(SUBSTITUTE(SUBSTITUTE(SUBSTITUTE(S12,$ED12,$ED$2&ROW($ED12)),$EC12,$EC$2&ROW($EC12)),$EB12,$EB$2&ROW($EB12)),$EA12,$EA$2&ROW($EA12)),$DZ12,$DZ$2&ROW($DZ12)),$DY12,$DY$2&ROW($DY12)),$DX12,$DX$2&ROW($DX12)),$DW12,$DW$2&ROW($DW12)),$DV12,$DV$2&ROW($DV12)),$DU12,$DU$2&ROW($DU12)),$DT12,$DT$2&ROW($DT12)),$DS12,$DS$2&ROW($DS12))) -> 0 | DH12: =IF(T12="",0,"X="&SUBSTITUTE(SUBSTITUTE(SUBSTITUTE(SUBSTITUTE(SUBSTITUTE(SUBSTITUTE(SUBSTITUTE(SUBSTITUTE(SUBSTITUTE(SUBSTITUTE(SUBSTITUTE(SUBSTITUTE(T12,$ED12,$ED$2&ROW($ED12)),$EC12,$EC$2&ROW($EC12)),$EB12,$EB$2&ROW($EB12)),$EA12,$EA$2&ROW($EA12)),$DZ12,$DZ$2&ROW($DZ12)),$DY12,$DY$2&ROW($DY12)),$DX12,$DX$2&ROW($DX12)),$DW12,$DW$2&ROW($DW12)),$DV12,$DV$2&ROW($DV12)),$DU12,$DU$2&ROW($DU12)),$DT12,$DT$2&ROW($DT12)),$DS12,$DS$2&ROW($DS12))) -> 0 | DI12: =IF(U12="",0,"X="&SUBSTITUTE(SUBSTITUTE(SUBSTITUTE(SUBSTITUTE(SUBSTITUTE(SUBSTITUTE(SUBSTITUTE(SUBSTITUTE(SUBSTITUTE(SUBSTITUTE(SUBSTITUTE(SUBSTITUTE(U12,$ED12,$ED$2&ROW($ED12)),$EC12,$EC$2&ROW($EC12)),$EB12,$EB$2&ROW($EB12)),$EA12,$EA$2&ROW($EA12)),$DZ12,$DZ$2&ROW($DZ12)),$DY12,$DY$2&ROW($DY12)),$DX12,$DX$2&ROW($DX12)),$DW12,$DW$2&ROW($DW12)),$DV12,$DV$2&ROW($DV12)),$DU12,$DU$2&ROW($DU12)),$DT12,$DT$2&ROW($DT12)),$DS12,$DS$2&ROW($DS12))) -> X=if(AW12=6,1.046,if(AW12=0,-0.562,-0.595)) | DJ12: =IF(V12="",0,"X="&SUBSTITUTE(SUBSTITUTE(SUBSTITUTE(SUBSTITUTE(SUBSTITUTE(SUBSTITUTE(SUBSTITUTE(SUBSTITUTE(SUBSTITUTE(SUBSTITUTE(SUBSTITUTE(SUBSTITUTE(V12,$ED12,$ED$2&ROW($ED12)),$EC12,$EC$2&ROW($EC12)),$EB12,$EB$2&ROW($EB12)),$EA12,$EA$2&ROW($EA12)),$DZ12,$DZ$2&ROW($DZ12)),$DY12,$DY$2&ROW($DY12)),$DX12,$DX$2&ROW($DX12)),$DW12,$DW$2&ROW($DW12)),$DV12,$DV$2&ROW($DV12)),$DU12,$DU$2&ROW($DU12)),$DT12,$DT$2&ROW($DT12)),$DS12,$DS$2&ROW($DS12))) -> X=0.031 | DK12: =IF(W12="",0,"X="&SUBSTITUTE(SUBSTITUTE(SUBSTITUTE(SUBSTITUTE(SUBSTITUTE(SUBSTITUTE(SUBSTITUTE(SUBSTITUTE(SUBSTITUTE(SUBSTITUTE(SUBSTITUTE(SUBSTITUTE(W12,$ED12,$ED$2&ROW($ED12)),$EC12,$EC$2&ROW($EC12)),$EB12,$EB$2&ROW($EB12)),$EA12,$EA$2&ROW($EA12)),$DZ12,$DZ$2&ROW($DZ12)),$DY12,$DY$2&ROW($DY12)),$DX12,$DX$2&ROW($DX12)),$DW12,$DW$2&ROW($DW12)),$DV12,$DV$2&ROW($DV12)),$DU12,$DU$2&ROW($DU12)),$DT12,$DT$2&ROW($DT12)),$DS12,$DS$2&ROW($DS12))) -> X=10*if(AW12=1,1,if(AW12=0,0,0))*31.72 | DL12: =IF(X12="",0,"X="&SUBSTITUTE(SUBSTITUTE(SUBSTITUTE(SUBSTITUTE(SUBSTITUTE(SUBSTITUTE(SUBSTITUTE(SUBSTITUTE(SUBSTITUTE(SUBSTITUTE(SUBSTITUTE(SUBSTITUTE(X12,$ED12,$ED$2&ROW($ED12)),$EC12,$EC$2&ROW($EC12)),$EB12,$EB$2&ROW($EB12)),$EA12,$EA$2&ROW($EA12)),$DZ12,$DZ$2&ROW($DZ12)),$DY12,$DY$2&ROW($DY12)),$DX12,$DX$2&ROW($DX12)),$DW12,$DW$2&ROW($DW12)),$DV12,$DV$2&ROW($DV12)),$DU12,$DU$2&ROW($DU12)),$DT12,$DT$2&ROW($DT12)),$DS12,$DS$2&ROW($DS12))) -> X=if(AW12=2,1,if(AW12=0,0.06,0))*31.72 | DM12: =IF(Y12="",0,"X="&SUBSTITUTE(SUBSTITUTE(SUBSTITUTE(SUBSTITUTE(SUBSTITUTE(SUBSTITUTE(SUBSTITUTE(SUBSTITUTE(SUBSTITUTE(SUBSTITUTE(SUBSTITUTE(SUBSTITUTE(Y12,$ED12,$ED$2&ROW($ED12)),$EC12,$EC$2&ROW($EC12)),$EB12,$EB$2&ROW($EB12)),$EA12,$EA$2&ROW($EA12)),$DZ12,$DZ$2&ROW($DZ12)),$DY12,$DY$2&ROW($DY12)),$DX12,$DX$2&ROW($DX12)),$DW12,$DW$2&ROW($DW12)),$DV12,$DV$2&ROW($DV12)),$DU12,$DU$2&ROW($DU12)),$DT12,$DT$2&ROW($DT12)),$DS12,$DS$2&ROW($DS12))) -> X=if(AW12=3,1,if(AW12=0,0.79,0))*31.72 | DN12: =IF(Z12="",0,"X="&SUBSTITUTE(SUBSTITUTE(SUBSTITUTE(SUBSTITUTE(SUBSTITUTE(SUBSTITUTE(SUBSTITUTE(SUBSTITUTE(SUBSTITUTE(SUBSTITUTE(SUBSTITUTE(SUBSTITUTE(Z12,$ED12,$ED$2&ROW($ED12)),$EC12,$EC$2&ROW($EC12)),$EB12,$EB$2&ROW($EB12)),$EA12,$EA$2&ROW($EA12)),$DZ12,$DZ$2&ROW($DZ12)),$DY12,$DY$2&ROW($DY12)),$DX12,$DX$2&ROW($DX12)),$DW12,$DW$2&ROW($DW12)),$DV12,$DV$2&ROW($DV12)),$DU12,$DU$2&ROW($DU12)),$DT12,$DT$2&ROW($DT12)),$DS12,$DS$2&ROW($DS12))) -> X=if(AW12=4,1,if(AW12=0,0.06,0))*31.72 | DO12: =IF(AA12="",0,"X="&SUBSTITUTE(SUBSTITUTE(SUBSTITUTE(SUBSTITUTE(SUBSTITUTE(SUBSTITUTE(SUBSTITUTE(SUBSTITUTE(SUBSTITUTE(SUBSTITUTE(SUBSTITUTE(SUBSTITUTE(AA12,$ED12,$ED$2&ROW($ED12)),$EC12,$EC$2&ROW($EC12)),$EB12,$EB$2&ROW($EB12)),$EA12,$EA$2&ROW($EA12)),$DZ12,$DZ$2&ROW($DZ12)),$DY12,$DY$2&ROW($DY12)),$DX12,$DX$2&ROW($DX12)),$DW12,$DW$2&ROW($DW12)),$DV12,$DV$2&ROW($DV12)),$DU12,$DU$2&ROW($DU12)),$DT12,$DT$2&ROW($DT12)),$DS12,$DS$2&ROW($DS12))) -> X=if(AW12=5,1,if(AW12=0,0.07,0))*31.72 | DP12: =IF(AB12="",0,"X="&SUBSTITUTE(SUBSTITUTE(SUBSTITUTE(SUBSTITUTE(SUBSTITUTE(SUBSTITUTE(SUBSTITUTE(SUBSTITUTE(SUBSTITUTE(SUBSTITUTE(SUBSTITUTE(SUBSTITUTE(AB12,$ED12,$ED$2&ROW($ED12)),$EC12,$EC$2&ROW($EC12)),$EB12,$EB$2&ROW($EB12)),$EA12,$EA$2&ROW($EA12)),$DZ12,$DZ$2&ROW($DZ12)),$DY12,$DY$2&ROW($DY12)),$DX12,$DX$2&ROW($DX12)),$DW12,$DW$2&ROW($DW12)),$DV12,$DV$2&ROW($DV12)),$DU12,$DU$2&ROW($DU12)),$DT12,$DT$2&ROW($DT12)),$DS12,$DS$2&ROW($DS12))) -> X=0 | DS12: {Factor:WinterCF} | DT12: {Factor:SummerCF} | DU12: =IFERROR(INDEX($EG12:$IV12,MATCH(0,COUNTIF($DR12:DT12,$EG12:$IV12),0)),"") -> {Cost} | DV12: =IFERROR(INDEX($EG12:$IV12,MATCH(0,COUNTIF($DR12:DU12,$EG12:$IV12),0)),"") -> {Measure:Quantity} | DW12: =IFERROR(INDEX($EG12:$IV12,MATCH(0,COUNTIF($DR12:DV12,$EG12:$IV12),0)),"") -> {Primary heating type} | DX12: =IFERROR(INDEX($EG12:$IV12,MATCH(0,COUNTIF($DR12:DW12,$EG12:$IV12),0)),"") ->  | DY12: =IFERROR(INDEX($EG12:$IV12,MATCH(0,COUNTIF($DR12:DX12,$EG12:$IV12),0)),"") ->  | DZ12: =IFERROR(INDEX($EG12:$IV12,MATCH(0,COUNTIF($DR12:DY12,$EG12:$IV12),0)),"") ->  | EA12: =IFERROR(INDEX($EG12:$IV12,MATCH(0,COUNTIF($DR12:DZ12,$EG12:$IV12),0)),"") ->  | EB12: =IFERROR(INDEX($EG12:$IV12,MATCH(0,COUNTIF($DR12:EA12,$EG12:$IV12),0)),"") ->  | EC12: =IFERROR(INDEX($EG12:$IV12,MATCH(0,COUNTIF($DR12:EB12,$EG12:$IV12),0)),"") ->  | ED12: =IFERROR(INDEX($EG12:$IV12,MATCH(0,COUNTIF($DR12:EC12,$EG12:$IV12),0)),"") ->  | EG12: =IFERROR(MID($G12,FIND(CHAR(160),SUBSTITUTE($G12,"{",CHAR(160),EG$1)),FIND(CHAR(160),SUBSTITUTE($G12,"}",CHAR(160),EG$1))-FIND(CHAR(160),SUBSTITUTE($G12,"{",CHAR(160),EG$1))+1),"") -> {Cost} | EH12: =IFERROR(MID($G12,FIND(CHAR(160),SUBSTITUTE($G12,"{",CHAR(160),EH$1)),FIND(CHAR(160),SUBSTITUTE($G12,"}",CHAR(160),EH$1))-FIND(CHAR(160),SUBSTITUTE($G12,"{",CHAR(160),EH$1))+1),"") -> {Measure:Quantity} | EI12: =IFERROR(MID($G12,FIND(CHAR(160),SUBSTITUTE($G12,"{",CHAR(160),EI$1)),FIND(CHAR(160),SUBSTITUTE($G12,"}",CHAR(160),EI$1))-FIND(CHAR(160),SUBSTITUTE($G12,"{",CHAR(160),EI$1))+1),"") ->  | EJ12: =IFERROR(MID($G12,FIND(CHAR(160),SUBSTITUTE($G12,"{",CHAR(160),EJ$1)),FIND(CHAR(160),SUBSTITUTE($G12,"}",CHAR(160),EJ$1))-FIND(CHAR(160),SUBSTITUTE($G12,"{",CHAR(160),EJ$1))+1),"") ->  | EK12: =IFERROR(MID($G12,FIND(CHAR(160),SUBSTITUTE($G12,"{",CHAR(160),EK$1)),FIND(CHAR(160),SUBSTITUTE($G12,"}",CHAR(160),EK$1))-FIND(CHAR(160),SUBSTITUTE($G12,"{",CHAR(160),EK$1))+1),"") ->  | EL12: =IFERROR(MID($G12,FIND(CHAR(160),SUBSTITUTE($G12,"{",CHAR(160),EL$1)),FIND(CHAR(160),SUBSTITUTE($G12,"}",CHAR(160),EL$1))-FIND(CHAR(160),SUBSTITUTE($G12,"{",CHAR(160),EL$1))+1),"") ->  | EM12: =IFERROR(MID($G12,FIND(CHAR(160),SUBSTITUTE($G12,"{",CHAR(160),EM$1)),FIND(CHAR(160),SUBSTITUTE($G12,"}",CHAR(160),EM$1))-FIND(CHAR(160),SUBSTITUTE($G12,"{",CHAR(160),EM$1))+1),"") ->  | EN12: =IFERROR(MID($G12,FIND(CHAR(160),SUBSTITUTE($G12,"{",CHAR(160),EN$1)),FIND(CHAR(160),SUBSTITUTE($G12,"}",CHAR(160),EN$1))-FIND(CHAR(160),SUBSTITUTE($G12,"{",CHAR(160),EN$1))+1),"") ->  | EO12: =IFERROR(MID($G12,FIND(CHAR(160),SUBSTITUTE($G12,"{",CHAR(160),EO$1)),FIND(CHAR(160),SUBSTITUTE($G12,"}",CHAR(160),EO$1))-FIND(CHAR(160),SUBSTITUTE($G12,"{",CHAR(160),EO$1))+1),"") ->  | EP12: =IFERROR(MID($G12,FIND(CHAR(160),SUBSTITUTE($G12,"{",CHAR(160),EP$1)),FIND(CHAR(160),SUBSTITUTE($G12,"}",CHAR(160),EP$1))-FIND(CHAR(160),SUBSTITUTE($G12,"{",CHAR(160),EP$1))+1),"") ->  | EQ12: =IFERROR(MID($J12,FIND(CHAR(160),SUBSTITUTE($J12,"{",CHAR(160),EQ$1)),FIND(CHAR(160),SUBSTITUTE($J12,"}",CHAR(160),EQ$1))-FIND(CHAR(160),SUBSTITUTE($J12,"{",CHAR(160),EQ$1))+1),"") -> {Primary heating type} | ER12: =IFERROR(MID($J12,FIND(CHAR(160),SUBSTITUTE($J12,"{",CHAR(160),ER$1)),FIND(CHAR(160),SUBSTITUTE($J12,"}",CHAR(160),ER$1))-FIND(CHAR(160),SUBSTITUTE($J12,"{",CHAR(160),ER$1))+1),"") -> {Measure:Quantity} | ES12: =IFERROR(MID($J12,FIND(CHAR(160),SUBSTITUTE($J12,"{",CHAR(160),ES$1)),FIND(CHAR(160),SUBSTITUTE($J12,"}",CHAR(160),ES$1))-FIND(CHAR(160),SUBSTITUTE($J12,"{",CHAR(160),ES$1))+1),"") ->  | ET12: =IFERROR(MID($J12,FIND(CHAR(160),SUBSTITUTE($J12,"{",CHAR(160),ET$1)),FIND(CHAR(160),SUBSTITUTE($J12,"}",CHAR(160),ET$1))-FIND(CHAR(160),SUBSTITUTE($J12,"{",CHAR(160),ET$1))+1),"") ->  | EU12: =IFERROR(MID($J12,FIND(CHAR(160),SUBSTITUTE($J12,"{",CHAR(160),EU$1)),FIND(CHAR(160),SUBSTITUTE($J12,"}",CHAR(160),EU$1))-FIND(CHAR(160),SUBSTITUTE($J12,"{",CHAR(160),EU$1))+1),"") ->  | EV12: =IFERROR(MID($J12,FIND(CHAR(160),SUBSTITUTE($J12,"{",CHAR(160),EV$1)),FIND(CHAR(160),SUBSTITUTE($J12,"}",CHAR(160),EV$1))-FIND(CHAR(160),SUBSTITUTE($J12,"{",CHAR(160),EV$1))+1),"") ->  | EW12: =IFERROR(MID($J12,FIND(CHAR(160),SUBSTITUTE($J12,"{",CHAR(160),EW$1)),FIND(CHAR(160),SUBSTITUTE($J12,"}",CHAR(160),EW$1))-FIND(CHAR(160),SUBSTITUTE($J12,"{",CHAR(160),EW$1))+1),"") ->  | EX12: =IFERROR(MID($J12,FIND(CHAR(160),SUBSTITUTE($J12,"{",CHAR(160),EX$1)),FIND(CHAR(160),SUBSTITUTE($J12,"}",CHAR(160),EX$1))-FIND(CHAR(160),SUBSTITUTE($J12,"{",CHAR(160),EX$1))+1),"") ->  | EY12: =IFERROR(MID($J12,FIND(CHAR(160),SUBSTITUTE($J12,"{",CHAR(160),EY$1)),FIND(CHAR(160),SUBSTITUTE($J12,"}",CHAR(160),EY$1))-FIND(CHAR(160),SUBSTITUTE($J12,"{",CHAR(160),EY$1))+1),"") ->  | EZ12: =IFERROR(MID($J12,FIND(CHAR(160),SUBSTITUTE($J12,"{",CHAR(160),EZ$1)),FIND(CHAR(160),SUBSTITUTE($J12,"}",CHAR(160),EZ$1))-FIND(CHAR(160),SUBSTITUTE($J12,"{",CHAR(160),EZ$1))+1),"") ->  | FA12: =IFERROR(MID($J12,FIND(CHAR(160),SUBSTITUTE($J12,"{",CHAR(160),FA$1)),FIND(CHAR(160),SUBSTITUTE($J12,"}",CHAR(160),FA$1))-FIND(CHAR(160),SUBSTITUTE($J12,"{",CHAR(160),FA$1))+1),"") -> {Primary heating type} | FB12: =IFERROR(MID($J12,FIND(CHAR(160),SUBSTITUTE($J12,"{",CHAR(160),FB$1)),FIND(CHAR(160),SUBSTITUTE($J12,"}",CHAR(160),FB$1))-FIND(CHAR(160),SUBSTITUTE($J12,"{",CHAR(160),FB$1))+1),"") -> {Measure:Quantity} | FC12: =IFERROR(MID($O12,FIND(CHAR(160),SUBSTITUTE($O12,"{",CHAR(160),FC$1)),FIND(CHAR(160),SUBSTITUTE($O12,"}",CHAR(160),FC$1))-FIND(CHAR(160),SUBSTITUTE($O12,"{",CHAR(160),FC$1))+1),"") ->  | FD12: =IFERROR(MID($O12,FIND(CHAR(160),SUBSTITUTE($O12,"{",CHAR(160),FD$1)),FIND(CHAR(160),SUBSTITUTE($O12,"}",CHAR(160),FD$1))-FIND(CHAR(160),SUBSTITUTE($O12,"{",CHAR(160),FD$1))+1),"") ->  | FE12: =IFERROR(MID($O12,FIND(CHAR(160),SUBSTITUTE($O12,"{",CHAR(160),FE$1)),FIND(CHAR(160),SUBSTITUTE($O12,"}",CHAR(160),FE$1))-FIND(CHAR(160),SUBSTITUTE($O12,"{",CHAR(160),FE$1))+1),"") ->  | FF12: =IFERROR(MID($O12,FIND(CHAR(160),SUBSTITUTE($O12,"{",CHAR(160),FF$1)),FIND(CHAR(160),SUBSTITUTE($O12,"}",CHAR(160),FF$1))-FIND(CHAR(160),SUBSTITUTE($O12,"{",CHAR(160),FF$1))+1),"") ->  | FG12: =IFERROR(MID($O12,FIND(CHAR(160),SUBSTITUTE($O12,"{",CHAR(160),FG$1)),FIND(CHAR(160),SUBSTITUTE($O12,"}",CHAR(160),FG$1))-FIND(CHAR(160),SUBSTITUTE($O12,"{",CHAR(160),FG$1))+1),"") ->  | FH12: =IFERROR(MID($O12,FIND(CHAR(160),SUBSTITUTE($O12,"{",CHAR(160),FH$1)),FIND(CHAR(160),SUBSTITUTE($O12,"}",CHAR(160),FH$1))-FIND(CHAR(160),SUBSTITUTE($O12,"{",CHAR(160),FH$1))+1),"") ->  | FI12: =IFERROR(MID($O12,FIND(CHAR(160),SUBSTITUTE($O12,"{",CHAR(160),FI$1)),FIND(CHAR(160),SUBSTITUTE($O12,"}",CHAR(160),FI$1))-FIND(CHAR(160),SUBSTITUTE($O12,"{",CHAR(160),FI$1))+1),"") ->  | FJ12: =IFERROR(MID($O12,FIND(CHAR(160),SUBSTITUTE($O12,"{",CHAR(160),FJ$1)),FIND(CHAR(160),SUBSTITUTE($O12,"}",CHAR(160),FJ$1))-FIND(CHAR(160),SUBSTITUTE($O12,"{",CHAR(160),FJ$1))+1),"") ->  | FK12: =IFERROR(MID($O12,FIND(CHAR(160),SUBSTITUTE($O12,"{",CHAR(160),FK$1)),FIND(CHAR(160),SUBSTITUTE($O12,"}",CHAR(160),FK$1))-FIND(CHAR(160),SUBSTITUTE($O12,"{",CHAR(160),FK$1))+1),"") -> {Primary heating type} | FL12: =IFERROR(MID($O12,FIND(CHAR(160),SUBSTITUTE($O12,"{",CHAR(160),FL$1)),FIND(CHAR(160),SUBSTITUTE($O12,"}",CHAR(160),FL$1))-FIND(CHAR(160),SUBSTITUTE($O12,"{",CHAR(160),FL$1))+1),"") -> {Primary heating type} | FM12: =IFERROR(MID($R12,FIND(CHAR(160),SUBSTITUTE($R12,"{",CHAR(160),FM$1)),FIND(CHAR(160),SUBSTITUTE($R12,"}",CHAR(160),FM$1))-FIND(CHAR(160),SUBSTITUTE($R12,"{",CHAR(160),FM$1))+1),"") ->  | FN12: =IFERROR(MID($R12,FIND(CHAR(160),SUBSTITUTE($R12,"{",CHAR(160),FN$1)),FIND(CHAR(160),SUBSTITUTE($R12,"}",CHAR(160),FN$1))-FIND(CHAR(160),SUBSTITUTE($R12,"{",CHAR(160),FN$1))+1),"") ->  | FO12: =IFERROR(MID($R12,FIND(CHAR(160),SUBSTITUTE($R12,"{",CHAR(160),FO$1)),FIND(CHAR(160),SUBSTITUTE($R12,"}",CHAR(160),FO$1))-FIND(CHAR(160),SUBSTITUTE($R12,"{",CHAR(160),FO$1))+1),"") ->  | FP12: =IFERROR(MID($R12,FIND(CHAR(160),SUBSTITUTE($R12,"{",CHAR(160),FP$1)),FIND(CHAR(160),SUBSTITUTE($R12,"}",CHAR(160),FP$1))-FIND(CHAR(160),SUBSTITUTE($R12,"{",CHAR(160),FP$1))+1),"") ->  | FQ12: =IFERROR(MID($R12,FIND(CHAR(160),SUBSTITUTE($R12,"{",CHAR(160),FQ$1)),FIND(CHAR(160),SUBSTITUTE($R12,"}",CHAR(160),FQ$1))-FIND(CHAR(160),SUBSTITUTE($R12,"{",CHAR(160),FQ$1))+1),"") ->  | FR12: =IFERROR(MID($R12,FIND(CHAR(160),SUBSTITUTE($R12,"{",CHAR(160),FR$1)),FIND(CHAR(160),SUBSTITUTE($R12,"}",CHAR(160),FR$1))-FIND(CHAR(160),SUBSTITUTE($R12,"{",CHAR(160),FR$1))+1),"") ->  | FS12: =IFERROR(MID($R12,FIND(CHAR(160),SUBSTITUTE($R12,"{",CHAR(160),FS$1)),FIND(CHAR(160),SUBSTITUTE($R12,"}",CHAR(160),FS$1))-FIND(CHAR(160),SUBSTITUTE($R12,"{",CHAR(160),FS$1))+1),"") ->  | FT12: =IFERROR(MID($R12,FIND(CHAR(160),SUBSTITUTE($R12,"{",CHAR(160),FT$1)),FIND(CHAR(160),SUBSTITUTE($R12,"}",CHAR(160),FT$1))-FIND(CHAR(160),SUBSTITUTE($R12,"{",CHAR(160),FT$1))+1),"") ->  | FU12: =IFERROR(MID($R12,FIND(CHAR(160),SUBSTITUTE($R12,"{",CHAR(160),FU$1)),FIND(CHAR(160),SUBSTITUTE($R12,"}",CHAR(160),FU$1))-FIND(CHAR(160),SUBSTITUTE($R12,"{",CHAR(160),FU$1))+1),"") ->  | FV12: =IFERROR(MID($R12,FIND(CHAR(160),SUBSTITUTE($R12,"{",CHAR(160),FV$1)),FIND(CHAR(160),SUBSTITUTE($R12,"}",CHAR(160),FV$1))-FIND(CHAR(160),SUBSTITUTE($R12,"{",CHAR(160),FV$1))+1),"") ->  | FW12: =IFERROR(MID($U12,FIND(CHAR(160),SUBSTITUTE($U12,"{",CHAR(160),FW$1)),FIND(CHAR(160),SUBSTITUTE($U12,"}",CHAR(160),FW$1))-FIND(CHAR(160),SUBSTITUTE($U12,"{",CHAR(160),FW$1))+1),"") ->  | FX12: =IFERROR(MID($U12,FIND(CHAR(160),SUBSTITUTE($U12,"{",CHAR(160),FX$1)),FIND(CHAR(160),SUBSTITUTE($U12,"}",CHAR(160),FX$1))-FIND(CHAR(160),SUBSTITUTE($U12,"{",CHAR(160),FX$1))+1),"") ->  | FY12: =IFERROR(MID($U12,FIND(CHAR(160),SUBSTITUTE($U12,"{",CHAR(160),FY$1)),FIND(CHAR(160),SUBSTITUTE($U12,"}",CHAR(160),FY$1))-FIND(CHAR(160),SUBSTITUTE($U12,"{",CHAR(160),FY$1))+1),"") ->  | FZ12: =IFERROR(MID($U12,FIND(CHAR(160),SUBSTITUTE($U12,"{",CHAR(160),FZ$1)),FIND(CHAR(160),SUBSTITUTE($U12,"}",CHAR(160),FZ$1))-FIND(CHAR(160),SUBSTITUTE($U12,"{",CHAR(160),FZ$1))+1),"") ->  | GA12: =IFERROR(MID($U12,FIND(CHAR(160),SUBSTITUTE($U12,"{",CHAR(160),GA$1)),FIND(CHAR(160),SUBSTITUTE($U12,"}",CHAR(160),GA$1))-FIND(CHAR(160),SUBSTITUTE($U12,"{",CHAR(160),GA$1))+1),"") ->  | GB12: =IFERROR(MID($U12,FIND(CHAR(160),SUBSTITUTE($U12,"{",CHAR(160),GB$1)),FIND(CHAR(160),SUBSTITUTE($U12,"}",CHAR(160),GB$1))-FIND(CHAR(160),SUBSTITUTE($U12,"{",CHAR(160),GB$1))+1),"") ->  | GC12: =IFERROR(MID($U12,FIND(CHAR(160),SUBSTITUTE($U12,"{",CHAR(160),GC$1)),FIND(CHAR(160),SUBSTITUTE($U12,"}",CHAR(160),GC$1))-FIND(CHAR(160),SUBSTITUTE($U12,"{",CHAR(160),GC$1))+1),"") ->  | GD12: =IFERROR(MID($U12,FIND(CHAR(160),SUBSTITUTE($U12,"{",CHAR(160),GD$1)),FIND(CHAR(160),SUBSTITUTE($U12,"}",CHAR(160),GD$1))-FIND(CHAR(160),SUBSTITUTE($U12,"{",CHAR(160),GD$1))+1),"") ->  | GE12: =IFERROR(MID($U12,FIND(CHAR(160),SUBSTITUTE($U12,"{",CHAR(160),GE$1)),FIND(CHAR(160),SUBSTITUTE($U12,"}",CHAR(160),GE$1))-FIND(CHAR(160),SUBSTITUTE($U12,"{",CHAR(160),GE$1))+1),"") -> {Primary heating type} | GF12: =IFERROR(MID($U12,FIND(CHAR(160),SUBSTITUTE($U12,"{",CHAR(160),GF$1)),FIND(CHAR(160),SUBSTITUTE($U12,"}",CHAR(160),GF$1))-FIND(CHAR(160),SUBSTITUTE($U12,"{",CHAR(160),GF$1))+1),"") -> {Primary heating type} | GG12: =IFERROR(MID($V12,FIND(CHAR(160),SUBSTITUTE($V12,"{",CHAR(160),GG$1)),FIND(CHAR(160),SUBSTITUTE($V12,"}",CHAR(160),GG$1))-FIND(CHAR(160),SUBSTITUTE($V12,"{",CHAR(160),GG$1))+1),"") ->  | GH12: =IFERROR(MID($V12,FIND(CHAR(160),SUBSTITUTE($V12,"{",CHAR(160),GH$1)),FIND(CHAR(160),SUBSTITUTE($V12,"}",CHAR(160),GH$1))-FIND(CHAR(160),SUBSTITUTE($V12,"{",CHAR(160),GH$1))+1),"") ->  | GI12: =IFERROR(MID($V12,FIND(CHAR(160),SUBSTITUTE($V12,"{",CHAR(160),GI$1)),FIND(CHAR(160),SUBSTITUTE($V12,"}",CHAR(160),GI$1))-FIND(CHAR(160),SUBSTITUTE($V12,"{",CHAR(160),GI$1))+1),"") ->  | GJ12: =IFERROR(MID($V12,FIND(CHAR(160),SUBSTITUTE($V12,"{",CHAR(160),GJ$1)),FIND(CHAR(160),SUBSTITUTE($V12,"}",CHAR(160),GJ$1))-FIND(CHAR(160),SUBSTITUTE($V12,"{",CHAR(160),GJ$1))+1),"") ->  | GK12: =IFERROR(MID($V12,FIND(CHAR(160),SUBSTITUTE($V12,"{",CHAR(160),GK$1)),FIND(CHAR(160),SUBSTITUTE($V12,"}",CHAR(160),GK$1))-FIND(CHAR(160),SUBSTITUTE($V12,"{",CHAR(160),GK$1))+1),"") ->  | GL12: =IFERROR(MID($V12,FIND(CHAR(160),SUBSTITUTE($V12,"{",CHAR(160),GL$1)),FIND(CHAR(160),SUBSTITUTE($V12,"}",CHAR(160),GL$1))-FIND(CHAR(160),SUBSTITUTE($V12,"{",CHAR(160),GL$1))+1),"") ->  | GM12: =IFERROR(MID($V12,FIND(CHAR(160),SUBSTITUTE($V12,"{",CHAR(160),GM$1)),FIND(CHAR(160),SUBSTITUTE($V12,"}",CHAR(160),GM$1))-FIND(CHAR(160),SUBSTITUTE($V12,"{",CHAR(160),GM$1))+1),"") ->  | GN12: =IFERROR(MID($V12,FIND(CHAR(160),SUBSTITUTE($V12,"{",CHAR(160),GN$1)),FIND(CHAR(160),SUBSTITUTE($V12,"}",CHAR(160),GN$1))-FIND(CHAR(160),SUBSTITUTE($V12,"{",CHAR(160),GN$1))+1),"") ->  | GO12: =IFERROR(MID($V12,FIND(CHAR(160),SUBSTITUTE($V12,"{",CHAR(160),GO$1)),FIND(CHAR(160),SUBSTITUTE($V12,"}",CHAR(160),GO$1))-FIND(CHAR(160),SUBSTITUTE($V12,"{",CHAR(160),GO$1))+1),"") ->  | GP12: =IFERROR(MID($V12,FIND(CHAR(160),SUBSTITUTE($V12,"{",CHAR(160),GP$1)),FIND(CHAR(160),SUBSTITUTE($V12,"}",CHAR(160),GP$1))-FIND(CHAR(160),SUBSTITUTE($V12,"{",CHAR(160),GP$1))+1),"") ->  | GQ12: =IFERROR(MID($W12,FIND(CHAR(160),SUBSTITUTE($W12,"{",CHAR(160),GQ$1)),FIND(CHAR(160),SUBSTITUTE($W12,"}",CHAR(160),GQ$1))-FIND(CHAR(160),SUBSTITUTE($W12,"{",CHAR(160),GQ$1))+1),"") ->  | GR12: =IFERROR(MID($W12,FIND(CHAR(160),SUBSTITUTE($W12,"{",CHAR(160),GR$1)),FIND(CHAR(160),SUBSTITUTE($W12,"}",CHAR(160),GR$1))-FIND(CHAR(160),SUBSTITUTE($W12,"{",CHAR(160),GR$1))+1),"") ->  | GS12: =IFERROR(MID($W12,FIND(CHAR(160),SUBSTITUTE($W12,"{",CHAR(160),GS$1)),FIND(CHAR(160),SUBSTITUTE($W12,"}",CHAR(160),GS$1))-FIND(CHAR(160),SUBSTITUTE($W12,"{",CHAR(160),GS$1))+1),"") ->  | GT12: =IFERROR(MID($W12,FIND(CHAR(160),SUBSTITUTE($W12,"{",CHAR(160),GT$1)),FIND(CHAR(160),SUBSTITUTE($W12,"}",CHAR(160),GT$1))-FIND(CHAR(160),SUBSTITUTE($W12,"{",CHAR(160),GT$1))+1),"") ->  | GU12: =IFERROR(MID($W12,FIND(CHAR(160),SUBSTITUTE($W12,"{",CHAR(160),GU$1)),FIND(CHAR(160),SUBSTITUTE($W12,"}",CHAR(160),GU$1))-FIND(CHAR(160),SUBSTITUTE($W12,"{",CHAR(160),GU$1))+1),"") ->  | GV12: =IFERROR(MID($W12,FIND(CHAR(160),SUBSTITUTE($W12,"{",CHAR(160),GV$1)),FIND(CHAR(160),SUBSTITUTE($W12,"}",CHAR(160),GV$1))-FIND(CHAR(160),SUBSTITUTE($W12,"{",CHAR(160),GV$1))+1),"") ->  | GW12: =IFERROR(MID($W12,FIND(CHAR(160),SUBSTITUTE($W12,"{",CHAR(160),GW$1)),FIND(CHAR(160),SUBSTITUTE($W12,"}",CHAR(160),GW$1))-FIND(CHAR(160),SUBSTITUTE($W12,"{",CHAR(160),GW$1))+1),"") ->  | GX12: =IFERROR(MID($W12,FIND(CHAR(160),SUBSTITUTE($W12,"{",CHAR(160),GX$1)),FIND(CHAR(160),SUBSTITUTE($W12,"}",CHAR(160),GX$1))-FIND(CHAR(160),SUBSTITUTE($W12,"{",CHAR(160),GX$1))+1),"") ->  | GY12: =IFERROR(MID($W12,FIND(CHAR(160),SUBSTITUTE($W12,"{",CHAR(160),GY$1)),FIND(CHAR(160),SUBSTITUTE($W12,"}",CHAR(160),GY$1))-FIND(CHAR(160),SUBSTITUTE($W12,"{",CHAR(160),GY$1))+1),"") -> {Primary heating type} | GZ12: =IFERROR(MID($W12,FIND(CHAR(160),SUBSTITUTE($W12,"{",CHAR(160),GZ$1)),FIND(CHAR(160),SUBSTITUTE($W12,"}",CHAR(160),GZ$1))-FIND(CHAR(160),SUBSTITUTE($W12,"{",CHAR(160),GZ$1))+1),"") -> {Primary heating type} | HA12: =IFERROR(MID($X12,FIND(CHAR(160),SUBSTITUTE($X12,"{",CHAR(160),HA$1)),FIND(CHAR(160),SUBSTITUTE($X12,"}",CHAR(160),HA$1))-FIND(CHAR(160),SUBSTITUTE($X12,"{",CHAR(160),HA$1))+1),"") ->  | HB12: =IFERROR(MID($X12,FIND(CHAR(160),SUBSTITUTE($X12,"{",CHAR(160),HB$1)),FIND(CHAR(160),SUBSTITUTE($X12,"}",CHAR(160),HB$1))-FIND(CHAR(160),SUBSTITUTE($X12,"{",CHAR(160),HB$1))+1),"") ->  | HC12: =IFERROR(MID($X12,FIND(CHAR(160),SUBSTITUTE($X12,"{",CHAR(160),HC$1)),FIND(CHAR(160),SUBSTITUTE($X12,"}",CHAR(160),HC$1))-FIND(CHAR(160),SUBSTITUTE($X12,"{",CHAR(160),HC$1))+1),"") ->  | HD12: =IFERROR(MID($X12,FIND(CHAR(160),SUBSTITUTE($X12,"{",CHAR(160),HD$1)),FIND(CHAR(160),SUBSTITUTE($X12,"}",CHAR(160),HD$1))-FIND(CHAR(160),SUBSTITUTE($X12,"{",CHAR(160),HD$1))+1),"") ->  | HE12: =IFERROR(MID($X12,FIND(CHAR(160),SUBSTITUTE($X12,"{",CHAR(160),HE$1)),FIND(CHAR(160),SUBSTITUTE($X12,"}",CHAR(160),HE$1))-FIND(CHAR(160),SUBSTITUTE($X12,"{",CHAR(160),HE$1))+1),"") ->  | HF12: =IFERROR(MID($X12,FIND(CHAR(160),SUBSTITUTE($X12,"{",CHAR(160),HF$1)),FIND(CHAR(160),SUBSTITUTE($X12,"}",CHAR(160),HF$1))-FIND(CHAR(160),SUBSTITUTE($X12,"{",CHAR(160),HF$1))+1),"") ->  | HG12: =IFERROR(MID($X12,FIND(CHAR(160),SUBSTITUTE($X12,"{",CHAR(160),HG$1)),FIND(CHAR(160),SUBSTITUTE($X12,"}",CHAR(160),HG$1))-FIND(CHAR(160),SUBSTITUTE($X12,"{",CHAR(160),HG$1))+1),"") ->  | HH12: =IFERROR(MID($X12,FIND(CHAR(160),SUBSTITUTE($X12,"{",CHAR(160),HH$1)),FIND(CHAR(160),SUBSTITUTE($X12,"}",CHAR(160),HH$1))-FIND(CHAR(160),SUBSTITUTE($X12,"{",CHAR(160),HH$1))+1),"") ->  | HI12: =IFERROR(MID($X12,FIND(CHAR(160),SUBSTITUTE($X12,"{",CHAR(160),HI$1)),FIND(CHAR(160),SUBSTITUTE($X12,"}",CHAR(160),HI$1))-FIND(CHAR(160),SUBSTITUTE($X12,"{",CHAR(160),HI$1))+1),"") -> {Primary heating type} | HJ12: =IFERROR(MID($X12,FIND(CHAR(160),SUBSTITUTE($X12,"{",CHAR(160),HJ$1)),FIND(CHAR(160),SUBSTITUTE($X12,"}",CHAR(160),HJ$1))-FIND(CHAR(160),SUBSTITUTE($X12,"{",CHAR(160),HJ$1))+1),"") -> {Primary heating type} | HK12: =IFERROR(MID($Y12,FIND(CHAR(160),SUBSTITUTE($Y12,"{",CHAR(160),HK$1)),FIND(CHAR(160),SUBSTITUTE($Y12,"}",CHAR(160),HK$1))-FIND(CHAR(160),SUBSTITUTE($Y12,"{",CHAR(160),HK$1))+1),"") ->  | HL12: =IFERROR(MID($Y12,FIND(CHAR(160),SUBSTITUTE($Y12,"{",CHAR(160),HL$1)),FIND(CHAR(160),SUBSTITUTE($Y12,"}",CHAR(160),HL$1))-FIND(CHAR(160),SUBSTITUTE($Y12,"{",CHAR(160),HL$1))+1),"") ->  | HM12: =IFERROR(MID($Y12,FIND(CHAR(160),SUBSTITUTE($Y12,"{",CHAR(160),HM$1)),FIND(CHAR(160),SUBSTITUTE($Y12,"}",CHAR(160),HM$1))-FIND(CHAR(160),SUBSTITUTE($Y12,"{",CHAR(160),HM$1))+1),"") ->  | HN12: =IFERROR(MID($Y12,FIND(CHAR(160),SUBSTITUTE($Y12,"{",CHAR(160),HN$1)),FIND(CHAR(160),SUBSTITUTE($Y12,"}",CHAR(160),HN$1))-FIND(CHAR(160),SUBSTITUTE($Y12,"{",CHAR(160),HN$1))+1),"") ->  | HO12: =IFERROR(MID($Y12,FIND(CHAR(160),SUBSTITUTE($Y12,"{",CHAR(160),HO$1)),FIND(CHAR(160),SUBSTITUTE($Y12,"}",CHAR(160),HO$1))-FIND(CHAR(160),SUBSTITUTE($Y12,"{",CHAR(160),HO$1))+1),"") ->  | HP12: =IFERROR(MID($Y12,FIND(CHAR(160),SUBSTITUTE($Y12,"{",CHAR(160),HP$1)),FIND(CHAR(160),SUBSTITUTE($Y12,"}",CHAR(160),HP$1))-FIND(CHAR(160),SUBSTITUTE($Y12,"{",CHAR(160),HP$1))+1),"") ->  | HQ12: =IFERROR(MID($Y12,FIND(CHAR(160),SUBSTITUTE($Y12,"{",CHAR(160),HQ$1)),FIND(CHAR(160),SUBSTITUTE($Y12,"}",CHAR(160),HQ$1))-FIND(CHAR(160),SUBSTITUTE($Y12,"{",CHAR(160),HQ$1))+1),"") ->  | HR12: =IFERROR(MID($Y12,FIND(CHAR(160),SUBSTITUTE($Y12,"{",CHAR(160),HR$1)),FIND(CHAR(160),SUBSTITUTE($Y12,"}",CHAR(160),HR$1))-FIND(CHAR(160),SUBSTITUTE($Y12,"{",CHAR(160),HR$1))+1),"") ->  | HS12: =IFERROR(MID($Y12,FIND(CHAR(160),SUBSTITUTE($Y12,"{",CHAR(160),HS$1)),FIND(CHAR(160),SUBSTITUTE($Y12,"}",CHAR(160),HS$1))-FIND(CHAR(160),SUBSTITUTE($Y12,"{",CHAR(160),HS$1))+1),"") -> {Primary heating type} | HT12: =IFERROR(MID($Y12,FIND(CHAR(160),SUBSTITUTE($Y12,"{",CHAR(160),HT$1)),FIND(CHAR(160),SUBSTITUTE($Y12,"}",CHAR(160),HT$1))-FIND(CHAR(160),SUBSTITUTE($Y12,"{",CHAR(160),HT$1))+1),"") -> {Primary heating type} | HU12: =IFERROR(MID($Z12,FIND(CHAR(160),SUBSTITUTE($Z12,"{",CHAR(160),HU$1)),FIND(CHAR(160),SUBSTITUTE($Z12,"}",CHAR(160),HU$1))-FIND(CHAR(160),SUBSTITUTE($Z12,"{",CHAR(160),HU$1))+1),"") ->  | HV12: =IFERROR(MID($Z12,FIND(CHAR(160),SUBSTITUTE($Z12,"{",CHAR(160),HV$1)),FIND(CHAR(160),SUBSTITUTE($Z12,"}",CHAR(160),HV$1))-FIND(CHAR(160),SUBSTITUTE($Z12,"{",CHAR(160),HV$1))+1),"") ->  | HW12: =IFERROR(MID($Z12,FIND(CHAR(160),SUBSTITUTE($Z12,"{",CHAR(160),HW$1)),FIND(CHAR(160),SUBSTITUTE($Z12,"}",CHAR(160),HW$1))-FIND(CHAR(160),SUBSTITUTE($Z12,"{",CHAR(160),HW$1))+1),"") ->  | HX12: =IFERROR(MID($Z12,FIND(CHAR(160),SUBSTITUTE($Z12,"{",CHAR(160),HX$1)),FIND(CHAR(160),SUBSTITUTE($Z12,"}",CHAR(160),HX$1))-FIND(CHAR(160),SUBSTITUTE($Z12,"{",CHAR(160),HX$1))+1),"") ->  | HY12: =IFERROR(MID($Z12,FIND(CHAR(160),SUBSTITUTE($Z12,"{",CHAR(160),HY$1)),FIND(CHAR(160),SUBSTITUTE($Z12,"}",CHAR(160),HY$1))-FIND(CHAR(160),SUBSTITUTE($Z12,"{",CHAR(160),HY$1))+1),"") ->  | HZ12: =IFERROR(MID($Z12,FIND(CHAR(160),SUBSTITUTE($Z12,"{",CHAR(160),HZ$1)),FIND(CHAR(160),SUBSTITUTE($Z12,"}",CHAR(160),HZ$1))-FIND(CHAR(160),SUBSTITUTE($Z12,"{",CHAR(160),HZ$1))+1),"") ->  | IA12: =IFERROR(MID($Z12,FIND(CHAR(160),SUBSTITUTE($Z12,"{",CHAR(160),IA$1)),FIND(CHAR(160),SUBSTITUTE($Z12,"}",CHAR(160),IA$1))-FIND(CHAR(160),SUBSTITUTE($Z12,"{",CHAR(160),IA$1))+1),"") ->  | IB12: =IFERROR(MID($Z12,FIND(CHAR(160),SUBSTITUTE($Z12,"{",CHAR(160),IB$1)),FIND(CHAR(160),SUBSTITUTE($Z12,"}",CHAR(160),IB$1))-FIND(CHAR(160),SUBSTITUTE($Z12,"{",CHAR(160),IB$1))+1),"") ->  | IC12: =IFERROR(MID($Z12,FIND(CHAR(160),SUBSTITUTE($Z12,"{",CHAR(160),IC$1)),FIND(CHAR(160),SUBSTITUTE($Z12,"}",CHAR(160),IC$1))-FIND(CHAR(160),SUBSTITUTE($Z12,"{",CHAR(160),IC$1))+1),"") -> {Primary heating type} | ID12: =IFERROR(MID($Z12,FIND(CHAR(160),SUBSTITUTE($Z12,"{",CHAR(160),ID$1)),FIND(CHAR(160),SUBSTITUTE($Z12,"}",CHAR(160),ID$1))-FIND(CHAR(160),SUBSTITUTE($Z12,"{",CHAR(160),ID$1))+1),"") -> {Primary heating type} | IE12: =IFERROR(MID($AA12,FIND(CHAR(160),SUBSTITUTE($AA12,"{",CHAR(160),IE$1)),FIND(CHAR(160),SUBSTITUTE($AA12,"}",CHAR(160),IE$1))-FIND(CHAR(160),SUBSTITUTE($AA12,"{",CHAR(160),IE$1))+1),"") ->  | IF12: =IFERROR(MID($AA12,FIND(CHAR(160),SUBSTITUTE($AA12,"{",CHAR(160),IF$1)),FIND(CHAR(160),SUBSTITUTE($AA12,"}",CHAR(160),IF$1))-FIND(CHAR(160),SUBSTITUTE($AA12,"{",CHAR(160),IF$1))+1),"") ->  | IG12: =IFERROR(MID($AA12,FIND(CHAR(160),SUBSTITUTE($AA12,"{",CHAR(160),IG$1)),FIND(CHAR(160),SUBSTITUTE($AA12,"}",CHAR(160),IG$1))-FIND(CHAR(160),SUBSTITUTE($AA12,"{",CHAR(160),IG$1))+1),"") ->  | IH12: =IFERROR(MID($AA12,FIND(CHAR(160),SUBSTITUTE($AA12,"{",CHAR(160),IH$1)),FIND(CHAR(160),SUBSTITUTE($AA12,"}",CHAR(160),IH$1))-FIND(CHAR(160),SUBSTITUTE($AA12,"{",CHAR(160),IH$1))+1),"") ->  | II12: =IFERROR(MID($AA12,FIND(CHAR(160),SUBSTITUTE($AA12,"{",CHAR(160),II$1)),FIND(CHAR(160),SUBSTITUTE($AA12,"}",CHAR(160),II$1))-FIND(CHAR(160),SUBSTITUTE($AA12,"{",CHAR(160),II$1))+1),"") ->  | IJ12: =IFERROR(MID($AA12,FIND(CHAR(160),SUBSTITUTE($AA12,"{",CHAR(160),IJ$1)),FIND(CHAR(160),SUBSTITUTE($AA12,"}",CHAR(160),IJ$1))-FIND(CHAR(160),SUBSTITUTE($AA12,"{",CHAR(160),IJ$1))+1),"") ->  | IK12: =IFERROR(MID($AA12,FIND(CHAR(160),SUBSTITUTE($AA12,"{",CHAR(160),IK$1)),FIND(CHAR(160),SUBSTITUTE($AA12,"}",CHAR(160),IK$1))-FIND(CHAR(160),SUBSTITUTE($AA12,"{",CHAR(160),IK$1))+1),"") ->  | IL12: =IFERROR(MID($AA12,FIND(CHAR(160),SUBSTITUTE($AA12,"{",CHAR(160),IL$1)),FIND(CHAR(160),SUBSTITUTE($AA12,"}",CHAR(160),IL$1))-FIND(CHAR(160),SUBSTITUTE($AA12,"{",CHAR(160),IL$1))+1),"") ->  | IM12: =IFERROR(MID($AA12,FIND(CHAR(160),SUBSTITUTE($AA12,"{",CHAR(160),IM$1)),FIND(CHAR(160),SUBSTITUTE($AA12,"}",CHAR(160),IM$1))-FIND(CHAR(160),SUBSTITUTE($AA12,"{",CHAR(160),IM$1))+1),"") -> {Primary heating type} | IN12: =IFERROR(MID($AA12,FIND(CHAR(160),SUBSTITUTE($AA12,"{",CHAR(160),IN$1)),FIND(CHAR(160),SUBSTITUTE($AA12,"}",CHAR(160),IN$1))-FIND(CHAR(160),SUBSTITUTE($AA12,"{",CHAR(160),IN$1))+1),"") -> {Primary heating type} | IO12: =IFERROR(MID($AB12,FIND(CHAR(160),SUBSTITUTE($AB12,"{",CHAR(160),IO$1)),FIND(CHAR(160),SUBSTITUTE($AB12,"}",CHAR(160),IO$1))-FIND(CHAR(160),SUBSTITUTE($AB12,"{",CHAR(160),IO$1))+1),"") ->  | IP12: =IFERROR(MID($AB12,FIND(CHAR(160),SUBSTITUTE($AB12,"{",CHAR(160),IP$1)),FIND(CHAR(160),SUBSTITUTE($AB12,"}",CHAR(160),IP$1))-FIND(CHAR(160),SUBSTITUTE($AB12,"{",CHAR(160),IP$1))+1),"") ->  | IQ12: =IFERROR(MID($AB12,FIND(CHAR(160),SUBSTITUTE($AB12,"{",CHAR(160),IQ$1)),FIND(CHAR(160),SUBSTITUTE($AB12,"}",CHAR(160),IQ$1))-FIND(CHAR(160),SUBSTITUTE($AB12,"{",CHAR(160),IQ$1))+1),"") ->  | IR12: =IFERROR(MID($AB12,FIND(CHAR(160),SUBSTITUTE($AB12,"{",CHAR(160),IR$1)),FIND(CHAR(160),SUBSTITUTE($AB12,"}",CHAR(160),IR$1))-FIND(CHAR(160),SUBSTITUTE($AB12,"{",CHAR(160),IR$1))+1),"") ->  | IS12: =IFERROR(MID($AB12,FIND(CHAR(160),SUBSTITUTE($AB12,"{",CHAR(160),IS$1)),FIND(CHAR(160),SUBSTITUTE($AB12,"}",CHAR(160),IS$1))-FIND(CHAR(160),SUBSTITUTE($AB12,"{",CHAR(160),IS$1))+1),"") ->  | IT12: =IFERROR(MID($AB12,FIND(CHAR(160),SUBSTITUTE($AB12,"{",CHAR(160),IT$1)),FIND(CHAR(160),SUBSTITUTE($AB12,"}",CHAR(160),IT$1))-FIND(CHAR(160),SUBSTITUTE($AB12,"{",CHAR(160),IT$1))+1),"") ->  | IU12: =IFERROR(MID($AB12,FIND(CHAR(160),SUBSTITUTE($AB12,"{",CHAR(160),IU$1)),FIND(CHAR(160),SUBSTITUTE($AB12,"}",CHAR(160),IU$1))-FIND(CHAR(160),SUBSTITUTE($AB12,"{",CHAR(160),IU$1))+1),"") ->  | IV12: =IFERROR(MID($AB12,FIND(CHAR(160),SUBSTITUTE($AB12,"{",CHAR(160),IV$1)),FIND(CHAR(160),SUBSTITUTE($AB12,"}",CHAR(160),IV$1))-FIND(CHAR(160),SUBSTITUTE($AB12,"{",CHAR(160),IV$1))+1),"") ->  | IW12: =IFERROR(MID($AB12,FIND(CHAR(160),SUBSTITUTE($AB12,"{",CHAR(160),IW$1)),FIND(CHAR(160),SUBSTITUTE($AB12,"}",CHAR(160),IW$1))-FIND(CHAR(160),SUBSTITUTE($AB12,"{",CHAR(160),IW$1))+1),"") ->  | IX12: =IFERROR(MID($AB12,FIND(CHAR(160),SUBSTITUTE($AB12,"{",CHAR(160),IX$1)),FIND(CHAR(160),SUBSTITUTE($AB12,"}",CHAR(160),IX$1))-FIND(CHAR(160),SUBSTITUTE($AB12,"{",CHAR(160),IX$1))+1),"") ->  | IZ12: =10-COUNTIF(DU12:ED12,"") -> 3
A13: Affordable Heat Initiative - Other Fuels | B13: Basement Insulation LIHESP | C13: LBB | D13: 2021-07-01 | E13: 2022-06-30 | F13: Calculated | G13: {Cost}*{Measure:Quantity} | H13: 0 | I13: Calculated | J13: if({Cost}*0.80>2000,2000,Round({Cost}*0.80,2))*{Measure:Quantity} | K13: 0 | L13: 2020-07-01 | M13: 2022-06-30 | N13: Calculated | O13: if({Primary heating type}=6,2672,if({Primary heating type}=0,102,0)) | R13: 0 | U13: if({Primary heating type}=6,0.663,if({Primary heating type}=0,0.025,0)) | V13: 0 | W13: if({Primary heating type}=1,10.986,if({Primary heating type}=0,0.989,0))*10 | X13: if({Primary heating type}=2,10.986,if({Primary heating type} = 0,1.439,0)) | Y13: if({Primary heating type}=3,10.986,if({Primary heating type} = 0,7.514,0)) | Z13: if({Primary heating type}=4,10.986,if({Primary heating type} = 0,0.154,0)) | AA13: if({Primary heating type}=5,10.986,if({Primary heating type} = 0,0.472,0)) | AB13: 0 | AC13: 2019-07-01 | AD13: 2022-06-30 | AE13: 25 | AF13: 1 | AG13: 1 | AH13: 0 | AI13: 0 | AJ13: 0 | AK13: 0 | AL13: 1 | AM13: 1 | AN13: 1 | AO13: 0 | AP13: 0 | AR13: =DU13 -> {Cost} | AS13: 2326 | AT13: =DV13 -> {Measure:Quantity} | AU13: 1 | AV13: =DW13 -> {Primary heating type} | AW13: 0 | AX13: =DX13 ->  | AZ13: =DY13 ->  | BB13: =DZ13 ->  | BD13: =EA13 ->  | BF13: =EB13 ->  | BH13: =EC13 ->  | BJ13: =ED13 ->  | BL13: =IF(AW13=6,2672,IF(AW13=0,102,0)) -> 102 | BM13: 0 | BN13: 0 | BO13: =0 -> 0 | BP13: 0 | BQ13: 0 | BR13: =IF(AW13=6,0.663,IF(AW13=0,0.025,0)) -> 0.025 | BS13: =0 -> 0 | BT13: =IF(AW13=1,10.986,IF(AW13=0,0.989,0))*10 -> 9.89 | BU13: =IF(AW13=2,10.986,IF(AW13 = 0,1.439,0)) -> 1.439 | BV13: =IF(AW13=3,10.986,IF(AW13 = 0,7.514,0)) -> 7.514 | BW13: =IF(AW13=4,10.986,IF(AW13 = 0,0.154,0)) -> 0.154 | BX13: =IF(AW13=5,10.986,IF(AW13 = 0,0.472,0)) -> 0.472 | BY13: =0 -> 0 | CA13: Res | CB13: RGGI DR | CC13: =Benefits(BL13,BR13,BS13,BT13,BU13,BV13,BW13,BX13,BY13,BZ13,AE13,AH13,AI13,AJ13,AK13,AL13,AM13,AN13,AO13,AP13,CA13,CB13) -> 0 | CD13: 138.9773718 | CE13: 264.6487017 | CF13: 4544.207588 | CG13: 109.3776671 | CH13: 1230.86943 | CI13: 190.3596226 | CJ13: 0 | CK13: 0 | CL13: =SUMPRODUCT(CC13:CK13,--(CC13:CK13>0)) -> 6478.440382 | CM13: =-SUMPRODUCT(CC13:CK13,--(CC13:CK13<0)) -> 0 | CO13: =AS13*AU13 -> 2326 | CR13: =CM13+CO13 -> 2326 | CS13: =IF(NetOrGross="Net",(1-AO13+AP13),1) -> 1 | CT13: =(SUMPRODUCT(CC13:CJ13,--(CC13:CJ13>0))+CN13)*CS13/((-SUMPRODUCT(CC13:CJ13,--(CC13:CJ13<0))+MAX(CO13,CV13)+CP13+CQ13)*CS13+IF(FRIncentives="Yes",CV13*(1-CS13),0)) -> 2.785228023 | CU13: 1 | CV13: =IF(AS13*0.8>2000,2000,ROUND(AS13*0.8,2))*AU13 -> 1860.8 | CX13: RGGI | CY13: y | DA13: =IF(F13="Manual Entry","Manual",IF(G13="",0,"X="&SUBSTITUTE(SUBSTITUTE(SUBSTITUTE(SUBSTITUTE(SUBSTITUTE(SUBSTITUTE(SUBSTITUTE(SUBSTITUTE(SUBSTITUTE(SUBSTITUTE(SUBSTITUTE(SUBSTITUTE(G13,$ED13,$ED$2&ROW($ED13)),$EC13,$EC$2&ROW($EC13)),$EB13,$EB$2&ROW($EB13)),$EA13,$EA$2&ROW($EA13)),$DZ13,$DZ$2&ROW($DZ13)),$DY13,$DY$2&ROW($DY13)),$DX13,$DX$2&ROW($DX13)),$DW13,$DW$2&ROW($DW13)),$DV13,$DV$2&ROW($DV13)),$DU13,$DU$2&ROW($DU13)),$DT13,$DT$2&ROW($DT13)),$DS13,$DS$2&ROW($DS13)))) -> X=AS13*AU13 | DB13: =IF(I13="Manual Entry","Manual",IF(J13="",0,"X="&SUBSTITUTE(SUBSTITUTE(SUBSTITUTE(SUBSTITUTE(SUBSTITUTE(SUBSTITUTE(SUBSTITUTE(SUBSTITUTE(SUBSTITUTE(SUBSTITUTE(SUBSTITUTE(SUBSTITUTE(J13,$ED13,$ED$2&ROW($ED13)),$EC13,$EC$2&ROW($EC13)),$EB13,$EB$2&ROW($EB13)),$EA13,$EA$2&ROW($EA13)),$DZ13,$DZ$2&ROW($DZ13)),$DY13,$DY$2&ROW($DY13)),$DX13,$DX$2&ROW($DX13)),$DW13,$DW$2&ROW($DW13)),$DV13,$DV$2&ROW($DV13)),$DU13,$DU$2&ROW($DU13)),$DT13,$DT$2&ROW($DT13)),$DS13,$DS$2&ROW($DS13)))) -> X=if(AS13*0.80>2000,2000,Round(AS13*0.80,2))*AU13 | DC13: =IF(O13="",0,"X="&SUBSTITUTE(SUBSTITUTE(SUBSTITUTE(SUBSTITUTE(SUBSTITUTE(SUBSTITUTE(SUBSTITUTE(SUBSTITUTE(SUBSTITUTE(SUBSTITUTE(SUBSTITUTE(SUBSTITUTE(O13,$ED13,$ED$2&ROW($ED13)),$EC13,$EC$2&ROW($EC13)),$EB13,$EB$2&ROW($EB13)),$EA13,$EA$2&ROW($EA13)),$DZ13,$DZ$2&ROW($DZ13)),$DY13,$DY$2&ROW($DY13)),$DX13,$DX$2&ROW($DX13)),$DW13,$DW$2&ROW($DW13)),$DV13,$DV$2&ROW($DV13)),$DU13,$DU$2&ROW($DU13)),$DT13,$DT$2&ROW($DT13)),$DS13,$DS$2&ROW($DS13))) -> X=if(AW13=6,2672,if(AW13=0,102,0)) | DD13: =IF(P13="",0,"X="&SUBSTITUTE(SUBSTITUTE(SUBSTITUTE(SUBSTITUTE(SUBSTITUTE(SUBSTITUTE(SUBSTITUTE(SUBSTITUTE(SUBSTITUTE(SUBSTITUTE(SUBSTITUTE(SUBSTITUTE(P13,$ED13,$ED$2&ROW($ED13)),$EC13,$EC$2&ROW($EC13)),$EB13,$EB$2&ROW($EB13)),$EA13,$EA$2&ROW($EA13)),$DZ13,$DZ$2&ROW($DZ13)),$DY13,$DY$2&ROW($DY13)),$DX13,$DX$2&ROW($DX13)),$DW13,$DW$2&ROW($DW13)),$DV13,$DV$2&ROW($DV13)),$DU13,$DU$2&ROW($DU13)),$DT13,$DT$2&ROW($DT13)),$DS13,$DS$2&ROW($DS13))) -> 0 | DE13: =IF(Q13="",0,"X="&SUBSTITUTE(SUBSTITUTE(SUBSTITUTE(SUBSTITUTE(SUBSTITUTE(SUBSTITUTE(SUBSTITUTE(SUBSTITUTE(SUBSTITUTE(SUBSTITUTE(SUBSTITUTE(SUBSTITUTE(Q13,$ED13,$ED$2&ROW($ED13)),$EC13,$EC$2&ROW($EC13)),$EB13,$EB$2&ROW($EB13)),$EA13,$EA$2&ROW($EA13)),$DZ13,$DZ$2&ROW($DZ13)),$DY13,$DY$2&ROW($DY13)),$DX13,$DX$2&ROW($DX13)),$DW13,$DW$2&ROW($DW13)),$DV13,$DV$2&ROW($DV13)),$DU13,$DU$2&ROW($DU13)),$DT13,$DT$2&ROW($DT13)),$DS13,$DS$2&ROW($DS13))) -> 0 | DF13: =IF(R13="",0,"X="&SUBSTITUTE(SUBSTITUTE(SUBSTITUTE(SUBSTITUTE(SUBSTITUTE(SUBSTITUTE(SUBSTITUTE(SUBSTITUTE(SUBSTITUTE(SUBSTITUTE(SUBSTITUTE(SUBSTITUTE(R13,$ED13,$ED$2&ROW($ED13)),$EC13,$EC$2&ROW($EC13)),$EB13,$EB$2&ROW($EB13)),$EA13,$EA$2&ROW($EA13)),$DZ13,$DZ$2&ROW($DZ13)),$DY13,$DY$2&ROW($DY13)),$DX13,$DX$2&ROW($DX13)),$DW13,$DW$2&ROW($DW13)),$DV13,$DV$2&ROW($DV13)),$DU13,$DU$2&ROW($DU13)),$DT13,$DT$2&ROW($DT13)),$DS13,$DS$2&ROW($DS13))) -> X=0 | DG13: =IF(S13="",0,"X="&SUBSTITUTE(SUBSTITUTE(SUBSTITUTE(SUBSTITUTE(SUBSTITUTE(SUBSTITUTE(SUBSTITUTE(SUBSTITUTE(SUBSTITUTE(SUBSTITUTE(SUBSTITUTE(SUBSTITUTE(S13,$ED13,$ED$2&ROW($ED13)),$EC13,$EC$2&ROW($EC13)),$EB13,$EB$2&ROW($EB13)),$EA13,$EA$2&ROW($EA13)),$DZ13,$DZ$2&ROW($DZ13)),$DY13,$DY$2&ROW($DY13)),$DX13,$DX$2&ROW($DX13)),$DW13,$DW$2&ROW($DW13)),$DV13,$DV$2&ROW($DV13)),$DU13,$DU$2&ROW($DU13)),$DT13,$DT$2&ROW($DT13)),$DS13,$DS$2&ROW($DS13))) -> 0 | DH13: =IF(T13="",0,"X="&SUBSTITUTE(SUBSTITUTE(SUBSTITUTE(SUBSTITUTE(SUBSTITUTE(SUBSTITUTE(SUBSTITUTE(SUBSTITUTE(SUBSTITUTE(SUBSTITUTE(SUBSTITUTE(SUBSTITUTE(T13,$ED13,$ED$2&ROW($ED13)),$EC13,$EC$2&ROW($EC13)),$EB13,$EB$2&ROW($EB13)),$EA13,$EA$2&ROW($EA13)),$DZ13,$DZ$2&ROW($DZ13)),$DY13,$DY$2&ROW($DY13)),$DX13,$DX$2&ROW($DX13)),$DW13,$DW$2&ROW($DW13)),$DV13,$DV$2&ROW($DV13)),$DU13,$DU$2&ROW($DU13)),$DT13,$DT$2&ROW($DT13)),$DS13,$DS$2&ROW($DS13))) -> 0 | DI13: =IF(U13="",0,"X="&SUBSTITUTE(SUBSTITUTE(SUBSTITUTE(SUBSTITUTE(SUBSTITUTE(SUBSTITUTE(SUBSTITUTE(SUBSTITUTE(SUBSTITUTE(SUBSTITUTE(SUBSTITUTE(SUBSTITUTE(U13,$ED13,$ED$2&ROW($ED13)),$EC13,$EC$2&ROW($EC13)),$EB13,$EB$2&ROW($EB13)),$EA13,$EA$2&ROW($EA13)),$DZ13,$DZ$2&ROW($DZ13)),$DY13,$DY$2&ROW($DY13)),$DX13,$DX$2&ROW($DX13)),$DW13,$DW$2&ROW($DW13)),$DV13,$DV$2&ROW($DV13)),$DU13,$DU$2&ROW($DU13)),$DT13,$DT$2&ROW($DT13)),$DS13,$DS$2&ROW($DS13))) -> X=if(AW13=6,0.663,if(AW13=0,0.025,0)) | DJ13: =IF(V13="",0,"X="&SUBSTITUTE(SUBSTITUTE(SUBSTITUTE(SUBSTITUTE(SUBSTITUTE(SUBSTITUTE(SUBSTITUTE(SUBSTITUTE(SUBSTITUTE(SUBSTITUTE(SUBSTITUTE(SUBSTITUTE(V13,$ED13,$ED$2&ROW($ED13)),$EC13,$EC$2&ROW($EC13)),$EB13,$EB$2&ROW($EB13)),$EA13,$EA$2&ROW($EA13)),$DZ13,$DZ$2&ROW($DZ13)),$DY13,$DY$2&ROW($DY13)),$DX13,$DX$2&ROW($DX13)),$DW13,$DW$2&ROW($DW13)),$DV13,$DV$2&ROW($DV13)),$DU13,$DU$2&ROW($DU13)),$DT13,$DT$2&ROW($DT13)),$DS13,$DS$2&ROW($DS13))) -> X=0 | DK13: =IF(W13="",0,"X="&SUBSTITUTE(SUBSTITUTE(SUBSTITUTE(SUBSTITUTE(SUBSTITUTE(SUBSTITUTE(SUBSTITUTE(SUBSTITUTE(SUBSTITUTE(SUBSTITUTE(SUBSTITUTE(SUBSTITUTE(W13,$ED13,$ED$2&ROW($ED13)),$EC13,$EC$2&ROW($EC13)),$EB13,$EB$2&ROW($EB13)),$EA13,$EA$2&ROW($EA13)),$DZ13,$DZ$2&ROW($DZ13)),$DY13,$DY$2&ROW($DY13)),$DX13,$DX$2&ROW($DX13)),$DW13,$DW$2&ROW($DW13)),$DV13,$DV$2&ROW($DV13)),$DU13,$DU$2&ROW($DU13)),$DT13,$DT$2&ROW($DT13)),$DS13,$DS$2&ROW($DS13))) -> X=if(AW13=1,10.986,if(AW13=0,0.989,0))*10 | DL13: =IF(X13="",0,"X="&SUBSTITUTE(SUBSTITUTE(SUBSTITUTE(SUBSTITUTE(SUBSTITUTE(SUBSTITUTE(SUBSTITUTE(SUBSTITUTE(SUBSTITUTE(SUBSTITUTE(SUBSTITUTE(SUBSTITUTE(X13,$ED13,$ED$2&ROW($ED13)),$EC13,$EC$2&ROW($EC13)),$EB13,$EB$2&ROW($EB13)),$EA13,$EA$2&ROW($EA13)),$DZ13,$DZ$2&ROW($DZ13)),$DY13,$DY$2&ROW($DY13)),$DX13,$DX$2&ROW($DX13)),$DW13,$DW$2&ROW($DW13)),$DV13,$DV$2&ROW($DV13)),$DU13,$DU$2&ROW($DU13)),$DT13,$DT$2&ROW($DT13)),$DS13,$DS$2&ROW($DS13))) -> X=if(AW13=2,10.986,if(AW13 = 0,1.439,0)) | DM13: =IF(Y13="",0,"X="&SUBSTITUTE(SUBSTITUTE(SUBSTITUTE(SUBSTITUTE(SUBSTITUTE(SUBSTITUTE(SUBSTITUTE(SUBSTITUTE(SUBSTITUTE(SUBSTITUTE(SUBSTITUTE(SUBSTITUTE(Y13,$ED13,$ED$2&ROW($ED13)),$EC13,$EC$2&ROW($EC13)),$EB13,$EB$2&ROW($EB13)),$EA13,$EA$2&ROW($EA13)),$DZ13,$DZ$2&ROW($DZ13)),$DY13,$DY$2&ROW($DY13)),$DX13,$DX$2&ROW($DX13)),$DW13,$DW$2&ROW($DW13)),$DV13,$DV$2&ROW($DV13)),$DU13,$DU$2&ROW($DU13)),$DT13,$DT$2&ROW($DT13)),$DS13,$DS$2&ROW($DS13))) -> X=if(AW13=3,10.986,if(AW13 = 0,7.514,0)) | DN13: =IF(Z13="",0,"X="&SUBSTITUTE(SUBSTITUTE(SUBSTITUTE(SUBSTITUTE(SUBSTITUTE(SUBSTITUTE(SUBSTITUTE(SUBSTITUTE(SUBSTITUTE(SUBSTITUTE(SUBSTITUTE(SUBSTITUTE(Z13,$ED13,$ED$2&ROW($ED13)),$EC13,$EC$2&ROW($EC13)),$EB13,$EB$2&ROW($EB13)),$EA13,$EA$2&ROW($EA13)),$DZ13,$DZ$2&ROW($DZ13)),$DY13,$DY$2&ROW($DY13)),$DX13,$DX$2&ROW($DX13)),$DW13,$DW$2&ROW($DW13)),$DV13,$DV$2&ROW($DV13)),$DU13,$DU$2&ROW($DU13)),$DT13,$DT$2&ROW($DT13)),$DS13,$DS$2&ROW($DS13))) -> X=if(AW13=4,10.986,if(AW13 = 0,0.154,0)) | DO13: =IF(AA13="",0,"X="&SUBSTITUTE(SUBSTITUTE(SUBSTITUTE(SUBSTITUTE(SUBSTITUTE(SUBSTITUTE(SUBSTITUTE(SUBSTITUTE(SUBSTITUTE(SUBSTITUTE(SUBSTITUTE(SUBSTITUTE(AA13,$ED13,$ED$2&ROW($ED13)),$EC13,$EC$2&ROW($EC13)),$EB13,$EB$2&ROW($EB13)),$EA13,$EA$2&ROW($EA13)),$DZ13,$DZ$2&ROW($DZ13)),$DY13,$DY$2&ROW($DY13)),$DX13,$DX$2&ROW($DX13)),$DW13,$DW$2&ROW($DW13)),$DV13,$DV$2&ROW($DV13)),$DU13,$DU$2&ROW($DU13)),$DT13,$DT$2&ROW($DT13)),$DS13,$DS$2&ROW($DS13))) -> X=if(AW13=5,10.986,if(AW13 = 0,0.472,0)) | DP13: =IF(AB13="",0,"X="&SUBSTITUTE(SUBSTITUTE(SUBSTITUTE(SUBSTITUTE(SUBSTITUTE(SUBSTITUTE(SUBSTITUTE(SUBSTITUTE(SUBSTITUTE(SUBSTITUTE(SUBSTITUTE(SUBSTITUTE(AB13,$ED13,$ED$2&ROW($ED13)),$EC13,$EC$2&ROW($EC13)),$EB13,$EB$2&ROW($EB13)),$EA13,$EA$2&ROW($EA13)),$DZ13,$DZ$2&ROW($DZ13)),$DY13,$DY$2&ROW($DY13)),$DX13,$DX$2&ROW($DX13)),$DW13,$DW$2&ROW($DW13)),$DV13,$DV$2&ROW($DV13)),$DU13,$DU$2&ROW($DU13)),$DT13,$DT$2&ROW($DT13)),$DS13,$DS$2&ROW($DS13))) -> X=0 | DS13: {Factor:WinterCF} | DT13: {Factor:SummerCF} | DU13: =IFERROR(INDEX($EG13:$IV13,MATCH(0,COUNTIF($DR13:DT13,$EG13:$IV13),0)),"") -> {Cost} | DV13: =IFERROR(INDEX($EG13:$IV13,MATCH(0,COUNTIF($DR13:DU13,$EG13:$IV13),0)),"") -> {Measure:Quantity} | DW13: =IFERROR(INDEX($EG13:$IV13,MATCH(0,COUNTIF($DR13:DV13,$EG13:$IV13),0)),"") -> {Primary heating type} | DX13: =IFERROR(INDEX($EG13:$IV13,MATCH(0,COUNTIF($DR13:DW13,$EG13:$IV13),0)),"") ->  | DY13: =IFERROR(INDEX($EG13:$IV13,MATCH(0,COUNTIF($DR13:DX13,$EG13:$IV13),0)),"") ->  | DZ13: =IFERROR(INDEX($EG13:$IV13,MATCH(0,COUNTIF($DR13:DY13,$EG13:$IV13),0)),"") ->  | EA13: =IFERROR(INDEX($EG13:$IV13,MATCH(0,COUNTIF($DR13:DZ13,$EG13:$IV13),0)),"") ->  | EB13: =IFERROR(INDEX($EG13:$IV13,MATCH(0,COUNTIF($DR13:EA13,$EG13:$IV13),0)),"") ->  | EC13: =IFERROR(INDEX($EG13:$IV13,MATCH(0,COUNTIF($DR13:EB13,$EG13:$IV13),0)),"") ->  | ED13: =IFERROR(INDEX($EG13:$IV13,MATCH(0,COUNTIF($DR13:EC13,$EG13:$IV13),0)),"") ->  | EG13: =IFERROR(MID($G13,FIND(CHAR(160),SUBSTITUTE($G13,"{",CHAR(160),EG$1)),FIND(CHAR(160),SUBSTITUTE($G13,"}",CHAR(160),EG$1))-FIND(CHAR(160),SUBSTITUTE($G13,"{",CHAR(160),EG$1))+1),"") -> {Cost} | EH13: =IFERROR(MID($G13,FIND(CHAR(160),SUBSTITUTE($G13,"{",CHAR(160),EH$1)),FIND(CHAR(160),SUBSTITUTE($G13,"}",CHAR(160),EH$1))-FIND(CHAR(160),SUBSTITUTE($G13,"{",CHAR(160),EH$1))+1),"") -> {Measure:Quantity} | EI13: =IFERROR(MID($G13,FIND(CHAR(160),SUBSTITUTE($G13,"{",CHAR(160),EI$1)),FIND(CHAR(160),SUBSTITUTE($G13,"}",CHAR(160),EI$1))-FIND(CHAR(160),SUBSTITUTE($G13,"{",CHAR(160),EI$1))+1),"") ->  | EJ13: =IFERROR(MID($G13,FIND(CHAR(160),SUBSTITUTE($G13,"{",CHAR(160),EJ$1)),FIND(CHAR(160),SUBSTITUTE($G13,"}",CHAR(160),EJ$1))-FIND(CHAR(160),SUBSTITUTE($G13,"{",CHAR(160),EJ$1))+1),"") ->  | EK13: =IFERROR(MID($G13,FIND(CHAR(160),SUBSTITUTE($G13,"{",CHAR(160),EK$1)),FIND(CHAR(160),SUBSTITUTE($G13,"}",CHAR(160),EK$1))-FIND(CHAR(160),SUBSTITUTE($G13,"{",CHAR(160),EK$1))+1),"") ->  | EL13: =IFERROR(MID($G13,FIND(CHAR(160),SUBSTITUTE($G13,"{",CHAR(160),EL$1)),FIND(CHAR(160),SUBSTITUTE($G13,"}",CHAR(160),EL$1))-FIND(CHAR(160),SUBSTITUTE($G13,"{",CHAR(160),EL$1))+1),"") ->  | EM13: =IFERROR(MID($G13,FIND(CHAR(160),SUBSTITUTE($G13,"{",CHAR(160),EM$1)),FIND(CHAR(160),SUBSTITUTE($G13,"}",CHAR(160),EM$1))-FIND(CHAR(160),SUBSTITUTE($G13,"{",CHAR(160),EM$1))+1),"") ->  | EN13: =IFERROR(MID($G13,FIND(CHAR(160),SUBSTITUTE($G13,"{",CHAR(160),EN$1)),FIND(CHAR(160),SUBSTITUTE($G13,"}",CHAR(160),EN$1))-FIND(CHAR(160),SUBSTITUTE($G13,"{",CHAR(160),EN$1))+1),"") ->  | EO13: =IFERROR(MID($G13,FIND(CHAR(160),SUBSTITUTE($G13,"{",CHAR(160),EO$1)),FIND(CHAR(160),SUBSTITUTE($G13,"}",CHAR(160),EO$1))-FIND(CHAR(160),SUBSTITUTE($G13,"{",CHAR(160),EO$1))+1),"") ->  | EP13: =IFERROR(MID($G13,FIND(CHAR(160),SUBSTITUTE($G13,"{",CHAR(160),EP$1)),FIND(CHAR(160),SUBSTITUTE($G13,"}",CHAR(160),EP$1))-FIND(CHAR(160),SUBSTITUTE($G13,"{",CHAR(160),EP$1))+1),"") ->  | EQ13: =IFERROR(MID($J13,FIND(CHAR(160),SUBSTITUTE($J13,"{",CHAR(160),EQ$1)),FIND(CHAR(160),SUBSTITUTE($J13,"}",CHAR(160),EQ$1))-FIND(CHAR(160),SUBSTITUTE($J13,"{",CHAR(160),EQ$1))+1),"") -> {Cost} | ER13: =IFERROR(MID($J13,FIND(CHAR(160),SUBSTITUTE($J13,"{",CHAR(160),ER$1)),FIND(CHAR(160),SUBSTITUTE($J13,"}",CHAR(160),ER$1))-FIND(CHAR(160),SUBSTITUTE($J13,"{",CHAR(160),ER$1))+1),"") -> {Cost} | ES13: =IFERROR(MID($J13,FIND(CHAR(160),SUBSTITUTE($J13,"{",CHAR(160),ES$1)),FIND(CHAR(160),SUBSTITUTE($J13,"}",CHAR(160),ES$1))-FIND(CHAR(160),SUBSTITUTE($J13,"{",CHAR(160),ES$1))+1),"") -> {Measure:Quantity} | ET13: =IFERROR(MID($J13,FIND(CHAR(160),SUBSTITUTE($J13,"{",CHAR(160),ET$1)),FIND(CHAR(160),SUBSTITUTE($J13,"}",CHAR(160),ET$1))-FIND(CHAR(160),SUBSTITUTE($J13,"{",CHAR(160),ET$1))+1),"") ->  | EU13: =IFERROR(MID($J13,FIND(CHAR(160),SUBSTITUTE($J13,"{",CHAR(160),EU$1)),FIND(CHAR(160),SUBSTITUTE($J13,"}",CHAR(160),EU$1))-FIND(CHAR(160),SUBSTITUTE($J13,"{",CHAR(160),EU$1))+1),"") ->  | EV13: =IFERROR(MID($J13,FIND(CHAR(160),SUBSTITUTE($J13,"{",CHAR(160),EV$1)),FIND(CHAR(160),SUBSTITUTE($J13,"}",CHAR(160),EV$1))-FIND(CHAR(160),SUBSTITUTE($J13,"{",CHAR(160),EV$1))+1),"") ->  | EW13: =IFERROR(MID($J13,FIND(CHAR(160),SUBSTITUTE($J13,"{",CHAR(160),EW$1)),FIND(CHAR(160),SUBSTITUTE($J13,"}",CHAR(160),EW$1))-FIND(CHAR(160),SUBSTITUTE($J13,"{",CHAR(160),EW$1))+1),"") ->  | EX13: =IFERROR(MID($J13,FIND(CHAR(160),SUBSTITUTE($J13,"{",CHAR(160),EX$1)),FIND(CHAR(160),SUBSTITUTE($J13,"}",CHAR(160),EX$1))-FIND(CHAR(160),SUBSTITUTE($J13,"{",CHAR(160),EX$1))+1),"") ->  | EY13: =IFERROR(MID($J13,FIND(CHAR(160),SUBSTITUTE($J13,"{",CHAR(160),EY$1)),FIND(CHAR(160),SUBSTITUTE($J13,"}",CHAR(160),EY$1))-FIND(CHAR(160),SUBSTITUTE($J13,"{",CHAR(160),EY$1))+1),"") ->  | EZ13: =IFERROR(MID($J13,FIND(CHAR(160),SUBSTITUTE($J13,"{",CHAR(160),EZ$1)),FIND(CHAR(160),SUBSTITUTE($J13,"}",CHAR(160),EZ$1))-FIND(CHAR(160),SUBSTITUTE($J13,"{",CHAR(160),EZ$1))+1),"") ->  | FA13: =IFERROR(MID($J13,FIND(CHAR(160),SUBSTITUTE($J13,"{",CHAR(160),FA$1)),FIND(CHAR(160),SUBSTITUTE($J13,"}",CHAR(160),FA$1))-FIND(CHAR(160),SUBSTITUTE($J13,"{",CHAR(160),FA$1))+1),"") -> {Cost} | FB13: =IFERROR(MID($J13,FIND(CHAR(160),SUBSTITUTE($J13,"{",CHAR(160),FB$1)),FIND(CHAR(160),SUBSTITUTE($J13,"}",CHAR(160),FB$1))-FIND(CHAR(160),SUBSTITUTE($J13,"{",CHAR(160),FB$1))+1),"") -> {Cost} | FC13: =IFERROR(MID($O13,FIND(CHAR(160),SUBSTITUTE($O13,"{",CHAR(160),FC$1)),FIND(CHAR(160),SUBSTITUTE($O13,"}",CHAR(160),FC$1))-FIND(CHAR(160),SUBSTITUTE($O13,"{",CHAR(160),FC$1))+1),"") ->  | FD13: =IFERROR(MID($O13,FIND(CHAR(160),SUBSTITUTE($O13,"{",CHAR(160),FD$1)),FIND(CHAR(160),SUBSTITUTE($O13,"}",CHAR(160),FD$1))-FIND(CHAR(160),SUBSTITUTE($O13,"{",CHAR(160),FD$1))+1),"") ->  | FE13: =IFERROR(MID($O13,FIND(CHAR(160),SUBSTITUTE($O13,"{",CHAR(160),FE$1)),FIND(CHAR(160),SUBSTITUTE($O13,"}",CHAR(160),FE$1))-FIND(CHAR(160),SUBSTITUTE($O13,"{",CHAR(160),FE$1))+1),"") ->  | FF13: =IFERROR(MID($O13,FIND(CHAR(160),SUBSTITUTE($O13,"{",CHAR(160),FF$1)),FIND(CHAR(160),SUBSTITUTE($O13,"}",CHAR(160),FF$1))-FIND(CHAR(160),SUBSTITUTE($O13,"{",CHAR(160),FF$1))+1),"") ->  | FG13: =IFERROR(MID($O13,FIND(CHAR(160),SUBSTITUTE($O13,"{",CHAR(160),FG$1)),FIND(CHAR(160),SUBSTITUTE($O13,"}",CHAR(160),FG$1))-FIND(CHAR(160),SUBSTITUTE($O13,"{",CHAR(160),FG$1))+1),"") ->  | FH13: =IFERROR(MID($O13,FIND(CHAR(160),SUBSTITUTE($O13,"{",CHAR(160),FH$1)),FIND(CHAR(160),SUBSTITUTE($O13,"}",CHAR(160),FH$1))-FIND(CHAR(160),SUBSTITUTE($O13,"{",CHAR(160),FH$1))+1),"") ->  | FI13: =IFERROR(MID($O13,FIND(CHAR(160),SUBSTITUTE($O13,"{",CHAR(160),FI$1)),FIND(CHAR(160),SUBSTITUTE($O13,"}",CHAR(160),FI$1))-FIND(CHAR(160),SUBSTITUTE($O13,"{",CHAR(160),FI$1))+1),"") ->  | FJ13: =IFERROR(MID($O13,FIND(CHAR(160),SUBSTITUTE($O13,"{",CHAR(160),FJ$1)),FIND(CHAR(160),SUBSTITUTE($O13,"}",CHAR(160),FJ$1))-FIND(CHAR(160),SUBSTITUTE($O13,"{",CHAR(160),FJ$1))+1),"") ->  | FK13: =IFERROR(MID($O13,FIND(CHAR(160),SUBSTITUTE($O13,"{",CHAR(160),FK$1)),FIND(CHAR(160),SUBSTITUTE($O13,"}",CHAR(160),FK$1))-FIND(CHAR(160),SUBSTITUTE($O13,"{",CHAR(160),FK$1))+1),"") -> {Primary heating type} | FL13: =IFERROR(MID($O13,FIND(CHAR(160),SUBSTITUTE($O13,"{",CHAR(160),FL$1)),FIND(CHAR(160),SUBSTITUTE($O13,"}",CHAR(160),FL$1))-FIND(CHAR(160),SUBSTITUTE($O13,"{",CHAR(160),FL$1))+1),"") -> {Primary heating type} | FM13: =IFERROR(MID($R13,FIND(CHAR(160),SUBSTITUTE($R13,"{",CHAR(160),FM$1)),FIND(CHAR(160),SUBSTITUTE($R13,"}",CHAR(160),FM$1))-FIND(CHAR(160),SUBSTITUTE($R13,"{",CHAR(160),FM$1))+1),"") ->  | FN13: =IFERROR(MID($R13,FIND(CHAR(160),SUBSTITUTE($R13,"{",CHAR(160),FN$1)),FIND(CHAR(160),SUBSTITUTE($R13,"}",CHAR(160),FN$1))-FIND(CHAR(160),SUBSTITUTE($R13,"{",CHAR(160),FN$1))+1),"") ->  | FO13: =IFERROR(MID($R13,FIND(CHAR(160),SUBSTITUTE($R13,"{",CHAR(160),FO$1)),FIND(CHAR(160),SUBSTITUTE($R13,"}",CHAR(160),FO$1))-FIND(CHAR(160),SUBSTITUTE($R13,"{",CHAR(160),FO$1))+1),"") ->  | FP13: =IFERROR(MID($R13,FIND(CHAR(160),SUBSTITUTE($R13,"{",CHAR(160),FP$1)),FIND(CHAR(160),SUBSTITUTE($R13,"}",CHAR(160),FP$1))-FIND(CHAR(160),SUBSTITUTE($R13,"{",CHAR(160),FP$1))+1),"") ->  | FQ13: =IFERROR(MID($R13,FIND(CHAR(160),SUBSTITUTE($R13,"{",CHAR(160),FQ$1)),FIND(CHAR(160),SUBSTITUTE($R13,"}",CHAR(160),FQ$1))-FIND(CHAR(160),SUBSTITUTE($R13,"{",CHAR(160),FQ$1))+1),"") ->  | FR13: =IFERROR(MID($R13,FIND(CHAR(160),SUBSTITUTE($R13,"{",CHAR(160),FR$1)),FIND(CHAR(160),SUBSTITUTE($R13,"}",CHAR(160),FR$1))-FIND(CHAR(160),SUBSTITUTE($R13,"{",CHAR(160),FR$1))+1),"") ->  | FS13: =IFERROR(MID($R13,FIND(CHAR(160),SUBSTITUTE($R13,"{",CHAR(160),FS$1)),FIND(CHAR(160),SUBSTITUTE($R13,"}",CHAR(160),FS$1))-FIND(CHAR(160),SUBSTITUTE($R13,"{",CHAR(160),FS$1))+1),"") ->  | FT13: =IFERROR(MID($R13,FIND(CHAR(160),SUBSTITUTE($R13,"{",CHAR(160),FT$1)),FIND(CHAR(160),SUBSTITUTE($R13,"}",CHAR(160),FT$1))-FIND(CHAR(160),SUBSTITUTE($R13,"{",CHAR(160),FT$1))+1),"") ->  | FU13: =IFERROR(MID($R13,FIND(CHAR(160),SUBSTITUTE($R13,"{",CHAR(160),FU$1)),FIND(CHAR(160),SUBSTITUTE($R13,"}",CHAR(160),FU$1))-FIND(CHAR(160),SUBSTITUTE($R13,"{",CHAR(160),FU$1))+1),"") ->  | FV13: =IFERROR(MID($R13,FIND(CHAR(160),SUBSTITUTE($R13,"{",CHAR(160),FV$1)),FIND(CHAR(160),SUBSTITUTE($R13,"}",CHAR(160),FV$1))-FIND(CHAR(160),SUBSTITUTE($R13,"{",CHAR(160),FV$1))+1),"") ->  | FW13: =IFERROR(MID($U13,FIND(CHAR(160),SUBSTITUTE($U13,"{",CHAR(160),FW$1)),FIND(CHAR(160),SUBSTITUTE($U13,"}",CHAR(160),FW$1))-FIND(CHAR(160),SUBSTITUTE($U13,"{",CHAR(160),FW$1))+1),"") ->  | FX13: =IFERROR(MID($U13,FIND(CHAR(160),SUBSTITUTE($U13,"{",CHAR(160),FX$1)),FIND(CHAR(160),SUBSTITUTE($U13,"}",CHAR(160),FX$1))-FIND(CHAR(160),SUBSTITUTE($U13,"{",CHAR(160),FX$1))+1),"") ->  | FY13: =IFERROR(MID($U13,FIND(CHAR(160),SUBSTITUTE($U13,"{",CHAR(160),FY$1)),FIND(CHAR(160),SUBSTITUTE($U13,"}",CHAR(160),FY$1))-FIND(CHAR(160),SUBSTITUTE($U13,"{",CHAR(160),FY$1))+1),"") ->  | FZ13: =IFERROR(MID($U13,FIND(CHAR(160),SUBSTITUTE($U13,"{",CHAR(160),FZ$1)),FIND(CHAR(160),SUBSTITUTE($U13,"}",CHAR(160),FZ$1))-FIND(CHAR(160),SUBSTITUTE($U13,"{",CHAR(160),FZ$1))+1),"") ->  | GA13: =IFERROR(MID($U13,FIND(CHAR(160),SUBSTITUTE($U13,"{",CHAR(160),GA$1)),FIND(CHAR(160),SUBSTITUTE($U13,"}",CHAR(160),GA$1))-FIND(CHAR(160),SUBSTITUTE($U13,"{",CHAR(160),GA$1))+1),"") ->  | GB13: =IFERROR(MID($U13,FIND(CHAR(160),SUBSTITUTE($U13,"{",CHAR(160),GB$1)),FIND(CHAR(160),SUBSTITUTE($U13,"}",CHAR(160),GB$1))-FIND(CHAR(160),SUBSTITUTE($U13,"{",CHAR(160),GB$1))+1),"") ->  | GC13: =IFERROR(MID($U13,FIND(CHAR(160),SUBSTITUTE($U13,"{",CHAR(160),GC$1)),FIND(CHAR(160),SUBSTITUTE($U13,"}",CHAR(160),GC$1))-FIND(CHAR(160),SUBSTITUTE($U13,"{",CHAR(160),GC$1))+1),"") ->  | GD13: =IFERROR(MID($U13,FIND(CHAR(160),SUBSTITUTE($U13,"{",CHAR(160),GD$1)),FIND(CHAR(160),SUBSTITUTE($U13,"}",CHAR(160),GD$1))-FIND(CHAR(160),SUBSTITUTE($U13,"{",CHAR(160),GD$1))+1),"") ->  | GE13: =IFERROR(MID($U13,FIND(CHAR(160),SUBSTITUTE($U13,"{",CHAR(160),GE$1)),FIND(CHAR(160),SUBSTITUTE($U13,"}",CHAR(160),GE$1))-FIND(CHAR(160),SUBSTITUTE($U13,"{",CHAR(160),GE$1))+1),"") -> {Primary heating type} | GF13: =IFERROR(MID($U13,FIND(CHAR(160),SUBSTITUTE($U13,"{",CHAR(160),GF$1)),FIND(CHAR(160),SUBSTITUTE($U13,"}",CHAR(160),GF$1))-FIND(CHAR(160),SUBSTITUTE($U13,"{",CHAR(160),GF$1))+1),"") -> {Primary heating type} | GG13: =IFERROR(MID($V13,FIND(CHAR(160),SUBSTITUTE($V13,"{",CHAR(160),GG$1)),FIND(CHAR(160),SUBSTITUTE($V13,"}",CHAR(160),GG$1))-FIND(CHAR(160),SUBSTITUTE($V13,"{",CHAR(160),GG$1))+1),"") ->  | GH13: =IFERROR(MID($V13,FIND(CHAR(160),SUBSTITUTE($V13,"{",CHAR(160),GH$1)),FIND(CHAR(160),SUBSTITUTE($V13,"}",CHAR(160),GH$1))-FIND(CHAR(160),SUBSTITUTE($V13,"{",CHAR(160),GH$1))+1),"") ->  | GI13: =IFERROR(MID($V13,FIND(CHAR(160),SUBSTITUTE($V13,"{",CHAR(160),GI$1)),FIND(CHAR(160),SUBSTITUTE($V13,"}",CHAR(160),GI$1))-FIND(CHAR(160),SUBSTITUTE($V13,"{",CHAR(160),GI$1))+1),"") ->  | GJ13: =IFERROR(MID($V13,FIND(CHAR(160),SUBSTITUTE($V13,"{",CHAR(160),GJ$1)),FIND(CHAR(160),SUBSTITUTE($V13,"}",CHAR(160),GJ$1))-FIND(CHAR(160),SUBSTITUTE($V13,"{",CHAR(160),GJ$1))+1),"") ->  | GK13: =IFERROR(MID($V13,FIND(CHAR(160),SUBSTITUTE($V13,"{",CHAR(160),GK$1)),FIND(CHAR(160),SUBSTITUTE($V13,"}",CHAR(160),GK$1))-FIND(CHAR(160),SUBSTITUTE($V13,"{",CHAR(160),GK$1))+1),"") ->  | GL13: =IFERROR(MID($V13,FIND(CHAR(160),SUBSTITUTE($V13,"{",CHAR(160),GL$1)),FIND(CHAR(160),SUBSTITUTE($V13,"}",CHAR(160),GL$1))-FIND(CHAR(160),SUBSTITUTE($V13,"{",CHAR(160),GL$1))+1),"") ->  | GM13: =IFERROR(MID($V13,FIND(CHAR(160),SUBSTITUTE($V13,"{",CHAR(160),GM$1)),FIND(CHAR(160),SUBSTITUTE($V13,"}",CHAR(160),GM$1))-FIND(CHAR(160),SUBSTITUTE($V13,"{",CHAR(160),GM$1))+1),"") ->  | GN13: =IFERROR(MID($V13,FIND(CHAR(160),SUBSTITUTE($V13,"{",CHAR(160),GN$1)),FIND(CHAR(160),SUBSTITUTE($V13,"}",CHAR(160),GN$1))-FIND(CHAR(160),SUBSTITUTE($V13,"{",CHAR(160),GN$1))+1),"") ->  | GO13: =IFERROR(MID($V13,FIND(CHAR(160),SUBSTITUTE($V13,"{",CHAR(160),GO$1)),FIND(CHAR(160),SUBSTITUTE($V13,"}",CHAR(160),GO$1))-FIND(CHAR(160),SUBSTITUTE($V13,"{",CHAR(160),GO$1))+1),"") ->  | GP13: =IFERROR(MID($V13,FIND(CHAR(160),SUBSTITUTE($V13,"{",CHAR(160),GP$1)),FIND(CHAR(160),SUBSTITUTE($V13,"}",CHAR(160),GP$1))-FIND(CHAR(160),SUBSTITUTE($V13,"{",CHAR(160),GP$1))+1),"") ->  | GQ13: =IFERROR(MID($W13,FIND(CHAR(160),SUBSTITUTE($W13,"{",CHAR(160),GQ$1)),FIND(CHAR(160),SUBSTITUTE($W13,"}",CHAR(160),GQ$1))-FIND(CHAR(160),SUBSTITUTE($W13,"{",CHAR(160),GQ$1))+1),"") ->  | GR13: =IFERROR(MID($W13,FIND(CHAR(160),SUBSTITUTE($W13,"{",CHAR(160),GR$1)),FIND(CHAR(160),SUBSTITUTE($W13,"}",CHAR(160),GR$1))-FIND(CHAR(160),SUBSTITUTE($W13,"{",CHAR(160),GR$1))+1),"") ->  | GS13: =IFERROR(MID($W13,FIND(CHAR(160),SUBSTITUTE($W13,"{",CHAR(160),GS$1)),FIND(CHAR(160),SUBSTITUTE($W13,"}",CHAR(160),GS$1))-FIND(CHAR(160),SUBSTITUTE($W13,"{",CHAR(160),GS$1))+1),"") ->  | GT13: =IFERROR(MID($W13,FIND(CHAR(160),SUBSTITUTE($W13,"{",CHAR(160),GT$1)),FIND(CHAR(160),SUBSTITUTE($W13,"}",CHAR(160),GT$1))-FIND(CHAR(160),SUBSTITUTE($W13,"{",CHAR(160),GT$1))+1),"") ->  | GU13: =IFERROR(MID($W13,FIND(CHAR(160),SUBSTITUTE($W13,"{",CHAR(160),GU$1)),FIND(CHAR(160),SUBSTITUTE($W13,"}",CHAR(160),GU$1))-FIND(CHAR(160),SUBSTITUTE($W13,"{",CHAR(160),GU$1))+1),"") ->  | GV13: =IFERROR(MID($W13,FIND(CHAR(160),SUBSTITUTE($W13,"{",CHAR(160),GV$1)),FIND(CHAR(160),SUBSTITUTE($W13,"}",CHAR(160),GV$1))-FIND(CHAR(160),SUBSTITUTE($W13,"{",CHAR(160),GV$1))+1),"") ->  | GW13: =IFERROR(MID($W13,FIND(CHAR(160),SUBSTITUTE($W13,"{",CHAR(160),GW$1)),FIND(CHAR(160),SUBSTITUTE($W13,"}",CHAR(160),GW$1))-FIND(CHAR(160),SUBSTITUTE($W13,"{",CHAR(160),GW$1))+1),"") ->  | GX13: =IFERROR(MID($W13,FIND(CHAR(160),SUBSTITUTE($W13,"{",CHAR(160),GX$1)),FIND(CHAR(160),SUBSTITUTE($W13,"}",CHAR(160),GX$1))-FIND(CHAR(160),SUBSTITUTE($W13,"{",CHAR(160),GX$1))+1),"") ->  | GY13: =IFERROR(MID($W13,FIND(CHAR(160),SUBSTITUTE($W13,"{",CHAR(160),GY$1)),FIND(CHAR(160),SUBSTITUTE($W13,"}",CHAR(160),GY$1))-FIND(CHAR(160),SUBSTITUTE($W13,"{",CHAR(160),GY$1))+1),"") -> {Primary heating type} | GZ13: =IFERROR(MID($W13,FIND(CHAR(160),SUBSTITUTE($W13,"{",CHAR(160),GZ$1)),FIND(CHAR(160),SUBSTITUTE($W13,"}",CHAR(160),GZ$1))-FIND(CHAR(160),SUBSTITUTE($W13,"{",CHAR(160),GZ$1))+1),"") -> {Primary heating type} | HA13: =IFERROR(MID($X13,FIND(CHAR(160),SUBSTITUTE($X13,"{",CHAR(160),HA$1)),FIND(CHAR(160),SUBSTITUTE($X13,"}",CHAR(160),HA$1))-FIND(CHAR(160),SUBSTITUTE($X13,"{",CHAR(160),HA$1))+1),"") ->  | HB13: =IFERROR(MID($X13,FIND(CHAR(160),SUBSTITUTE($X13,"{",CHAR(160),HB$1)),FIND(CHAR(160),SUBSTITUTE($X13,"}",CHAR(160),HB$1))-FIND(CHAR(160),SUBSTITUTE($X13,"{",CHAR(160),HB$1))+1),"") ->  | HC13: =IFERROR(MID($X13,FIND(CHAR(160),SUBSTITUTE($X13,"{",CHAR(160),HC$1)),FIND(CHAR(160),SUBSTITUTE($X13,"}",CHAR(160),HC$1))-FIND(CHAR(160),SUBSTITUTE($X13,"{",CHAR(160),HC$1))+1),"") ->  | HD13: =IFERROR(MID($X13,FIND(CHAR(160),SUBSTITUTE($X13,"{",CHAR(160),HD$1)),FIND(CHAR(160),SUBSTITUTE($X13,"}",CHAR(160),HD$1))-FIND(CHAR(160),SUBSTITUTE($X13,"{",CHAR(160),HD$1))+1),"") ->  | HE13: =IFERROR(MID($X13,FIND(CHAR(160),SUBSTITUTE($X13,"{",CHAR(160),HE$1)),FIND(CHAR(160),SUBSTITUTE($X13,"}",CHAR(160),HE$1))-FIND(CHAR(160),SUBSTITUTE($X13,"{",CHAR(160),HE$1))+1),"") ->  | HF13: =IFERROR(MID($X13,FIND(CHAR(160),SUBSTITUTE($X13,"{",CHAR(160),HF$1)),FIND(CHAR(160),SUBSTITUTE($X13,"}",CHAR(160),HF$1))-FIND(CHAR(160),SUBSTITUTE($X13,"{",CHAR(160),HF$1))+1),"") ->  | HG13: =IFERROR(MID($X13,FIND(CHAR(160),SUBSTITUTE($X13,"{",CHAR(160),HG$1)),FIND(CHAR(160),SUBSTITUTE($X13,"}",CHAR(160),HG$1))-FIND(CHAR(160),SUBSTITUTE($X13,"{",CHAR(160),HG$1))+1),"") ->  | HH13: =IFERROR(MID($X13,FIND(CHAR(160),SUBSTITUTE($X13,"{",CHAR(160),HH$1)),FIND(CHAR(160),SUBSTITUTE($X13,"}",CHAR(160),HH$1))-FIND(CHAR(160),SUBSTITUTE($X13,"{",CHAR(160),HH$1))+1),"") ->  | HI13: =IFERROR(MID($X13,FIND(CHAR(160),SUBSTITUTE($X13,"{",CHAR(160),HI$1)),FIND(CHAR(160),SUBSTITUTE($X13,"}",CHAR(160),HI$1))-FIND(CHAR(160),SUBSTITUTE($X13,"{",CHAR(160),HI$1))+1),"") -> {Primary heating type} | HJ13: =IFERROR(MID($X13,FIND(CHAR(160),SUBSTITUTE($X13,"{",CHAR(160),HJ$1)),FIND(CHAR(160),SUBSTITUTE($X13,"}",CHAR(160),HJ$1))-FIND(CHAR(160),SUBSTITUTE($X13,"{",CHAR(160),HJ$1))+1),"") -> {Primary heating type} | HK13: =IFERROR(MID($Y13,FIND(CHAR(160),SUBSTITUTE($Y13,"{",CHAR(160),HK$1)),FIND(CHAR(160),SUBSTITUTE($Y13,"}",CHAR(160),HK$1))-FIND(CHAR(160),SUBSTITUTE($Y13,"{",CHAR(160),HK$1))+1),"") ->  | HL13: =IFERROR(MID($Y13,FIND(CHAR(160),SUBSTITUTE($Y13,"{",CHAR(160),HL$1)),FIND(CHAR(160),SUBSTITUTE($Y13,"}",CHAR(160),HL$1))-FIND(CHAR(160),SUBSTITUTE($Y13,"{",CHAR(160),HL$1))+1),"") ->  | HM13: =IFERROR(MID($Y13,FIND(CHAR(160),SUBSTITUTE($Y13,"{",CHAR(160),HM$1)),FIND(CHAR(160),SUBSTITUTE($Y13,"}",CHAR(160),HM$1))-FIND(CHAR(160),SUBSTITUTE($Y13,"{",CHAR(160),HM$1))+1),"") ->  | HN13: =IFERROR(MID($Y13,FIND(CHAR(160),SUBSTITUTE($Y13,"{",CHAR(160),HN$1)),FIND(CHAR(160),SUBSTITUTE($Y13,"}",CHAR(160),HN$1))-FIND(CHAR(160),SUBSTITUTE($Y13,"{",CHAR(160),HN$1))+1),"") ->  | HO13: =IFERROR(MID($Y13,FIND(CHAR(160),SUBSTITUTE($Y13,"{",CHAR(160),HO$1)),FIND(CHAR(160),SUBSTITUTE($Y13,"}",CHAR(160),HO$1))-FIND(CHAR(160),SUBSTITUTE($Y13,"{",CHAR(160),HO$1))+1),"") ->  | HP13: =IFERROR(MID($Y13,FIND(CHAR(160),SUBSTITUTE($Y13,"{",CHAR(160),HP$1)),FIND(CHAR(160),SUBSTITUTE($Y13,"}",CHAR(160),HP$1))-FIND(CHAR(160),SUBSTITUTE($Y13,"{",CHAR(160),HP$1))+1),"") ->  | HQ13: =IFERROR(MID($Y13,FIND(CHAR(160),SUBSTITUTE($Y13,"{",CHAR(160),HQ$1)),FIND(CHAR(160),SUBSTITUTE($Y13,"}",CHAR(160),HQ$1))-FIND(CHAR(160),SUBSTITUTE($Y13,"{",CHAR(160),HQ$1))+1),"") ->  | HR13: =IFERROR(MID($Y13,FIND(CHAR(160),SUBSTITUTE($Y13,"{",CHAR(160),HR$1)),FIND(CHAR(160),SUBSTITUTE($Y13,"}",CHAR(160),HR$1))-FIND(CHAR(160),SUBSTITUTE($Y13,"{",CHAR(160),HR$1))+1),"") ->  | HS13: =IFERROR(MID($Y13,FIND(CHAR(160),SUBSTITUTE($Y13,"{",CHAR(160),HS$1)),FIND(CHAR(160),SUBSTITUTE($Y13,"}",CHAR(160),HS$1))-FIND(CHAR(160),SUBSTITUTE($Y13,"{",CHAR(160),HS$1))+1),"") -> {Primary heating type} | HT13: =IFERROR(MID($Y13,FIND(CHAR(160),SUBSTITUTE($Y13,"{",CHAR(160),HT$1)),FIND(CHAR(160),SUBSTITUTE($Y13,"}",CHAR(160),HT$1))-FIND(CHAR(160),SUBSTITUTE($Y13,"{",CHAR(160),HT$1))+1),"") -> {Primary heating type} | HU13: =IFERROR(MID($Z13,FIND(CHAR(160),SUBSTITUTE($Z13,"{",CHAR(160),HU$1)),FIND(CHAR(160),SUBSTITUTE($Z13,"}",CHAR(160),HU$1))-FIND(CHAR(160),SUBSTITUTE($Z13,"{",CHAR(160),HU$1))+1),"") ->  | HV13: =IFERROR(MID($Z13,FIND(CHAR(160),SUBSTITUTE($Z13,"{",CHAR(160),HV$1)),FIND(CHAR(160),SUBSTITUTE($Z13,"}",CHAR(160),HV$1))-FIND(CHAR(160),SUBSTITUTE($Z13,"{",CHAR(160),HV$1))+1),"") ->  | HW13: =IFERROR(MID($Z13,FIND(CHAR(160),SUBSTITUTE($Z13,"{",CHAR(160),HW$1)),FIND(CHAR(160),SUBSTITUTE($Z13,"}",CHAR(160),HW$1))-FIND(CHAR(160),SUBSTITUTE($Z13,"{",CHAR(160),HW$1))+1),"") ->  | HX13: =IFERROR(MID($Z13,FIND(CHAR(160),SUBSTITUTE($Z13,"{",CHAR(160),HX$1)),FIND(CHAR(160),SUBSTITUTE($Z13,"}",CHAR(160),HX$1))-FIND(CHAR(160),SUBSTITUTE($Z13,"{",CHAR(160),HX$1))+1),"") ->  | HY13: =IFERROR(MID($Z13,FIND(CHAR(160),SUBSTITUTE($Z13,"{",CHAR(160),HY$1)),FIND(CHAR(160),SUBSTITUTE($Z13,"}",CHAR(160),HY$1))-FIND(CHAR(160),SUBSTITUTE($Z13,"{",CHAR(160),HY$1))+1),"") ->  | HZ13: =IFERROR(MID($Z13,FIND(CHAR(160),SUBSTITUTE($Z13,"{",CHAR(160),HZ$1)),FIND(CHAR(160),SUBSTITUTE($Z13,"}",CHAR(160),HZ$1))-FIND(CHAR(160),SUBSTITUTE($Z13,"{",CHAR(160),HZ$1))+1),"") ->  | IA13: =IFERROR(MID($Z13,FIND(CHAR(160),SUBSTITUTE($Z13,"{",CHAR(160),IA$1)),FIND(CHAR(160),SUBSTITUTE($Z13,"}",CHAR(160),IA$1))-FIND(CHAR(160),SUBSTITUTE($Z13,"{",CHAR(160),IA$1))+1),"") ->  | IB13: =IFERROR(MID($Z13,FIND(CHAR(160),SUBSTITUTE($Z13,"{",CHAR(160),IB$1)),FIND(CHAR(160),SUBSTITUTE($Z13,"}",CHAR(160),IB$1))-FIND(CHAR(160),SUBSTITUTE($Z13,"{",CHAR(160),IB$1))+1),"") ->  | IC13: =IFERROR(MID($Z13,FIND(CHAR(160),SUBSTITUTE($Z13,"{",CHAR(160),IC$1)),FIND(CHAR(160),SUBSTITUTE($Z13,"}",CHAR(160),IC$1))-FIND(CHAR(160),SUBSTITUTE($Z13,"{",CHAR(160),IC$1))+1),"") -> {Primary heating type} | ID13: =IFERROR(MID($Z13,FIND(CHAR(160),SUBSTITUTE($Z13,"{",CHAR(160),ID$1)),FIND(CHAR(160),SUBSTITUTE($Z13,"}",CHAR(160),ID$1))-FIND(CHAR(160),SUBSTITUTE($Z13,"{",CHAR(160),ID$1))+1),"") -> {Primary heating type} | IE13: =IFERROR(MID($AA13,FIND(CHAR(160),SUBSTITUTE($AA13,"{",CHAR(160),IE$1)),FIND(CHAR(160),SUBSTITUTE($AA13,"}",CHAR(160),IE$1))-FIND(CHAR(160),SUBSTITUTE($AA13,"{",CHAR(160),IE$1))+1),"") ->  | IF13: =IFERROR(MID($AA13,FIND(CHAR(160),SUBSTITUTE($AA13,"{",CHAR(160),IF$1)),FIND(CHAR(160),SUBSTITUTE($AA13,"}",CHAR(160),IF$1))-FIND(CHAR(160),SUBSTITUTE($AA13,"{",CHAR(160),IF$1))+1),"") ->  | IG13: =IFERROR(MID($AA13,FIND(CHAR(160),SUBSTITUTE($AA13,"{",CHAR(160),IG$1)),FIND(CHAR(160),SUBSTITUTE($AA13,"}",CHAR(160),IG$1))-FIND(CHAR(160),SUBSTITUTE($AA13,"{",CHAR(160),IG$1))+1),"") ->  | IH13: =IFERROR(MID($AA13,FIND(CHAR(160),SUBSTITUTE($AA13,"{",CHAR(160),IH$1)),FIND(CHAR(160),SUBSTITUTE($AA13,"}",CHAR(160),IH$1))-FIND(CHAR(160),SUBSTITUTE($AA13,"{",CHAR(160),IH$1))+1),"") ->  | II13: =IFERROR(MID($AA13,FIND(CHAR(160),SUBSTITUTE($AA13,"{",CHAR(160),II$1)),FIND(CHAR(160),SUBSTITUTE($AA13,"}",CHAR(160),II$1))-FIND(CHAR(160),SUBSTITUTE($AA13,"{",CHAR(160),II$1))+1),"") ->  | IJ13: =IFERROR(MID($AA13,FIND(CHAR(160),SUBSTITUTE($AA13,"{",CHAR(160),IJ$1)),FIND(CHAR(160),SUBSTITUTE($AA13,"}",CHAR(160),IJ$1))-FIND(CHAR(160),SUBSTITUTE($AA13,"{",CHAR(160),IJ$1))+1),"") ->  | IK13: =IFERROR(MID($AA13,FIND(CHAR(160),SUBSTITUTE($AA13,"{",CHAR(160),IK$1)),FIND(CHAR(160),SUBSTITUTE($AA13,"}",CHAR(160),IK$1))-FIND(CHAR(160),SUBSTITUTE($AA13,"{",CHAR(160),IK$1))+1),"") ->  | IL13: =IFERROR(MID($AA13,FIND(CHAR(160),SUBSTITUTE($AA13,"{",CHAR(160),IL$1)),FIND(CHAR(160),SUBSTITUTE($AA13,"}",CHAR(160),IL$1))-FIND(CHAR(160),SUBSTITUTE($AA13,"{",CHAR(160),IL$1))+1),"") ->  | IM13: =IFERROR(MID($AA13,FIND(CHAR(160),SUBSTITUTE($AA13,"{",CHAR(160),IM$1)),FIND(CHAR(160),SUBSTITUTE($AA13,"}",CHAR(160),IM$1))-FIND(CHAR(160),SUBSTITUTE($AA13,"{",CHAR(160),IM$1))+1),"") -> {Primary heating type} | IN13: =IFERROR(MID($AA13,FIND(CHAR(160),SUBSTITUTE($AA13,"{",CHAR(160),IN$1)),FIND(CHAR(160),SUBSTITUTE($AA13,"}",CHAR(160),IN$1))-FIND(CHAR(160),SUBSTITUTE($AA13,"{",CHAR(160),IN$1))+1),"") -> {Primary heating type} | IO13: =IFERROR(MID($AB13,FIND(CHAR(160),SUBSTITUTE($AB13,"{",CHAR(160),IO$1)),FIND(CHAR(160),SUBSTITUTE($AB13,"}",CHAR(160),IO$1))-FIND(CHAR(160),SUBSTITUTE($AB13,"{",CHAR(160),IO$1))+1),"") ->  | IP13: =IFERROR(MID($AB13,FIND(CHAR(160),SUBSTITUTE($AB13,"{",CHAR(160),IP$1)),FIND(CHAR(160),SUBSTITUTE($AB13,"}",CHAR(160),IP$1))-FIND(CHAR(160),SUBSTITUTE($AB13,"{",CHAR(160),IP$1))+1),"") ->  | IQ13: =IFERROR(MID($AB13,FIND(CHAR(160),SUBSTITUTE($AB13,"{",CHAR(160),IQ$1)),FIND(CHAR(160),SUBSTITUTE($AB13,"}",CHAR(160),IQ$1))-FIND(CHAR(160),SUBSTITUTE($AB13,"{",CHAR(160),IQ$1))+1),"") ->  | IR13: =IFERROR(MID($AB13,FIND(CHAR(160),SUBSTITUTE($AB13,"{",CHAR(160),IR$1)),FIND(CHAR(160),SUBSTITUTE($AB13,"}",CHAR(160),IR$1))-FIND(CHAR(160),SUBSTITUTE($AB13,"{",CHAR(160),IR$1))+1),"") ->  | IS13: =IFERROR(MID($AB13,FIND(CHAR(160),SUBSTITUTE($AB13,"{",CHAR(160),IS$1)),FIND(CHAR(160),SUBSTITUTE($AB13,"}",CHAR(160),IS$1))-FIND(CHAR(160),SUBSTITUTE($AB13,"{",CHAR(160),IS$1))+1),"") ->  | IT13: =IFERROR(MID($AB13,FIND(CHAR(160),SUBSTITUTE($AB13,"{",CHAR(160),IT$1)),FIND(CHAR(160),SUBSTITUTE($AB13,"}",CHAR(160),IT$1))-FIND(CHAR(160),SUBSTITUTE($AB13,"{",CHAR(160),IT$1))+1),"") ->  | IU13: =IFERROR(MID($AB13,FIND(CHAR(160),SUBSTITUTE($AB13,"{",CHAR(160),IU$1)),FIND(CHAR(160),SUBSTITUTE($AB13,"}",CHAR(160),IU$1))-FIND(CHAR(160),SUBSTITUTE($AB13,"{",CHAR(160),IU$1))+1),"") ->  | IV13: =IFERROR(MID($AB13,FIND(CHAR(160),SUBSTITUTE($AB13,"{",CHAR(160),IV$1)),FIND(CHAR(160),SUBSTITUTE($AB13,"}",CHAR(160),IV$1))-FIND(CHAR(160),SUBSTITUTE($AB13,"{",CHAR(160),IV$1))+1),"") ->  | IW13: =IFERROR(MID($AB13,FIND(CHAR(160),SUBSTITUTE($AB13,"{",CHAR(160),IW$1)),FIND(CHAR(160),SUBSTITUTE($AB13,"}",CHAR(160),IW$1))-FIND(CHAR(160),SUBSTITUTE($AB13,"{",CHAR(160),IW$1))+1),"") ->  | IX13: =IFERROR(MID($AB13,FIND(CHAR(160),SUBSTITUTE($AB13,"{",CHAR(160),IX$1)),FIND(CHAR(160),SUBSTITUTE($AB13,"}",CHAR(160),IX$1))-FIND(CHAR(160),SUBSTITUTE($AB13,"{",CHAR(160),IX$1))+1),"") ->  | IZ13: =10-COUNTIF(DU13:ED13,"") -> 3
A14: Affordable Heat Initiative - Other Fuels | B14: Attic Insulation LIHESP | C14: LBA | D14: 2021-07-01 | E14: 2022-06-30 | F14: Calculated | G14: {Cost}*{Measure:Quantity} | H14: 0 | I14: Calculated | J14: if({Cost}*0.80>2000,2000,Round({Cost}*0.80,2))*{Measure:Quantity} | K14: 0 | L14: 2020-07-01 | M14: 2022-06-30 | N14: Calculated | O14: if({Primary heating type}=6,3101,if({Primary heating type}=0,117,20)) | R14: if({Primary heating type}=6,0.053,if({Primary heating type}=0,0.053,0.053)) | U14: if({Primary heating type}=6,0.678,if({Primary heating type}=0,0.026,0)) | V14: if({Primary heating type}=6,0.053,if({Primary heating type}=0,0.053,0.053)) | W14: if({Primary heating type}=1,12.663,if({Primary heating type}=0,1.140,0))*10 | X14: if({Primary heating type}=2,12.663,if({Primary heating type}=0,1.659,0)) | Y14: if({Primary heating type}=3,12.663,if({Primary heating type} = 0,8.661,0)) | Z14: if({Primary heating type}=4,12.663,if({Primary heating type} = 0,0.177,0)) | AA14: if({Primary heating type}=5,12.663,if({Primary heating type} = 0,0.545,0)) | AB14: 0 | AC14: 2019-07-01 | AD14: 2022-06-30 | AE14: 25 | AF14: 1 | AG14: 1 | AH14: 0 | AI14: 0 | AJ14: 0.666 | AK14: 0.301 | AL14: 1 | AM14: 1 | AN14: 1 | AO14: 0 | AP14: 0 | AR14: =DU14 -> {Cost} | AS14: 1962 | AT14: =DV14 -> {Measure:Quantity} | AU14: 1 | AV14: =DW14 -> {Primary heating type} | AW14: 0 | AX14: =DX14 ->  | AZ14: =DY14 ->  | BB14: =DZ14 ->  | BD14: =EA14 ->  | BF14: =EB14 ->  | BH14: =EC14 ->  | BJ14: =ED14 ->  | BL14: =IF(AW14=6,3101,IF(AW14=0,117,20)) -> 117 | BM14: 0 | BN14: 0 | BO14: =IF(AW14=6,0.053,IF(AW14=0,0.053,0.053)) -> 0.053 | BP14: 0 | BQ14: 0 | BR14: =IF(AW14=6,0.678,IF(AW14=0,0.026,0)) -> 0.026 | BS14: =IF(AW14=6,0.053,IF(AW14=0,0.053,0.053)) -> 0.053 | BT14: =IF(AW14=1,12.663,IF(AW14=0,1.14,0))*10 -> 11.4 | BU14: =IF(AW14=2,12.663,IF(AW14=0,1.659,0)) -> 1.659 | BV14: =IF(AW14=3,12.663,IF(AW14 = 0,8.661,0)) -> 8.661 | BW14: =IF(AW14=4,12.663,IF(AW14 = 0,0.177,0)) -> 0.177 | BX14: =IF(AW14=5,12.663,IF(AW14 = 0,0.545,0)) -> 0.545 | BY14: =0 -> 0 | CA14: Res | CB14: RGGI DR | CC14: =Benefits(BL14,BR14,BS14,BT14,BU14,BV14,BW14,BX14,BY14,BZ14,AE14,AH14,AI14,AJ14,AK14,AL14,AM14,AN14,AO14,AP14,CA14,CB14) -> 190.7236422 | CD14: 291.8524808 | CE14: 305.0551263 | CF14: 5237.873559 | CG14: 125.7132928 | CH14: 1419.049607 | CI14: 219.8008354 | CJ14: 0 | CK14: 0 | CL14: =SUMPRODUCT(CC14:CK14,--(CC14:CK14>0)) -> 7790.068543 | CM14: =-SUMPRODUCT(CC14:CK14,--(CC14:CK14<0)) -> 0 | CO14: =AS14*AU14 -> 1962 | CR14: =CM14+CO14 -> 1962 | CS14: =IF(NetOrGross="Net",(1-AO14+AP14),1) -> 1 | CT14: =(SUMPRODUCT(CC14:CJ14,--(CC14:CJ14>0))+CN14)*CS14/((-SUMPRODUCT(CC14:CJ14,--(CC14:CJ14<0))+MAX(CO14,CV14)+CP14+CQ14)*CS14+IF(FRIncentives="Yes",CV14*(1-CS14),0)) -> 3.970473264 | CU14: 1 | CV14: =IF(AS14*0.8>2000,2000,ROUND(AS14*0.8,2))*AU14 -> 1569.6 | CX14: RGGI | CY14: y | DA14: =IF(F14="Manual Entry","Manual",IF(G14="",0,"X="&SUBSTITUTE(SUBSTITUTE(SUBSTITUTE(SUBSTITUTE(SUBSTITUTE(SUBSTITUTE(SUBSTITUTE(SUBSTITUTE(SUBSTITUTE(SUBSTITUTE(SUBSTITUTE(SUBSTITUTE(G14,$ED14,$ED$2&ROW($ED14)),$EC14,$EC$2&ROW($EC14)),$EB14,$EB$2&ROW($EB14)),$EA14,$EA$2&ROW($EA14)),$DZ14,$DZ$2&ROW($DZ14)),$DY14,$DY$2&ROW($DY14)),$DX14,$DX$2&ROW($DX14)),$DW14,$DW$2&ROW($DW14)),$DV14,$DV$2&ROW($DV14)),$DU14,$DU$2&ROW($DU14)),$DT14,$DT$2&ROW($DT14)),$DS14,$DS$2&ROW($DS14)))) -> X=AS14*AU14 | DB14: =IF(I14="Manual Entry","Manual",IF(J14="",0,"X="&SUBSTITUTE(SUBSTITUTE(SUBSTITUTE(SUBSTITUTE(SUBSTITUTE(SUBSTITUTE(SUBSTITUTE(SUBSTITUTE(SUBSTITUTE(SUBSTITUTE(SUBSTITUTE(SUBSTITUTE(J14,$ED14,$ED$2&ROW($ED14)),$EC14,$EC$2&ROW($EC14)),$EB14,$EB$2&ROW($EB14)),$EA14,$EA$2&ROW($EA14)),$DZ14,$DZ$2&ROW($DZ14)),$DY14,$DY$2&ROW($DY14)),$DX14,$DX$2&ROW($DX14)),$DW14,$DW$2&ROW($DW14)),$DV14,$DV$2&ROW($DV14)),$DU14,$DU$2&ROW($DU14)),$DT14,$DT$2&ROW($DT14)),$DS14,$DS$2&ROW($DS14)))) -> X=if(AS14*0.80>2000,2000,Round(AS14*0.80,2))*AU14 | DC14: =IF(O14="",0,"X="&SUBSTITUTE(SUBSTITUTE(SUBSTITUTE(SUBSTITUTE(SUBSTITUTE(SUBSTITUTE(SUBSTITUTE(SUBSTITUTE(SUBSTITUTE(SUBSTITUTE(SUBSTITUTE(SUBSTITUTE(O14,$ED14,$ED$2&ROW($ED14)),$EC14,$EC$2&ROW($EC14)),$EB14,$EB$2&ROW($EB14)),$EA14,$EA$2&ROW($EA14)),$DZ14,$DZ$2&ROW($DZ14)),$DY14,$DY$2&ROW($DY14)),$DX14,$DX$2&ROW($DX14)),$DW14,$DW$2&ROW($DW14)),$DV14,$DV$2&ROW($DV14)),$DU14,$DU$2&ROW($DU14)),$DT14,$DT$2&ROW($DT14)),$DS14,$DS$2&ROW($DS14))) -> X=if(AW14=6,3101,if(AW14=0,117,20)) | DD14: =IF(P14="",0,"X="&SUBSTITUTE(SUBSTITUTE(SUBSTITUTE(SUBSTITUTE(SUBSTITUTE(SUBSTITUTE(SUBSTITUTE(SUBSTITUTE(SUBSTITUTE(SUBSTITUTE(SUBSTITUTE(SUBSTITUTE(P14,$ED14,$ED$2&ROW($ED14)),$EC14,$EC$2&ROW($EC14)),$EB14,$EB$2&ROW($EB14)),$EA14,$EA$2&ROW($EA14)),$DZ14,$DZ$2&ROW($DZ14)),$DY14,$DY$2&ROW($DY14)),$DX14,$DX$2&ROW($DX14)),$DW14,$DW$2&ROW($DW14)),$DV14,$DV$2&ROW($DV14)),$DU14,$DU$2&ROW($DU14)),$DT14,$DT$2&ROW($DT14)),$DS14,$DS$2&ROW($DS14))) -> 0 | DE14: =IF(Q14="",0,"X="&SUBSTITUTE(SUBSTITUTE(SUBSTITUTE(SUBSTITUTE(SUBSTITUTE(SUBSTITUTE(SUBSTITUTE(SUBSTITUTE(SUBSTITUTE(SUBSTITUTE(SUBSTITUTE(SUBSTITUTE(Q14,$ED14,$ED$2&ROW($ED14)),$EC14,$EC$2&ROW($EC14)),$EB14,$EB$2&ROW($EB14)),$EA14,$EA$2&ROW($EA14)),$DZ14,$DZ$2&ROW($DZ14)),$DY14,$DY$2&ROW($DY14)),$DX14,$DX$2&ROW($DX14)),$DW14,$DW$2&ROW($DW14)),$DV14,$DV$2&ROW($DV14)),$DU14,$DU$2&ROW($DU14)),$DT14,$DT$2&ROW($DT14)),$DS14,$DS$2&ROW($DS14))) -> 0 | DF14: =IF(R14="",0,"X="&SUBSTITUTE(SUBSTITUTE(SUBSTITUTE(SUBSTITUTE(SUBSTITUTE(SUBSTITUTE(SUBSTITUTE(SUBSTITUTE(SUBSTITUTE(SUBSTITUTE(SUBSTITUTE(SUBSTITUTE(R14,$ED14,$ED$2&ROW($ED14)),$EC14,$EC$2&ROW($EC14)),$EB14,$EB$2&ROW($EB14)),$EA14,$EA$2&ROW($EA14)),$DZ14,$DZ$2&ROW($DZ14)),$DY14,$DY$2&ROW($DY14)),$DX14,$DX$2&ROW($DX14)),$DW14,$DW$2&ROW($DW14)),$DV14,$DV$2&ROW($DV14)),$DU14,$DU$2&ROW($DU14)),$DT14,$DT$2&ROW($DT14)),$DS14,$DS$2&ROW($DS14))) -> X=if(AW14=6,0.053,if(AW14=0,0.053,0.053)) | DG14: =IF(S14="",0,"X="&SUBSTITUTE(SUBSTITUTE(SUBSTITUTE(SUBSTITUTE(SUBSTITUTE(SUBSTITUTE(SUBSTITUTE(SUBSTITUTE(SUBSTITUTE(SUBSTITUTE(SUBSTITUTE(SUBSTITUTE(S14,$ED14,$ED$2&ROW($ED14)),$EC14,$EC$2&ROW($EC14)),$EB14,$EB$2&ROW($EB14)),$EA14,$EA$2&ROW($EA14)),$DZ14,$DZ$2&ROW($DZ14)),$DY14,$DY$2&ROW($DY14)),$DX14,$DX$2&ROW($DX14)),$DW14,$DW$2&ROW($DW14)),$DV14,$DV$2&ROW($DV14)),$DU14,$DU$2&ROW($DU14)),$DT14,$DT$2&ROW($DT14)),$DS14,$DS$2&ROW($DS14))) -> 0 | DH14: =IF(T14="",0,"X="&SUBSTITUTE(SUBSTITUTE(SUBSTITUTE(SUBSTITUTE(SUBSTITUTE(SUBSTITUTE(SUBSTITUTE(SUBSTITUTE(SUBSTITUTE(SUBSTITUTE(SUBSTITUTE(SUBSTITUTE(T14,$ED14,$ED$2&ROW($ED14)),$EC14,$EC$2&ROW($EC14)),$EB14,$EB$2&ROW($EB14)),$EA14,$EA$2&ROW($EA14)),$DZ14,$DZ$2&ROW($DZ14)),$DY14,$DY$2&ROW($DY14)),$DX14,$DX$2&ROW($DX14)),$DW14,$DW$2&ROW($DW14)),$DV14,$DV$2&ROW($DV14)),$DU14,$DU$2&ROW($DU14)),$DT14,$DT$2&ROW($DT14)),$DS14,$DS$2&ROW($DS14))) -> 0 | DI14: =IF(U14="",0,"X="&SUBSTITUTE(SUBSTITUTE(SUBSTITUTE(SUBSTITUTE(SUBSTITUTE(SUBSTITUTE(SUBSTITUTE(SUBSTITUTE(SUBSTITUTE(SUBSTITUTE(SUBSTITUTE(SUBSTITUTE(U14,$ED14,$ED$2&ROW($ED14)),$EC14,$EC$2&ROW($EC14)),$EB14,$EB$2&ROW($EB14)),$EA14,$EA$2&ROW($EA14)),$DZ14,$DZ$2&ROW($DZ14)),$DY14,$DY$2&ROW($DY14)),$DX14,$DX$2&ROW($DX14)),$DW14,$DW$2&ROW($DW14)),$DV14,$DV$2&ROW($DV14)),$DU14,$DU$2&ROW($DU14)),$DT14,$DT$2&ROW($DT14)),$DS14,$DS$2&ROW($DS14))) -> X=if(AW14=6,0.678,if(AW14=0,0.026,0)) | DJ14: =IF(V14="",0,"X="&SUBSTITUTE(SUBSTITUTE(SUBSTITUTE(SUBSTITUTE(SUBSTITUTE(SUBSTITUTE(SUBSTITUTE(SUBSTITUTE(SUBSTITUTE(SUBSTITUTE(SUBSTITUTE(SUBSTITUTE(V14,$ED14,$ED$2&ROW($ED14)),$EC14,$EC$2&ROW($EC14)),$EB14,$EB$2&ROW($EB14)),$EA14,$EA$2&ROW($EA14)),$DZ14,$DZ$2&ROW($DZ14)),$DY14,$DY$2&ROW($DY14)),$DX14,$DX$2&ROW($DX14)),$DW14,$DW$2&ROW($DW14)),$DV14,$DV$2&ROW($DV14)),$DU14,$DU$2&ROW($DU14)),$DT14,$DT$2&ROW($DT14)),$DS14,$DS$2&ROW($DS14))) -> X=if(AW14=6,0.053,if(AW14=0,0.053,0.053)) | DK14: =IF(W14="",0,"X="&SUBSTITUTE(SUBSTITUTE(SUBSTITUTE(SUBSTITUTE(SUBSTITUTE(SUBSTITUTE(SUBSTITUTE(SUBSTITUTE(SUBSTITUTE(SUBSTITUTE(SUBSTITUTE(SUBSTITUTE(W14,$ED14,$ED$2&ROW($ED14)),$EC14,$EC$2&ROW($EC14)),$EB14,$EB$2&ROW($EB14)),$EA14,$EA$2&ROW($EA14)),$DZ14,$DZ$2&ROW($DZ14)),$DY14,$DY$2&ROW($DY14)),$DX14,$DX$2&ROW($DX14)),$DW14,$DW$2&ROW($DW14)),$DV14,$DV$2&ROW($DV14)),$DU14,$DU$2&ROW($DU14)),$DT14,$DT$2&ROW($DT14)),$DS14,$DS$2&ROW($DS14))) -> X=if(AW14=1,12.663,if(AW14=0,1.140,0))*10 | DL14: =IF(X14="",0,"X="&SUBSTITUTE(SUBSTITUTE(SUBSTITUTE(SUBSTITUTE(SUBSTITUTE(SUBSTITUTE(SUBSTITUTE(SUBSTITUTE(SUBSTITUTE(SUBSTITUTE(SUBSTITUTE(SUBSTITUTE(X14,$ED14,$ED$2&ROW($ED14)),$EC14,$EC$2&ROW($EC14)),$EB14,$EB$2&ROW($EB14)),$EA14,$EA$2&ROW($EA14)),$DZ14,$DZ$2&ROW($DZ14)),$DY14,$DY$2&ROW($DY14)),$DX14,$DX$2&ROW($DX14)),$DW14,$DW$2&ROW($DW14)),$DV14,$DV$2&ROW($DV14)),$DU14,$DU$2&ROW($DU14)),$DT14,$DT$2&ROW($DT14)),$DS14,$DS$2&ROW($DS14))) -> X=if(AW14=2,12.663,if(AW14=0,1.659,0)) | DM14: =IF(Y14="",0,"X="&SUBSTITUTE(SUBSTITUTE(SUBSTITUTE(SUBSTITUTE(SUBSTITUTE(SUBSTITUTE(SUBSTITUTE(SUBSTITUTE(SUBSTITUTE(SUBSTITUTE(SUBSTITUTE(SUBSTITUTE(Y14,$ED14,$ED$2&ROW($ED14)),$EC14,$EC$2&ROW($EC14)),$EB14,$EB$2&ROW($EB14)),$EA14,$EA$2&ROW($EA14)),$DZ14,$DZ$2&ROW($DZ14)),$DY14,$DY$2&ROW($DY14)),$DX14,$DX$2&ROW($DX14)),$DW14,$DW$2&ROW($DW14)),$DV14,$DV$2&ROW($DV14)),$DU14,$DU$2&ROW($DU14)),$DT14,$DT$2&ROW($DT14)),$DS14,$DS$2&ROW($DS14))) -> X=if(AW14=3,12.663,if(AW14 = 0,8.661,0)) | DN14: =IF(Z14="",0,"X="&SUBSTITUTE(SUBSTITUTE(SUBSTITUTE(SUBSTITUTE(SUBSTITUTE(SUBSTITUTE(SUBSTITUTE(SUBSTITUTE(SUBSTITUTE(SUBSTITUTE(SUBSTITUTE(SUBSTITUTE(Z14,$ED14,$ED$2&ROW($ED14)),$EC14,$EC$2&ROW($EC14)),$EB14,$EB$2&ROW($EB14)),$EA14,$EA$2&ROW($EA14)),$DZ14,$DZ$2&ROW($DZ14)),$DY14,$DY$2&ROW($DY14)),$DX14,$DX$2&ROW($DX14)),$DW14,$DW$2&ROW($DW14)),$DV14,$DV$2&ROW($DV14)),$DU14,$DU$2&ROW($DU14)),$DT14,$DT$2&ROW($DT14)),$DS14,$DS$2&ROW($DS14))) -> X=if(AW14=4,12.663,if(AW14 = 0,0.177,0)) | DO14: =IF(AA14="",0,"X="&SUBSTITUTE(SUBSTITUTE(SUBSTITUTE(SUBSTITUTE(SUBSTITUTE(SUBSTITUTE(SUBSTITUTE(SUBSTITUTE(SUBSTITUTE(SUBSTITUTE(SUBSTITUTE(SUBSTITUTE(AA14,$ED14,$ED$2&ROW($ED14)),$EC14,$EC$2&ROW($EC14)),$EB14,$EB$2&ROW($EB14)),$EA14,$EA$2&ROW($EA14)),$DZ14,$DZ$2&ROW($DZ14)),$DY14,$DY$2&ROW($DY14)),$DX14,$DX$2&ROW($DX14)),$DW14,$DW$2&ROW($DW14)),$DV14,$DV$2&ROW($DV14)),$DU14,$DU$2&ROW($DU14)),$DT14,$DT$2&ROW($DT14)),$DS14,$DS$2&ROW($DS14))) -> X=if(AW14=5,12.663,if(AW14 = 0,0.545,0)) | DP14: =IF(AB14="",0,"X="&SUBSTITUTE(SUBSTITUTE(SUBSTITUTE(SUBSTITUTE(SUBSTITUTE(SUBSTITUTE(SUBSTITUTE(SUBSTITUTE(SUBSTITUTE(SUBSTITUTE(SUBSTITUTE(SUBSTITUTE(AB14,$ED14,$ED$2&ROW($ED14)),$EC14,$EC$2&ROW($EC14)),$EB14,$EB$2&ROW($EB14)),$EA14,$EA$2&ROW($EA14)),$DZ14,$DZ$2&ROW($DZ14)),$DY14,$DY$2&ROW($DY14)),$DX14,$DX$2&ROW($DX14)),$DW14,$DW$2&ROW($DW14)),$DV14,$DV$2&ROW($DV14)),$DU14,$DU$2&ROW($DU14)),$DT14,$DT$2&ROW($DT14)),$DS14,$DS$2&ROW($DS14))) -> X=0 | DS14: {Factor:WinterCF} | DT14: {Factor:SummerCF} | DU14: =IFERROR(INDEX($EG14:$IV14,MATCH(0,COUNTIF($DR14:DT14,$EG14:$IV14),0)),"") -> {Cost} | DV14: =IFERROR(INDEX($EG14:$IV14,MATCH(0,COUNTIF($DR14:DU14,$EG14:$IV14),0)),"") -> {Measure:Quantity} | DW14: =IFERROR(INDEX($EG14:$IV14,MATCH(0,COUNTIF($DR14:DV14,$EG14:$IV14),0)),"") -> {Primary heating type} | DX14: =IFERROR(INDEX($EG14:$IV14,MATCH(0,COUNTIF($DR14:DW14,$EG14:$IV14),0)),"") ->  | DY14: =IFERROR(INDEX($EG14:$IV14,MATCH(0,COUNTIF($DR14:DX14,$EG14:$IV14),0)),"") ->  | DZ14: =IFERROR(INDEX($EG14:$IV14,MATCH(0,COUNTIF($DR14:DY14,$EG14:$IV14),0)),"") ->  | EA14: =IFERROR(INDEX($EG14:$IV14,MATCH(0,COUNTIF($DR14:DZ14,$EG14:$IV14),0)),"") ->  | EB14: =IFERROR(INDEX($EG14:$IV14,MATCH(0,COUNTIF($DR14:EA14,$EG14:$IV14),0)),"") ->  | EC14: =IFERROR(INDEX($EG14:$IV14,MATCH(0,COUNTIF($DR14:EB14,$EG14:$IV14),0)),"") ->  | ED14: =IFERROR(INDEX($EG14:$IV14,MATCH(0,COUNTIF($DR14:EC14,$EG14:$IV14),0)),"") ->  | EG14: =IFERROR(MID($G14,FIND(CHAR(160),SUBSTITUTE($G14,"{",CHAR(160),EG$1)),FIND(CHAR(160),SUBSTITUTE($G14,"}",CHAR(160),EG$1))-FIND(CHAR(160),SUBSTITUTE($G14,"{",CHAR(160),EG$1))+1),"") -> {Cost} | EH14: =IFERROR(MID($G14,FIND(CHAR(160),SUBSTITUTE($G14,"{",CHAR(160),EH$1)),FIND(CHAR(160),SUBSTITUTE($G14,"}",CHAR(160),EH$1))-FIND(CHAR(160),SUBSTITUTE($G14,"{",CHAR(160),EH$1))+1),"") -> {Measure:Quantity} | EI14: =IFERROR(MID($G14,FIND(CHAR(160),SUBSTITUTE($G14,"{",CHAR(160),EI$1)),FIND(CHAR(160),SUBSTITUTE($G14,"}",CHAR(160),EI$1))-FIND(CHAR(160),SUBSTITUTE($G14,"{",CHAR(160),EI$1))+1),"") ->  | EJ14: =IFERROR(MID($G14,FIND(CHAR(160),SUBSTITUTE($G14,"{",CHAR(160),EJ$1)),FIND(CHAR(160),SUBSTITUTE($G14,"}",CHAR(160),EJ$1))-FIND(CHAR(160),SUBSTITUTE($G14,"{",CHAR(160),EJ$1))+1),"") ->  | EK14: =IFERROR(MID($G14,FIND(CHAR(160),SUBSTITUTE($G14,"{",CHAR(160),EK$1)),FIND(CHAR(160),SUBSTITUTE($G14,"}",CHAR(160),EK$1))-FIND(CHAR(160),SUBSTITUTE($G14,"{",CHAR(160),EK$1))+1),"") ->  | EL14: =IFERROR(MID($G14,FIND(CHAR(160),SUBSTITUTE($G14,"{",CHAR(160),EL$1)),FIND(CHAR(160),SUBSTITUTE($G14,"}",CHAR(160),EL$1))-FIND(CHAR(160),SUBSTITUTE($G14,"{",CHAR(160),EL$1))+1),"") ->  | EM14: =IFERROR(MID($G14,FIND(CHAR(160),SUBSTITUTE($G14,"{",CHAR(160),EM$1)),FIND(CHAR(160),SUBSTITUTE($G14,"}",CHAR(160),EM$1))-FIND(CHAR(160),SUBSTITUTE($G14,"{",CHAR(160),EM$1))+1),"") ->  | EN14: =IFERROR(MID($G14,FIND(CHAR(160),SUBSTITUTE($G14,"{",CHAR(160),EN$1)),FIND(CHAR(160),SUBSTITUTE($G14,"}",CHAR(160),EN$1))-FIND(CHAR(160),SUBSTITUTE($G14,"{",CHAR(160),EN$1))+1),"") ->  | EO14: =IFERROR(MID($G14,FIND(CHAR(160),SUBSTITUTE($G14,"{",CHAR(160),EO$1)),FIND(CHAR(160),SUBSTITUTE($G14,"}",CHAR(160),EO$1))-FIND(CHAR(160),SUBSTITUTE($G14,"{",CHAR(160),EO$1))+1),"") ->  | EP14: =IFERROR(MID($G14,FIND(CHAR(160),SUBSTITUTE($G14,"{",CHAR(160),EP$1)),FIND(CHAR(160),SUBSTITUTE($G14,"}",CHAR(160),EP$1))-FIND(CHAR(160),SUBSTITUTE($G14,"{",CHAR(160),EP$1))+1),"") ->  | EQ14: =IFERROR(MID($J14,FIND(CHAR(160),SUBSTITUTE($J14,"{",CHAR(160),EQ$1)),FIND(CHAR(160),SUBSTITUTE($J14,"}",CHAR(160),EQ$1))-FIND(CHAR(160),SUBSTITUTE($J14,"{",CHAR(160),EQ$1))+1),"") -> {Cost} | ER14: =IFERROR(MID($J14,FIND(CHAR(160),SUBSTITUTE($J14,"{",CHAR(160),ER$1)),FIND(CHAR(160),SUBSTITUTE($J14,"}",CHAR(160),ER$1))-FIND(CHAR(160),SUBSTITUTE($J14,"{",CHAR(160),ER$1))+1),"") -> {Cost} | ES14: =IFERROR(MID($J14,FIND(CHAR(160),SUBSTITUTE($J14,"{",CHAR(160),ES$1)),FIND(CHAR(160),SUBSTITUTE($J14,"}",CHAR(160),ES$1))-FIND(CHAR(160),SUBSTITUTE($J14,"{",CHAR(160),ES$1))+1),"") -> {Measure:Quantity} | ET14: =IFERROR(MID($J14,FIND(CHAR(160),SUBSTITUTE($J14,"{",CHAR(160),ET$1)),FIND(CHAR(160),SUBSTITUTE($J14,"}",CHAR(160),ET$1))-FIND(CHAR(160),SUBSTITUTE($J14,"{",CHAR(160),ET$1))+1),"") ->  | EU14: =IFERROR(MID($J14,FIND(CHAR(160),SUBSTITUTE($J14,"{",CHAR(160),EU$1)),FIND(CHAR(160),SUBSTITUTE($J14,"}",CHAR(160),EU$1))-FIND(CHAR(160),SUBSTITUTE($J14,"{",CHAR(160),EU$1))+1),"") ->  | EV14: =IFERROR(MID($J14,FIND(CHAR(160),SUBSTITUTE($J14,"{",CHAR(160),EV$1)),FIND(CHAR(160),SUBSTITUTE($J14,"}",CHAR(160),EV$1))-FIND(CHAR(160),SUBSTITUTE($J14,"{",CHAR(160),EV$1))+1),"") ->  | EW14: =IFERROR(MID($J14,FIND(CHAR(160),SUBSTITUTE($J14,"{",CHAR(160),EW$1)),FIND(CHAR(160),SUBSTITUTE($J14,"}",CHAR(160),EW$1))-FIND(CHAR(160),SUBSTITUTE($J14,"{",CHAR(160),EW$1))+1),"") ->  | EX14: =IFERROR(MID($J14,FIND(CHAR(160),SUBSTITUTE($J14,"{",CHAR(160),EX$1)),FIND(CHAR(160),SUBSTITUTE($J14,"}",CHAR(160),EX$1))-FIND(CHAR(160),SUBSTITUTE($J14,"{",CHAR(160),EX$1))+1),"") ->  | EY14: =IFERROR(MID($J14,FIND(CHAR(160),SUBSTITUTE($J14,"{",CHAR(160),EY$1)),FIND(CHAR(160),SUBSTITUTE($J14,"}",CHAR(160),EY$1))-FIND(CHAR(160),SUBSTITUTE($J14,"{",CHAR(160),EY$1))+1),"") ->  | EZ14: =IFERROR(MID($J14,FIND(CHAR(160),SUBSTITUTE($J14,"{",CHAR(160),EZ$1)),FIND(CHAR(160),SUBSTITUTE($J14,"}",CHAR(160),EZ$1))-FIND(CHAR(160),SUBSTITUTE($J14,"{",CHAR(160),EZ$1))+1),"") ->  | FA14: =IFERROR(MID($J14,FIND(CHAR(160),SUBSTITUTE($J14,"{",CHAR(160),FA$1)),FIND(CHAR(160),SUBSTITUTE($J14,"}",CHAR(160),FA$1))-FIND(CHAR(160),SUBSTITUTE($J14,"{",CHAR(160),FA$1))+1),"") -> {Cost} | FB14: =IFERROR(MID($J14,FIND(CHAR(160),SUBSTITUTE($J14,"{",CHAR(160),FB$1)),FIND(CHAR(160),SUBSTITUTE($J14,"}",CHAR(160),FB$1))-FIND(CHAR(160),SUBSTITUTE($J14,"{",CHAR(160),FB$1))+1),"") -> {Cost} | FC14: =IFERROR(MID($O14,FIND(CHAR(160),SUBSTITUTE($O14,"{",CHAR(160),FC$1)),FIND(CHAR(160),SUBSTITUTE($O14,"}",CHAR(160),FC$1))-FIND(CHAR(160),SUBSTITUTE($O14,"{",CHAR(160),FC$1))+1),"") ->  | FD14: =IFERROR(MID($O14,FIND(CHAR(160),SUBSTITUTE($O14,"{",CHAR(160),FD$1)),FIND(CHAR(160),SUBSTITUTE($O14,"}",CHAR(160),FD$1))-FIND(CHAR(160),SUBSTITUTE($O14,"{",CHAR(160),FD$1))+1),"") ->  | FE14: =IFERROR(MID($O14,FIND(CHAR(160),SUBSTITUTE($O14,"{",CHAR(160),FE$1)),FIND(CHAR(160),SUBSTITUTE($O14,"}",CHAR(160),FE$1))-FIND(CHAR(160),SUBSTITUTE($O14,"{",CHAR(160),FE$1))+1),"") ->  | FF14: =IFERROR(MID($O14,FIND(CHAR(160),SUBSTITUTE($O14,"{",CHAR(160),FF$1)),FIND(CHAR(160),SUBSTITUTE($O14,"}",CHAR(160),FF$1))-FIND(CHAR(160),SUBSTITUTE($O14,"{",CHAR(160),FF$1))+1),"") ->  | FG14: =IFERROR(MID($O14,FIND(CHAR(160),SUBSTITUTE($O14,"{",CHAR(160),FG$1)),FIND(CHAR(160),SUBSTITUTE($O14,"}",CHAR(160),FG$1))-FIND(CHAR(160),SUBSTITUTE($O14,"{",CHAR(160),FG$1))+1),"") ->  | FH14: =IFERROR(MID($O14,FIND(CHAR(160),SUBSTITUTE($O14,"{",CHAR(160),FH$1)),FIND(CHAR(160),SUBSTITUTE($O14,"}",CHAR(160),FH$1))-FIND(CHAR(160),SUBSTITUTE($O14,"{",CHAR(160),FH$1))+1),"") ->  | FI14: =IFERROR(MID($O14,FIND(CHAR(160),SUBSTITUTE($O14,"{",CHAR(160),FI$1)),FIND(CHAR(160),SUBSTITUTE($O14,"}",CHAR(160),FI$1))-FIND(CHAR(160),SUBSTITUTE($O14,"{",CHAR(160),FI$1))+1),"") ->  | FJ14: =IFERROR(MID($O14,FIND(CHAR(160),SUBSTITUTE($O14,"{",CHAR(160),FJ$1)),FIND(CHAR(160),SUBSTITUTE($O14,"}",CHAR(160),FJ$1))-FIND(CHAR(160),SUBSTITUTE($O14,"{",CHAR(160),FJ$1))+1),"") ->  | FK14: =IFERROR(MID($O14,FIND(CHAR(160),SUBSTITUTE($O14,"{",CHAR(160),FK$1)),FIND(CHAR(160),SUBSTITUTE($O14,"}",CHAR(160),FK$1))-FIND(CHAR(160),SUBSTITUTE($O14,"{",CHAR(160),FK$1))+1),"") -> {Primary heating type} | FL14: =IFERROR(MID($O14,FIND(CHAR(160),SUBSTITUTE($O14,"{",CHAR(160),FL$1)),FIND(CHAR(160),SUBSTITUTE($O14,"}",CHAR(160),FL$1))-FIND(CHAR(160),SUBSTITUTE($O14,"{",CHAR(160),FL$1))+1),"") -> {Primary heating type} | FM14: =IFERROR(MID($R14,FIND(CHAR(160),SUBSTITUTE($R14,"{",CHAR(160),FM$1)),FIND(CHAR(160),SUBSTITUTE($R14,"}",CHAR(160),FM$1))-FIND(CHAR(160),SUBSTITUTE($R14,"{",CHAR(160),FM$1))+1),"") ->  | FN14: =IFERROR(MID($R14,FIND(CHAR(160),SUBSTITUTE($R14,"{",CHAR(160),FN$1)),FIND(CHAR(160),SUBSTITUTE($R14,"}",CHAR(160),FN$1))-FIND(CHAR(160),SUBSTITUTE($R14,"{",CHAR(160),FN$1))+1),"") ->  | FO14: =IFERROR(MID($R14,FIND(CHAR(160),SUBSTITUTE($R14,"{",CHAR(160),FO$1)),FIND(CHAR(160),SUBSTITUTE($R14,"}",CHAR(160),FO$1))-FIND(CHAR(160),SUBSTITUTE($R14,"{",CHAR(160),FO$1))+1),"") ->  | FP14: =IFERROR(MID($R14,FIND(CHAR(160),SUBSTITUTE($R14,"{",CHAR(160),FP$1)),FIND(CHAR(160),SUBSTITUTE($R14,"}",CHAR(160),FP$1))-FIND(CHAR(160),SUBSTITUTE($R14,"{",CHAR(160),FP$1))+1),"") ->  | FQ14: =IFERROR(MID($R14,FIND(CHAR(160),SUBSTITUTE($R14,"{",CHAR(160),FQ$1)),FIND(CHAR(160),SUBSTITUTE($R14,"}",CHAR(160),FQ$1))-FIND(CHAR(160),SUBSTITUTE($R14,"{",CHAR(160),FQ$1))+1),"") ->  | FR14: =IFERROR(MID($R14,FIND(CHAR(160),SUBSTITUTE($R14,"{",CHAR(160),FR$1)),FIND(CHAR(160),SUBSTITUTE($R14,"}",CHAR(160),FR$1))-FIND(CHAR(160),SUBSTITUTE($R14,"{",CHAR(160),FR$1))+1),"") ->  | FS14: =IFERROR(MID($R14,FIND(CHAR(160),SUBSTITUTE($R14,"{",CHAR(160),FS$1)),FIND(CHAR(160),SUBSTITUTE($R14,"}",CHAR(160),FS$1))-FIND(CHAR(160),SUBSTITUTE($R14,"{",CHAR(160),FS$1))+1),"") ->  | FT14: =IFERROR(MID($R14,FIND(CHAR(160),SUBSTITUTE($R14,"{",CHAR(160),FT$1)),FIND(CHAR(160),SUBSTITUTE($R14,"}",CHAR(160),FT$1))-FIND(CHAR(160),SUBSTITUTE($R14,"{",CHAR(160),FT$1))+1),"") ->  | FU14: =IFERROR(MID($R14,FIND(CHAR(160),SUBSTITUTE($R14,"{",CHAR(160),FU$1)),FIND(CHAR(160),SUBSTITUTE($R14,"}",CHAR(160),FU$1))-FIND(CHAR(160),SUBSTITUTE($R14,"{",CHAR(160),FU$1))+1),"") -> {Primary heating type} | FV14: =IFERROR(MID($R14,FIND(CHAR(160),SUBSTITUTE($R14,"{",CHAR(160),FV$1)),FIND(CHAR(160),SUBSTITUTE($R14,"}",CHAR(160),FV$1))-FIND(CHAR(160),SUBSTITUTE($R14,"{",CHAR(160),FV$1))+1),"") -> {Primary heating type} | FW14: =IFERROR(MID($U14,FIND(CHAR(160),SUBSTITUTE($U14,"{",CHAR(160),FW$1)),FIND(CHAR(160),SUBSTITUTE($U14,"}",CHAR(160),FW$1))-FIND(CHAR(160),SUBSTITUTE($U14,"{",CHAR(160),FW$1))+1),"") ->  | FX14: =IFERROR(MID($U14,FIND(CHAR(160),SUBSTITUTE($U14,"{",CHAR(160),FX$1)),FIND(CHAR(160),SUBSTITUTE($U14,"}",CHAR(160),FX$1))-FIND(CHAR(160),SUBSTITUTE($U14,"{",CHAR(160),FX$1))+1),"") ->  | FY14: =IFERROR(MID($U14,FIND(CHAR(160),SUBSTITUTE($U14,"{",CHAR(160),FY$1)),FIND(CHAR(160),SUBSTITUTE($U14,"}",CHAR(160),FY$1))-FIND(CHAR(160),SUBSTITUTE($U14,"{",CHAR(160),FY$1))+1),"") ->  | FZ14: =IFERROR(MID($U14,FIND(CHAR(160),SUBSTITUTE($U14,"{",CHAR(160),FZ$1)),FIND(CHAR(160),SUBSTITUTE($U14,"}",CHAR(160),FZ$1))-FIND(CHAR(160),SUBSTITUTE($U14,"{",CHAR(160),FZ$1))+1),"") ->  | GA14: =IFERROR(MID($U14,FIND(CHAR(160),SUBSTITUTE($U14,"{",CHAR(160),GA$1)),FIND(CHAR(160),SUBSTITUTE($U14,"}",CHAR(160),GA$1))-FIND(CHAR(160),SUBSTITUTE($U14,"{",CHAR(160),GA$1))+1),"") ->  | GB14: =IFERROR(MID($U14,FIND(CHAR(160),SUBSTITUTE($U14,"{",CHAR(160),GB$1)),FIND(CHAR(160),SUBSTITUTE($U14,"}",CHAR(160),GB$1))-FIND(CHAR(160),SUBSTITUTE($U14,"{",CHAR(160),GB$1))+1),"") ->  | GC14: =IFERROR(MID($U14,FIND(CHAR(160),SUBSTITUTE($U14,"{",CHAR(160),GC$1)),FIND(CHAR(160),SUBSTITUTE($U14,"}",CHAR(160),GC$1))-FIND(CHAR(160),SUBSTITUTE($U14,"{",CHAR(160),GC$1))+1),"") ->  | GD14: =IFERROR(MID($U14,FIND(CHAR(160),SUBSTITUTE($U14,"{",CHAR(160),GD$1)),FIND(CHAR(160),SUBSTITUTE($U14,"}",CHAR(160),GD$1))-FIND(CHAR(160),SUBSTITUTE($U14,"{",CHAR(160),GD$1))+1),"") ->  | GE14: =IFERROR(MID($U14,FIND(CHAR(160),SUBSTITUTE($U14,"{",CHAR(160),GE$1)),FIND(CHAR(160),SUBSTITUTE($U14,"}",CHAR(160),GE$1))-FIND(CHAR(160),SUBSTITUTE($U14,"{",CHAR(160),GE$1))+1),"") -> {Primary heating type} | GF14: =IFERROR(MID($U14,FIND(CHAR(160),SUBSTITUTE($U14,"{",CHAR(160),GF$1)),FIND(CHAR(160),SUBSTITUTE($U14,"}",CHAR(160),GF$1))-FIND(CHAR(160),SUBSTITUTE($U14,"{",CHAR(160),GF$1))+1),"") -> {Primary heating type} | GG14: =IFERROR(MID($V14,FIND(CHAR(160),SUBSTITUTE($V14,"{",CHAR(160),GG$1)),FIND(CHAR(160),SUBSTITUTE($V14,"}",CHAR(160),GG$1))-FIND(CHAR(160),SUBSTITUTE($V14,"{",CHAR(160),GG$1))+1),"") ->  | GH14: =IFERROR(MID($V14,FIND(CHAR(160),SUBSTITUTE($V14,"{",CHAR(160),GH$1)),FIND(CHAR(160),SUBSTITUTE($V14,"}",CHAR(160),GH$1))-FIND(CHAR(160),SUBSTITUTE($V14,"{",CHAR(160),GH$1))+1),"") ->  | GI14: =IFERROR(MID($V14,FIND(CHAR(160),SUBSTITUTE($V14,"{",CHAR(160),GI$1)),FIND(CHAR(160),SUBSTITUTE($V14,"}",CHAR(160),GI$1))-FIND(CHAR(160),SUBSTITUTE($V14,"{",CHAR(160),GI$1))+1),"") ->  | GJ14: =IFERROR(MID($V14,FIND(CHAR(160),SUBSTITUTE($V14,"{",CHAR(160),GJ$1)),FIND(CHAR(160),SUBSTITUTE($V14,"}",CHAR(160),GJ$1))-FIND(CHAR(160),SUBSTITUTE($V14,"{",CHAR(160),GJ$1))+1),"") ->  | GK14: =IFERROR(MID($V14,FIND(CHAR(160),SUBSTITUTE($V14,"{",CHAR(160),GK$1)),FIND(CHAR(160),SUBSTITUTE($V14,"}",CHAR(160),GK$1))-FIND(CHAR(160),SUBSTITUTE($V14,"{",CHAR(160),GK$1))+1),"") ->  | GL14: =IFERROR(MID($V14,FIND(CHAR(160),SUBSTITUTE($V14,"{",CHAR(160),GL$1)),FIND(CHAR(160),SUBSTITUTE($V14,"}",CHAR(160),GL$1))-FIND(CHAR(160),SUBSTITUTE($V14,"{",CHAR(160),GL$1))+1),"") ->  | GM14: =IFERROR(MID($V14,FIND(CHAR(160),SUBSTITUTE($V14,"{",CHAR(160),GM$1)),FIND(CHAR(160),SUBSTITUTE($V14,"}",CHAR(160),GM$1))-FIND(CHAR(160),SUBSTITUTE($V14,"{",CHAR(160),GM$1))+1),"") ->  | GN14: =IFERROR(MID($V14,FIND(CHAR(160),SUBSTITUTE($V14,"{",CHAR(160),GN$1)),FIND(CHAR(160),SUBSTITUTE($V14,"}",CHAR(160),GN$1))-FIND(CHAR(160),SUBSTITUTE($V14,"{",CHAR(160),GN$1))+1),"") ->  | GO14: =IFERROR(MID($V14,FIND(CHAR(160),SUBSTITUTE($V14,"{",CHAR(160),GO$1)),FIND(CHAR(160),SUBSTITUTE($V14,"}",CHAR(160),GO$1))-FIND(CHAR(160),SUBSTITUTE($V14,"{",CHAR(160),GO$1))+1),"") -> {Primary heating type} | GP14: =IFERROR(MID($V14,FIND(CHAR(160),SUBSTITUTE($V14,"{",CHAR(160),GP$1)),FIND(CHAR(160),SUBSTITUTE($V14,"}",CHAR(160),GP$1))-FIND(CHAR(160),SUBSTITUTE($V14,"{",CHAR(160),GP$1))+1),"") -> {Primary heating type} | GQ14: =IFERROR(MID($W14,FIND(CHAR(160),SUBSTITUTE($W14,"{",CHAR(160),GQ$1)),FIND(CHAR(160),SUBSTITUTE($W14,"}",CHAR(160),GQ$1))-FIND(CHAR(160),SUBSTITUTE($W14,"{",CHAR(160),GQ$1))+1),"") ->  | GR14: =IFERROR(MID($W14,FIND(CHAR(160),SUBSTITUTE($W14,"{",CHAR(160),GR$1)),FIND(CHAR(160),SUBSTITUTE($W14,"}",CHAR(160),GR$1))-FIND(CHAR(160),SUBSTITUTE($W14,"{",CHAR(160),GR$1))+1),"") ->  | GS14: =IFERROR(MID($W14,FIND(CHAR(160),SUBSTITUTE($W14,"{",CHAR(160),GS$1)),FIND(CHAR(160),SUBSTITUTE($W14,"}",CHAR(160),GS$1))-FIND(CHAR(160),SUBSTITUTE($W14,"{",CHAR(160),GS$1))+1),"") ->  | GT14: =IFERROR(MID($W14,FIND(CHAR(160),SUBSTITUTE($W14,"{",CHAR(160),GT$1)),FIND(CHAR(160),SUBSTITUTE($W14,"}",CHAR(160),GT$1))-FIND(CHAR(160),SUBSTITUTE($W14,"{",CHAR(160),GT$1))+1),"") ->  | GU14: =IFERROR(MID($W14,FIND(CHAR(160),SUBSTITUTE($W14,"{",CHAR(160),GU$1)),FIND(CHAR(160),SUBSTITUTE($W14,"}",CHAR(160),GU$1))-FIND(CHAR(160),SUBSTITUTE($W14,"{",CHAR(160),GU$1))+1),"") ->  | GV14: =IFERROR(MID($W14,FIND(CHAR(160),SUBSTITUTE($W14,"{",CHAR(160),GV$1)),FIND(CHAR(160),SUBSTITUTE($W14,"}",CHAR(160),GV$1))-FIND(CHAR(160),SUBSTITUTE($W14,"{",CHAR(160),GV$1))+1),"") ->  | GW14: =IFERROR(MID($W14,FIND(CHAR(160),SUBSTITUTE($W14,"{",CHAR(160),GW$1)),FIND(CHAR(160),SUBSTITUTE($W14,"}",CHAR(160),GW$1))-FIND(CHAR(160),SUBSTITUTE($W14,"{",CHAR(160),GW$1))+1),"") ->  | GX14: =IFERROR(MID($W14,FIND(CHAR(160),SUBSTITUTE($W14,"{",CHAR(160),GX$1)),FIND(CHAR(160),SUBSTITUTE($W14,"}",CHAR(160),GX$1))-FIND(CHAR(160),SUBSTITUTE($W14,"{",CHAR(160),GX$1))+1),"") ->  | GY14: =IFERROR(MID($W14,FIND(CHAR(160),SUBSTITUTE($W14,"{",CHAR(160),GY$1)),FIND(CHAR(160),SUBSTITUTE($W14,"}",CHAR(160),GY$1))-FIND(CHAR(160),SUBSTITUTE($W14,"{",CHAR(160),GY$1))+1),"") -> {Primary heating type} | GZ14: =IFERROR(MID($W14,FIND(CHAR(160),SUBSTITUTE($W14,"{",CHAR(160),GZ$1)),FIND(CHAR(160),SUBSTITUTE($W14,"}",CHAR(160),GZ$1))-FIND(CHAR(160),SUBSTITUTE($W14,"{",CHAR(160),GZ$1))+1),"") -> {Primary heating type} | HA14: =IFERROR(MID($X14,FIND(CHAR(160),SUBSTITUTE($X14,"{",CHAR(160),HA$1)),FIND(CHAR(160),SUBSTITUTE($X14,"}",CHAR(160),HA$1))-FIND(CHAR(160),SUBSTITUTE($X14,"{",CHAR(160),HA$1))+1),"") ->  | HB14: =IFERROR(MID($X14,FIND(CHAR(160),SUBSTITUTE($X14,"{",CHAR(160),HB$1)),FIND(CHAR(160),SUBSTITUTE($X14,"}",CHAR(160),HB$1))-FIND(CHAR(160),SUBSTITUTE($X14,"{",CHAR(160),HB$1))+1),"") ->  | HC14: =IFERROR(MID($X14,FIND(CHAR(160),SUBSTITUTE($X14,"{",CHAR(160),HC$1)),FIND(CHAR(160),SUBSTITUTE($X14,"}",CHAR(160),HC$1))-FIND(CHAR(160),SUBSTITUTE($X14,"{",CHAR(160),HC$1))+1),"") ->  | HD14: =IFERROR(MID($X14,FIND(CHAR(160),SUBSTITUTE($X14,"{",CHAR(160),HD$1)),FIND(CHAR(160),SUBSTITUTE($X14,"}",CHAR(160),HD$1))-FIND(CHAR(160),SUBSTITUTE($X14,"{",CHAR(160),HD$1))+1),"") ->  | HE14: =IFERROR(MID($X14,FIND(CHAR(160),SUBSTITUTE($X14,"{",CHAR(160),HE$1)),FIND(CHAR(160),SUBSTITUTE($X14,"}",CHAR(160),HE$1))-FIND(CHAR(160),SUBSTITUTE($X14,"{",CHAR(160),HE$1))+1),"") ->  | HF14: =IFERROR(MID($X14,FIND(CHAR(160),SUBSTITUTE($X14,"{",CHAR(160),HF$1)),FIND(CHAR(160),SUBSTITUTE($X14,"}",CHAR(160),HF$1))-FIND(CHAR(160),SUBSTITUTE($X14,"{",CHAR(160),HF$1))+1),"") ->  | HG14: =IFERROR(MID($X14,FIND(CHAR(160),SUBSTITUTE($X14,"{",CHAR(160),HG$1)),FIND(CHAR(160),SUBSTITUTE($X14,"}",CHAR(160),HG$1))-FIND(CHAR(160),SUBSTITUTE($X14,"{",CHAR(160),HG$1))+1),"") ->  | HH14: =IFERROR(MID($X14,FIND(CHAR(160),SUBSTITUTE($X14,"{",CHAR(160),HH$1)),FIND(CHAR(160),SUBSTITUTE($X14,"}",CHAR(160),HH$1))-FIND(CHAR(160),SUBSTITUTE($X14,"{",CHAR(160),HH$1))+1),"") ->  | HI14: =IFERROR(MID($X14,FIND(CHAR(160),SUBSTITUTE($X14,"{",CHAR(160),HI$1)),FIND(CHAR(160),SUBSTITUTE($X14,"}",CHAR(160),HI$1))-FIND(CHAR(160),SUBSTITUTE($X14,"{",CHAR(160),HI$1))+1),"") -> {Primary heating type} | HJ14: =IFERROR(MID($X14,FIND(CHAR(160),SUBSTITUTE($X14,"{",CHAR(160),HJ$1)),FIND(CHAR(160),SUBSTITUTE($X14,"}",CHAR(160),HJ$1))-FIND(CHAR(160),SUBSTITUTE($X14,"{",CHAR(160),HJ$1))+1),"") -> {Primary heating type} | HK14: =IFERROR(MID($Y14,FIND(CHAR(160),SUBSTITUTE($Y14,"{",CHAR(160),HK$1)),FIND(CHAR(160),SUBSTITUTE($Y14,"}",CHAR(160),HK$1))-FIND(CHAR(160),SUBSTITUTE($Y14,"{",CHAR(160),HK$1))+1),"") ->  | HL14: =IFERROR(MID($Y14,FIND(CHAR(160),SUBSTITUTE($Y14,"{",CHAR(160),HL$1)),FIND(CHAR(160),SUBSTITUTE($Y14,"}",CHAR(160),HL$1))-FIND(CHAR(160),SUBSTITUTE($Y14,"{",CHAR(160),HL$1))+1),"") ->  | HM14: =IFERROR(MID($Y14,FIND(CHAR(160),SUBSTITUTE($Y14,"{",CHAR(160),HM$1)),FIND(CHAR(160),SUBSTITUTE($Y14,"}",CHAR(160),HM$1))-FIND(CHAR(160),SUBSTITUTE($Y14,"{",CHAR(160),HM$1))+1),"") ->  | HN14: =IFERROR(MID($Y14,FIND(CHAR(160),SUBSTITUTE($Y14,"{",CHAR(160),HN$1)),FIND(CHAR(160),SUBSTITUTE($Y14,"}",CHAR(160),HN$1))-FIND(CHAR(160),SUBSTITUTE($Y14,"{",CHAR(160),HN$1))+1),"") ->  | HO14: =IFERROR(MID($Y14,FIND(CHAR(160),SUBSTITUTE($Y14,"{",CHAR(160),HO$1)),FIND(CHAR(160),SUBSTITUTE($Y14,"}",CHAR(160),HO$1))-FIND(CHAR(160),SUBSTITUTE($Y14,"{",CHAR(160),HO$1))+1),"") ->  | HP14: =IFERROR(MID($Y14,FIND(CHAR(160),SUBSTITUTE($Y14,"{",CHAR(160),HP$1)),FIND(CHAR(160),SUBSTITUTE($Y14,"}",CHAR(160),HP$1))-FIND(CHAR(160),SUBSTITUTE($Y14,"{",CHAR(160),HP$1))+1),"") ->  | HQ14: =IFERROR(MID($Y14,FIND(CHAR(160),SUBSTITUTE($Y14,"{",CHAR(160),HQ$1)),FIND(CHAR(160),SUBSTITUTE($Y14,"}",CHAR(160),HQ$1))-FIND(CHAR(160),SUBSTITUTE($Y14,"{",CHAR(160),HQ$1))+1),"") ->  | HR14: =IFERROR(MID($Y14,FIND(CHAR(160),SUBSTITUTE($Y14,"{",CHAR(160),HR$1)),FIND(CHAR(160),SUBSTITUTE($Y14,"}",CHAR(160),HR$1))-FIND(CHAR(160),SUBSTITUTE($Y14,"{",CHAR(160),HR$1))+1),"") ->  | HS14: =IFERROR(MID($Y14,FIND(CHAR(160),SUBSTITUTE($Y14,"{",CHAR(160),HS$1)),FIND(CHAR(160),SUBSTITUTE($Y14,"}",CHAR(160),HS$1))-FIND(CHAR(160),SUBSTITUTE($Y14,"{",CHAR(160),HS$1))+1),"") -> {Primary heating type} | HT14: =IFERROR(MID($Y14,FIND(CHAR(160),SUBSTITUTE($Y14,"{",CHAR(160),HT$1)),FIND(CHAR(160),SUBSTITUTE($Y14,"}",CHAR(160),HT$1))-FIND(CHAR(160),SUBSTITUTE($Y14,"{",CHAR(160),HT$1))+1),"") -> {Primary heating type} | HU14: =IFERROR(MID($Z14,FIND(CHAR(160),SUBSTITUTE($Z14,"{",CHAR(160),HU$1)),FIND(CHAR(160),SUBSTITUTE($Z14,"}",CHAR(160),HU$1))-FIND(CHAR(160),SUBSTITUTE($Z14,"{",CHAR(160),HU$1))+1),"") ->  | HV14: =IFERROR(MID($Z14,FIND(CHAR(160),SUBSTITUTE($Z14,"{",CHAR(160),HV$1)),FIND(CHAR(160),SUBSTITUTE($Z14,"}",CHAR(160),HV$1))-FIND(CHAR(160),SUBSTITUTE($Z14,"{",CHAR(160),HV$1))+1),"") ->  | HW14: =IFERROR(MID($Z14,FIND(CHAR(160),SUBSTITUTE($Z14,"{",CHAR(160),HW$1)),FIND(CHAR(160),SUBSTITUTE($Z14,"}",CHAR(160),HW$1))-FIND(CHAR(160),SUBSTITUTE($Z14,"{",CHAR(160),HW$1))+1),"") ->  | HX14: =IFERROR(MID($Z14,FIND(CHAR(160),SUBSTITUTE($Z14,"{",CHAR(160),HX$1)),FIND(CHAR(160),SUBSTITUTE($Z14,"}",CHAR(160),HX$1))-FIND(CHAR(160),SUBSTITUTE($Z14,"{",CHAR(160),HX$1))+1),"") ->  | HY14: =IFERROR(MID($Z14,FIND(CHAR(160),SUBSTITUTE($Z14,"{",CHAR(160),HY$1)),FIND(CHAR(160),SUBSTITUTE($Z14,"}",CHAR(160),HY$1))-FIND(CHAR(160),SUBSTITUTE($Z14,"{",CHAR(160),HY$1))+1),"") ->  | HZ14: =IFERROR(MID($Z14,FIND(CHAR(160),SUBSTITUTE($Z14,"{",CHAR(160),HZ$1)),FIND(CHAR(160),SUBSTITUTE($Z14,"}",CHAR(160),HZ$1))-FIND(CHAR(160),SUBSTITUTE($Z14,"{",CHAR(160),HZ$1))+1),"") ->  | IA14: =IFERROR(MID($Z14,FIND(CHAR(160),SUBSTITUTE($Z14,"{",CHAR(160),IA$1)),FIND(CHAR(160),SUBSTITUTE($Z14,"}",CHAR(160),IA$1))-FIND(CHAR(160),SUBSTITUTE($Z14,"{",CHAR(160),IA$1))+1),"") ->  | IB14: =IFERROR(MID($Z14,FIND(CHAR(160),SUBSTITUTE($Z14,"{",CHAR(160),IB$1)),FIND(CHAR(160),SUBSTITUTE($Z14,"}",CHAR(160),IB$1))-FIND(CHAR(160),SUBSTITUTE($Z14,"{",CHAR(160),IB$1))+1),"") ->  | IC14: =IFERROR(MID($Z14,FIND(CHAR(160),SUBSTITUTE($Z14,"{",CHAR(160),IC$1)),FIND(CHAR(160),SUBSTITUTE($Z14,"}",CHAR(160),IC$1))-FIND(CHAR(160),SUBSTITUTE($Z14,"{",CHAR(160),IC$1))+1),"") -> {Primary heating type} | ID14: =IFERROR(MID($Z14,FIND(CHAR(160),SUBSTITUTE($Z14,"{",CHAR(160),ID$1)),FIND(CHAR(160),SUBSTITUTE($Z14,"}",CHAR(160),ID$1))-FIND(CHAR(160),SUBSTITUTE($Z14,"{",CHAR(160),ID$1))+1),"") -> {Primary heating type} | IE14: =IFERROR(MID($AA14,FIND(CHAR(160),SUBSTITUTE($AA14,"{",CHAR(160),IE$1)),FIND(CHAR(160),SUBSTITUTE($AA14,"}",CHAR(160),IE$1))-FIND(CHAR(160),SUBSTITUTE($AA14,"{",CHAR(160),IE$1))+1),"") ->  | IF14: =IFERROR(MID($AA14,FIND(CHAR(160),SUBSTITUTE($AA14,"{",CHAR(160),IF$1)),FIND(CHAR(160),SUBSTITUTE($AA14,"}",CHAR(160),IF$1))-FIND(CHAR(160),SUBSTITUTE($AA14,"{",CHAR(160),IF$1))+1),"") ->  | IG14: =IFERROR(MID($AA14,FIND(CHAR(160),SUBSTITUTE($AA14,"{",CHAR(160),IG$1)),FIND(CHAR(160),SUBSTITUTE($AA14,"}",CHAR(160),IG$1))-FIND(CHAR(160),SUBSTITUTE($AA14,"{",CHAR(160),IG$1))+1),"") ->  | IH14: =IFERROR(MID($AA14,FIND(CHAR(160),SUBSTITUTE($AA14,"{",CHAR(160),IH$1)),FIND(CHAR(160),SUBSTITUTE($AA14,"}",CHAR(160),IH$1))-FIND(CHAR(160),SUBSTITUTE($AA14,"{",CHAR(160),IH$1))+1),"") ->  | II14: =IFERROR(MID($AA14,FIND(CHAR(160),SUBSTITUTE($AA14,"{",CHAR(160),II$1)),FIND(CHAR(160),SUBSTITUTE($AA14,"}",CHAR(160),II$1))-FIND(CHAR(160),SUBSTITUTE($AA14,"{",CHAR(160),II$1))+1),"") ->  | IJ14: =IFERROR(MID($AA14,FIND(CHAR(160),SUBSTITUTE($AA14,"{",CHAR(160),IJ$1)),FIND(CHAR(160),SUBSTITUTE($AA14,"}",CHAR(160),IJ$1))-FIND(CHAR(160),SUBSTITUTE($AA14,"{",CHAR(160),IJ$1))+1),"") ->  | IK14: =IFERROR(MID($AA14,FIND(CHAR(160),SUBSTITUTE($AA14,"{",CHAR(160),IK$1)),FIND(CHAR(160),SUBSTITUTE($AA14,"}",CHAR(160),IK$1))-FIND(CHAR(160),SUBSTITUTE($AA14,"{",CHAR(160),IK$1))+1),"") ->  | IL14: =IFERROR(MID($AA14,FIND(CHAR(160),SUBSTITUTE($AA14,"{",CHAR(160),IL$1)),FIND(CHAR(160),SUBSTITUTE($AA14,"}",CHAR(160),IL$1))-FIND(CHAR(160),SUBSTITUTE($AA14,"{",CHAR(160),IL$1))+1),"") ->  | IM14: =IFERROR(MID($AA14,FIND(CHAR(160),SUBSTITUTE($AA14,"{",CHAR(160),IM$1)),FIND(CHAR(160),SUBSTITUTE($AA14,"}",CHAR(160),IM$1))-FIND(CHAR(160),SUBSTITUTE($AA14,"{",CHAR(160),IM$1))+1),"") -> {Primary heating type} | IN14: =IFERROR(MID($AA14,FIND(CHAR(160),SUBSTITUTE($AA14,"{",CHAR(160),IN$1)),FIND(CHAR(160),SUBSTITUTE($AA14,"}",CHAR(160),IN$1))-FIND(CHAR(160),SUBSTITUTE($AA14,"{",CHAR(160),IN$1))+1),"") -> {Primary heating type} | IO14: =IFERROR(MID($AB14,FIND(CHAR(160),SUBSTITUTE($AB14,"{",CHAR(160),IO$1)),FIND(CHAR(160),SUBSTITUTE($AB14,"}",CHAR(160),IO$1))-FIND(CHAR(160),SUBSTITUTE($AB14,"{",CHAR(160),IO$1))+1),"") ->  | IP14: =IFERROR(MID($AB14,FIND(CHAR(160),SUBSTITUTE($AB14,"{",CHAR(160),IP$1)),FIND(CHAR(160),SUBSTITUTE($AB14,"}",CHAR(160),IP$1))-FIND(CHAR(160),SUBSTITUTE($AB14,"{",CHAR(160),IP$1))+1),"") ->  | IQ14: =IFERROR(MID($AB14,FIND(CHAR(160),SUBSTITUTE($AB14,"{",CHAR(160),IQ$1)),FIND(CHAR(160),SUBSTITUTE($AB14,"}",CHAR(160),IQ$1))-FIND(CHAR(160),SUBSTITUTE($AB14,"{",CHAR(160),IQ$1))+1),"") ->  | IR14: =IFERROR(MID($AB14,FIND(CHAR(160),SUBSTITUTE($AB14,"{",CHAR(160),IR$1)),FIND(CHAR(160),SUBSTITUTE($AB14,"}",CHAR(160),IR$1))-FIND(CHAR(160),SUBSTITUTE($AB14,"{",CHAR(160),IR$1))+1),"") ->  | IS14: =IFERROR(MID($AB14,FIND(CHAR(160),SUBSTITUTE($AB14,"{",CHAR(160),IS$1)),FIND(CHAR(160),SUBSTITUTE($AB14,"}",CHAR(160),IS$1))-FIND(CHAR(160),SUBSTITUTE($AB14,"{",CHAR(160),IS$1))+1),"") ->  | IT14: =IFERROR(MID($AB14,FIND(CHAR(160),SUBSTITUTE($AB14,"{",CHAR(160),IT$1)),FIND(CHAR(160),SUBSTITUTE($AB14,"}",CHAR(160),IT$1))-FIND(CHAR(160),SUBSTITUTE($AB14,"{",CHAR(160),IT$1))+1),"") ->  | IU14: =IFERROR(MID($AB14,FIND(CHAR(160),SUBSTITUTE($AB14,"{",CHAR(160),IU$1)),FIND(CHAR(160),SUBSTITUTE($AB14,"}",CHAR(160),IU$1))-FIND(CHAR(160),SUBSTITUTE($AB14,"{",CHAR(160),IU$1))+1),"") ->  | IV14: =IFERROR(MID($AB14,FIND(CHAR(160),SUBSTITUTE($AB14,"{",CHAR(160),IV$1)),FIND(CHAR(160),SUBSTITUTE($AB14,"}",CHAR(160),IV$1))-FIND(CHAR(160),SUBSTITUTE($AB14,"{",CHAR(160),IV$1))+1),"") ->  | IW14: =IFERROR(MID($AB14,FIND(CHAR(160),SUBSTITUTE($AB14,"{",CHAR(160),IW$1)),FIND(CHAR(160),SUBSTITUTE($AB14,"}",CHAR(160),IW$1))-FIND(CHAR(160),SUBSTITUTE($AB14,"{",CHAR(160),IW$1))+1),"") ->  | IX14: =IFERROR(MID($AB14,FIND(CHAR(160),SUBSTITUTE($AB14,"{",CHAR(160),IX$1)),FIND(CHAR(160),SUBSTITUTE($AB14,"}",CHAR(160),IX$1))-FIND(CHAR(160),SUBSTITUTE($AB14,"{",CHAR(160),IX$1))+1),"") ->  | IZ14: =10-COUNTIF(DU14:ED14,"") -> 3
